Workbook

Sheet Instrucciones
B3: CALIFICACIÓN DE LAS COMPETENCIAS CLAVE Y DE LAS MATERIAS 2º_BACH_GENERAL
B6: INSTRUCCIONES 1. INCORPORAR LOS CRITERIOS DE CALIFICACIÓN DE LAS COMPETENCIAS CLAVE BOTÓN: "INCORPORAR LOS CRITERIOS DE CALIFICACIÓN DE LAS COMPETENCIAS CLAVE." Para introducir los criterios de calificación de las competencias clave hay que seleccionar una opción en cada uno de los siguientes campos: -Pesos de los criterios de evaluación en el cálculo de la calificación de los descriptores operativos. -Pesos de los descriptores operativos en el cálculo de la calificación de las competencias clave. Si se considera, se puede bloquear la información introducida pulsado en el botón "PROTEGIDA" e introduciendo una contaseña. En caso de querer desbloquear la página se debe pulsar en el botón "DESPROTEGIDA" e introducir la contraseña marcada. 2. INCORPORAR EL NOMBRE DE LOS ALUMNOS QUE COMPONEN EL GRUPO. BOTÓN: "INCORPORAR EL LISTADO DE ALUMNOS" Introducir el nombre de todos los alumnos que componen el grupo-clase. Marcar las materias de opción que cursa cada alumno, inlcuidas las materias pendientes de primer curso de bachillerato. Pulsando sobre el botón "informe" en cada alumnno se visualiza de forma individualizada la composición de las calificaciones de las materias y de las competencias clave a partir de las notas de los criterios de evaluación. Además, se incorporan dos botones para facilitar el trabajo colaborativo a través de TEAMS o Onedrive. El procedimiento es el siguiente: 1º Se pulsa el botón superior de esta sección TEAMS/Onedrive; 2º Una vez guardado el archivo, se comparte con las citadas aplicaciones; 3º Los docentes incorporan las céntésimas de redondeo de su materia en la pestaña "Redondeo" y las notas de los criterios de evaluación en la pestaña correspondiente a su materia; 4º Se descarga el archivo y se pulsa en el segundo botón de esta sección TEAMS/Onedrive para normalizar su funcionamiento y poder visualizar toda la información que esta herramienta ofrece. 3. INCORPORAR LAS CALIFICACIONES DE LOS CRITERIOS DE EVALUACIÓN DE LAS MATERIAS CURSADAS POR EL ALUMNO. BOTÓN: "INCORPORAR LA CALIFICACIÓN POR MATERIAS DE LOS CRITERIOS DE EVALUACIÓN " Seleccionar la materia. En la pestaña de destino introducir los pesos (ponderaciones) de cada criterio de evaluación (es decir, los criterios de calificación de la materia) y las calificaciones de los criterios de evaluación para los alumnos que cursen la materia o, en su caso, la calificación de la materia. 4. OBSERVAR LAS NOTAS DE LAS COMPETENCIAS CLAVE DE LOS ALUMNOS. BOTÓN: "VISUALIZAR LAS NOTAS DE LAS COMPETENCIAS CLAVE" Permite observar las notas de las competencias clave de cada alumno en función de los criterios de calificación de las competencias clave introducidos. Además, desde la pantalla de destino se puede generar un documento para exportar las notas de las competencias clave a STILUS. Para ello, previamente es necesario introducir las centésimas de redondeo de las notas de las competencias clave en la celda creada al efecto. 5. OBSERVAR LAS NOTAS DE LAS MATERIAS DE LOS ALUMNOS. BOTÓN: "VISUALIZAR LAS NOTAS DE LAS MATERIAS" Permite observar las notas de las materias de cada alumno, en función de los criterios de calificación de la materia introducidos. Además, desde la pantalla de destino se puede generar un documento para exportar las notas de las materias a STILUS.

Sheet Criterios de calificacion CClav
D4: CRITERIOS DE CALIFICACIÓN DE LAS COMPETENCIAS CLAVE
D6: Pesos de los criterios de evaluación en el cálculo de la calificación de los descriptores operativos
E8: MEDIA SIMPLE. Se aplica un criterio común para el cálculo de la calificación de todos los descriptores. Todos los criterios de evaluación pesan (ponderan) los mismo en la calificaión de los descriptores operativos.
E10: MEDIA PONDERADA POR CARGA HORARIA. Se aplica un criterio común para el cálculo de la calificación de todos los descriptores. El peso de los criterios de evaluación se determina en función de la carga horaria de la materia. (RECOMENDADO)
E12: LIBRE. Se aplica un criterio común para el cálculo de la calificación de todos los descriptores. El peso de cada criterio de evaluación en la calificación de los descriptores se determina por el centro.
E14: LIBRE DIFERENCIADO POR DESCRIPTORES. Se aplica un criterio diferenciado para el cálculo de la calificación de cada descriptor. El peso de cada criterio de evaluación en la calificación de cada descriptor se determina por el centro.
D16: Pesos de los descriptores operativos en el cálculo de la calificación de las competencias clave
E18: MEDIA PONDERADA. El peso de los descriptores operativos en el cálculo de la calificación de la competencia clave se determina en proporción al número de vinculaciones de cada descriptor operativo con los criterios de evaluación (RECOMENDADO)
E20: LIBRE. El peso (ponderación) de los descriptores operativos en el cálculo de la calificación de la competencia clave se determina por el centro.

Sheet Peso criterios carga horaria
F2: Mismo peso todos los descriptores
F3: Sí
E4: CALIFICACIÓN | F4: PESO TODOS
B5: Análisis Musical II | C5: Comp. Esp. 1 | D5: Criterio Evaluación 1.1 | F5: 4
D6: Criterio Evaluación 1.2 | F6: 4
D7: Criterio Evaluación 1.3 | F7: 4
D8: Criterio Evaluación 1.4 | F8: 4
D9: Criterio Evaluación 1.5 | F9: 4
D10: Criterio Evaluación 1.6 | F10: 4
C11: Comp. Esp. 2 | D11: Criterio Evaluación 2.1 | F11: 4
D12: Criterio Evaluación 2.2 | F12: 4
D13: Criterio Evaluación 2.3 | F13: 4
D14: Criterio Evaluación 2.4 | F14: 4
C15: Comp. Esp. 3 | D15: Criterio Evaluación 3.1 | F15: 4
D16: Criterio Evaluación 3.2 | F16: 4
D17: Criterio Evaluación 3.3 | F17: 4
D18: Criterio Evaluación 3.4 | F18: 4
C19: Comp. Esp. 4 | D19: Criterio Evaluación 4.1 | F19: 4
D20: Criterio Evaluación 4.2 | F20: 4
D21: Criterio Evaluación 4.3 | F21: 4
D22: Criterio Evaluación 4.4 | F22: 4
C23: Comp. Esp. 5 | D23: Criterio Evaluación 5.1 | F23: 4
D24: Criterio Evaluación 5.2 | F24: 4
D25: Criterio Evaluación 5.3 | F25: 4
B26: Artes Escénicas II | C26: Comp. Esp. 1 | D26: Criterio Evaluación 1.1 | F26: 4
D27: Criterio Evaluación 1.2 | F27: 4
C28: Comp. Esp. 2 | D28: Criterio Evaluación 2.1 | F28: 4
D29: Criterio Evaluación 2.2 | F29: 4
C30: Comp. Esp. 3 | D30: Criterio Evaluación 3.1 | F30: 4
D31: Criterio Evaluación 3.2 | F31: 4
C32: Comp. Esp. 4 | D32: Criterio Evaluación 4.1 | F32: 4
D33: Criterio Evaluación 4.2 | F33: 4
D34: Criterio Evaluación 4.3 | F34: 4
C35: Comp. Esp. 5 | D35: Criterio Evaluación 5.1 | F35: 4
D36: Criterio Evaluación 5.2 | F36: 4
B37: Biología | C37: Comp. Esp. 1 | D37: Criterio Evaluación 1.1 | F37: 4
D38: Criterio Evaluación 1.2 | F38: 4
D39: Criterio Evaluación 1.3 | F39: 4
C40: Comp. Esp. 2 | D40: Criterio Evaluación 2.1 | F40: 4
D41: Criterio Evaluación 2.2 | F41: 4
D42: Criterio Evaluación 2.3 | F42: 4
C43: Comp. Esp. 3 | D43: Criterio Evaluación 3.1 | F43: 4
D44: Criterio Evaluación 3.2 | F44: 4
D45: Criterio Evaluación 3.3 | F45: 4
C46: Comp. Esp. 4 | D46: Criterio Evaluación 4.1 | F46: 4
D47: Criterio Evaluación 4.2 | F47: 4
C48: Comp. Esp. 5 | D48: Criterio Evaluación 5.1 | F48: 4
D49: Criterio Evaluación 5.2 | F49: 4
C50: Comp. Esp. 6 | D50: Criterio Evaluación 6.1 | F50: 4
D51: Criterio Evaluación 6.2 | F51: 4
B52: Ciencias Generales | C52: Comp. Esp. 1 | D52: Criterio Evaluación 1.1 | F52: 4
D53: Criterio Evaluación 1.2 | F53: 4
D54: Criterio Evaluación 1.3 | F54: 4
C55: Comp. Esp. 2 | D55: Criterio Evaluación 2.1 | F55: 4
D56: Criterio Evaluación 2.2 | F56: 4
D57: Criterio Evaluación 2.3 | F57: 4
D58: Criterio Evaluación 2.4 | F58: 4
C59: Comp. Esp. 3 | D59: Criterio Evaluación 3.1 | F59: 4
D60: Criterio Evaluación 3.2 | F60: 4
C61: Comp. Esp. 4 | D61: Criterio Evaluación 4.1 | F61: 4
D62: Criterio Evaluación 4.2 | F62: 4
C63: Comp. Esp. 5 | D63: Criterio Evaluación 5.1 | F63: 4
D64: Criterio Evaluación 5.2 | F64: 4
C65: Comp. Esp. 6 | D65: Criterio Evaluación 6.1 | F65: 4
D66: Criterio Evaluación 6.2 | F66: 4
B67: Coro y Técnica Vocal II | C67: Comp. Esp. 1 | D67: Criterio Evaluación 1.1 | F67: 4
D68: Criterio Evaluación 1.2 | F68: 4
D69: Criterio Evaluación 1.3 | F69: 4
D70: Criterio Evaluación 1.4 | F70: 4
C71: Comp. Esp. 2 | D71: Criterio Evaluación 2.1 | F71: 4
D72: Criterio Evaluación 2.2 | F72: 4
C73: Comp. Esp. 3 | D73: Criterio Evaluación 3.1 | F73: 4
D74: Criterio Evaluación 3.2 | F74: 4
D75: Criterio Evaluación 3.3 | F75: 4
C76: Comp. Esp. 4 | D76: Criterio Evaluación 4.1 | F76: 4
D77: Criterio Evaluación 4.2 | F77: 4
D78: Criterio Evaluación 4.3 | F78: 4
B79: Dibujo Técnico II | C79: Comp. Esp. 1 | D79: Criterio Evaluación 1.1 | F79: 4
C80: Comp. Esp. 2 | D80: Criterio Evaluación 2.1 | F80: 4
D81: Criterio Evaluación 2.2 | F81: 4
D82: Criterio Evaluación 2.3 | F82: 4
D83: Criterio Evaluación 2.4 | F83: 4
C84: Comp. Esp. 3 | D84: Criterio Evaluación 3.1 | F84: 4
D85: Criterio Evaluación 3.2 | F85: 4
D86: Criterio Evaluación 3.3 | F86: 4
D87: Criterio Evaluación 3.4 | F87: 4
D88: Criterio Evaluación 3.5 | F88: 4
D89: Criterio Evaluación 3.6 | F89: 4
C90: Comp. Esp. 4 | D90: Criterio Evaluación 4.1 | F90: 4
D91: Criterio Evaluación 4.2 | F91: 4
C92: Comp. Esp. 5 | D92: Criterio Evaluación 5.1 | F92: 4
D93: Criterio Evaluación 5.2 | F93: 4
D94: Criterio Evaluación 5.3 | F94: 4
D95: Criterio Evaluación 5.4 | F95: 4
B96: Dibujo Técnico Aplicado a las Artes Plásticas y al Diseño II | C96: Comp. Esp. 1 | D96: Criterio Evaluación 1.1 | F96: 4
D97: Criterio Evaluación 1.2 | F97: 4
C98: Comp. Esp. 2 | D98: Criterio Evaluación 2.1 | F98: 4
D99: Criterio Evaluación 2.2 | F99: 4
D100: Criterio Evaluación 2.3 | F100: 4
C101: Comp. Esp. 3 | D101: Criterio Evaluación 3.1 | F101: 4
D102: Criterio Evaluación 3.2 | F102: 4
D103: Criterio Evaluación 3.3 | F103: 4
C104: Comp. Esp. 4 | D104: Criterio Evaluación 4.1 | F104: 4
D105: Criterio Evaluación 4.2 | F105: 4
D106: Criterio Evaluación 4.3 | F106: 4
C107: Comp. Esp. 5 | D107: Criterio Evaluación 5.1 | F107: 4
B108: Diseño | C108: Comp. Esp. 1 | D108: Criterio Evaluación 1.1 | F108: 4
D109: Criterio Evaluación 1.2 | F109: 4
C110: Comp. Esp. 2 | D110: Criterio Evaluación 2.1 | F110: 4
D111: Criterio Evaluación 2.2 | F111: 4
C112: Comp. Esp. 3 | D112: Criterio Evaluación 3.1 | F112: 4
D113: Criterio Evaluación 3.2 | F113: 4
C114: Comp. Esp. 4 | D114: Criterio Evaluación 4.1 | F114: 4
D115: Criterio Evaluación 4.2 | F115: 4
D116: Criterio Evaluación 4.3 | F116: 4
C117: Comp. Esp. 5 | D117: Criterio Evaluación 5.1 | F117: 4
D118: Criterio Evaluación 5.2 | F118: 4
C119: Comp. Esp. 6 | D119: Criterio Evaluación 6.1 | F119: 4
D120: Criterio Evaluación 6.2 | F120: 4
D121: Criterio Evaluación 6.3 | F121: 4
D122: Criterio Evaluación 6.4 | F122: 4
B123: Empresa y Diseño de Modelos de Negocio | C123: Comp. Esp. 1 | D123: Criterio Evaluación 1.1 | F123: 4
D124: Criterio Evaluación 1.2 | F124: 4
C125: Comp. Esp. 2 | D125: Criterio Evaluación 2.1 | F125: 4
D126: Criterio Evaluación 2.2 | F126: 4
D127: Criterio Evaluación 2.3 | F127: 4
C128: Comp. Esp. 3 | D128: Criterio Evaluación 3.1 | F128: 4
D129: Criterio Evaluación 3.2 | F129: 4
D130: Criterio Evaluación 3.3 | F130: 4
D131: Criterio Evaluación 3.4 | F131: 4
C132: Comp. Esp. 4 | D132: Criterio Evaluación 4.1 | F132: 4
D133: Criterio Evaluación 4.2 | F133: 4
D134: Criterio Evaluación 4.3 | F134: 4
C135: Comp. Esp. 5 | D135: Criterio Evaluación 5.1 | F135: 4
D136: Criterio Evaluación 5.2 | F136: 4
D137: Criterio Evaluación 5.3 | F137: 4
D138: Criterio Evaluación 5.4 | F138: 4
B139: Física | C139: Comp. Esp. 1 | D139: Criterio Evaluación 1.1 | F139: 4
D140: Criterio Evaluación 1.2 | F140: 4
C141: Comp. Esp. 2 | D141: Criterio Evaluación 2.1 | F141: 4
D142: Criterio Evaluación 2.2 | F142: 4
D143: Criterio Evaluación 2.3 | F143: 4
C144: Comp. Esp. 3 | D144: Criterio Evaluación 3.1 | F144: 4
D145: Criterio Evaluación 3.2 | F145: 4
D146: Criterio Evaluación 3.3 | F146: 4
C147: Comp. Esp. 4 | D147: Criterio Evaluación 4.1 | F147: 4
D148: Criterio Evaluación 4.2 | F148: 4
C149: Comp. Esp. 5 | D149: Criterio Evaluación 5.1 | F149: 4
D150: Criterio Evaluación 5.2 | F150: 4
D151: Criterio Evaluación 5.3 | F151: 4
C152: Comp. Esp. 6 | D152: Criterio Evaluación 6.1 | F152: 4
D153: Criterio Evaluación 6.2 | F153: 4
B154: Fundamentos Artísticos | C154: Comp. Esp. 1 | D154: Criterio Evaluación 1.1 | F154: 4
D155: Criterio Evaluación 1.2 | F155: 4
D156: Criterio Evaluación 1.3 | F156: 4
C157: Comp. Esp. 2 | D157: Criterio Evaluación 2.1 | F157: 4
D158: Criterio Evaluación 2.2 | F158: 4
C159: Comp. Esp. 3 | D159: Criterio Evaluación 3.1 | F159: 4
D160: Criterio Evaluación 3.2 | F160: 4
D161: Criterio Evaluación 3.3 | F161: 4
D162: Criterio Evaluación 3.4 | F162: 4
D163: Criterio Evaluación 3.5 | F163: 4
D164: Criterio Evaluación 3.6 | F164: 4
C165: Comp. Esp. 4 | D165: Criterio Evaluación 4.1 | F165: 4
D166: Criterio Evaluación 4.2 | F166: 4
D167: Criterio Evaluación 4.3 | F167: 4
D168: Criterio Evaluación 4.4 | F168: 4
C169: Comp. Esp. 5 | D169: Criterio Evaluación 5.1 | F169: 4
D170: Criterio Evaluación 5.2 | F170: 4
C171: Comp. Esp. 6 | D171: Criterio Evaluación 6.1 | F171: 4
D172: Criterio Evaluación 6.2 | F172: 4
C173: Comp. Esp. 7 | D173: Criterio Evaluación 7.1 | F173: 4
D174: Criterio Evaluación 7.2 | F174: 4
B175: Fundamentos de Administración y Gestión | C175: Comp. Esp. 1 | D175: Criterio Evaluación 1.1 | F175: 4
D176: Criterio Evaluación 1.2 | F176: 4
D177: Criterio Evaluación 1.3 | F177: 4
D178: Criterio Evaluación 1.4 | F178: 4
C179: Comp. Esp. 2 | D179: Criterio Evaluación 2.1 | F179: 4
D180: Criterio Evaluación 2.2 | F180: 4
D181: Criterio Evaluación 2.3 | F181: 4
D182: Criterio Evaluación 2.4 | F182: 4
C183: Comp. Esp. 3 | D183: Criterio Evaluación 3.1 | F183: 4
D184: Criterio Evaluación 3.2 | F184: 4
D185: Criterio Evaluación 3.3 | F185: 4
D186: Criterio Evaluación 3.4 | F186: 4
C187: Comp. Esp. 4 | D187: Criterio Evaluación 4.1 | F187: 4
D188: Criterio Evaluación 4.2 | F188: 4
D189: Criterio Evaluación 4.3 | F189: 4
D190: Criterio Evaluación 4.4 | F190: 4
C191: Comp. Esp. 5 | D191: Criterio Evaluación 5.1 | F191: 4
D192: Criterio Evaluación 5.2 | F192: 4
D193: Criterio Evaluación 5.3 | F193: 4
D194: Criterio Evaluación 5.4 | F194: 4
C195: Comp. Esp. 6 | D195: Criterio Evaluación 6.1 | F195: 4
D196: Criterio Evaluación 6.2 | F196: 4
D197: Criterio Evaluación 6.3 | F197: 4
D198: Criterio Evaluación 6.4 | F198: 4
B199: Geografía | C199: Comp. Esp. 1 | D199: Criterio Evaluación 1.1 | F199: 4
D200: Criterio Evaluación 1.2 | F200: 4
C201: Comp. Esp. 2 | D201: Criterio Evaluación 2.1 | F201: 4
... 989 more rows

Sheet Peso criterios libre
E4: CALIFICACIÓN | F4: PESO | G4: PORCENTAJE | H4: POR. AJUSTA
A5: MATERIAS DE 2º DE BACHILLERATO | B5: Análisis Musical II | C5: Comp. Esp. 1 | D5: Criterio Evaluación 1.1 | E5: 1 | F5: 1 | G5: =F5/SUM($F$5:$F$604) -> 0.001666666667 | H5: =IF(E5="-","",G5/H$1197) -> 
D6: Criterio Evaluación 1.2 | E6: 1 | F6: 1 | G6: 0.001666666667
D7: Criterio Evaluación 1.3 | F7: 1 | G7: 0.001666666667
D8: Criterio Evaluación 1.4 | E8: 1 | F8: 1 | G8: 0.001666666667
D9: Criterio Evaluación 1.5 | E9: 1 | F9: 1 | G9: 0.001666666667
D10: Criterio Evaluación 1.6 | F10: 1 | G10: 0.001666666667
C11: Comp. Esp. 2 | D11: Criterio Evaluación 2.1 | E11: 1 | F11: 1 | G11: 0.001666666667
D12: Criterio Evaluación 2.2 | E12: 1 | F12: 1 | G12: 0.001666666667
D13: Criterio Evaluación 2.3 | E13: 1 | F13: 1 | G13: 0.001666666667
D14: Criterio Evaluación 2.4 | E14: 1 | F14: 1 | G14: 0.001666666667
C15: Comp. Esp. 3 | D15: Criterio Evaluación 3.1 | E15: 1 | F15: 1 | G15: 0.001666666667
D16: Criterio Evaluación 3.2 | E16: 1 | F16: 1 | G16: 0.001666666667
D17: Criterio Evaluación 3.3 | E17: 1 | F17: 1 | G17: 0.001666666667
D18: Criterio Evaluación 3.4 | E18: 1 | F18: 1 | G18: 0.001666666667
C19: Comp. Esp. 4 | D19: Criterio Evaluación 4.1 | E19: 1 | F19: 1 | G19: 0.001666666667
D20: Criterio Evaluación 4.2 | F20: 1 | G20: 0.001666666667
D21: Criterio Evaluación 4.3 | F21: 1 | G21: 0.001666666667
D22: Criterio Evaluación 4.4 | F22: 1 | G22: 0.001666666667
C23: Comp. Esp. 5 | D23: Criterio Evaluación 5.1 | E23: 1 | F23: 1 | G23: 0.001666666667
D24: Criterio Evaluación 5.2 | E24: 1 | F24: 1 | G24: 0.001666666667
D25: Criterio Evaluación 5.3 | E25: 1 | F25: 1 | G25: 0.001666666667
B26: Artes Escénicas II | C26: Comp. Esp. 1 | D26: Criterio Evaluación 1.1 | E26: 1 | F26: 1 | G26: 0.001666666667
D27: Criterio Evaluación 1.2 | E27: 1 | F27: 1 | G27: 0.001666666667
C28: Comp. Esp. 2 | D28: Criterio Evaluación 2.1 | E28: 1 | F28: 1 | G28: 0.001666666667
D29: Criterio Evaluación 2.2 | E29: 1 | F29: 1 | G29: 0.001666666667
C30: Comp. Esp. 3 | D30: Criterio Evaluación 3.1 | E30: 1 | F30: 1 | G30: 0.001666666667
D31: Criterio Evaluación 3.2 | E31: 1 | F31: 1 | G31: 0.001666666667
C32: Comp. Esp. 4 | D32: Criterio Evaluación 4.1 | E32: 1 | F32: 1 | G32: 0.001666666667
D33: Criterio Evaluación 4.2 | E33: 1 | F33: 1 | G33: 0.001666666667
D34: Criterio Evaluación 4.3 | F34: 1 | G34: 0.001666666667
C35: Comp. Esp. 5 | D35: Criterio Evaluación 5.1 | F35: 1 | G35: 0.001666666667
D36: Criterio Evaluación 5.2 | E36: 1 | F36: 1 | G36: 0.001666666667
B37: Biología | C37: Comp. Esp. 1 | D37: Criterio Evaluación 1.1 | F37: 1 | G37: 0.001666666667
D38: Criterio Evaluación 1.2 | E38: 1 | F38: 1 | G38: 0.001666666667
D39: Criterio Evaluación 1.3 | E39: 1 | F39: 1 | G39: 0.001666666667
C40: Comp. Esp. 2 | D40: Criterio Evaluación 2.1 | F40: 1 | G40: 0.001666666667
D41: Criterio Evaluación 2.2 | F41: 1 | G41: 0.001666666667
D42: Criterio Evaluación 2.3 | F42: 1 | G42: 0.001666666667
C43: Comp. Esp. 3 | D43: Criterio Evaluación 3.1 | F43: 1 | G43: 0.001666666667
D44: Criterio Evaluación 3.2 | F44: 1 | G44: 0.001666666667
D45: Criterio Evaluación 3.3 | F45: 1 | G45: 0.001666666667
C46: Comp. Esp. 4 | D46: Criterio Evaluación 4.1 | E46: 1 | F46: 1 | G46: 0.001666666667
D47: Criterio Evaluación 4.2 | F47: 1 | G47: 0.001666666667
C48: Comp. Esp. 5 | D48: Criterio Evaluación 5.1 | F48: 1 | G48: 0.001666666667
D49: Criterio Evaluación 5.2 | E49: 1 | F49: 1 | G49: 0.001666666667
C50: Comp. Esp. 6 | D50: Criterio Evaluación 6.1 | E50: 1 | F50: 1 | G50: 0.001666666667
D51: Criterio Evaluación 6.2 | F51: 1 | G51: 0.001666666667
B52: Ciencias Generales | C52: Comp. Esp. 1 | D52: Criterio Evaluación 1.1 | F52: 1 | G52: 0.001666666667
D53: Criterio Evaluación 1.2 | F53: 1 | G53: 0.001666666667
D54: Criterio Evaluación 1.3 | E54: 1 | F54: 1 | G54: 0.001666666667
C55: Comp. Esp. 2 | D55: Criterio Evaluación 2.1 | E55: 1 | F55: 1 | G55: 0.001666666667
D56: Criterio Evaluación 2.2 | E56: 1 | F56: 1 | G56: 0.001666666667
D57: Criterio Evaluación 2.3 | F57: 1 | G57: 0.001666666667
D58: Criterio Evaluación 2.4 | E58: 1 | F58: 1 | G58: 0.001666666667
C59: Comp. Esp. 3 | D59: Criterio Evaluación 3.1 | E59: 1 | F59: 1 | G59: 0.001666666667
D60: Criterio Evaluación 3.2 | F60: 1 | G60: 0.001666666667
C61: Comp. Esp. 4 | D61: Criterio Evaluación 4.1 | F61: 1 | G61: 0.001666666667
D62: Criterio Evaluación 4.2 | F62: 1 | G62: 0.001666666667
C63: Comp. Esp. 5 | D63: Criterio Evaluación 5.1 | E63: 1 | F63: 1 | G63: 0.001666666667
D64: Criterio Evaluación 5.2 | E64: 1 | F64: 1 | G64: 0.001666666667
C65: Comp. Esp. 6 | D65: Criterio Evaluación 6.1 | F65: 1 | G65: 0.001666666667
D66: Criterio Evaluación 6.2 | E66: 1 | F66: 1 | G66: 0.001666666667
B67: Coro y Técnica Vocal II | C67: Comp. Esp. 1 | D67: Criterio Evaluación 1.1 | F67: 1 | G67: 0.001666666667
D68: Criterio Evaluación 1.2 | E68: 1 | F68: 1 | G68: 0.001666666667
D69: Criterio Evaluación 1.3 | E69: 1 | F69: 1 | G69: =F69/SUM($F$5:$F$604) -> 0.001666666667 | H69: =IF(E69="-","",G69/H$1197) -> 
D70: Criterio Evaluación 1.4 | F70: 1 | G70: 0.001666666667
C71: Comp. Esp. 2 | D71: Criterio Evaluación 2.1 | E71: 1 | F71: 1 | G71: 0.001666666667
D72: Criterio Evaluación 2.2 | F72: 1 | G72: 0.001666666667
C73: Comp. Esp. 3 | D73: Criterio Evaluación 3.1 | F73: 1 | G73: 0.001666666667
D74: Criterio Evaluación 3.2 | F74: 1 | G74: 0.001666666667
D75: Criterio Evaluación 3.3 | F75: 1 | G75: 0.001666666667
C76: Comp. Esp. 4 | D76: Criterio Evaluación 4.1 | F76: 1 | G76: 0.001666666667
D77: Criterio Evaluación 4.2 | F77: 1 | G77: 0.001666666667
D78: Criterio Evaluación 4.3 | F78: 1 | G78: 0.001666666667
B79: Dibujo Técnico II | C79: Comp. Esp. 1 | D79: Criterio Evaluación 1.1 | E79: 1 | F79: 1 | G79: 0.001666666667
C80: Comp. Esp. 2 | D80: Criterio Evaluación 2.1 | F80: 1 | G80: 0.001666666667
D81: Criterio Evaluación 2.2 | F81: 1 | G81: 0.001666666667
D82: Criterio Evaluación 2.3 | F82: 1 | G82: 0.001666666667
D83: Criterio Evaluación 2.4 | F83: 1 | G83: 0.001666666667
C84: Comp. Esp. 3 | D84: Criterio Evaluación 3.1 | F84: 1 | G84: 0.001666666667
D85: Criterio Evaluación 3.2 | F85: 1 | G85: 0.001666666667
D86: Criterio Evaluación 3.3 | F86: 1 | G86: 0.001666666667
D87: Criterio Evaluación 3.4 | F87: 1 | G87: 0.001666666667
D88: Criterio Evaluación 3.5 | F88: 1 | G88: 0.001666666667
D89: Criterio Evaluación 3.6 | F89: 1 | G89: 0.001666666667
C90: Comp. Esp. 4 | D90: Criterio Evaluación 4.1 | F90: 1 | G90: 0.001666666667
D91: Criterio Evaluación 4.2 | F91: 1 | G91: 0.001666666667
C92: Comp. Esp. 5 | D92: Criterio Evaluación 5.1 | F92: 1 | G92: 0.001666666667
D93: Criterio Evaluación 5.2 | F93: 1 | G93: 0.001666666667
D94: Criterio Evaluación 5.3 | F94: 1 | G94: 0.001666666667
D95: Criterio Evaluación 5.4 | F95: 1 | G95: 0.001666666667
B96: Dibujo Técnico Aplicado a las Artes Plásticas y al Diseño II | C96: Comp. Esp. 1 | D96: Criterio Evaluación 1.1 | E96: 1 | F96: 1 | G96: 0.001666666667
D97: Criterio Evaluación 1.2 | F97: 1 | G97: 0.001666666667
C98: Comp. Esp. 2 | D98: Criterio Evaluación 2.1 | E98: 1 | F98: 1 | G98: 0.001666666667
D99: Criterio Evaluación 2.2 | F99: 1 | G99: 0.001666666667
D100: Criterio Evaluación 2.3 | F100: 1 | G100: 0.001666666667
C101: Comp. Esp. 3 | D101: Criterio Evaluación 3.1 | F101: 1 | G101: 0.001666666667
D102: Criterio Evaluación 3.2 | F102: 1 | G102: 0.001666666667
D103: Criterio Evaluación 3.3 | F103: 1 | G103: 0.001666666667
C104: Comp. Esp. 4 | D104: Criterio Evaluación 4.1 | F104: 1 | G104: 0.001666666667
D105: Criterio Evaluación 4.2 | F105: 1 | G105: 0.001666666667
D106: Criterio Evaluación 4.3 | F106: 1 | G106: 0.001666666667
C107: Comp. Esp. 5 | D107: Criterio Evaluación 5.1 | F107: 1 | G107: 0.001666666667
B108: Diseño | C108: Comp. Esp. 1 | D108: Criterio Evaluación 1.1 | F108: 1 | G108: 0.001666666667
D109: Criterio Evaluación 1.2 | E109: 1 | F109: 1 | G109: 0.001666666667
C110: Comp. Esp. 2 | D110: Criterio Evaluación 2.1 | F110: 1 | G110: 0.001666666667
D111: Criterio Evaluación 2.2 | E111: 1 | F111: 1 | G111: 0.001666666667
C112: Comp. Esp. 3 | D112: Criterio Evaluación 3.1 | F112: 1 | G112: 0.001666666667
D113: Criterio Evaluación 3.2 | E113: 1 | F113: 1 | G113: 0.001666666667
C114: Comp. Esp. 4 | D114: Criterio Evaluación 4.1 | E114: 1 | F114: 1 | G114: 0.001666666667
D115: Criterio Evaluación 4.2 | F115: 1 | G115: 0.001666666667
D116: Criterio Evaluación 4.3 | E116: 1 | F116: 1 | G116: 0.001666666667
C117: Comp. Esp. 5 | D117: Criterio Evaluación 5.1 | F117: 1 | G117: 0.001666666667
D118: Criterio Evaluación 5.2 | E118: 1 | F118: 1 | G118: 0.001666666667
C119: Comp. Esp. 6 | D119: Criterio Evaluación 6.1 | F119: 1 | G119: 0.001666666667
D120: Criterio Evaluación 6.2 | F120: 1 | G120: 0.001666666667
D121: Criterio Evaluación 6.3 | F121: 1 | G121: 0.001666666667
D122: Criterio Evaluación 6.4 | F122: 1 | G122: 0.001666666667
B123: Empresa y Diseño de Modelos de Negocio | C123: Comp. Esp. 1 | D123: Criterio Evaluación 1.1 | F123: 1 | G123: 0.001666666667
D124: Criterio Evaluación 1.2 | F124: 1 | G124: 0.001666666667
C125: Comp. Esp. 2 | D125: Criterio Evaluación 2.1 | F125: 1 | G125: 0.001666666667
D126: Criterio Evaluación 2.2 | F126: 1 | G126: 0.001666666667
D127: Criterio Evaluación 2.3 | F127: 1 | G127: 0.001666666667
C128: Comp. Esp. 3 | D128: Criterio Evaluación 3.1 | F128: 1 | G128: 0.001666666667
D129: Criterio Evaluación 3.2 | F129: 1 | G129: 0.001666666667
D130: Criterio Evaluación 3.3 | F130: 1 | G130: 0.001666666667
D131: Criterio Evaluación 3.4 | F131: 1 | G131: 0.001666666667
C132: Comp. Esp. 4 | D132: Criterio Evaluación 4.1 | E132: 1 | F132: 1 | G132: 0.001666666667
D133: Criterio Evaluación 4.2 | E133: 1 | F133: 1 | G133: =F133/SUM($F$5:$F$604) -> 0.001666666667 | H133: =IF(E133="-","",G133/H$1197) -> 
D134: Criterio Evaluación 4.3 | E134: 1 | F134: 1 | G134: 0.001666666667
C135: Comp. Esp. 5 | D135: Criterio Evaluación 5.1 | F135: 1 | G135: 0.001666666667
D136: Criterio Evaluación 5.2 | F136: 1 | G136: 0.001666666667
D137: Criterio Evaluación 5.3 | F137: 1 | G137: 0.001666666667
D138: Criterio Evaluación 5.4 | F138: 1 | G138: 0.001666666667
B139: Física | C139: Comp. Esp. 1 | D139: Criterio Evaluación 1.1 | F139: 1 | G139: 0.001666666667
D140: Criterio Evaluación 1.2 | F140: 1 | G140: 0.001666666667
C141: Comp. Esp. 2 | D141: Criterio Evaluación 2.1 | F141: 1 | G141: 0.001666666667
D142: Criterio Evaluación 2.2 | F142: 1 | G142: 0.001666666667
D143: Criterio Evaluación 2.3 | F143: 1 | G143: 0.001666666667
C144: Comp. Esp. 3 | D144: Criterio Evaluación 3.1 | E144: 1 | F144: 1 | G144: 0.001666666667
D145: Criterio Evaluación 3.2 | E145: 1 | F145: 1 | G145: 0.001666666667
D146: Criterio Evaluación 3.3 | E146: 1 | F146: 1 | G146: 0.001666666667
C147: Comp. Esp. 4 | D147: Criterio Evaluación 4.1 | F147: 1 | G147: 0.001666666667
D148: Criterio Evaluación 4.2 | F148: 1 | G148: 0.001666666667
C149: Comp. Esp. 5 | D149: Criterio Evaluación 5.1 | F149: 1 | G149: 0.001666666667
D150: Criterio Evaluación 5.2 | E150: 1 | F150: 1 | G150: 0.001666666667
D151: Criterio Evaluación 5.3 | E151: 1 | F151: 1 | G151: 0.001666666667
C152: Comp. Esp. 6 | D152: Criterio Evaluación 6.1 | F152: 1 | G152: 0.001666666667
D153: Criterio Evaluación 6.2 | F153: 1 | G153: 0.001666666667
B154: Fundamentos Artísticos | C154: Comp. Esp. 1 | D154: Criterio Evaluación 1.1 | E154: 1 | F154: 1 | G154: 0.001666666667
D155: Criterio Evaluación 1.2 | F155: 1 | G155: 0.001666666667
D156: Criterio Evaluación 1.3 | F156: 1 | G156: 0.001666666667
C157: Comp. Esp. 2 | D157: Criterio Evaluación 2.1 | F157: 1 | G157: 0.001666666667
D158: Criterio Evaluación 2.2 | E158: 1 | F158: 1 | G158: 0.001666666667
C159: Comp. Esp. 3 | D159: Criterio Evaluación 3.1 | F159: 1 | G159: 0.001666666667
D160: Criterio Evaluación 3.2 | F160: 1 | G160: 0.001666666667
D161: Criterio Evaluación 3.3 | F161: 1 | G161: 0.001666666667
D162: Criterio Evaluación 3.4 | F162: 1 | G162: 0.001666666667
D163: Criterio Evaluación 3.5 | F163: 1 | G163: 0.001666666667
D164: Criterio Evaluación 3.6 | F164: 1 | G164: 0.001666666667
C165: Comp. Esp. 4 | D165: Criterio Evaluación 4.1 | F165: 1 | G165: 0.001666666667
D166: Criterio Evaluación 4.2 | E166: 1 | F166: 1 | G166: 0.001666666667
D167: Criterio Evaluación 4.3 | F167: 1 | G167: 0.001666666667
D168: Criterio Evaluación 4.4 | F168: 1 | G168: 0.001666666667
C169: Comp. Esp. 5 | D169: Criterio Evaluación 5.1 | E169: 1 | F169: 1 | G169: 0.001666666667
D170: Criterio Evaluación 5.2 | F170: 1 | G170: 0.001666666667
C171: Comp. Esp. 6 | D171: Criterio Evaluación 6.1 | E171: 1 | F171: 1 | G171: 0.001666666667
D172: Criterio Evaluación 6.2 | F172: 1 | G172: 0.001666666667
C173: Comp. Esp. 7 | D173: Criterio Evaluación 7.1 | F173: 1 | G173: 0.001666666667
D174: Criterio Evaluación 7.2 | F174: 1 | G174: 0.001666666667
B175: Fundamentos de Administración y Gestión | C175: Comp. Esp. 1 | D175: Criterio Evaluación 1.1 | F175: 1 | G175: 0.001666666667
D176: Criterio Evaluación 1.2 | F176: 1 | G176: 0.001666666667
D177: Criterio Evaluación 1.3 | F177: 1 | G177: 0.001666666667
D178: Criterio Evaluación 1.4 | F178: 1 | G178: 0.001666666667
C179: Comp. Esp. 2 | D179: Criterio Evaluación 2.1 | F179: 1 | G179: 0.001666666667
D180: Criterio Evaluación 2.2 | F180: 1 | G180: 0.001666666667
D181: Criterio Evaluación 2.3 | F181: 1 | G181: 0.001666666667
D182: Criterio Evaluación 2.4 | F182: 1 | G182: 0.001666666667
C183: Comp. Esp. 3 | D183: Criterio Evaluación 3.1 | F183: 1 | G183: 0.001666666667
D184: Criterio Evaluación 3.2 | F184: 1 | G184: 0.001666666667
D185: Criterio Evaluación 3.3 | F185: 1 | G185: 0.001666666667
D186: Criterio Evaluación 3.4 | F186: 1 | G186: 0.001666666667
C187: Comp. Esp. 4 | D187: Criterio Evaluación 4.1 | F187: 1 | G187: 0.001666666667
D188: Criterio Evaluación 4.2 | F188: 1 | G188: 0.001666666667
D189: Criterio Evaluación 4.3 | F189: 1 | G189: 0.001666666667
D190: Criterio Evaluación 4.4 | F190: 1 | G190: 0.001666666667
C191: Comp. Esp. 5 | D191: Criterio Evaluación 5.1 | E191: 1 | F191: 1 | G191: 0.001666666667
D192: Criterio Evaluación 5.2 | E192: 1 | F192: 1 | G192: 0.001666666667
D193: Criterio Evaluación 5.3 | E193: 1 | F193: 1 | G193: 0.001666666667
D194: Criterio Evaluación 5.4 | E194: 1 | F194: 1 | G194: 0.001666666667
C195: Comp. Esp. 6 | D195: Criterio Evaluación 6.1 | F195: 1 | G195: 0.001666666667
D196: Criterio Evaluación 6.2 | F196: 1 | G196: 0.001666666667
D197: Criterio Evaluación 6.3 | F197: 1 | G197: =F197/SUM($F$5:$F$604) -> 0.001666666667 | H197: =IF(E197="-","",G197/H$1197) -> 
D198: Criterio Evaluación 6.4 | F198: 1 | G198: 0.001666666667
B199: Geografía | C199: Comp. Esp. 1 | D199: Criterio Evaluación 1.1 | E199: 1 | F199: 1 | G199: 0.001666666667
D200: Criterio Evaluación 1.2 | E200: 1 | F200: 1 | G200: 0.001666666667
C201: Comp. Esp. 2 | D201: Criterio Evaluación 2.1 | F201: 1 | G201: 0.001666666667
D202: Criterio Evaluación 2.2 | F202: 1 | G202: 0.001666666667
C203: Comp. Esp. 3 | D203: Criterio Evaluación 3.1 | F203: 1 | G203: 0.001666666667
... 987 more rows

Sheet Peso descrip. libre
E2: Competencia en Comunicación Lingüística | Y2: Competencia Plurilingüe | AK2: Competencia Matemática y Competencia en Ciencia, Tecnología e Ingeniería | BE2: Competencia Digital | BY2: Competencia Personal, Social y de Aprender a Aprender | DA2: Competencia Ciudadana | DQ2: Competencia Emprendedora | EC2: Competencia en Conciencia y Expresión Culturales
E3: CCL 1 | I3: CCL 2 | M3: CCL 3 | Q3: CCL 4 | U3: CCL 5 | Y3: CP 1 | AC3: CP 2 | AG3: CP 3 | AK3: STEM 1 | AO3: STEM 2 | AS3: STEM 3 | AW3: STEM 4 | BA3: STEM 5 | BE3: CD 1 | BI3: CD 2 | BM3: CD 3 | BQ3: CD 4 | BU3: CD 5 | BY3: CPSAA 1.1 | CC3: CPSAA 1.2 | CG3: CPSAA 2 | CK3: CPSAA 3.1 | CO3: CPSAA 3.2 | CS3: CPSAA 4 | CW3: CPSAA 5 | DA3: CC 1 | DE3: CC 2 | DI3: CC 3 | DM3: CC 4 | DQ3: CE 1 | DU3: CE 2 | DY3: CE 3 | EC3: CCEC 1 | EG3: CCEC 2 | EK3: CCEC 3.1 | EO3: CCEC 3.2 | ES3: CCEC 4.1 | EW3: CCEC 4.2
B5: NO | C5: PESO DESCRIPTORES | E5: 1 | I5: 1 | M5: 1 | Q5: 1 | U5: 1 | Y5: 1 | AC5: 1 | AG5: 1 | AK5: 1 | AO5: 1 | AS5: 1 | AW5: 1 | BA5: 1 | BE5: 1 | BI5: 1 | BM5: 1 | BQ5: 1 | BU5: 1 | BY5: 1 | CC5: 1 | CG5: 1 | CK5: 1 | CO5: 1 | CS5: 1 | CW5: 1 | DA5: 1 | DE5: 1 | DI5: 1 | DM5: 1 | DQ5: 1 | DU5: 1 | DY5: 1 | EC5: 1 | EG5: 1 | EK5: 1 | EO5: 1 | ES5: 1 | EW5: 1
C6: PORCENTAJES | E6: =E5/SUM($E5:$U5) -> 0.2 | I6: =I5/SUM($E5:$U5) -> 0.2 | M6: =M5/SUM($E5:$U5) -> 0.2 | Q6: =Q5/SUM($E5:$U5) -> 0.2 | U6: =U5/SUM($E5:$U5) -> 0.2 | Y6: =Y5/SUM($Y5:$AG5) -> 0.3333333333 | AC6: =AC5/SUM($Y5:$AG5) -> 0.3333333333 | AG6: 0.3333333333 | AK6: =AK5/SUM($AK5:$BA5) -> 0.2 | AO6: =AO5/SUM($AK5:$BA5) -> 0.2 | AS6: 0.2 | AW6: 0.2 | BA6: 0.2 | BE6: =BE5/SUM($BE5:$BU5) -> 0.2 | BI6: =BI5/SUM($BE5:$BU5) -> 0.2 | BM6: 0.2 | BQ6: 0.2 | BU6: 0.2 | BY6: =BY5/SUM($BY5:$CW5) -> 0.1428571429 | CC6: =CC5/SUM($BY5:$CW5) -> 0.1428571429 | CG6: 0.1428571429 | CK6: =CK5/SUM($BY5:$CW5) -> 0.1428571429 | CO6: =CO5/SUM($BY5:$CW5) -> 0.1428571429 | CS6: 0.1428571429 | CW6: 0.1428571429 | DA6: =DA5/SUM($DA5:$DM5) -> 0.25 | DE6: =DE5/SUM($DA5:$DM5) -> 0.25 | DI6: 0.25 | DM6: 0.25 | DQ6: =DQ5/SUM($DQ5:$DY5) -> 0.3333333333 | DU6: =DU5/SUM($DQ5:$DY5) -> 0.3333333333 | DY6: 0.3333333333 | EC6: =EC5/SUM($EC5:$EW5) -> 0.1666666667 | EG6: =EG5/SUM($EC5:$EW5) -> 0.1666666667 | EK6: =EK5/SUM($EC5:$EW5) -> 0.1666666667 | EO6: =EO5/SUM($EC5:$EW5) -> 0.1666666667 | ES6: 0.1666666667 | EW6: 0.1666666667

Sheet Peso descrip. vinculaciones
E2: Competencia en Comunicación Lingüística | Y2: Competencia Plurilingüe | AK2: Competencia Matemática y Competencia en Ciencia, Tecnología e Ingeniería | BE2: Competencia Digital | BY2: Competencia Personal, Social y de Aprender a Aprender | DA2: Competencia Ciudadana | DQ2: Competencia Emprendedora | EC2: Competencia en Conciencia y Expresión Culturales
E3: CCL 1 | I3: CCL 2 | M3: CCL 3 | Q3: CCL 4 | U3: CCL 5 | Y3: CP 1 | AC3: CP 2 | AG3: CP 3 | AK3: STEM 1 | AO3: STEM 2 | AS3: STEM 3 | AW3: STEM 4 | BA3: STEM 5 | BE3: CD 1 | BI3: CD 2 | BM3: CD 3 | BQ3: CD 4 | BU3: CD 5 | BY3: CPSAA 1.1 | CC3: CPSAA 1.2 | CG3: CPSAA 2 | CK3: CPSAA 3.1 | CO3: CPSAA 3.2 | CS3: CPSAA 4 | CW3: CPSAA 5 | DA3: CC 1 | DE3: CC 2 | DI3: CC 3 | DM3: CC 4 | DQ3: CE 1 | DU3: CE 2 | DY3: CE 3 | EC3: CCEC 1 | EG3: CCEC 2 | EK3: CCEC 3.1 | EO3: CCEC 3.2 | ES3: CCEC 4.1 | EW3: CCEC 4.2
B5: NO | C5: PESO DESCRIPTORES | E5: 0.3269754768 | I5: 0.2697547684 | M5: 0.2243415077 | Q5: 0.07175295186 | U5: 0.1071752952 | Y5: 0.2711864407 | AC5: 0.3926553672 | AG5: 0.3361581921 | AK5: 0.2894985809 | AO5: 0.3055818354 | AS5: 0.1419110691 | AW5: 0.1854304636 | BA5: 0.07757805109 | BE5: 0.2718232044 | BI5: 0.2729281768 | BM5: 0.3149171271 | BQ5: 0.05856353591 | BU5: 0.0817679558 | BY5: 0.1799610895 | CC5: 0.1060311284 | CG5: 0.06809338521 | CK5: 0.1517509728 | CO5: 0.0719844358 | CS5: 0.2412451362 | CW5: 0.1809338521 | DA5: 0.301242236 | DE5: 0.1692546584 | DI5: 0.3633540373 | DM5: 0.1661490683 | DQ5: 0.3214990138 | DU5: 0.2189349112 | DY5: 0.459566075 | EC5: 0.255 | EG5: 0.16375 | EK5: 0.155 | EO5: 0.1475 | ES5: 0.12375 | EW5: 0.155
C6: PORCENTAJES | E6: =E5/SUM($E5:$U5) -> 0.3269754768 | I6: =I5/SUM($E5:$U5) -> 0.2697547684 | M6: =M5/SUM($E5:$U5) -> 0.2243415077 | Q6: =Q5/SUM($E5:$U5) -> 0.07175295186 | U6: =U5/SUM($E5:$U5) -> 0.1071752952 | Y6: =Y5/SUM($Y5:$AG5) -> 0.2711864407 | AC6: =AC5/SUM($Y5:$AG5) -> 0.3926553672 | AG6: 0.3361581921 | AK6: =AK5/SUM($AK5:$BA5) -> 0.2894985809 | AO6: =AO5/SUM($AK5:$BA5) -> 0.3055818354 | AS6: 0.1419110691 | AW6: 0.1854304636 | BA6: 0.07757805109 | BE6: =BE5/SUM($BE5:$BU5) -> 0.2718232044 | BI6: =BI5/SUM($BE5:$BU5) -> 0.2729281768 | BM6: 0.3149171271 | BQ6: 0.05856353591 | BU6: 0.0817679558 | BY6: =BY5/SUM($BY5:$CW5) -> 0.1799610895 | CC6: =CC5/SUM($BY5:$CW5) -> 0.1060311284 | CG6: 0.06809338521 | CK6: =CK5/SUM($BY5:$CW5) -> 0.1517509728 | CO6: =CO5/SUM($BY5:$CW5) -> 0.0719844358 | CS6: 0.2412451362 | CW6: 0.1809338521 | DA6: =DA5/SUM($DA5:$DM5) -> 0.301242236 | DE6: =DE5/SUM($DA5:$DM5) -> 0.1692546584 | DI6: 0.3633540373 | DM6: 0.1661490683 | DQ6: =DQ5/SUM($DQ5:$DY5) -> 0.3214990138 | DU6: =DU5/SUM($DQ5:$DY5) -> 0.2189349112 | DY6: 0.459566075 | EC6: =EC5/SUM($EC5:$EW5) -> 0.255 | EG6: =EG5/SUM($EC5:$EW5) -> 0.16375 | EK6: =EK5/SUM($EC5:$EW5) -> 0.155 | EO6: =EO5/SUM($EC5:$EW5) -> 0.1475 | ES6: 0.12375 | EW6: 0.155

Sheet Alumnos
C3: LISTADO DE ALUMNOS | F3: MATERIAS DE 2º BACHILLERATO | AJ3: MATERIAS PENDIENTES DE 1º BACHILLERATO
C4: Informe | D4: Grupo 2º _____ | E4: ID Matrícula | F4: MOV. CULT. Y ART. | G4: ANAL. MUSICAL II | H4: ARTES ESC. II | I4: BIIOLOGÍA | J4: CORO Y TEC. VOC. II | K4: DIBUJO TÉC. II | L4: DIB. TÉC. APLIC. AP Y D II | M4: DISEÑO | N4: EMPRESA Y MOD. DE N. | O4: FÍSICA | P4: FUNDAMENTOS ARTÍ. | Q4: FAG | R4: GEOGRAFÍA | S4: GEOLOGÍA Y CIENC. AMB | T4: GRIEGO II | U4: HISTOIRA DEL ARTE | V4: LATÍN II | W4: LITERATURA DRAMÁTICA | X4: MAT. APLIC. A LAS CCSS | Y4: QUÍMICA | Z4: TÉC. EXPR. GRAF-PLÁS | AA4: TÉC. E INGENIERÍA II | AB4: Hª MÚSICA Y D. | AC4: PSICOLOGÍA | AD4: 2ª LEX | AI4: TIC II | AJ4: ED. FÍSICA | AK4: FILOSOFÍA | AL4: LENGUAC yL | AM4: LEX | AN4: MAT GENERALES | AO4: ECO. EMP. Y A.E. | AP4: A. MUS I | AQ4: ANA. APLIC. | AR4: ARTES ESC. I | AS4: BIO, GEO Y CA | AT4: CORO Y TEC. VOC I | AU4: CULTURA AUD. | AV4: DIBUJO TEC. I | AW4: DIB. TEC. A APyD I | AX4: ECONOMÍA | AY4: FÍSICA Y QUÍMICA | AZ4: GRIEGO I | BA4: HIST. DEL M. CONT. | BB4: LATÍN I | BC4: LENGUAJE Y P. MUS. | BD4: LITURARUTA UNI. | BE4: MAT. APLIC. CCSS | BF4: PROYECTOS ART. | BG4: TEC. E ING. I | BH4: VOLUMEN | BI4: CULT. CIENTÍFICA | BJ4: RELGIÓN | BK4: 2ª LEX | BP4: TIC I | BR4: TEAMS / Onedrive
AD5: ALE | AE5: FRA | AF5: ING | AG5: ITA | AH5: POR | BK5: ALE | BL5: FRA | BM5: ING | BN5: ITA | BO5: POR
D6: Nombre_Alumno_1 | E6: 000_1 | F6: X | G6: X | H6: X | AB6: X
C7: 2 | D7: Nombre_Alumno_2 | E7: 000_2 | I7: X | J7: X | K7: X | AC7: X
C8: 3 | D8: Nombre_Alumno_3 | E8: 000_3 | L8: X | M8: X | N8: X | AH8: X
C9: 4 | D9: Nombre_Alumno_4 | E9: 000_4 | O9: X | P9: X | Q9: X | AI9: X
C11: 6
C12: 7
C13: 8
C14: 9
C15: 10
C16: 11
C17: 12
C18: 13
C19: 14
C20: 15
C21: 16
C22: 17
C23: 18
C24: 19
C25: 20
C26: 21
C27: 22
C28: 23
C29: 24
C30: 25
C31: 26
C32: 27
C33: 28
C34: 29
C35: 30
C36: 31
C37: 32
C38: 33
C39: 34
C40: 35
D41: TOTAL MATRICULADOS | F41: =COUNTA(F6:F40) -> 1 | G41: 1 | H41: 1 | I41: 1 | J41: 1 | K41: 1 | L41: 1 | M41: 1 | N41: 1 | O41: 1 | P41: 1 | Q41: 1 | R41: 0 | S41: 0 | T41: 0 | U41: 0 | V41: 0 | W41: 0 | X41: 0 | Y41: 0 | Z41: 0 | AA41: 0 | AB41: 1 | AC41: 1 | AD41: 0 | AE41: 0 | AF41: 0 | AG41: 0 | AH41: 1 | AI41: 1 | AJ41: 0 | AK41: 0 | AL41: 0 | AM41: 0 | AN41: 0 | AO41: 0 | AP41: 0 | AQ41: 0 | AR41: 0 | AS41: 0 | AT41: 0 | AU41: 0 | AV41: 0 | AW41: 0 | AX41: 0 | AY41: 0 | AZ41: 0 | BA41: 0 | BB41: 0 | BC41: 0 | BD41: 0 | BE41: 0 | BF41: 0 | BG41: 0 | BH41: 0 | BI41: 0 | BJ41: 0 | BK41: 0 | BL41: 0 | BM41: 0 | BN41: 0 | BO41: 0 | BP41: 0

Sheet Redondeo
BU2: EXPORTACIÓN NOTAS COMPETENCIAS A STILUS
C3: CALIFICACIÓN DE MATERIAS | BU3: 1º_Introduce para cada materia las centésimas a partir de las que se realizará un redondeo al alza (valor entre 1 y 100):
C4: CENTÉSIMAS REDONDEO
C5: 90 | D5: 90 | E5: 90 | F5: 90 | G5: 90 | H5: 90 | I5: 90 | J5: 90 | K5: 90 | L5: 90 | M5: 90 | N5: 90 | O5: 90 | P5: 90 | Q5: 90 | R5: 90 | S5: 90 | T5: 90 | U5: 90 | V5: 90 | W5: 90 | X5: 90 | Y5: 90 | Z5: 90 | AA5: 90 | AB5: 90 | AC5: 90 | AD5: 90 | AE5: 90 | AF5: 90 | AG5: 90 | AH5: 90 | AI5: 90 | AJ5: 90 | AK5: 90 | AL5: 90 | AM5: 90 | AN5: 90 | AO5: 90 | AP5: 90 | AQ5: 90 | AR5: 90 | AS5: 90 | AT5: 90 | AU5: 90 | AV5: 90 | AW5: 90 | AX5: 90 | AY5: 90 | AZ5: 90 | BA5: 90 | BB5: 90 | BC5: 90 | BD5: 90 | BE5: 90 | BF5: 90 | BG5: 90 | BH5: 90 | BI5: 90 | BJ5: 90 | BK5: 90 | BL5: 90 | BM5: 90 | BN5: 90 | BO5: 90 | BP5: 90 | BQ5: 90 | BR5: 90 | BU5: Ejemplo: si se marca 85, desde el 4,85 (inclusive) se redondeará a 5, Si se marca 100, el 4,99 e inferiores se redondearán a 4
C6: 2º BACHILLERATO | AL6: 1º BACHILLERATO PENDIENTES
B7: =TRANSPOSE('Calificación materias'!B5:AK73) -> 0 | C7: Historia de España | D7: Historia de la Filosofía | E7: Lengua Castellana y Literatura II | F7: Lengua Extranjera II | G7: Ciencias Generales | H7: Movimientos Culturales y Artísticos | I7: Análisis Musical II | J7: Artes Escénicas II | K7: Biología | L7: Coro y Técnica Vocal II | M7: Dibujo Técnico II | N7: Dibujo Téc. aplicado A. P. y D. II | O7: Diseño | P7: Empresa y Diseño de M. de N. | Q7: Física | R7: Fundamentos Artísticos | S7: FAG | T7: Geografía | U7: Geología y C.A. | V7: Griego II | W7: Historia del Arte | X7: Latín II | Y7: Literatura Dramática | Z7: Matemáticas aplicadas a las CCSS | AA7: Química | AB7: Técnicas de Expresión G-P | AC7: Tecnología e Ingeniería II | AD7: Hº de la Música y de la D. | AE7: Psicología | AF7: Segunda LEX_ALE II | AG7: Segunda LEX_FRA II | AH7: Segunda LEX_ING II | AI7: Segunda LEX_ITA II | AJ7: Segunda LEX_POR II | AK7: TIC II | AL7: Educación Física | AM7: Filosofía | AN7: Lengua Castellana y Literatura I | AO7: Lengua Extranjera I | AP7: Matemáticas Generales | AQ7: Economía, Emprendimiento y A.E. | AR7: Análisis Musical I | AS7: Anatomía Aplicada | AT7: Artes Escénicas I | AU7: Biología, Geología y CA | AV7: Coro y Técnica Vocal I | AW7: Cultura Audiovisual | AX7: Dibujo Técnico I | AY7: Dibujo Tecnico Aplicado APyD I | AZ7: Economía | BA7: Física y Química | BB7: Griego I | BC7: Historia del Mundo Contemp. | BD7: Latín I | BE7: Lenguaje y Práctica Musical | BF7: Literatura Universal | BG7: Matemáticas aplicadas a las CCSS | BH7: Proyectos Artísticos | BI7: Tecnología e Ingeniería I | BJ7: Volumen | BK7: Cultura Científica | BL7: Religión | BM7: Segunda LEX_ALE I | BN7: Segunda LEX_FRA I | BO7: Segunda LEX_ING I | BP7: Segunda LEX_ITA I | BQ7: Segunda LEX_POR I | BR7: TIC I | BU7: 2º_Pulsa el siguiente botón:
B8: Nombre_Alumno_1
B9: Nombre_Alumno_2
B10: Nombre_Alumno_3
B11: Nombre_Alumno_4

Sheet Materias
C2: MATERIAS DE 2º BACH_GENERAL
C26: MATERIAS PENDIENTES DE 1º BACH_GENERAL

Sheet 2LEX
C2: MATERIAS DE 2º BACH_GENERAL

Sheet 2LEX (1)
C2: MATERIAS PENDIENTES DE 1º BACH_GENERAL

Sheet Calif. de crit.
E2: =IF(Alumnos!D6="","",Alumnos!D6) -> Nombre_Alumno_1 | F2: =IF(Alumnos!D7="","",Alumnos!D7) -> Nombre_Alumno_2 | G2: =IF(Alumnos!D8="","",Alumnos!D8) -> Nombre_Alumno_3 | H2: =IF(Alumnos!D9="","",Alumnos!D9) -> Nombre_Alumno_4 | I2: =IF(Alumnos!D10="","",Alumnos!D10) ->  | J2: =IF(Alumnos!D11="","",Alumnos!D11) ->  | K2: =IF(Alumnos!D12="","",Alumnos!D12) ->  | L2: =IF(Alumnos!D13="","",Alumnos!D13) ->  | M2: =IF(Alumnos!D14="","",Alumnos!D14) ->  | N2: =IF(Alumnos!D15="","",Alumnos!D15) ->  | O2: =IF(Alumnos!D16="","",Alumnos!D16) ->  | P2: =IF(Alumnos!D17="","",Alumnos!D17) ->  | Q2: =IF(Alumnos!D18="","",Alumnos!D18) ->  | R2: =IF(Alumnos!D19="","",Alumnos!D19) ->  | S2: =IF(Alumnos!D20="","",Alumnos!D20) ->  | T2: =IF(Alumnos!D21="","",Alumnos!D21) ->  | U2: =IF(Alumnos!D22="","",Alumnos!D22) ->  | V2: =IF(Alumnos!D23="","",Alumnos!D23) ->  | W2: =IF(Alumnos!D24="","",Alumnos!D24) ->  | X2: =IF(Alumnos!D25="","",Alumnos!D25) ->  | Y2: =IF(Alumnos!D26="","",Alumnos!D26) ->  | Z2: =IF(Alumnos!D27="","",Alumnos!D27) ->  | AA2: =IF(Alumnos!D28="","",Alumnos!D28) ->  | AB2: =IF(Alumnos!D29="","",Alumnos!D29) ->  | AC2: =IF(Alumnos!D30="","",Alumnos!D30) ->  | AD2: =IF(Alumnos!D31="","",Alumnos!D31) ->  | AE2: =IF(Alumnos!D32="","",Alumnos!D32) ->  | AF2: =IF(Alumnos!D33="","",Alumnos!D33) ->  | AG2: =IF(Alumnos!D34="","",Alumnos!D34) ->  | AH2: =IF(Alumnos!D35="","",Alumnos!D35) ->  | AI2: =IF(Alumnos!D36="","",Alumnos!D36) ->  | AJ2: =IF(Alumnos!D37="","",Alumnos!D37) ->  | AK2: =IF(Alumnos!D38="","",Alumnos!D38) ->  | AL2: =IF(Alumnos!D39="","",Alumnos!D39) ->  | AM2: =IF(Alumnos!D40="","",Alumnos!D40) -> 
B3: Análisis Musical II | C3: Comp. Esp. 1 | D3: Criterio Evaluación 1.1 | E3: =IF(AM!H4="","",AM!H4) ->  | F3: =IF(AM!I4="","",AM!I4) ->  | G3: =IF(AM!J4="","",AM!J4) ->  | H3: =IF(AM!K4="","",AM!K4) ->  | I3: =IF(AM!L4="","",AM!L4) ->  | J3: =IF(AM!M4="","",AM!M4) ->  | K3: =IF(AM!N4="","",AM!N4) ->  | L3: =IF(AM!O4="","",AM!O4) ->  | M3: =IF(AM!P4="","",AM!P4) ->  | N3: =IF(AM!Q4="","",AM!Q4) ->  | O3: =IF(AM!R4="","",AM!R4) ->  | P3: =IF(AM!S4="","",AM!S4) ->  | Q3: =IF(AM!T4="","",AM!T4) ->  | R3: =IF(AM!U4="","",AM!U4) ->  | S3: =IF(AM!V4="","",AM!V4) ->  | T3: =IF(AM!W4="","",AM!W4) ->  | U3: =IF(AM!X4="","",AM!X4) ->  | V3: =IF(AM!Y4="","",AM!Y4) ->  | W3: =IF(AM!Z4="","",AM!Z4) ->  | X3: =IF(AM!AA4="","",AM!AA4) ->  | Y3: =IF(AM!AB4="","",AM!AB4) ->  | Z3: =IF(AM!AC4="","",AM!AC4) ->  | AA3: =IF(AM!AD4="","",AM!AD4) ->  | AB3: =IF(AM!AE4="","",AM!AE4) ->  | AC3: =IF(AM!AF4="","",AM!AF4) ->  | AD3: =IF(AM!AG4="","",AM!AG4) ->  | AE3: =IF(AM!AH4="","",AM!AH4) ->  | AF3: =IF(AM!AI4="","",AM!AI4) ->  | AG3: =IF(AM!AJ4="","",AM!AJ4) ->  | AH3: =IF(AM!AK4="","",AM!AK4) ->  | AI3: =IF(AM!AL4="","",AM!AL4) ->  | AJ3: =IF(AM!AM4="","",AM!AM4) ->  | AK3: =IF(AM!AN4="","",AM!AN4) ->  | AL3: =IF(AM!AO4="","",AM!AO4) ->  | AM3: =IF(AM!AP4="","",AM!AP4) -> 
D4: Criterio Evaluación 1.2 | E4: =IF(AM!H5="","",AM!H5) ->  | F4: =IF(AM!I5="","",AM!I5) ->  | G4: =IF(AM!J5="","",AM!J5) ->  | H4: =IF(AM!K5="","",AM!K5) ->  | I4: =IF(AM!L5="","",AM!L5) ->  | J4: =IF(AM!M5="","",AM!M5) ->  | K4: =IF(AM!N5="","",AM!N5) ->  | L4: =IF(AM!O5="","",AM!O5) ->  | M4: =IF(AM!P5="","",AM!P5) ->  | N4: =IF(AM!Q5="","",AM!Q5) ->  | O4: =IF(AM!R5="","",AM!R5) ->  | P4: =IF(AM!S5="","",AM!S5) ->  | Q4: =IF(AM!T5="","",AM!T5) ->  | R4: =IF(AM!U5="","",AM!U5) ->  | S4: =IF(AM!V5="","",AM!V5) ->  | T4: =IF(AM!W5="","",AM!W5) ->  | U4: =IF(AM!X5="","",AM!X5) ->  | V4: =IF(AM!Y5="","",AM!Y5) ->  | W4: =IF(AM!Z5="","",AM!Z5) ->  | X4: =IF(AM!AA5="","",AM!AA5) ->  | Y4: =IF(AM!AB5="","",AM!AB5) ->  | Z4: =IF(AM!AC5="","",AM!AC5) ->  | AA4: =IF(AM!AD5="","",AM!AD5) ->  | AB4: =IF(AM!AE5="","",AM!AE5) ->  | AC4: =IF(AM!AF5="","",AM!AF5) ->  | AD4: =IF(AM!AG5="","",AM!AG5) ->  | AE4: =IF(AM!AH5="","",AM!AH5) ->  | AF4: =IF(AM!AI5="","",AM!AI5) ->  | AG4: =IF(AM!AJ5="","",AM!AJ5) ->  | AH4: =IF(AM!AK5="","",AM!AK5) ->  | AI4: =IF(AM!AL5="","",AM!AL5) ->  | AJ4: =IF(AM!AM5="","",AM!AM5) ->  | AK4: =IF(AM!AN5="","",AM!AN5) ->  | AL4: =IF(AM!AO5="","",AM!AO5) ->  | AM4: =IF(AM!AP5="","",AM!AP5) -> 
D5: Criterio Evaluación 1.3 | E5: =IF(AM!H6="","",AM!H6) ->  | F5: =IF(AM!I6="","",AM!I6) ->  | G5: =IF(AM!J6="","",AM!J6) ->  | H5: =IF(AM!K6="","",AM!K6) ->  | I5: =IF(AM!L6="","",AM!L6) ->  | J5: =IF(AM!M6="","",AM!M6) ->  | K5: =IF(AM!N6="","",AM!N6) ->  | L5: =IF(AM!O6="","",AM!O6) ->  | M5: =IF(AM!P6="","",AM!P6) ->  | N5: =IF(AM!Q6="","",AM!Q6) ->  | O5: =IF(AM!R6="","",AM!R6) ->  | P5: =IF(AM!S6="","",AM!S6) ->  | Q5: =IF(AM!T6="","",AM!T6) ->  | R5: =IF(AM!U6="","",AM!U6) ->  | S5: =IF(AM!V6="","",AM!V6) ->  | T5: =IF(AM!W6="","",AM!W6) ->  | U5: =IF(AM!X6="","",AM!X6) ->  | V5: =IF(AM!Y6="","",AM!Y6) ->  | W5: =IF(AM!Z6="","",AM!Z6) ->  | X5: =IF(AM!AA6="","",AM!AA6) ->  | Y5: =IF(AM!AB6="","",AM!AB6) ->  | Z5: =IF(AM!AC6="","",AM!AC6) ->  | AA5: =IF(AM!AD6="","",AM!AD6) ->  | AB5: =IF(AM!AE6="","",AM!AE6) ->  | AC5: =IF(AM!AF6="","",AM!AF6) ->  | AD5: =IF(AM!AG6="","",AM!AG6) ->  | AE5: =IF(AM!AH6="","",AM!AH6) ->  | AF5: =IF(AM!AI6="","",AM!AI6) ->  | AG5: =IF(AM!AJ6="","",AM!AJ6) ->  | AH5: =IF(AM!AK6="","",AM!AK6) ->  | AI5: =IF(AM!AL6="","",AM!AL6) ->  | AJ5: =IF(AM!AM6="","",AM!AM6) ->  | AK5: =IF(AM!AN6="","",AM!AN6) ->  | AL5: =IF(AM!AO6="","",AM!AO6) ->  | AM5: =IF(AM!AP6="","",AM!AP6) -> 
D6: Criterio Evaluación 1.4 | E6: =IF(AM!H7="","",AM!H7) ->  | F6: =IF(AM!I7="","",AM!I7) ->  | G6: =IF(AM!J7="","",AM!J7) ->  | H6: =IF(AM!K7="","",AM!K7) ->  | I6: =IF(AM!L7="","",AM!L7) ->  | J6: =IF(AM!M7="","",AM!M7) ->  | K6: =IF(AM!N7="","",AM!N7) ->  | L6: =IF(AM!O7="","",AM!O7) ->  | M6: =IF(AM!P7="","",AM!P7) ->  | N6: =IF(AM!Q7="","",AM!Q7) ->  | O6: =IF(AM!R7="","",AM!R7) ->  | P6: =IF(AM!S7="","",AM!S7) ->  | Q6: =IF(AM!T7="","",AM!T7) ->  | R6: =IF(AM!U7="","",AM!U7) ->  | S6: =IF(AM!V7="","",AM!V7) ->  | T6: =IF(AM!W7="","",AM!W7) ->  | U6: =IF(AM!X7="","",AM!X7) ->  | V6: =IF(AM!Y7="","",AM!Y7) ->  | W6: =IF(AM!Z7="","",AM!Z7) ->  | X6: =IF(AM!AA7="","",AM!AA7) ->  | Y6: =IF(AM!AB7="","",AM!AB7) ->  | Z6: =IF(AM!AC7="","",AM!AC7) ->  | AA6: =IF(AM!AD7="","",AM!AD7) ->  | AB6: =IF(AM!AE7="","",AM!AE7) ->  | AC6: =IF(AM!AF7="","",AM!AF7) ->  | AD6: =IF(AM!AG7="","",AM!AG7) ->  | AE6: =IF(AM!AH7="","",AM!AH7) ->  | AF6: =IF(AM!AI7="","",AM!AI7) ->  | AG6: =IF(AM!AJ7="","",AM!AJ7) ->  | AH6: =IF(AM!AK7="","",AM!AK7) ->  | AI6: =IF(AM!AL7="","",AM!AL7) ->  | AJ6: =IF(AM!AM7="","",AM!AM7) ->  | AK6: =IF(AM!AN7="","",AM!AN7) ->  | AL6: =IF(AM!AO7="","",AM!AO7) ->  | AM6: =IF(AM!AP7="","",AM!AP7) -> 
D7: Criterio Evaluación 1.5 | E7: =IF(AM!H8="","",AM!H8) ->  | F7: =IF(AM!I8="","",AM!I8) ->  | G7: =IF(AM!J8="","",AM!J8) ->  | H7: =IF(AM!K8="","",AM!K8) ->  | I7: =IF(AM!L8="","",AM!L8) ->  | J7: =IF(AM!M8="","",AM!M8) ->  | K7: =IF(AM!N8="","",AM!N8) ->  | L7: =IF(AM!O8="","",AM!O8) ->  | M7: =IF(AM!P8="","",AM!P8) ->  | N7: =IF(AM!Q8="","",AM!Q8) ->  | O7: =IF(AM!R8="","",AM!R8) ->  | P7: =IF(AM!S8="","",AM!S8) ->  | Q7: =IF(AM!T8="","",AM!T8) ->  | R7: =IF(AM!U8="","",AM!U8) ->  | S7: =IF(AM!V8="","",AM!V8) ->  | T7: =IF(AM!W8="","",AM!W8) ->  | U7: =IF(AM!X8="","",AM!X8) ->  | V7: =IF(AM!Y8="","",AM!Y8) ->  | W7: =IF(AM!Z8="","",AM!Z8) ->  | X7: =IF(AM!AA8="","",AM!AA8) ->  | Y7: =IF(AM!AB8="","",AM!AB8) ->  | Z7: =IF(AM!AC8="","",AM!AC8) ->  | AA7: =IF(AM!AD8="","",AM!AD8) ->  | AB7: =IF(AM!AE8="","",AM!AE8) ->  | AC7: =IF(AM!AF8="","",AM!AF8) ->  | AD7: =IF(AM!AG8="","",AM!AG8) ->  | AE7: =IF(AM!AH8="","",AM!AH8) ->  | AF7: =IF(AM!AI8="","",AM!AI8) ->  | AG7: =IF(AM!AJ8="","",AM!AJ8) ->  | AH7: =IF(AM!AK8="","",AM!AK8) ->  | AI7: =IF(AM!AL8="","",AM!AL8) ->  | AJ7: =IF(AM!AM8="","",AM!AM8) ->  | AK7: =IF(AM!AN8="","",AM!AN8) ->  | AL7: =IF(AM!AO8="","",AM!AO8) ->  | AM7: =IF(AM!AP8="","",AM!AP8) -> 
D8: Criterio Evaluación 1.6 | E8: =IF(AM!H9="","",AM!H9) ->  | F8: =IF(AM!I9="","",AM!I9) ->  | G8: =IF(AM!J9="","",AM!J9) ->  | H8: =IF(AM!K9="","",AM!K9) ->  | I8: =IF(AM!L9="","",AM!L9) ->  | J8: =IF(AM!M9="","",AM!M9) ->  | K8: =IF(AM!N9="","",AM!N9) ->  | L8: =IF(AM!O9="","",AM!O9) ->  | M8: =IF(AM!P9="","",AM!P9) ->  | N8: =IF(AM!Q9="","",AM!Q9) ->  | O8: =IF(AM!R9="","",AM!R9) ->  | P8: =IF(AM!S9="","",AM!S9) ->  | Q8: =IF(AM!T9="","",AM!T9) ->  | R8: =IF(AM!U9="","",AM!U9) ->  | S8: =IF(AM!V9="","",AM!V9) ->  | T8: =IF(AM!W9="","",AM!W9) ->  | U8: =IF(AM!X9="","",AM!X9) ->  | V8: =IF(AM!Y9="","",AM!Y9) ->  | W8: =IF(AM!Z9="","",AM!Z9) ->  | X8: =IF(AM!AA9="","",AM!AA9) ->  | Y8: =IF(AM!AB9="","",AM!AB9) ->  | Z8: =IF(AM!AC9="","",AM!AC9) ->  | AA8: =IF(AM!AD9="","",AM!AD9) ->  | AB8: =IF(AM!AE9="","",AM!AE9) ->  | AC8: =IF(AM!AF9="","",AM!AF9) ->  | AD8: =IF(AM!AG9="","",AM!AG9) ->  | AE8: =IF(AM!AH9="","",AM!AH9) ->  | AF8: =IF(AM!AI9="","",AM!AI9) ->  | AG8: =IF(AM!AJ9="","",AM!AJ9) ->  | AH8: =IF(AM!AK9="","",AM!AK9) ->  | AI8: =IF(AM!AL9="","",AM!AL9) ->  | AJ8: =IF(AM!AM9="","",AM!AM9) ->  | AK8: =IF(AM!AN9="","",AM!AN9) ->  | AL8: =IF(AM!AO9="","",AM!AO9) ->  | AM8: =IF(AM!AP9="","",AM!AP9) -> 
C9: Comp. Esp. 2 | D9: Criterio Evaluación 2.1 | E9: =IF(AM!H10="","",AM!H10) ->  | F9: =IF(AM!I10="","",AM!I10) ->  | G9: =IF(AM!J10="","",AM!J10) ->  | H9: =IF(AM!K10="","",AM!K10) ->  | I9: =IF(AM!L10="","",AM!L10) ->  | J9: =IF(AM!M10="","",AM!M10) ->  | K9: =IF(AM!N10="","",AM!N10) ->  | L9: =IF(AM!O10="","",AM!O10) ->  | M9: =IF(AM!P10="","",AM!P10) ->  | N9: =IF(AM!Q10="","",AM!Q10) ->  | O9: =IF(AM!R10="","",AM!R10) ->  | P9: =IF(AM!S10="","",AM!S10) ->  | Q9: =IF(AM!T10="","",AM!T10) ->  | R9: =IF(AM!U10="","",AM!U10) ->  | S9: =IF(AM!V10="","",AM!V10) ->  | T9: =IF(AM!W10="","",AM!W10) ->  | U9: =IF(AM!X10="","",AM!X10) ->  | V9: =IF(AM!Y10="","",AM!Y10) ->  | W9: =IF(AM!Z10="","",AM!Z10) ->  | X9: =IF(AM!AA10="","",AM!AA10) ->  | Y9: =IF(AM!AB10="","",AM!AB10) ->  | Z9: =IF(AM!AC10="","",AM!AC10) ->  | AA9: =IF(AM!AD10="","",AM!AD10) ->  | AB9: =IF(AM!AE10="","",AM!AE10) ->  | AC9: =IF(AM!AF10="","",AM!AF10) ->  | AD9: =IF(AM!AG10="","",AM!AG10) ->  | AE9: =IF(AM!AH10="","",AM!AH10) ->  | AF9: =IF(AM!AI10="","",AM!AI10) ->  | AG9: =IF(AM!AJ10="","",AM!AJ10) ->  | AH9: =IF(AM!AK10="","",AM!AK10) ->  | AI9: =IF(AM!AL10="","",AM!AL10) ->  | AJ9: =IF(AM!AM10="","",AM!AM10) ->  | AK9: =IF(AM!AN10="","",AM!AN10) ->  | AL9: =IF(AM!AO10="","",AM!AO10) ->  | AM9: =IF(AM!AP10="","",AM!AP10) -> 
D10: Criterio Evaluación 2.2 | E10: =IF(AM!H11="","",AM!H11) ->  | F10: =IF(AM!I11="","",AM!I11) ->  | G10: =IF(AM!J11="","",AM!J11) ->  | H10: =IF(AM!K11="","",AM!K11) ->  | I10: =IF(AM!L11="","",AM!L11) ->  | J10: =IF(AM!M11="","",AM!M11) ->  | K10: =IF(AM!N11="","",AM!N11) ->  | L10: =IF(AM!O11="","",AM!O11) ->  | M10: =IF(AM!P11="","",AM!P11) ->  | N10: =IF(AM!Q11="","",AM!Q11) ->  | O10: =IF(AM!R11="","",AM!R11) ->  | P10: =IF(AM!S11="","",AM!S11) ->  | Q10: =IF(AM!T11="","",AM!T11) ->  | R10: =IF(AM!U11="","",AM!U11) ->  | S10: =IF(AM!V11="","",AM!V11) ->  | T10: =IF(AM!W11="","",AM!W11) ->  | U10: =IF(AM!X11="","",AM!X11) ->  | V10: =IF(AM!Y11="","",AM!Y11) ->  | W10: =IF(AM!Z11="","",AM!Z11) ->  | X10: =IF(AM!AA11="","",AM!AA11) ->  | Y10: =IF(AM!AB11="","",AM!AB11) ->  | Z10: =IF(AM!AC11="","",AM!AC11) ->  | AA10: =IF(AM!AD11="","",AM!AD11) ->  | AB10: =IF(AM!AE11="","",AM!AE11) ->  | AC10: =IF(AM!AF11="","",AM!AF11) ->  | AD10: =IF(AM!AG11="","",AM!AG11) ->  | AE10: =IF(AM!AH11="","",AM!AH11) ->  | AF10: =IF(AM!AI11="","",AM!AI11) ->  | AG10: =IF(AM!AJ11="","",AM!AJ11) ->  | AH10: =IF(AM!AK11="","",AM!AK11) ->  | AI10: =IF(AM!AL11="","",AM!AL11) ->  | AJ10: =IF(AM!AM11="","",AM!AM11) ->  | AK10: =IF(AM!AN11="","",AM!AN11) ->  | AL10: =IF(AM!AO11="","",AM!AO11) ->  | AM10: =IF(AM!AP11="","",AM!AP11) -> 
D11: Criterio Evaluación 2.3 | E11: =IF(AM!H12="","",AM!H12) ->  | F11: =IF(AM!I12="","",AM!I12) ->  | G11: =IF(AM!J12="","",AM!J12) ->  | H11: =IF(AM!K12="","",AM!K12) ->  | I11: =IF(AM!L12="","",AM!L12) ->  | J11: =IF(AM!M12="","",AM!M12) ->  | K11: =IF(AM!N12="","",AM!N12) ->  | L11: =IF(AM!O12="","",AM!O12) ->  | M11: =IF(AM!P12="","",AM!P12) ->  | N11: =IF(AM!Q12="","",AM!Q12) ->  | O11: =IF(AM!R12="","",AM!R12) ->  | P11: =IF(AM!S12="","",AM!S12) ->  | Q11: =IF(AM!T12="","",AM!T12) ->  | R11: =IF(AM!U12="","",AM!U12) ->  | S11: =IF(AM!V12="","",AM!V12) ->  | T11: =IF(AM!W12="","",AM!W12) ->  | U11: =IF(AM!X12="","",AM!X12) ->  | V11: =IF(AM!Y12="","",AM!Y12) ->  | W11: =IF(AM!Z12="","",AM!Z12) ->  | X11: =IF(AM!AA12="","",AM!AA12) ->  | Y11: =IF(AM!AB12="","",AM!AB12) ->  | Z11: =IF(AM!AC12="","",AM!AC12) ->  | AA11: =IF(AM!AD12="","",AM!AD12) ->  | AB11: =IF(AM!AE12="","",AM!AE12) ->  | AC11: =IF(AM!AF12="","",AM!AF12) ->  | AD11: =IF(AM!AG12="","",AM!AG12) ->  | AE11: =IF(AM!AH12="","",AM!AH12) ->  | AF11: =IF(AM!AI12="","",AM!AI12) ->  | AG11: =IF(AM!AJ12="","",AM!AJ12) ->  | AH11: =IF(AM!AK12="","",AM!AK12) ->  | AI11: =IF(AM!AL12="","",AM!AL12) ->  | AJ11: =IF(AM!AM12="","",AM!AM12) ->  | AK11: =IF(AM!AN12="","",AM!AN12) ->  | AL11: =IF(AM!AO12="","",AM!AO12) ->  | AM11: =IF(AM!AP12="","",AM!AP12) -> 
D12: Criterio Evaluación 2.4 | E12: =IF(AM!H13="","",AM!H13) ->  | F12: =IF(AM!I13="","",AM!I13) ->  | G12: =IF(AM!J13="","",AM!J13) ->  | H12: =IF(AM!K13="","",AM!K13) ->  | I12: =IF(AM!L13="","",AM!L13) ->  | J12: =IF(AM!M13="","",AM!M13) ->  | K12: =IF(AM!N13="","",AM!N13) ->  | L12: =IF(AM!O13="","",AM!O13) ->  | M12: =IF(AM!P13="","",AM!P13) ->  | N12: =IF(AM!Q13="","",AM!Q13) ->  | O12: =IF(AM!R13="","",AM!R13) ->  | P12: =IF(AM!S13="","",AM!S13) ->  | Q12: =IF(AM!T13="","",AM!T13) ->  | R12: =IF(AM!U13="","",AM!U13) ->  | S12: =IF(AM!V13="","",AM!V13) ->  | T12: =IF(AM!W13="","",AM!W13) ->  | U12: =IF(AM!X13="","",AM!X13) ->  | V12: =IF(AM!Y13="","",AM!Y13) ->  | W12: =IF(AM!Z13="","",AM!Z13) ->  | X12: =IF(AM!AA13="","",AM!AA13) ->  | Y12: =IF(AM!AB13="","",AM!AB13) ->  | Z12: =IF(AM!AC13="","",AM!AC13) ->  | AA12: =IF(AM!AD13="","",AM!AD13) ->  | AB12: =IF(AM!AE13="","",AM!AE13) ->  | AC12: =IF(AM!AF13="","",AM!AF13) ->  | AD12: =IF(AM!AG13="","",AM!AG13) ->  | AE12: =IF(AM!AH13="","",AM!AH13) ->  | AF12: =IF(AM!AI13="","",AM!AI13) ->  | AG12: =IF(AM!AJ13="","",AM!AJ13) ->  | AH12: =IF(AM!AK13="","",AM!AK13) ->  | AI12: =IF(AM!AL13="","",AM!AL13) ->  | AJ12: =IF(AM!AM13="","",AM!AM13) ->  | AK12: =IF(AM!AN13="","",AM!AN13) ->  | AL12: =IF(AM!AO13="","",AM!AO13) ->  | AM12: =IF(AM!AP13="","",AM!AP13) -> 
C13: Comp. Esp. 3 | D13: Criterio Evaluación 3.1 | E13: =IF(AM!H14="","",AM!H14) ->  | F13: =IF(AM!I14="","",AM!I14) ->  | G13: =IF(AM!J14="","",AM!J14) ->  | H13: =IF(AM!K14="","",AM!K14) ->  | I13: =IF(AM!L14="","",AM!L14) ->  | J13: =IF(AM!M14="","",AM!M14) ->  | K13: =IF(AM!N14="","",AM!N14) ->  | L13: =IF(AM!O14="","",AM!O14) ->  | M13: =IF(AM!P14="","",AM!P14) ->  | N13: =IF(AM!Q14="","",AM!Q14) ->  | O13: =IF(AM!R14="","",AM!R14) ->  | P13: =IF(AM!S14="","",AM!S14) ->  | Q13: =IF(AM!T14="","",AM!T14) ->  | R13: =IF(AM!U14="","",AM!U14) ->  | S13: =IF(AM!V14="","",AM!V14) ->  | T13: =IF(AM!W14="","",AM!W14) ->  | U13: =IF(AM!X14="","",AM!X14) ->  | V13: =IF(AM!Y14="","",AM!Y14) ->  | W13: =IF(AM!Z14="","",AM!Z14) ->  | X13: =IF(AM!AA14="","",AM!AA14) ->  | Y13: =IF(AM!AB14="","",AM!AB14) ->  | Z13: =IF(AM!AC14="","",AM!AC14) ->  | AA13: =IF(AM!AD14="","",AM!AD14) ->  | AB13: =IF(AM!AE14="","",AM!AE14) ->  | AC13: =IF(AM!AF14="","",AM!AF14) ->  | AD13: =IF(AM!AG14="","",AM!AG14) ->  | AE13: =IF(AM!AH14="","",AM!AH14) ->  | AF13: =IF(AM!AI14="","",AM!AI14) ->  | AG13: =IF(AM!AJ14="","",AM!AJ14) ->  | AH13: =IF(AM!AK14="","",AM!AK14) ->  | AI13: =IF(AM!AL14="","",AM!AL14) ->  | AJ13: =IF(AM!AM14="","",AM!AM14) ->  | AK13: =IF(AM!AN14="","",AM!AN14) ->  | AL13: =IF(AM!AO14="","",AM!AO14) ->  | AM13: =IF(AM!AP14="","",AM!AP14) -> 
D14: Criterio Evaluación 3.2 | E14: =IF(AM!H15="","",AM!H15) ->  | F14: =IF(AM!I15="","",AM!I15) ->  | G14: =IF(AM!J15="","",AM!J15) ->  | H14: =IF(AM!K15="","",AM!K15) ->  | I14: =IF(AM!L15="","",AM!L15) ->  | J14: =IF(AM!M15="","",AM!M15) ->  | K14: =IF(AM!N15="","",AM!N15) ->  | L14: =IF(AM!O15="","",AM!O15) ->  | M14: =IF(AM!P15="","",AM!P15) ->  | N14: =IF(AM!Q15="","",AM!Q15) ->  | O14: =IF(AM!R15="","",AM!R15) ->  | P14: =IF(AM!S15="","",AM!S15) ->  | Q14: =IF(AM!T15="","",AM!T15) ->  | R14: =IF(AM!U15="","",AM!U15) ->  | S14: =IF(AM!V15="","",AM!V15) ->  | T14: =IF(AM!W15="","",AM!W15) ->  | U14: =IF(AM!X15="","",AM!X15) ->  | V14: =IF(AM!Y15="","",AM!Y15) ->  | W14: =IF(AM!Z15="","",AM!Z15) ->  | X14: =IF(AM!AA15="","",AM!AA15) ->  | Y14: =IF(AM!AB15="","",AM!AB15) ->  | Z14: =IF(AM!AC15="","",AM!AC15) ->  | AA14: =IF(AM!AD15="","",AM!AD15) ->  | AB14: =IF(AM!AE15="","",AM!AE15) ->  | AC14: =IF(AM!AF15="","",AM!AF15) ->  | AD14: =IF(AM!AG15="","",AM!AG15) ->  | AE14: =IF(AM!AH15="","",AM!AH15) ->  | AF14: =IF(AM!AI15="","",AM!AI15) ->  | AG14: =IF(AM!AJ15="","",AM!AJ15) ->  | AH14: =IF(AM!AK15="","",AM!AK15) ->  | AI14: =IF(AM!AL15="","",AM!AL15) ->  | AJ14: =IF(AM!AM15="","",AM!AM15) ->  | AK14: =IF(AM!AN15="","",AM!AN15) ->  | AL14: =IF(AM!AO15="","",AM!AO15) ->  | AM14: =IF(AM!AP15="","",AM!AP15) -> 
D15: Criterio Evaluación 3.3 | E15: =IF(AM!H16="","",AM!H16) ->  | F15: =IF(AM!I16="","",AM!I16) ->  | G15: =IF(AM!J16="","",AM!J16) ->  | H15: =IF(AM!K16="","",AM!K16) ->  | I15: =IF(AM!L16="","",AM!L16) ->  | J15: =IF(AM!M16="","",AM!M16) ->  | K15: =IF(AM!N16="","",AM!N16) ->  | L15: =IF(AM!O16="","",AM!O16) ->  | M15: =IF(AM!P16="","",AM!P16) ->  | N15: =IF(AM!Q16="","",AM!Q16) ->  | O15: =IF(AM!R16="","",AM!R16) ->  | P15: =IF(AM!S16="","",AM!S16) ->  | Q15: =IF(AM!T16="","",AM!T16) ->  | R15: =IF(AM!U16="","",AM!U16) ->  | S15: =IF(AM!V16="","",AM!V16) ->  | T15: =IF(AM!W16="","",AM!W16) ->  | U15: =IF(AM!X16="","",AM!X16) ->  | V15: =IF(AM!Y16="","",AM!Y16) ->  | W15: =IF(AM!Z16="","",AM!Z16) ->  | X15: =IF(AM!AA16="","",AM!AA16) ->  | Y15: =IF(AM!AB16="","",AM!AB16) ->  | Z15: =IF(AM!AC16="","",AM!AC16) ->  | AA15: =IF(AM!AD16="","",AM!AD16) ->  | AB15: =IF(AM!AE16="","",AM!AE16) ->  | AC15: =IF(AM!AF16="","",AM!AF16) ->  | AD15: =IF(AM!AG16="","",AM!AG16) ->  | AE15: =IF(AM!AH16="","",AM!AH16) ->  | AF15: =IF(AM!AI16="","",AM!AI16) ->  | AG15: =IF(AM!AJ16="","",AM!AJ16) ->  | AH15: =IF(AM!AK16="","",AM!AK16) ->  | AI15: =IF(AM!AL16="","",AM!AL16) ->  | AJ15: =IF(AM!AM16="","",AM!AM16) ->  | AK15: =IF(AM!AN16="","",AM!AN16) ->  | AL15: =IF(AM!AO16="","",AM!AO16) ->  | AM15: =IF(AM!AP16="","",AM!AP16) -> 
D16: Criterio Evaluación 3.4 | E16: =IF(AM!H17="","",AM!H17) ->  | F16: =IF(AM!I17="","",AM!I17) ->  | G16: =IF(AM!J17="","",AM!J17) ->  | H16: =IF(AM!K17="","",AM!K17) ->  | I16: =IF(AM!L17="","",AM!L17) ->  | J16: =IF(AM!M17="","",AM!M17) ->  | K16: =IF(AM!N17="","",AM!N17) ->  | L16: =IF(AM!O17="","",AM!O17) ->  | M16: =IF(AM!P17="","",AM!P17) ->  | N16: =IF(AM!Q17="","",AM!Q17) ->  | O16: =IF(AM!R17="","",AM!R17) ->  | P16: =IF(AM!S17="","",AM!S17) ->  | Q16: =IF(AM!T17="","",AM!T17) ->  | R16: =IF(AM!U17="","",AM!U17) ->  | S16: =IF(AM!V17="","",AM!V17) ->  | T16: =IF(AM!W17="","",AM!W17) ->  | U16: =IF(AM!X17="","",AM!X17) ->  | V16: =IF(AM!Y17="","",AM!Y17) ->  | W16: =IF(AM!Z17="","",AM!Z17) ->  | X16: =IF(AM!AA17="","",AM!AA17) ->  | Y16: =IF(AM!AB17="","",AM!AB17) ->  | Z16: =IF(AM!AC17="","",AM!AC17) ->  | AA16: =IF(AM!AD17="","",AM!AD17) ->  | AB16: =IF(AM!AE17="","",AM!AE17) ->  | AC16: =IF(AM!AF17="","",AM!AF17) ->  | AD16: =IF(AM!AG17="","",AM!AG17) ->  | AE16: =IF(AM!AH17="","",AM!AH17) ->  | AF16: =IF(AM!AI17="","",AM!AI17) ->  | AG16: =IF(AM!AJ17="","",AM!AJ17) ->  | AH16: =IF(AM!AK17="","",AM!AK17) ->  | AI16: =IF(AM!AL17="","",AM!AL17) ->  | AJ16: =IF(AM!AM17="","",AM!AM17) ->  | AK16: =IF(AM!AN17="","",AM!AN17) ->  | AL16: =IF(AM!AO17="","",AM!AO17) ->  | AM16: =IF(AM!AP17="","",AM!AP17) -> 
C17: Comp. Esp. 4 | D17: Criterio Evaluación 4.1 | E17: =IF(AM!H18="","",AM!H18) ->  | F17: =IF(AM!I18="","",AM!I18) ->  | G17: =IF(AM!J18="","",AM!J18) ->  | H17: =IF(AM!K18="","",AM!K18) ->  | I17: =IF(AM!L18="","",AM!L18) ->  | J17: =IF(AM!M18="","",AM!M18) ->  | K17: =IF(AM!N18="","",AM!N18) ->  | L17: =IF(AM!O18="","",AM!O18) ->  | M17: =IF(AM!P18="","",AM!P18) ->  | N17: =IF(AM!Q18="","",AM!Q18) ->  | O17: =IF(AM!R18="","",AM!R18) ->  | P17: =IF(AM!S18="","",AM!S18) ->  | Q17: =IF(AM!T18="","",AM!T18) ->  | R17: =IF(AM!U18="","",AM!U18) ->  | S17: =IF(AM!V18="","",AM!V18) ->  | T17: =IF(AM!W18="","",AM!W18) ->  | U17: =IF(AM!X18="","",AM!X18) ->  | V17: =IF(AM!Y18="","",AM!Y18) ->  | W17: =IF(AM!Z18="","",AM!Z18) ->  | X17: =IF(AM!AA18="","",AM!AA18) ->  | Y17: =IF(AM!AB18="","",AM!AB18) ->  | Z17: =IF(AM!AC18="","",AM!AC18) ->  | AA17: =IF(AM!AD18="","",AM!AD18) ->  | AB17: =IF(AM!AE18="","",AM!AE18) ->  | AC17: =IF(AM!AF18="","",AM!AF18) ->  | AD17: =IF(AM!AG18="","",AM!AG18) ->  | AE17: =IF(AM!AH18="","",AM!AH18) ->  | AF17: =IF(AM!AI18="","",AM!AI18) ->  | AG17: =IF(AM!AJ18="","",AM!AJ18) ->  | AH17: =IF(AM!AK18="","",AM!AK18) ->  | AI17: =IF(AM!AL18="","",AM!AL18) ->  | AJ17: =IF(AM!AM18="","",AM!AM18) ->  | AK17: =IF(AM!AN18="","",AM!AN18) ->  | AL17: =IF(AM!AO18="","",AM!AO18) ->  | AM17: =IF(AM!AP18="","",AM!AP18) -> 
D18: Criterio Evaluación 4.2 | E18: =IF(AM!H19="","",AM!H19) ->  | F18: =IF(AM!I19="","",AM!I19) ->  | G18: =IF(AM!J19="","",AM!J19) ->  | H18: =IF(AM!K19="","",AM!K19) ->  | I18: =IF(AM!L19="","",AM!L19) ->  | J18: =IF(AM!M19="","",AM!M19) ->  | K18: =IF(AM!N19="","",AM!N19) ->  | L18: =IF(AM!O19="","",AM!O19) ->  | M18: =IF(AM!P19="","",AM!P19) ->  | N18: =IF(AM!Q19="","",AM!Q19) ->  | O18: =IF(AM!R19="","",AM!R19) ->  | P18: =IF(AM!S19="","",AM!S19) ->  | Q18: =IF(AM!T19="","",AM!T19) ->  | R18: =IF(AM!U19="","",AM!U19) ->  | S18: =IF(AM!V19="","",AM!V19) ->  | T18: =IF(AM!W19="","",AM!W19) ->  | U18: =IF(AM!X19="","",AM!X19) ->  | V18: =IF(AM!Y19="","",AM!Y19) ->  | W18: =IF(AM!Z19="","",AM!Z19) ->  | X18: =IF(AM!AA19="","",AM!AA19) ->  | Y18: =IF(AM!AB19="","",AM!AB19) ->  | Z18: =IF(AM!AC19="","",AM!AC19) ->  | AA18: =IF(AM!AD19="","",AM!AD19) ->  | AB18: =IF(AM!AE19="","",AM!AE19) ->  | AC18: =IF(AM!AF19="","",AM!AF19) ->  | AD18: =IF(AM!AG19="","",AM!AG19) ->  | AE18: =IF(AM!AH19="","",AM!AH19) ->  | AF18: =IF(AM!AI19="","",AM!AI19) ->  | AG18: =IF(AM!AJ19="","",AM!AJ19) ->  | AH18: =IF(AM!AK19="","",AM!AK19) ->  | AI18: =IF(AM!AL19="","",AM!AL19) ->  | AJ18: =IF(AM!AM19="","",AM!AM19) ->  | AK18: =IF(AM!AN19="","",AM!AN19) ->  | AL18: =IF(AM!AO19="","",AM!AO19) ->  | AM18: =IF(AM!AP19="","",AM!AP19) -> 
D19: Criterio Evaluación 4.3 | E19: =IF(AM!H20="","",AM!H20) ->  | F19: =IF(AM!I20="","",AM!I20) ->  | G19: =IF(AM!J20="","",AM!J20) ->  | H19: =IF(AM!K20="","",AM!K20) ->  | I19: =IF(AM!L20="","",AM!L20) ->  | J19: =IF(AM!M20="","",AM!M20) ->  | K19: =IF(AM!N20="","",AM!N20) ->  | L19: =IF(AM!O20="","",AM!O20) ->  | M19: =IF(AM!P20="","",AM!P20) ->  | N19: =IF(AM!Q20="","",AM!Q20) ->  | O19: =IF(AM!R20="","",AM!R20) ->  | P19: =IF(AM!S20="","",AM!S20) ->  | Q19: =IF(AM!T20="","",AM!T20) ->  | R19: =IF(AM!U20="","",AM!U20) ->  | S19: =IF(AM!V20="","",AM!V20) ->  | T19: =IF(AM!W20="","",AM!W20) ->  | U19: =IF(AM!X20="","",AM!X20) ->  | V19: =IF(AM!Y20="","",AM!Y20) ->  | W19: =IF(AM!Z20="","",AM!Z20) ->  | X19: =IF(AM!AA20="","",AM!AA20) ->  | Y19: =IF(AM!AB20="","",AM!AB20) ->  | Z19: =IF(AM!AC20="","",AM!AC20) ->  | AA19: =IF(AM!AD20="","",AM!AD20) ->  | AB19: =IF(AM!AE20="","",AM!AE20) ->  | AC19: =IF(AM!AF20="","",AM!AF20) ->  | AD19: =IF(AM!AG20="","",AM!AG20) ->  | AE19: =IF(AM!AH20="","",AM!AH20) ->  | AF19: =IF(AM!AI20="","",AM!AI20) ->  | AG19: =IF(AM!AJ20="","",AM!AJ20) ->  | AH19: =IF(AM!AK20="","",AM!AK20) ->  | AI19: =IF(AM!AL20="","",AM!AL20) ->  | AJ19: =IF(AM!AM20="","",AM!AM20) ->  | AK19: =IF(AM!AN20="","",AM!AN20) ->  | AL19: =IF(AM!AO20="","",AM!AO20) ->  | AM19: =IF(AM!AP20="","",AM!AP20) -> 
D20: Criterio Evaluación 4.4 | E20: =IF(AM!H21="","",AM!H21) ->  | F20: =IF(AM!I21="","",AM!I21) ->  | G20: =IF(AM!J21="","",AM!J21) ->  | H20: =IF(AM!K21="","",AM!K21) ->  | I20: =IF(AM!L21="","",AM!L21) ->  | J20: =IF(AM!M21="","",AM!M21) ->  | K20: =IF(AM!N21="","",AM!N21) ->  | L20: =IF(AM!O21="","",AM!O21) ->  | M20: =IF(AM!P21="","",AM!P21) ->  | N20: =IF(AM!Q21="","",AM!Q21) ->  | O20: =IF(AM!R21="","",AM!R21) ->  | P20: =IF(AM!S21="","",AM!S21) ->  | Q20: =IF(AM!T21="","",AM!T21) ->  | R20: =IF(AM!U21="","",AM!U21) ->  | S20: =IF(AM!V21="","",AM!V21) ->  | T20: =IF(AM!W21="","",AM!W21) ->  | U20: =IF(AM!X21="","",AM!X21) ->  | V20: =IF(AM!Y21="","",AM!Y21) ->  | W20: =IF(AM!Z21="","",AM!Z21) ->  | X20: =IF(AM!AA21="","",AM!AA21) ->  | Y20: =IF(AM!AB21="","",AM!AB21) ->  | Z20: =IF(AM!AC21="","",AM!AC21) ->  | AA20: =IF(AM!AD21="","",AM!AD21) ->  | AB20: =IF(AM!AE21="","",AM!AE21) ->  | AC20: =IF(AM!AF21="","",AM!AF21) ->  | AD20: =IF(AM!AG21="","",AM!AG21) ->  | AE20: =IF(AM!AH21="","",AM!AH21) ->  | AF20: =IF(AM!AI21="","",AM!AI21) ->  | AG20: =IF(AM!AJ21="","",AM!AJ21) ->  | AH20: =IF(AM!AK21="","",AM!AK21) ->  | AI20: =IF(AM!AL21="","",AM!AL21) ->  | AJ20: =IF(AM!AM21="","",AM!AM21) ->  | AK20: =IF(AM!AN21="","",AM!AN21) ->  | AL20: =IF(AM!AO21="","",AM!AO21) ->  | AM20: =IF(AM!AP21="","",AM!AP21) -> 
C21: Comp. Esp. 5 | D21: Criterio Evaluación 5.1 | E21: =IF(AM!H22="","",AM!H22) ->  | F21: =IF(AM!I22="","",AM!I22) ->  | G21: =IF(AM!J22="","",AM!J22) ->  | H21: =IF(AM!K22="","",AM!K22) ->  | I21: =IF(AM!L22="","",AM!L22) ->  | J21: =IF(AM!M22="","",AM!M22) ->  | K21: =IF(AM!N22="","",AM!N22) ->  | L21: =IF(AM!O22="","",AM!O22) ->  | M21: =IF(AM!P22="","",AM!P22) ->  | N21: =IF(AM!Q22="","",AM!Q22) ->  | O21: =IF(AM!R22="","",AM!R22) ->  | P21: =IF(AM!S22="","",AM!S22) ->  | Q21: =IF(AM!T22="","",AM!T22) ->  | R21: =IF(AM!U22="","",AM!U22) ->  | S21: =IF(AM!V22="","",AM!V22) ->  | T21: =IF(AM!W22="","",AM!W22) ->  | U21: =IF(AM!X22="","",AM!X22) ->  | V21: =IF(AM!Y22="","",AM!Y22) ->  | W21: =IF(AM!Z22="","",AM!Z22) ->  | X21: =IF(AM!AA22="","",AM!AA22) ->  | Y21: =IF(AM!AB22="","",AM!AB22) ->  | Z21: =IF(AM!AC22="","",AM!AC22) ->  | AA21: =IF(AM!AD22="","",AM!AD22) ->  | AB21: =IF(AM!AE22="","",AM!AE22) ->  | AC21: =IF(AM!AF22="","",AM!AF22) ->  | AD21: =IF(AM!AG22="","",AM!AG22) ->  | AE21: =IF(AM!AH22="","",AM!AH22) ->  | AF21: =IF(AM!AI22="","",AM!AI22) ->  | AG21: =IF(AM!AJ22="","",AM!AJ22) ->  | AH21: =IF(AM!AK22="","",AM!AK22) ->  | AI21: =IF(AM!AL22="","",AM!AL22) ->  | AJ21: =IF(AM!AM22="","",AM!AM22) ->  | AK21: =IF(AM!AN22="","",AM!AN22) ->  | AL21: =IF(AM!AO22="","",AM!AO22) ->  | AM21: =IF(AM!AP22="","",AM!AP22) -> 
D22: Criterio Evaluación 5.2 | E22: =IF(AM!H23="","",AM!H23) ->  | F22: =IF(AM!I23="","",AM!I23) ->  | G22: =IF(AM!J23="","",AM!J23) ->  | H22: =IF(AM!K23="","",AM!K23) ->  | I22: =IF(AM!L23="","",AM!L23) ->  | J22: =IF(AM!M23="","",AM!M23) ->  | K22: =IF(AM!N23="","",AM!N23) ->  | L22: =IF(AM!O23="","",AM!O23) ->  | M22: =IF(AM!P23="","",AM!P23) ->  | N22: =IF(AM!Q23="","",AM!Q23) ->  | O22: =IF(AM!R23="","",AM!R23) ->  | P22: =IF(AM!S23="","",AM!S23) ->  | Q22: =IF(AM!T23="","",AM!T23) ->  | R22: =IF(AM!U23="","",AM!U23) ->  | S22: =IF(AM!V23="","",AM!V23) ->  | T22: =IF(AM!W23="","",AM!W23) ->  | U22: =IF(AM!X23="","",AM!X23) ->  | V22: =IF(AM!Y23="","",AM!Y23) ->  | W22: =IF(AM!Z23="","",AM!Z23) ->  | X22: =IF(AM!AA23="","",AM!AA23) ->  | Y22: =IF(AM!AB23="","",AM!AB23) ->  | Z22: =IF(AM!AC23="","",AM!AC23) ->  | AA22: =IF(AM!AD23="","",AM!AD23) ->  | AB22: =IF(AM!AE23="","",AM!AE23) ->  | AC22: =IF(AM!AF23="","",AM!AF23) ->  | AD22: =IF(AM!AG23="","",AM!AG23) ->  | AE22: =IF(AM!AH23="","",AM!AH23) ->  | AF22: =IF(AM!AI23="","",AM!AI23) ->  | AG22: =IF(AM!AJ23="","",AM!AJ23) ->  | AH22: =IF(AM!AK23="","",AM!AK23) ->  | AI22: =IF(AM!AL23="","",AM!AL23) ->  | AJ22: =IF(AM!AM23="","",AM!AM23) ->  | AK22: =IF(AM!AN23="","",AM!AN23) ->  | AL22: =IF(AM!AO23="","",AM!AO23) ->  | AM22: =IF(AM!AP23="","",AM!AP23) -> 
D23: Criterio Evaluación 5.3 | E23: =IF(AM!H24="","",AM!H24) ->  | F23: =IF(AM!I24="","",AM!I24) ->  | G23: =IF(AM!J24="","",AM!J24) ->  | H23: =IF(AM!K24="","",AM!K24) ->  | I23: =IF(AM!L24="","",AM!L24) ->  | J23: =IF(AM!M24="","",AM!M24) ->  | K23: =IF(AM!N24="","",AM!N24) ->  | L23: =IF(AM!O24="","",AM!O24) ->  | M23: =IF(AM!P24="","",AM!P24) ->  | N23: =IF(AM!Q24="","",AM!Q24) ->  | O23: =IF(AM!R24="","",AM!R24) ->  | P23: =IF(AM!S24="","",AM!S24) ->  | Q23: =IF(AM!T24="","",AM!T24) ->  | R23: =IF(AM!U24="","",AM!U24) ->  | S23: =IF(AM!V24="","",AM!V24) ->  | T23: =IF(AM!W24="","",AM!W24) ->  | U23: =IF(AM!X24="","",AM!X24) ->  | V23: =IF(AM!Y24="","",AM!Y24) ->  | W23: =IF(AM!Z24="","",AM!Z24) ->  | X23: =IF(AM!AA24="","",AM!AA24) ->  | Y23: =IF(AM!AB24="","",AM!AB24) ->  | Z23: =IF(AM!AC24="","",AM!AC24) ->  | AA23: =IF(AM!AD24="","",AM!AD24) ->  | AB23: =IF(AM!AE24="","",AM!AE24) ->  | AC23: =IF(AM!AF24="","",AM!AF24) ->  | AD23: =IF(AM!AG24="","",AM!AG24) ->  | AE23: =IF(AM!AH24="","",AM!AH24) ->  | AF23: =IF(AM!AI24="","",AM!AI24) ->  | AG23: =IF(AM!AJ24="","",AM!AJ24) ->  | AH23: =IF(AM!AK24="","",AM!AK24) ->  | AI23: =IF(AM!AL24="","",AM!AL24) ->  | AJ23: =IF(AM!AM24="","",AM!AM24) ->  | AK23: =IF(AM!AN24="","",AM!AN24) ->  | AL23: =IF(AM!AO24="","",AM!AO24) ->  | AM23: =IF(AM!AP24="","",AM!AP24) -> 
B24: Artes Escénicas II | C24: Comp. Esp. 1 | D24: Criterio Evaluación 1.1 | E24: =IF(AE!H4="","",AE!H4) ->  | F24: =IF(AE!I4="","",AE!I4) ->  | G24: =IF(AE!J4="","",AE!J4) ->  | H24: =IF(AE!K4="","",AE!K4) ->  | I24: =IF(AE!L4="","",AE!L4) ->  | J24: =IF(AE!M4="","",AE!M4) ->  | K24: =IF(AE!N4="","",AE!N4) ->  | L24: =IF(AE!O4="","",AE!O4) ->  | M24: =IF(AE!P4="","",AE!P4) ->  | N24: =IF(AE!Q4="","",AE!Q4) ->  | O24: =IF(AE!R4="","",AE!R4) ->  | P24: =IF(AE!S4="","",AE!S4) ->  | Q24: =IF(AE!T4="","",AE!T4) ->  | R24: =IF(AE!U4="","",AE!U4) ->  | S24: =IF(AE!V4="","",AE!V4) ->  | T24: =IF(AE!W4="","",AE!W4) ->  | U24: =IF(AE!X4="","",AE!X4) ->  | V24: =IF(AE!Y4="","",AE!Y4) ->  | W24: =IF(AE!Z4="","",AE!Z4) ->  | X24: =IF(AE!AA4="","",AE!AA4) ->  | Y24: =IF(AE!AB4="","",AE!AB4) ->  | Z24: =IF(AE!AC4="","",AE!AC4) ->  | AA24: =IF(AE!AD4="","",AE!AD4) ->  | AB24: =IF(AE!AE4="","",AE!AE4) ->  | AC24: =IF(AE!AF4="","",AE!AF4) ->  | AD24: =IF(AE!AG4="","",AE!AG4) ->  | AE24: =IF(AE!AH4="","",AE!AH4) ->  | AF24: =IF(AE!AI4="","",AE!AI4) ->  | AG24: =IF(AE!AJ4="","",AE!AJ4) ->  | AH24: =IF(AE!AK4="","",AE!AK4) ->  | AI24: =IF(AE!AL4="","",AE!AL4) ->  | AJ24: =IF(AE!AM4="","",AE!AM4) ->  | AK24: =IF(AE!AN4="","",AE!AN4) ->  | AL24: =IF(AE!AO4="","",AE!AO4) ->  | AM24: =IF(AE!AP4="","",AE!AP4) -> 
D25: Criterio Evaluación 1.2 | E25: =IF(AE!H5="","",AE!H5) ->  | F25: =IF(AE!I5="","",AE!I5) ->  | G25: =IF(AE!J5="","",AE!J5) ->  | H25: =IF(AE!K5="","",AE!K5) ->  | I25: =IF(AE!L5="","",AE!L5) ->  | J25: =IF(AE!M5="","",AE!M5) ->  | K25: =IF(AE!N5="","",AE!N5) ->  | L25: =IF(AE!O5="","",AE!O5) ->  | M25: =IF(AE!P5="","",AE!P5) ->  | N25: =IF(AE!Q5="","",AE!Q5) ->  | O25: =IF(AE!R5="","",AE!R5) ->  | P25: =IF(AE!S5="","",AE!S5) ->  | Q25: =IF(AE!T5="","",AE!T5) ->  | R25: =IF(AE!U5="","",AE!U5) ->  | S25: =IF(AE!V5="","",AE!V5) ->  | T25: =IF(AE!W5="","",AE!W5) ->  | U25: =IF(AE!X5="","",AE!X5) ->  | V25: =IF(AE!Y5="","",AE!Y5) ->  | W25: =IF(AE!Z5="","",AE!Z5) ->  | X25: =IF(AE!AA5="","",AE!AA5) ->  | Y25: =IF(AE!AB5="","",AE!AB5) ->  | Z25: =IF(AE!AC5="","",AE!AC5) ->  | AA25: =IF(AE!AD5="","",AE!AD5) ->  | AB25: =IF(AE!AE5="","",AE!AE5) ->  | AC25: =IF(AE!AF5="","",AE!AF5) ->  | AD25: =IF(AE!AG5="","",AE!AG5) ->  | AE25: =IF(AE!AH5="","",AE!AH5) ->  | AF25: =IF(AE!AI5="","",AE!AI5) ->  | AG25: =IF(AE!AJ5="","",AE!AJ5) ->  | AH25: =IF(AE!AK5="","",AE!AK5) ->  | AI25: =IF(AE!AL5="","",AE!AL5) ->  | AJ25: =IF(AE!AM5="","",AE!AM5) ->  | AK25: =IF(AE!AN5="","",AE!AN5) ->  | AL25: =IF(AE!AO5="","",AE!AO5) ->  | AM25: =IF(AE!AP5="","",AE!AP5) -> 
C26: Comp. Esp. 2 | D26: Criterio Evaluación 2.1 | E26: =IF(AE!H6="","",AE!H6) ->  | F26: =IF(AE!I6="","",AE!I6) ->  | G26: =IF(AE!J6="","",AE!J6) ->  | H26: =IF(AE!K6="","",AE!K6) ->  | I26: =IF(AE!L6="","",AE!L6) ->  | J26: =IF(AE!M6="","",AE!M6) ->  | K26: =IF(AE!N6="","",AE!N6) ->  | L26: =IF(AE!O6="","",AE!O6) ->  | M26: =IF(AE!P6="","",AE!P6) ->  | N26: =IF(AE!Q6="","",AE!Q6) ->  | O26: =IF(AE!R6="","",AE!R6) ->  | P26: =IF(AE!S6="","",AE!S6) ->  | Q26: =IF(AE!T6="","",AE!T6) ->  | R26: =IF(AE!U6="","",AE!U6) ->  | S26: =IF(AE!V6="","",AE!V6) ->  | T26: =IF(AE!W6="","",AE!W6) ->  | U26: =IF(AE!X6="","",AE!X6) ->  | V26: =IF(AE!Y6="","",AE!Y6) ->  | W26: =IF(AE!Z6="","",AE!Z6) ->  | X26: =IF(AE!AA6="","",AE!AA6) ->  | Y26: =IF(AE!AB6="","",AE!AB6) ->  | Z26: =IF(AE!AC6="","",AE!AC6) ->  | AA26: =IF(AE!AD6="","",AE!AD6) ->  | AB26: =IF(AE!AE6="","",AE!AE6) ->  | AC26: =IF(AE!AF6="","",AE!AF6) ->  | AD26: =IF(AE!AG6="","",AE!AG6) ->  | AE26: =IF(AE!AH6="","",AE!AH6) ->  | AF26: =IF(AE!AI6="","",AE!AI6) ->  | AG26: =IF(AE!AJ6="","",AE!AJ6) ->  | AH26: =IF(AE!AK6="","",AE!AK6) ->  | AI26: =IF(AE!AL6="","",AE!AL6) ->  | AJ26: =IF(AE!AM6="","",AE!AM6) ->  | AK26: =IF(AE!AN6="","",AE!AN6) ->  | AL26: =IF(AE!AO6="","",AE!AO6) ->  | AM26: =IF(AE!AP6="","",AE!AP6) -> 
D27: Criterio Evaluación 2.2 | E27: =IF(AE!H7="","",AE!H7) ->  | F27: =IF(AE!I7="","",AE!I7) ->  | G27: =IF(AE!J7="","",AE!J7) ->  | H27: =IF(AE!K7="","",AE!K7) ->  | I27: =IF(AE!L7="","",AE!L7) ->  | J27: =IF(AE!M7="","",AE!M7) ->  | K27: =IF(AE!N7="","",AE!N7) ->  | L27: =IF(AE!O7="","",AE!O7) ->  | M27: =IF(AE!P7="","",AE!P7) ->  | N27: =IF(AE!Q7="","",AE!Q7) ->  | O27: =IF(AE!R7="","",AE!R7) ->  | P27: =IF(AE!S7="","",AE!S7) ->  | Q27: =IF(AE!T7="","",AE!T7) ->  | R27: =IF(AE!U7="","",AE!U7) ->  | S27: =IF(AE!V7="","",AE!V7) ->  | T27: =IF(AE!W7="","",AE!W7) ->  | U27: =IF(AE!X7="","",AE!X7) ->  | V27: =IF(AE!Y7="","",AE!Y7) ->  | W27: =IF(AE!Z7="","",AE!Z7) ->  | X27: =IF(AE!AA7="","",AE!AA7) ->  | Y27: =IF(AE!AB7="","",AE!AB7) ->  | Z27: =IF(AE!AC7="","",AE!AC7) ->  | AA27: =IF(AE!AD7="","",AE!AD7) ->  | AB27: =IF(AE!AE7="","",AE!AE7) ->  | AC27: =IF(AE!AF7="","",AE!AF7) ->  | AD27: =IF(AE!AG7="","",AE!AG7) ->  | AE27: =IF(AE!AH7="","",AE!AH7) ->  | AF27: =IF(AE!AI7="","",AE!AI7) ->  | AG27: =IF(AE!AJ7="","",AE!AJ7) ->  | AH27: =IF(AE!AK7="","",AE!AK7) ->  | AI27: =IF(AE!AL7="","",AE!AL7) ->  | AJ27: =IF(AE!AM7="","",AE!AM7) ->  | AK27: =IF(AE!AN7="","",AE!AN7) ->  | AL27: =IF(AE!AO7="","",AE!AO7) ->  | AM27: =IF(AE!AP7="","",AE!AP7) -> 
C28: Comp. Esp. 3 | D28: Criterio Evaluación 3.1 | E28: =IF(AE!H8="","",AE!H8) ->  | F28: =IF(AE!I8="","",AE!I8) ->  | G28: =IF(AE!J8="","",AE!J8) ->  | H28: =IF(AE!K8="","",AE!K8) ->  | I28: =IF(AE!L8="","",AE!L8) ->  | J28: =IF(AE!M8="","",AE!M8) ->  | K28: =IF(AE!N8="","",AE!N8) ->  | L28: =IF(AE!O8="","",AE!O8) ->  | M28: =IF(AE!P8="","",AE!P8) ->  | N28: =IF(AE!Q8="","",AE!Q8) ->  | O28: =IF(AE!R8="","",AE!R8) ->  | P28: =IF(AE!S8="","",AE!S8) ->  | Q28: =IF(AE!T8="","",AE!T8) ->  | R28: =IF(AE!U8="","",AE!U8) ->  | S28: =IF(AE!V8="","",AE!V8) ->  | T28: =IF(AE!W8="","",AE!W8) ->  | U28: =IF(AE!X8="","",AE!X8) ->  | V28: =IF(AE!Y8="","",AE!Y8) ->  | W28: =IF(AE!Z8="","",AE!Z8) ->  | X28: =IF(AE!AA8="","",AE!AA8) ->  | Y28: =IF(AE!AB8="","",AE!AB8) ->  | Z28: =IF(AE!AC8="","",AE!AC8) ->  | AA28: =IF(AE!AD8="","",AE!AD8) ->  | AB28: =IF(AE!AE8="","",AE!AE8) ->  | AC28: =IF(AE!AF8="","",AE!AF8) ->  | AD28: =IF(AE!AG8="","",AE!AG8) ->  | AE28: =IF(AE!AH8="","",AE!AH8) ->  | AF28: =IF(AE!AI8="","",AE!AI8) ->  | AG28: =IF(AE!AJ8="","",AE!AJ8) ->  | AH28: =IF(AE!AK8="","",AE!AK8) ->  | AI28: =IF(AE!AL8="","",AE!AL8) ->  | AJ28: =IF(AE!AM8="","",AE!AM8) ->  | AK28: =IF(AE!AN8="","",AE!AN8) ->  | AL28: =IF(AE!AO8="","",AE!AO8) ->  | AM28: =IF(AE!AP8="","",AE!AP8) -> 
D29: Criterio Evaluación 3.2 | E29: =IF(AE!H9="","",AE!H9) ->  | F29: =IF(AE!I9="","",AE!I9) ->  | G29: =IF(AE!J9="","",AE!J9) ->  | H29: =IF(AE!K9="","",AE!K9) ->  | I29: =IF(AE!L9="","",AE!L9) ->  | J29: =IF(AE!M9="","",AE!M9) ->  | K29: =IF(AE!N9="","",AE!N9) ->  | L29: =IF(AE!O9="","",AE!O9) ->  | M29: =IF(AE!P9="","",AE!P9) ->  | N29: =IF(AE!Q9="","",AE!Q9) ->  | O29: =IF(AE!R9="","",AE!R9) ->  | P29: =IF(AE!S9="","",AE!S9) ->  | Q29: =IF(AE!T9="","",AE!T9) ->  | R29: =IF(AE!U9="","",AE!U9) ->  | S29: =IF(AE!V9="","",AE!V9) ->  | T29: =IF(AE!W9="","",AE!W9) ->  | U29: =IF(AE!X9="","",AE!X9) ->  | V29: =IF(AE!Y9="","",AE!Y9) ->  | W29: =IF(AE!Z9="","",AE!Z9) ->  | X29: =IF(AE!AA9="","",AE!AA9) ->  | Y29: =IF(AE!AB9="","",AE!AB9) ->  | Z29: =IF(AE!AC9="","",AE!AC9) ->  | AA29: =IF(AE!AD9="","",AE!AD9) ->  | AB29: =IF(AE!AE9="","",AE!AE9) ->  | AC29: =IF(AE!AF9="","",AE!AF9) ->  | AD29: =IF(AE!AG9="","",AE!AG9) ->  | AE29: =IF(AE!AH9="","",AE!AH9) ->  | AF29: =IF(AE!AI9="","",AE!AI9) ->  | AG29: =IF(AE!AJ9="","",AE!AJ9) ->  | AH29: =IF(AE!AK9="","",AE!AK9) ->  | AI29: =IF(AE!AL9="","",AE!AL9) ->  | AJ29: =IF(AE!AM9="","",AE!AM9) ->  | AK29: =IF(AE!AN9="","",AE!AN9) ->  | AL29: =IF(AE!AO9="","",AE!AO9) ->  | AM29: =IF(AE!AP9="","",AE!AP9) -> 
C30: Comp. Esp. 4 | D30: Criterio Evaluación 4.1 | E30: =IF(AE!H10="","",AE!H10) ->  | F30: =IF(AE!I10="","",AE!I10) ->  | G30: =IF(AE!J10="","",AE!J10) ->  | H30: =IF(AE!K10="","",AE!K10) ->  | I30: =IF(AE!L10="","",AE!L10) ->  | J30: =IF(AE!M10="","",AE!M10) ->  | K30: =IF(AE!N10="","",AE!N10) ->  | L30: =IF(AE!O10="","",AE!O10) ->  | M30: =IF(AE!P10="","",AE!P10) ->  | N30: =IF(AE!Q10="","",AE!Q10) ->  | O30: =IF(AE!R10="","",AE!R10) ->  | P30: =IF(AE!S10="","",AE!S10) ->  | Q30: =IF(AE!T10="","",AE!T10) ->  | R30: =IF(AE!U10="","",AE!U10) ->  | S30: =IF(AE!V10="","",AE!V10) ->  | T30: =IF(AE!W10="","",AE!W10) ->  | U30: =IF(AE!X10="","",AE!X10) ->  | V30: =IF(AE!Y10="","",AE!Y10) ->  | W30: =IF(AE!Z10="","",AE!Z10) ->  | X30: =IF(AE!AA10="","",AE!AA10) ->  | Y30: =IF(AE!AB10="","",AE!AB10) ->  | Z30: =IF(AE!AC10="","",AE!AC10) ->  | AA30: =IF(AE!AD10="","",AE!AD10) ->  | AB30: =IF(AE!AE10="","",AE!AE10) ->  | AC30: =IF(AE!AF10="","",AE!AF10) ->  | AD30: =IF(AE!AG10="","",AE!AG10) ->  | AE30: =IF(AE!AH10="","",AE!AH10) ->  | AF30: =IF(AE!AI10="","",AE!AI10) ->  | AG30: =IF(AE!AJ10="","",AE!AJ10) ->  | AH30: =IF(AE!AK10="","",AE!AK10) ->  | AI30: =IF(AE!AL10="","",AE!AL10) ->  | AJ30: =IF(AE!AM10="","",AE!AM10) ->  | AK30: =IF(AE!AN10="","",AE!AN10) ->  | AL30: =IF(AE!AO10="","",AE!AO10) ->  | AM30: =IF(AE!AP10="","",AE!AP10) -> 
D31: Criterio Evaluación 4.2 | E31: =IF(AE!H11="","",AE!H11) ->  | F31: =IF(AE!I11="","",AE!I11) ->  | G31: =IF(AE!J11="","",AE!J11) ->  | H31: =IF(AE!K11="","",AE!K11) ->  | I31: =IF(AE!L11="","",AE!L11) ->  | J31: =IF(AE!M11="","",AE!M11) ->  | K31: =IF(AE!N11="","",AE!N11) ->  | L31: =IF(AE!O11="","",AE!O11) ->  | M31: =IF(AE!P11="","",AE!P11) ->  | N31: =IF(AE!Q11="","",AE!Q11) ->  | O31: =IF(AE!R11="","",AE!R11) ->  | P31: =IF(AE!S11="","",AE!S11) ->  | Q31: =IF(AE!T11="","",AE!T11) ->  | R31: =IF(AE!U11="","",AE!U11) ->  | S31: =IF(AE!V11="","",AE!V11) ->  | T31: =IF(AE!W11="","",AE!W11) ->  | U31: =IF(AE!X11="","",AE!X11) ->  | V31: =IF(AE!Y11="","",AE!Y11) ->  | W31: =IF(AE!Z11="","",AE!Z11) ->  | X31: =IF(AE!AA11="","",AE!AA11) ->  | Y31: =IF(AE!AB11="","",AE!AB11) ->  | Z31: =IF(AE!AC11="","",AE!AC11) ->  | AA31: =IF(AE!AD11="","",AE!AD11) ->  | AB31: =IF(AE!AE11="","",AE!AE11) ->  | AC31: =IF(AE!AF11="","",AE!AF11) ->  | AD31: =IF(AE!AG11="","",AE!AG11) ->  | AE31: =IF(AE!AH11="","",AE!AH11) ->  | AF31: =IF(AE!AI11="","",AE!AI11) ->  | AG31: =IF(AE!AJ11="","",AE!AJ11) ->  | AH31: =IF(AE!AK11="","",AE!AK11) ->  | AI31: =IF(AE!AL11="","",AE!AL11) ->  | AJ31: =IF(AE!AM11="","",AE!AM11) ->  | AK31: =IF(AE!AN11="","",AE!AN11) ->  | AL31: =IF(AE!AO11="","",AE!AO11) ->  | AM31: =IF(AE!AP11="","",AE!AP11) -> 
D32: Criterio Evaluación 4.3 | E32: =IF(AE!H12="","",AE!H12) ->  | F32: =IF(AE!I12="","",AE!I12) ->  | G32: =IF(AE!J12="","",AE!J12) ->  | H32: =IF(AE!K12="","",AE!K12) ->  | I32: =IF(AE!L12="","",AE!L12) ->  | J32: =IF(AE!M12="","",AE!M12) ->  | K32: =IF(AE!N12="","",AE!N12) ->  | L32: =IF(AE!O12="","",AE!O12) ->  | M32: =IF(AE!P12="","",AE!P12) ->  | N32: =IF(AE!Q12="","",AE!Q12) ->  | O32: =IF(AE!R12="","",AE!R12) ->  | P32: =IF(AE!S12="","",AE!S12) ->  | Q32: =IF(AE!T12="","",AE!T12) ->  | R32: =IF(AE!U12="","",AE!U12) ->  | S32: =IF(AE!V12="","",AE!V12) ->  | T32: =IF(AE!W12="","",AE!W12) ->  | U32: =IF(AE!X12="","",AE!X12) ->  | V32: =IF(AE!Y12="","",AE!Y12) ->  | W32: =IF(AE!Z12="","",AE!Z12) ->  | X32: =IF(AE!AA12="","",AE!AA12) ->  | Y32: =IF(AE!AB12="","",AE!AB12) ->  | Z32: =IF(AE!AC12="","",AE!AC12) ->  | AA32: =IF(AE!AD12="","",AE!AD12) ->  | AB32: =IF(AE!AE12="","",AE!AE12) ->  | AC32: =IF(AE!AF12="","",AE!AF12) ->  | AD32: =IF(AE!AG12="","",AE!AG12) ->  | AE32: =IF(AE!AH12="","",AE!AH12) ->  | AF32: =IF(AE!AI12="","",AE!AI12) ->  | AG32: =IF(AE!AJ12="","",AE!AJ12) ->  | AH32: =IF(AE!AK12="","",AE!AK12) ->  | AI32: =IF(AE!AL12="","",AE!AL12) ->  | AJ32: =IF(AE!AM12="","",AE!AM12) ->  | AK32: =IF(AE!AN12="","",AE!AN12) ->  | AL32: =IF(AE!AO12="","",AE!AO12) ->  | AM32: =IF(AE!AP12="","",AE!AP12) -> 
C33: Comp. Esp. 5 | D33: Criterio Evaluación 5.1 | E33: =IF(AE!H13="","",AE!H13) ->  | F33: =IF(AE!I13="","",AE!I13) ->  | G33: =IF(AE!J13="","",AE!J13) ->  | H33: =IF(AE!K13="","",AE!K13) ->  | I33: =IF(AE!L13="","",AE!L13) ->  | J33: =IF(AE!M13="","",AE!M13) ->  | K33: =IF(AE!N13="","",AE!N13) ->  | L33: =IF(AE!O13="","",AE!O13) ->  | M33: =IF(AE!P13="","",AE!P13) ->  | N33: =IF(AE!Q13="","",AE!Q13) ->  | O33: =IF(AE!R13="","",AE!R13) ->  | P33: =IF(AE!S13="","",AE!S13) ->  | Q33: =IF(AE!T13="","",AE!T13) ->  | R33: =IF(AE!U13="","",AE!U13) ->  | S33: =IF(AE!V13="","",AE!V13) ->  | T33: =IF(AE!W13="","",AE!W13) ->  | U33: =IF(AE!X13="","",AE!X13) ->  | V33: =IF(AE!Y13="","",AE!Y13) ->  | W33: =IF(AE!Z13="","",AE!Z13) ->  | X33: =IF(AE!AA13="","",AE!AA13) ->  | Y33: =IF(AE!AB13="","",AE!AB13) ->  | Z33: =IF(AE!AC13="","",AE!AC13) ->  | AA33: =IF(AE!AD13="","",AE!AD13) ->  | AB33: =IF(AE!AE13="","",AE!AE13) ->  | AC33: =IF(AE!AF13="","",AE!AF13) ->  | AD33: =IF(AE!AG13="","",AE!AG13) ->  | AE33: =IF(AE!AH13="","",AE!AH13) ->  | AF33: =IF(AE!AI13="","",AE!AI13) ->  | AG33: =IF(AE!AJ13="","",AE!AJ13) ->  | AH33: =IF(AE!AK13="","",AE!AK13) ->  | AI33: =IF(AE!AL13="","",AE!AL13) ->  | AJ33: =IF(AE!AM13="","",AE!AM13) ->  | AK33: =IF(AE!AN13="","",AE!AN13) ->  | AL33: =IF(AE!AO13="","",AE!AO13) ->  | AM33: =IF(AE!AP13="","",AE!AP13) -> 
D34: Criterio Evaluación 5.2 | E34: =IF(AE!H14="","",AE!H14) ->  | F34: =IF(AE!I14="","",AE!I14) ->  | G34: =IF(AE!J14="","",AE!J14) ->  | H34: =IF(AE!K14="","",AE!K14) ->  | I34: =IF(AE!L14="","",AE!L14) ->  | J34: =IF(AE!M14="","",AE!M14) ->  | K34: =IF(AE!N14="","",AE!N14) ->  | L34: =IF(AE!O14="","",AE!O14) ->  | M34: =IF(AE!P14="","",AE!P14) ->  | N34: =IF(AE!Q14="","",AE!Q14) ->  | O34: =IF(AE!R14="","",AE!R14) ->  | P34: =IF(AE!S14="","",AE!S14) ->  | Q34: =IF(AE!T14="","",AE!T14) ->  | R34: =IF(AE!U14="","",AE!U14) ->  | S34: =IF(AE!V14="","",AE!V14) ->  | T34: =IF(AE!W14="","",AE!W14) ->  | U34: =IF(AE!X14="","",AE!X14) ->  | V34: =IF(AE!Y14="","",AE!Y14) ->  | W34: =IF(AE!Z14="","",AE!Z14) ->  | X34: =IF(AE!AA14="","",AE!AA14) ->  | Y34: =IF(AE!AB14="","",AE!AB14) ->  | Z34: =IF(AE!AC14="","",AE!AC14) ->  | AA34: =IF(AE!AD14="","",AE!AD14) ->  | AB34: =IF(AE!AE14="","",AE!AE14) ->  | AC34: =IF(AE!AF14="","",AE!AF14) ->  | AD34: =IF(AE!AG14="","",AE!AG14) ->  | AE34: =IF(AE!AH14="","",AE!AH14) ->  | AF34: =IF(AE!AI14="","",AE!AI14) ->  | AG34: =IF(AE!AJ14="","",AE!AJ14) ->  | AH34: =IF(AE!AK14="","",AE!AK14) ->  | AI34: =IF(AE!AL14="","",AE!AL14) ->  | AJ34: =IF(AE!AM14="","",AE!AM14) ->  | AK34: =IF(AE!AN14="","",AE!AN14) ->  | AL34: =IF(AE!AO14="","",AE!AO14) ->  | AM34: =IF(AE!AP14="","",AE!AP14) -> 
B35: Biología | C35: Comp. Esp. 1 | D35: Criterio Evaluación 1.1 | E35: =IF(BIO!H4="","",BIO!H4) ->  | F35: =IF(BIO!I4="","",BIO!I4) ->  | G35: =IF(BIO!J4="","",BIO!J4) ->  | H35: =IF(BIO!K4="","",BIO!K4) ->  | I35: =IF(BIO!L4="","",BIO!L4) ->  | J35: =IF(BIO!M4="","",BIO!M4) ->  | K35: =IF(BIO!N4="","",BIO!N4) ->  | L35: =IF(BIO!O4="","",BIO!O4) ->  | M35: =IF(BIO!P4="","",BIO!P4) ->  | N35: =IF(BIO!Q4="","",BIO!Q4) ->  | O35: =IF(BIO!R4="","",BIO!R4) ->  | P35: =IF(BIO!S4="","",BIO!S4) ->  | Q35: =IF(BIO!T4="","",BIO!T4) ->  | R35: =IF(BIO!U4="","",BIO!U4) ->  | S35: =IF(BIO!V4="","",BIO!V4) ->  | T35: =IF(BIO!W4="","",BIO!W4) ->  | U35: =IF(BIO!X4="","",BIO!X4) ->  | V35: =IF(BIO!Y4="","",BIO!Y4) ->  | W35: =IF(BIO!Z4="","",BIO!Z4) ->  | X35: =IF(BIO!AA4="","",BIO!AA4) ->  | Y35: =IF(BIO!AB4="","",BIO!AB4) ->  | Z35: =IF(BIO!AC4="","",BIO!AC4) ->  | AA35: =IF(BIO!AD4="","",BIO!AD4) ->  | AB35: =IF(BIO!AE4="","",BIO!AE4) ->  | AC35: =IF(BIO!AF4="","",BIO!AF4) ->  | AD35: =IF(BIO!AG4="","",BIO!AG4) ->  | AE35: =IF(BIO!AH4="","",BIO!AH4) ->  | AF35: =IF(BIO!AI4="","",BIO!AI4) ->  | AG35: =IF(BIO!AJ4="","",BIO!AJ4) ->  | AH35: =IF(BIO!AK4="","",BIO!AK4) ->  | AI35: =IF(BIO!AL4="","",BIO!AL4) ->  | AJ35: =IF(BIO!AM4="","",BIO!AM4) ->  | AK35: =IF(BIO!AN4="","",BIO!AN4) ->  | AL35: =IF(BIO!AO4="","",BIO!AO4) ->  | AM35: =IF(BIO!AP4="","",BIO!AP4) -> 
D36: Criterio Evaluación 1.2 | E36: =IF(BIO!H5="","",BIO!H5) ->  | F36: =IF(BIO!I5="","",BIO!I5) ->  | G36: =IF(BIO!J5="","",BIO!J5) ->  | H36: =IF(BIO!K5="","",BIO!K5) ->  | I36: =IF(BIO!L5="","",BIO!L5) ->  | J36: =IF(BIO!M5="","",BIO!M5) ->  | K36: =IF(BIO!N5="","",BIO!N5) ->  | L36: =IF(BIO!O5="","",BIO!O5) ->  | M36: =IF(BIO!P5="","",BIO!P5) ->  | N36: =IF(BIO!Q5="","",BIO!Q5) ->  | O36: =IF(BIO!R5="","",BIO!R5) ->  | P36: =IF(BIO!S5="","",BIO!S5) ->  | Q36: =IF(BIO!T5="","",BIO!T5) ->  | R36: =IF(BIO!U5="","",BIO!U5) ->  | S36: =IF(BIO!V5="","",BIO!V5) ->  | T36: =IF(BIO!W5="","",BIO!W5) ->  | U36: =IF(BIO!X5="","",BIO!X5) ->  | V36: =IF(BIO!Y5="","",BIO!Y5) ->  | W36: =IF(BIO!Z5="","",BIO!Z5) ->  | X36: =IF(BIO!AA5="","",BIO!AA5) ->  | Y36: =IF(BIO!AB5="","",BIO!AB5) ->  | Z36: =IF(BIO!AC5="","",BIO!AC5) ->  | AA36: =IF(BIO!AD5="","",BIO!AD5) ->  | AB36: =IF(BIO!AE5="","",BIO!AE5) ->  | AC36: =IF(BIO!AF5="","",BIO!AF5) ->  | AD36: =IF(BIO!AG5="","",BIO!AG5) ->  | AE36: =IF(BIO!AH5="","",BIO!AH5) ->  | AF36: =IF(BIO!AI5="","",BIO!AI5) ->  | AG36: =IF(BIO!AJ5="","",BIO!AJ5) ->  | AH36: =IF(BIO!AK5="","",BIO!AK5) ->  | AI36: =IF(BIO!AL5="","",BIO!AL5) ->  | AJ36: =IF(BIO!AM5="","",BIO!AM5) ->  | AK36: =IF(BIO!AN5="","",BIO!AN5) ->  | AL36: =IF(BIO!AO5="","",BIO!AO5) ->  | AM36: =IF(BIO!AP5="","",BIO!AP5) -> 
D37: Criterio Evaluación 1.3 | E37: =IF(BIO!H6="","",BIO!H6) ->  | F37: =IF(BIO!I6="","",BIO!I6) ->  | G37: =IF(BIO!J6="","",BIO!J6) ->  | H37: =IF(BIO!K6="","",BIO!K6) ->  | I37: =IF(BIO!L6="","",BIO!L6) ->  | J37: =IF(BIO!M6="","",BIO!M6) ->  | K37: =IF(BIO!N6="","",BIO!N6) ->  | L37: =IF(BIO!O6="","",BIO!O6) ->  | M37: =IF(BIO!P6="","",BIO!P6) ->  | N37: =IF(BIO!Q6="","",BIO!Q6) ->  | O37: =IF(BIO!R6="","",BIO!R6) ->  | P37: =IF(BIO!S6="","",BIO!S6) ->  | Q37: =IF(BIO!T6="","",BIO!T6) ->  | R37: =IF(BIO!U6="","",BIO!U6) ->  | S37: =IF(BIO!V6="","",BIO!V6) ->  | T37: =IF(BIO!W6="","",BIO!W6) ->  | U37: =IF(BIO!X6="","",BIO!X6) ->  | V37: =IF(BIO!Y6="","",BIO!Y6) ->  | W37: =IF(BIO!Z6="","",BIO!Z6) ->  | X37: =IF(BIO!AA6="","",BIO!AA6) ->  | Y37: =IF(BIO!AB6="","",BIO!AB6) ->  | Z37: =IF(BIO!AC6="","",BIO!AC6) ->  | AA37: =IF(BIO!AD6="","",BIO!AD6) ->  | AB37: =IF(BIO!AE6="","",BIO!AE6) ->  | AC37: =IF(BIO!AF6="","",BIO!AF6) ->  | AD37: =IF(BIO!AG6="","",BIO!AG6) ->  | AE37: =IF(BIO!AH6="","",BIO!AH6) ->  | AF37: =IF(BIO!AI6="","",BIO!AI6) ->  | AG37: =IF(BIO!AJ6="","",BIO!AJ6) ->  | AH37: =IF(BIO!AK6="","",BIO!AK6) ->  | AI37: =IF(BIO!AL6="","",BIO!AL6) ->  | AJ37: =IF(BIO!AM6="","",BIO!AM6) ->  | AK37: =IF(BIO!AN6="","",BIO!AN6) ->  | AL37: =IF(BIO!AO6="","",BIO!AO6) ->  | AM37: =IF(BIO!AP6="","",BIO!AP6) -> 
C38: Comp. Esp. 2 | D38: Criterio Evaluación 2.1 | E38: =IF(BIO!H7="","",BIO!H7) ->  | F38: =IF(BIO!I7="","",BIO!I7) ->  | G38: =IF(BIO!J7="","",BIO!J7) ->  | H38: =IF(BIO!K7="","",BIO!K7) ->  | I38: =IF(BIO!L7="","",BIO!L7) ->  | J38: =IF(BIO!M7="","",BIO!M7) ->  | K38: =IF(BIO!N7="","",BIO!N7) ->  | L38: =IF(BIO!O7="","",BIO!O7) ->  | M38: =IF(BIO!P7="","",BIO!P7) ->  | N38: =IF(BIO!Q7="","",BIO!Q7) ->  | O38: =IF(BIO!R7="","",BIO!R7) ->  | P38: =IF(BIO!S7="","",BIO!S7) ->  | Q38: =IF(BIO!T7="","",BIO!T7) ->  | R38: =IF(BIO!U7="","",BIO!U7) ->  | S38: =IF(BIO!V7="","",BIO!V7) ->  | T38: =IF(BIO!W7="","",BIO!W7) ->  | U38: =IF(BIO!X7="","",BIO!X7) ->  | V38: =IF(BIO!Y7="","",BIO!Y7) ->  | W38: =IF(BIO!Z7="","",BIO!Z7) ->  | X38: =IF(BIO!AA7="","",BIO!AA7) ->  | Y38: =IF(BIO!AB7="","",BIO!AB7) ->  | Z38: =IF(BIO!AC7="","",BIO!AC7) ->  | AA38: =IF(BIO!AD7="","",BIO!AD7) ->  | AB38: =IF(BIO!AE7="","",BIO!AE7) ->  | AC38: =IF(BIO!AF7="","",BIO!AF7) ->  | AD38: =IF(BIO!AG7="","",BIO!AG7) ->  | AE38: =IF(BIO!AH7="","",BIO!AH7) ->  | AF38: =IF(BIO!AI7="","",BIO!AI7) ->  | AG38: =IF(BIO!AJ7="","",BIO!AJ7) ->  | AH38: =IF(BIO!AK7="","",BIO!AK7) ->  | AI38: =IF(BIO!AL7="","",BIO!AL7) ->  | AJ38: =IF(BIO!AM7="","",BIO!AM7) ->  | AK38: =IF(BIO!AN7="","",BIO!AN7) ->  | AL38: =IF(BIO!AO7="","",BIO!AO7) ->  | AM38: =IF(BIO!AP7="","",BIO!AP7) -> 
D39: Criterio Evaluación 2.2 | E39: =IF(BIO!H8="","",BIO!H8) ->  | F39: =IF(BIO!I8="","",BIO!I8) ->  | G39: =IF(BIO!J8="","",BIO!J8) ->  | H39: =IF(BIO!K8="","",BIO!K8) ->  | I39: =IF(BIO!L8="","",BIO!L8) ->  | J39: =IF(BIO!M8="","",BIO!M8) ->  | K39: =IF(BIO!N8="","",BIO!N8) ->  | L39: =IF(BIO!O8="","",BIO!O8) ->  | M39: =IF(BIO!P8="","",BIO!P8) ->  | N39: =IF(BIO!Q8="","",BIO!Q8) ->  | O39: =IF(BIO!R8="","",BIO!R8) ->  | P39: =IF(BIO!S8="","",BIO!S8) ->  | Q39: =IF(BIO!T8="","",BIO!T8) ->  | R39: =IF(BIO!U8="","",BIO!U8) ->  | S39: =IF(BIO!V8="","",BIO!V8) ->  | T39: =IF(BIO!W8="","",BIO!W8) ->  | U39: =IF(BIO!X8="","",BIO!X8) ->  | V39: =IF(BIO!Y8="","",BIO!Y8) ->  | W39: =IF(BIO!Z8="","",BIO!Z8) ->  | X39: =IF(BIO!AA8="","",BIO!AA8) ->  | Y39: =IF(BIO!AB8="","",BIO!AB8) ->  | Z39: =IF(BIO!AC8="","",BIO!AC8) ->  | AA39: =IF(BIO!AD8="","",BIO!AD8) ->  | AB39: =IF(BIO!AE8="","",BIO!AE8) ->  | AC39: =IF(BIO!AF8="","",BIO!AF8) ->  | AD39: =IF(BIO!AG8="","",BIO!AG8) ->  | AE39: =IF(BIO!AH8="","",BIO!AH8) ->  | AF39: =IF(BIO!AI8="","",BIO!AI8) ->  | AG39: =IF(BIO!AJ8="","",BIO!AJ8) ->  | AH39: =IF(BIO!AK8="","",BIO!AK8) ->  | AI39: =IF(BIO!AL8="","",BIO!AL8) ->  | AJ39: =IF(BIO!AM8="","",BIO!AM8) ->  | AK39: =IF(BIO!AN8="","",BIO!AN8) ->  | AL39: =IF(BIO!AO8="","",BIO!AO8) ->  | AM39: =IF(BIO!AP8="","",BIO!AP8) -> 
D40: Criterio Evaluación 2.3 | E40: =IF(BIO!H9="","",BIO!H9) ->  | F40: =IF(BIO!I9="","",BIO!I9) ->  | G40: =IF(BIO!J9="","",BIO!J9) ->  | H40: =IF(BIO!K9="","",BIO!K9) ->  | I40: =IF(BIO!L9="","",BIO!L9) ->  | J40: =IF(BIO!M9="","",BIO!M9) ->  | K40: =IF(BIO!N9="","",BIO!N9) ->  | L40: =IF(BIO!O9="","",BIO!O9) ->  | M40: =IF(BIO!P9="","",BIO!P9) ->  | N40: =IF(BIO!Q9="","",BIO!Q9) ->  | O40: =IF(BIO!R9="","",BIO!R9) ->  | P40: =IF(BIO!S9="","",BIO!S9) ->  | Q40: =IF(BIO!T9="","",BIO!T9) ->  | R40: =IF(BIO!U9="","",BIO!U9) ->  | S40: =IF(BIO!V9="","",BIO!V9) ->  | T40: =IF(BIO!W9="","",BIO!W9) ->  | U40: =IF(BIO!X9="","",BIO!X9) ->  | V40: =IF(BIO!Y9="","",BIO!Y9) ->  | W40: =IF(BIO!Z9="","",BIO!Z9) ->  | X40: =IF(BIO!AA9="","",BIO!AA9) ->  | Y40: =IF(BIO!AB9="","",BIO!AB9) ->  | Z40: =IF(BIO!AC9="","",BIO!AC9) ->  | AA40: =IF(BIO!AD9="","",BIO!AD9) ->  | AB40: =IF(BIO!AE9="","",BIO!AE9) ->  | AC40: =IF(BIO!AF9="","",BIO!AF9) ->  | AD40: =IF(BIO!AG9="","",BIO!AG9) ->  | AE40: =IF(BIO!AH9="","",BIO!AH9) ->  | AF40: =IF(BIO!AI9="","",BIO!AI9) ->  | AG40: =IF(BIO!AJ9="","",BIO!AJ9) ->  | AH40: =IF(BIO!AK9="","",BIO!AK9) ->  | AI40: =IF(BIO!AL9="","",BIO!AL9) ->  | AJ40: =IF(BIO!AM9="","",BIO!AM9) ->  | AK40: =IF(BIO!AN9="","",BIO!AN9) ->  | AL40: =IF(BIO!AO9="","",BIO!AO9) ->  | AM40: =IF(BIO!AP9="","",BIO!AP9) -> 
C41: Comp. Esp. 3 | D41: Criterio Evaluación 3.1 | E41: =IF(BIO!H10="","",BIO!H10) ->  | F41: =IF(BIO!I10="","",BIO!I10) ->  | G41: =IF(BIO!J10="","",BIO!J10) ->  | H41: =IF(BIO!K10="","",BIO!K10) ->  | I41: =IF(BIO!L10="","",BIO!L10) ->  | J41: =IF(BIO!M10="","",BIO!M10) ->  | K41: =IF(BIO!N10="","",BIO!N10) ->  | L41: =IF(BIO!O10="","",BIO!O10) ->  | M41: =IF(BIO!P10="","",BIO!P10) ->  | N41: =IF(BIO!Q10="","",BIO!Q10) ->  | O41: =IF(BIO!R10="","",BIO!R10) ->  | P41: =IF(BIO!S10="","",BIO!S10) ->  | Q41: =IF(BIO!T10="","",BIO!T10) ->  | R41: =IF(BIO!U10="","",BIO!U10) ->  | S41: =IF(BIO!V10="","",BIO!V10) ->  | T41: =IF(BIO!W10="","",BIO!W10) ->  | U41: =IF(BIO!X10="","",BIO!X10) ->  | V41: =IF(BIO!Y10="","",BIO!Y10) ->  | W41: =IF(BIO!Z10="","",BIO!Z10) ->  | X41: =IF(BIO!AA10="","",BIO!AA10) ->  | Y41: =IF(BIO!AB10="","",BIO!AB10) ->  | Z41: =IF(BIO!AC10="","",BIO!AC10) ->  | AA41: =IF(BIO!AD10="","",BIO!AD10) ->  | AB41: =IF(BIO!AE10="","",BIO!AE10) ->  | AC41: =IF(BIO!AF10="","",BIO!AF10) ->  | AD41: =IF(BIO!AG10="","",BIO!AG10) ->  | AE41: =IF(BIO!AH10="","",BIO!AH10) ->  | AF41: =IF(BIO!AI10="","",BIO!AI10) ->  | AG41: =IF(BIO!AJ10="","",BIO!AJ10) ->  | AH41: =IF(BIO!AK10="","",BIO!AK10) ->  | AI41: =IF(BIO!AL10="","",BIO!AL10) ->  | AJ41: =IF(BIO!AM10="","",BIO!AM10) ->  | AK41: =IF(BIO!AN10="","",BIO!AN10) ->  | AL41: =IF(BIO!AO10="","",BIO!AO10) ->  | AM41: =IF(BIO!AP10="","",BIO!AP10) -> 
D42: Criterio Evaluación 3.2 | E42: =IF(BIO!H11="","",BIO!H11) ->  | F42: =IF(BIO!I11="","",BIO!I11) ->  | G42: =IF(BIO!J11="","",BIO!J11) ->  | H42: =IF(BIO!K11="","",BIO!K11) ->  | I42: =IF(BIO!L11="","",BIO!L11) ->  | J42: =IF(BIO!M11="","",BIO!M11) ->  | K42: =IF(BIO!N11="","",BIO!N11) ->  | L42: =IF(BIO!O11="","",BIO!O11) ->  | M42: =IF(BIO!P11="","",BIO!P11) ->  | N42: =IF(BIO!Q11="","",BIO!Q11) ->  | O42: =IF(BIO!R11="","",BIO!R11) ->  | P42: =IF(BIO!S11="","",BIO!S11) ->  | Q42: =IF(BIO!T11="","",BIO!T11) ->  | R42: =IF(BIO!U11="","",BIO!U11) ->  | S42: =IF(BIO!V11="","",BIO!V11) ->  | T42: =IF(BIO!W11="","",BIO!W11) ->  | U42: =IF(BIO!X11="","",BIO!X11) ->  | V42: =IF(BIO!Y11="","",BIO!Y11) ->  | W42: =IF(BIO!Z11="","",BIO!Z11) ->  | X42: =IF(BIO!AA11="","",BIO!AA11) ->  | Y42: =IF(BIO!AB11="","",BIO!AB11) ->  | Z42: =IF(BIO!AC11="","",BIO!AC11) ->  | AA42: =IF(BIO!AD11="","",BIO!AD11) ->  | AB42: =IF(BIO!AE11="","",BIO!AE11) ->  | AC42: =IF(BIO!AF11="","",BIO!AF11) ->  | AD42: =IF(BIO!AG11="","",BIO!AG11) ->  | AE42: =IF(BIO!AH11="","",BIO!AH11) ->  | AF42: =IF(BIO!AI11="","",BIO!AI11) ->  | AG42: =IF(BIO!AJ11="","",BIO!AJ11) ->  | AH42: =IF(BIO!AK11="","",BIO!AK11) ->  | AI42: =IF(BIO!AL11="","",BIO!AL11) ->  | AJ42: =IF(BIO!AM11="","",BIO!AM11) ->  | AK42: =IF(BIO!AN11="","",BIO!AN11) ->  | AL42: =IF(BIO!AO11="","",BIO!AO11) ->  | AM42: =IF(BIO!AP11="","",BIO!AP11) -> 
D43: Criterio Evaluación 3.3 | E43: =IF(BIO!H12="","",BIO!H12) ->  | F43: =IF(BIO!I12="","",BIO!I12) ->  | G43: =IF(BIO!J12="","",BIO!J12) ->  | H43: =IF(BIO!K12="","",BIO!K12) ->  | I43: =IF(BIO!L12="","",BIO!L12) ->  | J43: =IF(BIO!M12="","",BIO!M12) ->  | K43: =IF(BIO!N12="","",BIO!N12) ->  | L43: =IF(BIO!O12="","",BIO!O12) ->  | M43: =IF(BIO!P12="","",BIO!P12) ->  | N43: =IF(BIO!Q12="","",BIO!Q12) ->  | O43: =IF(BIO!R12="","",BIO!R12) ->  | P43: =IF(BIO!S12="","",BIO!S12) ->  | Q43: =IF(BIO!T12="","",BIO!T12) ->  | R43: =IF(BIO!U12="","",BIO!U12) ->  | S43: =IF(BIO!V12="","",BIO!V12) ->  | T43: =IF(BIO!W12="","",BIO!W12) ->  | U43: =IF(BIO!X12="","",BIO!X12) ->  | V43: =IF(BIO!Y12="","",BIO!Y12) ->  | W43: =IF(BIO!Z12="","",BIO!Z12) ->  | X43: =IF(BIO!AA12="","",BIO!AA12) ->  | Y43: =IF(BIO!AB12="","",BIO!AB12) ->  | Z43: =IF(BIO!AC12="","",BIO!AC12) ->  | AA43: =IF(BIO!AD12="","",BIO!AD12) ->  | AB43: =IF(BIO!AE12="","",BIO!AE12) ->  | AC43: =IF(BIO!AF12="","",BIO!AF12) ->  | AD43: =IF(BIO!AG12="","",BIO!AG12) ->  | AE43: =IF(BIO!AH12="","",BIO!AH12) ->  | AF43: =IF(BIO!AI12="","",BIO!AI12) ->  | AG43: =IF(BIO!AJ12="","",BIO!AJ12) ->  | AH43: =IF(BIO!AK12="","",BIO!AK12) ->  | AI43: =IF(BIO!AL12="","",BIO!AL12) ->  | AJ43: =IF(BIO!AM12="","",BIO!AM12) ->  | AK43: =IF(BIO!AN12="","",BIO!AN12) ->  | AL43: =IF(BIO!AO12="","",BIO!AO12) ->  | AM43: =IF(BIO!AP12="","",BIO!AP12) -> 
C44: Comp. Esp. 4 | D44: Criterio Evaluación 4.1 | E44: =IF(BIO!H13="","",BIO!H13) ->  | F44: =IF(BIO!I13="","",BIO!I13) ->  | G44: =IF(BIO!J13="","",BIO!J13) ->  | H44: =IF(BIO!K13="","",BIO!K13) ->  | I44: =IF(BIO!L13="","",BIO!L13) ->  | J44: =IF(BIO!M13="","",BIO!M13) ->  | K44: =IF(BIO!N13="","",BIO!N13) ->  | L44: =IF(BIO!O13="","",BIO!O13) ->  | M44: =IF(BIO!P13="","",BIO!P13) ->  | N44: =IF(BIO!Q13="","",BIO!Q13) ->  | O44: =IF(BIO!R13="","",BIO!R13) ->  | P44: =IF(BIO!S13="","",BIO!S13) ->  | Q44: =IF(BIO!T13="","",BIO!T13) ->  | R44: =IF(BIO!U13="","",BIO!U13) ->  | S44: =IF(BIO!V13="","",BIO!V13) ->  | T44: =IF(BIO!W13="","",BIO!W13) ->  | U44: =IF(BIO!X13="","",BIO!X13) ->  | V44: =IF(BIO!Y13="","",BIO!Y13) ->  | W44: =IF(BIO!Z13="","",BIO!Z13) ->  | X44: =IF(BIO!AA13="","",BIO!AA13) ->  | Y44: =IF(BIO!AB13="","",BIO!AB13) ->  | Z44: =IF(BIO!AC13="","",BIO!AC13) ->  | AA44: =IF(BIO!AD13="","",BIO!AD13) ->  | AB44: =IF(BIO!AE13="","",BIO!AE13) ->  | AC44: =IF(BIO!AF13="","",BIO!AF13) ->  | AD44: =IF(BIO!AG13="","",BIO!AG13) ->  | AE44: =IF(BIO!AH13="","",BIO!AH13) ->  | AF44: =IF(BIO!AI13="","",BIO!AI13) ->  | AG44: =IF(BIO!AJ13="","",BIO!AJ13) ->  | AH44: =IF(BIO!AK13="","",BIO!AK13) ->  | AI44: =IF(BIO!AL13="","",BIO!AL13) ->  | AJ44: =IF(BIO!AM13="","",BIO!AM13) ->  | AK44: =IF(BIO!AN13="","",BIO!AN13) ->  | AL44: =IF(BIO!AO13="","",BIO!AO13) ->  | AM44: =IF(BIO!AP13="","",BIO!AP13) -> 
D45: Criterio Evaluación 4.2 | E45: =IF(BIO!H14="","",BIO!H14) ->  | F45: =IF(BIO!I14="","",BIO!I14) ->  | G45: =IF(BIO!J14="","",BIO!J14) ->  | H45: =IF(BIO!K14="","",BIO!K14) ->  | I45: =IF(BIO!L14="","",BIO!L14) ->  | J45: =IF(BIO!M14="","",BIO!M14) ->  | K45: =IF(BIO!N14="","",BIO!N14) ->  | L45: =IF(BIO!O14="","",BIO!O14) ->  | M45: =IF(BIO!P14="","",BIO!P14) ->  | N45: =IF(BIO!Q14="","",BIO!Q14) ->  | O45: =IF(BIO!R14="","",BIO!R14) ->  | P45: =IF(BIO!S14="","",BIO!S14) ->  | Q45: =IF(BIO!T14="","",BIO!T14) ->  | R45: =IF(BIO!U14="","",BIO!U14) ->  | S45: =IF(BIO!V14="","",BIO!V14) ->  | T45: =IF(BIO!W14="","",BIO!W14) ->  | U45: =IF(BIO!X14="","",BIO!X14) ->  | V45: =IF(BIO!Y14="","",BIO!Y14) ->  | W45: =IF(BIO!Z14="","",BIO!Z14) ->  | X45: =IF(BIO!AA14="","",BIO!AA14) ->  | Y45: =IF(BIO!AB14="","",BIO!AB14) ->  | Z45: =IF(BIO!AC14="","",BIO!AC14) ->  | AA45: =IF(BIO!AD14="","",BIO!AD14) ->  | AB45: =IF(BIO!AE14="","",BIO!AE14) ->  | AC45: =IF(BIO!AF14="","",BIO!AF14) ->  | AD45: =IF(BIO!AG14="","",BIO!AG14) ->  | AE45: =IF(BIO!AH14="","",BIO!AH14) ->  | AF45: =IF(BIO!AI14="","",BIO!AI14) ->  | AG45: =IF(BIO!AJ14="","",BIO!AJ14) ->  | AH45: =IF(BIO!AK14="","",BIO!AK14) ->  | AI45: =IF(BIO!AL14="","",BIO!AL14) ->  | AJ45: =IF(BIO!AM14="","",BIO!AM14) ->  | AK45: =IF(BIO!AN14="","",BIO!AN14) ->  | AL45: =IF(BIO!AO14="","",BIO!AO14) ->  | AM45: =IF(BIO!AP14="","",BIO!AP14) -> 
C46: Comp. Esp. 5 | D46: Criterio Evaluación 5.1 | E46: =IF(BIO!H15="","",BIO!H15) ->  | F46: =IF(BIO!I15="","",BIO!I15) ->  | G46: =IF(BIO!J15="","",BIO!J15) ->  | H46: =IF(BIO!K15="","",BIO!K15) ->  | I46: =IF(BIO!L15="","",BIO!L15) ->  | J46: =IF(BIO!M15="","",BIO!M15) ->  | K46: =IF(BIO!N15="","",BIO!N15) ->  | L46: =IF(BIO!O15="","",BIO!O15) ->  | M46: =IF(BIO!P15="","",BIO!P15) ->  | N46: =IF(BIO!Q15="","",BIO!Q15) ->  | O46: =IF(BIO!R15="","",BIO!R15) ->  | P46: =IF(BIO!S15="","",BIO!S15) ->  | Q46: =IF(BIO!T15="","",BIO!T15) ->  | R46: =IF(BIO!U15="","",BIO!U15) ->  | S46: =IF(BIO!V15="","",BIO!V15) ->  | T46: =IF(BIO!W15="","",BIO!W15) ->  | U46: =IF(BIO!X15="","",BIO!X15) ->  | V46: =IF(BIO!Y15="","",BIO!Y15) ->  | W46: =IF(BIO!Z15="","",BIO!Z15) ->  | X46: =IF(BIO!AA15="","",BIO!AA15) ->  | Y46: =IF(BIO!AB15="","",BIO!AB15) ->  | Z46: =IF(BIO!AC15="","",BIO!AC15) ->  | AA46: =IF(BIO!AD15="","",BIO!AD15) ->  | AB46: =IF(BIO!AE15="","",BIO!AE15) ->  | AC46: =IF(BIO!AF15="","",BIO!AF15) ->  | AD46: =IF(BIO!AG15="","",BIO!AG15) ->  | AE46: =IF(BIO!AH15="","",BIO!AH15) ->  | AF46: =IF(BIO!AI15="","",BIO!AI15) ->  | AG46: =IF(BIO!AJ15="","",BIO!AJ15) ->  | AH46: =IF(BIO!AK15="","",BIO!AK15) ->  | AI46: =IF(BIO!AL15="","",BIO!AL15) ->  | AJ46: =IF(BIO!AM15="","",BIO!AM15) ->  | AK46: =IF(BIO!AN15="","",BIO!AN15) ->  | AL46: =IF(BIO!AO15="","",BIO!AO15) ->  | AM46: =IF(BIO!AP15="","",BIO!AP15) -> 
D47: Criterio Evaluación 5.2 | E47: =IF(BIO!H16="","",BIO!H16) ->  | F47: =IF(BIO!I16="","",BIO!I16) ->  | G47: =IF(BIO!J16="","",BIO!J16) ->  | H47: =IF(BIO!K16="","",BIO!K16) ->  | I47: =IF(BIO!L16="","",BIO!L16) ->  | J47: =IF(BIO!M16="","",BIO!M16) ->  | K47: =IF(BIO!N16="","",BIO!N16) ->  | L47: =IF(BIO!O16="","",BIO!O16) ->  | M47: =IF(BIO!P16="","",BIO!P16) ->  | N47: =IF(BIO!Q16="","",BIO!Q16) ->  | O47: =IF(BIO!R16="","",BIO!R16) ->  | P47: =IF(BIO!S16="","",BIO!S16) ->  | Q47: =IF(BIO!T16="","",BIO!T16) ->  | R47: =IF(BIO!U16="","",BIO!U16) ->  | S47: =IF(BIO!V16="","",BIO!V16) ->  | T47: =IF(BIO!W16="","",BIO!W16) ->  | U47: =IF(BIO!X16="","",BIO!X16) ->  | V47: =IF(BIO!Y16="","",BIO!Y16) ->  | W47: =IF(BIO!Z16="","",BIO!Z16) ->  | X47: =IF(BIO!AA16="","",BIO!AA16) ->  | Y47: =IF(BIO!AB16="","",BIO!AB16) ->  | Z47: =IF(BIO!AC16="","",BIO!AC16) ->  | AA47: =IF(BIO!AD16="","",BIO!AD16) ->  | AB47: =IF(BIO!AE16="","",BIO!AE16) ->  | AC47: =IF(BIO!AF16="","",BIO!AF16) ->  | AD47: =IF(BIO!AG16="","",BIO!AG16) ->  | AE47: =IF(BIO!AH16="","",BIO!AH16) ->  | AF47: =IF(BIO!AI16="","",BIO!AI16) ->  | AG47: =IF(BIO!AJ16="","",BIO!AJ16) ->  | AH47: =IF(BIO!AK16="","",BIO!AK16) ->  | AI47: =IF(BIO!AL16="","",BIO!AL16) ->  | AJ47: =IF(BIO!AM16="","",BIO!AM16) ->  | AK47: =IF(BIO!AN16="","",BIO!AN16) ->  | AL47: =IF(BIO!AO16="","",BIO!AO16) ->  | AM47: =IF(BIO!AP16="","",BIO!AP16) -> 
C48: Comp. Esp. 6 | D48: Criterio Evaluación 6.1 | E48: =IF(BIO!H17="","",BIO!H17) ->  | F48: =IF(BIO!I17="","",BIO!I17) ->  | G48: =IF(BIO!J17="","",BIO!J17) ->  | H48: =IF(BIO!K17="","",BIO!K17) ->  | I48: =IF(BIO!L17="","",BIO!L17) ->  | J48: =IF(BIO!M17="","",BIO!M17) ->  | K48: =IF(BIO!N17="","",BIO!N17) ->  | L48: =IF(BIO!O17="","",BIO!O17) ->  | M48: =IF(BIO!P17="","",BIO!P17) ->  | N48: =IF(BIO!Q17="","",BIO!Q17) ->  | O48: =IF(BIO!R17="","",BIO!R17) ->  | P48: =IF(BIO!S17="","",BIO!S17) ->  | Q48: =IF(BIO!T17="","",BIO!T17) ->  | R48: =IF(BIO!U17="","",BIO!U17) ->  | S48: =IF(BIO!V17="","",BIO!V17) ->  | T48: =IF(BIO!W17="","",BIO!W17) ->  | U48: =IF(BIO!X17="","",BIO!X17) ->  | V48: =IF(BIO!Y17="","",BIO!Y17) ->  | W48: =IF(BIO!Z17="","",BIO!Z17) ->  | X48: =IF(BIO!AA17="","",BIO!AA17) ->  | Y48: =IF(BIO!AB17="","",BIO!AB17) ->  | Z48: =IF(BIO!AC17="","",BIO!AC17) ->  | AA48: =IF(BIO!AD17="","",BIO!AD17) ->  | AB48: =IF(BIO!AE17="","",BIO!AE17) ->  | AC48: =IF(BIO!AF17="","",BIO!AF17) ->  | AD48: =IF(BIO!AG17="","",BIO!AG17) ->  | AE48: =IF(BIO!AH17="","",BIO!AH17) ->  | AF48: =IF(BIO!AI17="","",BIO!AI17) ->  | AG48: =IF(BIO!AJ17="","",BIO!AJ17) ->  | AH48: =IF(BIO!AK17="","",BIO!AK17) ->  | AI48: =IF(BIO!AL17="","",BIO!AL17) ->  | AJ48: =IF(BIO!AM17="","",BIO!AM17) ->  | AK48: =IF(BIO!AN17="","",BIO!AN17) ->  | AL48: =IF(BIO!AO17="","",BIO!AO17) ->  | AM48: =IF(BIO!AP17="","",BIO!AP17) -> 
D49: Criterio Evaluación 6.2 | E49: =IF(BIO!H18="","",BIO!H18) ->  | F49: =IF(BIO!I18="","",BIO!I18) ->  | G49: =IF(BIO!J18="","",BIO!J18) ->  | H49: =IF(BIO!K18="","",BIO!K18) ->  | I49: =IF(BIO!L18="","",BIO!L18) ->  | J49: =IF(BIO!M18="","",BIO!M18) ->  | K49: =IF(BIO!N18="","",BIO!N18) ->  | L49: =IF(BIO!O18="","",BIO!O18) ->  | M49: =IF(BIO!P18="","",BIO!P18) ->  | N49: =IF(BIO!Q18="","",BIO!Q18) ->  | O49: =IF(BIO!R18="","",BIO!R18) ->  | P49: =IF(BIO!S18="","",BIO!S18) ->  | Q49: =IF(BIO!T18="","",BIO!T18) ->  | R49: =IF(BIO!U18="","",BIO!U18) ->  | S49: =IF(BIO!V18="","",BIO!V18) ->  | T49: =IF(BIO!W18="","",BIO!W18) ->  | U49: =IF(BIO!X18="","",BIO!X18) ->  | V49: =IF(BIO!Y18="","",BIO!Y18) ->  | W49: =IF(BIO!Z18="","",BIO!Z18) ->  | X49: =IF(BIO!AA18="","",BIO!AA18) ->  | Y49: =IF(BIO!AB18="","",BIO!AB18) ->  | Z49: =IF(BIO!AC18="","",BIO!AC18) ->  | AA49: =IF(BIO!AD18="","",BIO!AD18) ->  | AB49: =IF(BIO!AE18="","",BIO!AE18) ->  | AC49: =IF(BIO!AF18="","",BIO!AF18) ->  | AD49: =IF(BIO!AG18="","",BIO!AG18) ->  | AE49: =IF(BIO!AH18="","",BIO!AH18) ->  | AF49: =IF(BIO!AI18="","",BIO!AI18) ->  | AG49: =IF(BIO!AJ18="","",BIO!AJ18) ->  | AH49: =IF(BIO!AK18="","",BIO!AK18) ->  | AI49: =IF(BIO!AL18="","",BIO!AL18) ->  | AJ49: =IF(BIO!AM18="","",BIO!AM18) ->  | AK49: =IF(BIO!AN18="","",BIO!AN18) ->  | AL49: =IF(BIO!AO18="","",BIO!AO18) ->  | AM49: =IF(BIO!AP18="","",BIO!AP18) -> 
B50: Ciencias Generales | C50: Comp. Esp. 1 | D50: Criterio Evaluación 1.1 | E50: =IF(CG!H4="","",CG!H4) ->  | F50: =IF(CG!I4="","",CG!I4) ->  | G50: =IF(CG!J4="","",CG!J4) ->  | H50: =IF(CG!K4="","",CG!K4) ->  | I50: =IF(CG!L4="","",CG!L4) ->  | J50: =IF(CG!M4="","",CG!M4) ->  | K50: =IF(CG!N4="","",CG!N4) ->  | L50: =IF(CG!O4="","",CG!O4) ->  | M50: =IF(CG!P4="","",CG!P4) ->  | N50: =IF(CG!Q4="","",CG!Q4) ->  | O50: =IF(CG!R4="","",CG!R4) ->  | P50: =IF(CG!S4="","",CG!S4) ->  | Q50: =IF(CG!T4="","",CG!T4) ->  | R50: =IF(CG!U4="","",CG!U4) ->  | S50: =IF(CG!V4="","",CG!V4) ->  | T50: =IF(CG!W4="","",CG!W4) ->  | U50: =IF(CG!X4="","",CG!X4) ->  | V50: =IF(CG!Y4="","",CG!Y4) ->  | W50: =IF(CG!Z4="","",CG!Z4) ->  | X50: =IF(CG!AA4="","",CG!AA4) ->  | Y50: =IF(CG!AB4="","",CG!AB4) ->  | Z50: =IF(CG!AC4="","",CG!AC4) ->  | AA50: =IF(CG!AD4="","",CG!AD4) ->  | AB50: =IF(CG!AE4="","",CG!AE4) ->  | AC50: =IF(CG!AF4="","",CG!AF4) ->  | AD50: =IF(CG!AG4="","",CG!AG4) ->  | AE50: =IF(CG!AH4="","",CG!AH4) ->  | AF50: =IF(CG!AI4="","",CG!AI4) ->  | AG50: =IF(CG!AJ4="","",CG!AJ4) ->  | AH50: =IF(CG!AK4="","",CG!AK4) ->  | AI50: =IF(CG!AL4="","",CG!AL4) ->  | AJ50: =IF(CG!AM4="","",CG!AM4) ->  | AK50: =IF(CG!AN4="","",CG!AN4) ->  | AL50: =IF(CG!AO4="","",CG!AO4) ->  | AM50: =IF(CG!AP4="","",CG!AP4) -> 
D51: Criterio Evaluación 1.2 | E51: =IF(CG!H5="","",CG!H5) ->  | F51: =IF(CG!I5="","",CG!I5) ->  | G51: =IF(CG!J5="","",CG!J5) ->  | H51: =IF(CG!K5="","",CG!K5) ->  | I51: =IF(CG!L5="","",CG!L5) ->  | J51: =IF(CG!M5="","",CG!M5) ->  | K51: =IF(CG!N5="","",CG!N5) ->  | L51: =IF(CG!O5="","",CG!O5) ->  | M51: =IF(CG!P5="","",CG!P5) ->  | N51: =IF(CG!Q5="","",CG!Q5) ->  | O51: =IF(CG!R5="","",CG!R5) ->  | P51: =IF(CG!S5="","",CG!S5) ->  | Q51: =IF(CG!T5="","",CG!T5) ->  | R51: =IF(CG!U5="","",CG!U5) ->  | S51: =IF(CG!V5="","",CG!V5) ->  | T51: =IF(CG!W5="","",CG!W5) ->  | U51: =IF(CG!X5="","",CG!X5) ->  | V51: =IF(CG!Y5="","",CG!Y5) ->  | W51: =IF(CG!Z5="","",CG!Z5) ->  | X51: =IF(CG!AA5="","",CG!AA5) ->  | Y51: =IF(CG!AB5="","",CG!AB5) ->  | Z51: =IF(CG!AC5="","",CG!AC5) ->  | AA51: =IF(CG!AD5="","",CG!AD5) ->  | AB51: =IF(CG!AE5="","",CG!AE5) ->  | AC51: =IF(CG!AF5="","",CG!AF5) ->  | AD51: =IF(CG!AG5="","",CG!AG5) ->  | AE51: =IF(CG!AH5="","",CG!AH5) ->  | AF51: =IF(CG!AI5="","",CG!AI5) ->  | AG51: =IF(CG!AJ5="","",CG!AJ5) ->  | AH51: =IF(CG!AK5="","",CG!AK5) ->  | AI51: =IF(CG!AL5="","",CG!AL5) ->  | AJ51: =IF(CG!AM5="","",CG!AM5) ->  | AK51: =IF(CG!AN5="","",CG!AN5) ->  | AL51: =IF(CG!AO5="","",CG!AO5) ->  | AM51: =IF(CG!AP5="","",CG!AP5) -> 
D52: Criterio Evaluación 1.3 | E52: =IF(CG!H6="","",CG!H6) ->  | F52: =IF(CG!I6="","",CG!I6) ->  | G52: =IF(CG!J6="","",CG!J6) ->  | H52: =IF(CG!K6="","",CG!K6) ->  | I52: =IF(CG!L6="","",CG!L6) ->  | J52: =IF(CG!M6="","",CG!M6) ->  | K52: =IF(CG!N6="","",CG!N6) ->  | L52: =IF(CG!O6="","",CG!O6) ->  | M52: =IF(CG!P6="","",CG!P6) ->  | N52: =IF(CG!Q6="","",CG!Q6) ->  | O52: =IF(CG!R6="","",CG!R6) ->  | P52: =IF(CG!S6="","",CG!S6) ->  | Q52: =IF(CG!T6="","",CG!T6) ->  | R52: =IF(CG!U6="","",CG!U6) ->  | S52: =IF(CG!V6="","",CG!V6) ->  | T52: =IF(CG!W6="","",CG!W6) ->  | U52: =IF(CG!X6="","",CG!X6) ->  | V52: =IF(CG!Y6="","",CG!Y6) ->  | W52: =IF(CG!Z6="","",CG!Z6) ->  | X52: =IF(CG!AA6="","",CG!AA6) ->  | Y52: =IF(CG!AB6="","",CG!AB6) ->  | Z52: =IF(CG!AC6="","",CG!AC6) ->  | AA52: =IF(CG!AD6="","",CG!AD6) ->  | AB52: =IF(CG!AE6="","",CG!AE6) ->  | AC52: =IF(CG!AF6="","",CG!AF6) ->  | AD52: =IF(CG!AG6="","",CG!AG6) ->  | AE52: =IF(CG!AH6="","",CG!AH6) ->  | AF52: =IF(CG!AI6="","",CG!AI6) ->  | AG52: =IF(CG!AJ6="","",CG!AJ6) ->  | AH52: =IF(CG!AK6="","",CG!AK6) ->  | AI52: =IF(CG!AL6="","",CG!AL6) ->  | AJ52: =IF(CG!AM6="","",CG!AM6) ->  | AK52: =IF(CG!AN6="","",CG!AN6) ->  | AL52: =IF(CG!AO6="","",CG!AO6) ->  | AM52: =IF(CG!AP6="","",CG!AP6) -> 
C53: Comp. Esp. 2 | D53: Criterio Evaluación 2.1 | E53: =IF(CG!H7="","",CG!H7) ->  | F53: =IF(CG!I7="","",CG!I7) ->  | G53: =IF(CG!J7="","",CG!J7) ->  | H53: =IF(CG!K7="","",CG!K7) ->  | I53: =IF(CG!L7="","",CG!L7) ->  | J53: =IF(CG!M7="","",CG!M7) ->  | K53: =IF(CG!N7="","",CG!N7) ->  | L53: =IF(CG!O7="","",CG!O7) ->  | M53: =IF(CG!P7="","",CG!P7) ->  | N53: =IF(CG!Q7="","",CG!Q7) ->  | O53: =IF(CG!R7="","",CG!R7) ->  | P53: =IF(CG!S7="","",CG!S7) ->  | Q53: =IF(CG!T7="","",CG!T7) ->  | R53: =IF(CG!U7="","",CG!U7) ->  | S53: =IF(CG!V7="","",CG!V7) ->  | T53: =IF(CG!W7="","",CG!W7) ->  | U53: =IF(CG!X7="","",CG!X7) ->  | V53: =IF(CG!Y7="","",CG!Y7) ->  | W53: =IF(CG!Z7="","",CG!Z7) ->  | X53: =IF(CG!AA7="","",CG!AA7) ->  | Y53: =IF(CG!AB7="","",CG!AB7) ->  | Z53: =IF(CG!AC7="","",CG!AC7) ->  | AA53: =IF(CG!AD7="","",CG!AD7) ->  | AB53: =IF(CG!AE7="","",CG!AE7) ->  | AC53: =IF(CG!AF7="","",CG!AF7) ->  | AD53: =IF(CG!AG7="","",CG!AG7) ->  | AE53: =IF(CG!AH7="","",CG!AH7) ->  | AF53: =IF(CG!AI7="","",CG!AI7) ->  | AG53: =IF(CG!AJ7="","",CG!AJ7) ->  | AH53: =IF(CG!AK7="","",CG!AK7) ->  | AI53: =IF(CG!AL7="","",CG!AL7) ->  | AJ53: =IF(CG!AM7="","",CG!AM7) ->  | AK53: =IF(CG!AN7="","",CG!AN7) ->  | AL53: =IF(CG!AO7="","",CG!AO7) ->  | AM53: =IF(CG!AP7="","",CG!AP7) -> 
D54: Criterio Evaluación 2.2 | E54: =IF(CG!H8="","",CG!H8) ->  | F54: =IF(CG!I8="","",CG!I8) ->  | G54: =IF(CG!J8="","",CG!J8) ->  | H54: =IF(CG!K8="","",CG!K8) ->  | I54: =IF(CG!L8="","",CG!L8) ->  | J54: =IF(CG!M8="","",CG!M8) ->  | K54: =IF(CG!N8="","",CG!N8) ->  | L54: =IF(CG!O8="","",CG!O8) ->  | M54: =IF(CG!P8="","",CG!P8) ->  | N54: =IF(CG!Q8="","",CG!Q8) ->  | O54: =IF(CG!R8="","",CG!R8) ->  | P54: =IF(CG!S8="","",CG!S8) ->  | Q54: =IF(CG!T8="","",CG!T8) ->  | R54: =IF(CG!U8="","",CG!U8) ->  | S54: =IF(CG!V8="","",CG!V8) ->  | T54: =IF(CG!W8="","",CG!W8) ->  | U54: =IF(CG!X8="","",CG!X8) ->  | V54: =IF(CG!Y8="","",CG!Y8) ->  | W54: =IF(CG!Z8="","",CG!Z8) ->  | X54: =IF(CG!AA8="","",CG!AA8) ->  | Y54: =IF(CG!AB8="","",CG!AB8) ->  | Z54: =IF(CG!AC8="","",CG!AC8) ->  | AA54: =IF(CG!AD8="","",CG!AD8) ->  | AB54: =IF(CG!AE8="","",CG!AE8) ->  | AC54: =IF(CG!AF8="","",CG!AF8) ->  | AD54: =IF(CG!AG8="","",CG!AG8) ->  | AE54: =IF(CG!AH8="","",CG!AH8) ->  | AF54: =IF(CG!AI8="","",CG!AI8) ->  | AG54: =IF(CG!AJ8="","",CG!AJ8) ->  | AH54: =IF(CG!AK8="","",CG!AK8) ->  | AI54: =IF(CG!AL8="","",CG!AL8) ->  | AJ54: =IF(CG!AM8="","",CG!AM8) ->  | AK54: =IF(CG!AN8="","",CG!AN8) ->  | AL54: =IF(CG!AO8="","",CG!AO8) ->  | AM54: =IF(CG!AP8="","",CG!AP8) -> 
D55: Criterio Evaluación 2.3 | E55: =IF(CG!H9="","",CG!H9) ->  | F55: =IF(CG!I9="","",CG!I9) ->  | G55: =IF(CG!J9="","",CG!J9) ->  | H55: =IF(CG!K9="","",CG!K9) ->  | I55: =IF(CG!L9="","",CG!L9) ->  | J55: =IF(CG!M9="","",CG!M9) ->  | K55: =IF(CG!N9="","",CG!N9) ->  | L55: =IF(CG!O9="","",CG!O9) ->  | M55: =IF(CG!P9="","",CG!P9) ->  | N55: =IF(CG!Q9="","",CG!Q9) ->  | O55: =IF(CG!R9="","",CG!R9) ->  | P55: =IF(CG!S9="","",CG!S9) ->  | Q55: =IF(CG!T9="","",CG!T9) ->  | R55: =IF(CG!U9="","",CG!U9) ->  | S55: =IF(CG!V9="","",CG!V9) ->  | T55: =IF(CG!W9="","",CG!W9) ->  | U55: =IF(CG!X9="","",CG!X9) ->  | V55: =IF(CG!Y9="","",CG!Y9) ->  | W55: =IF(CG!Z9="","",CG!Z9) ->  | X55: =IF(CG!AA9="","",CG!AA9) ->  | Y55: =IF(CG!AB9="","",CG!AB9) ->  | Z55: =IF(CG!AC9="","",CG!AC9) ->  | AA55: =IF(CG!AD9="","",CG!AD9) ->  | AB55: =IF(CG!AE9="","",CG!AE9) ->  | AC55: =IF(CG!AF9="","",CG!AF9) ->  | AD55: =IF(CG!AG9="","",CG!AG9) ->  | AE55: =IF(CG!AH9="","",CG!AH9) ->  | AF55: =IF(CG!AI9="","",CG!AI9) ->  | AG55: =IF(CG!AJ9="","",CG!AJ9) ->  | AH55: =IF(CG!AK9="","",CG!AK9) ->  | AI55: =IF(CG!AL9="","",CG!AL9) ->  | AJ55: =IF(CG!AM9="","",CG!AM9) ->  | AK55: =IF(CG!AN9="","",CG!AN9) ->  | AL55: =IF(CG!AO9="","",CG!AO9) ->  | AM55: =IF(CG!AP9="","",CG!AP9) -> 
D56: Criterio Evaluación 2.4 | E56: =IF(CG!H10="","",CG!H10) ->  | F56: =IF(CG!I10="","",CG!I10) ->  | G56: =IF(CG!J10="","",CG!J10) ->  | H56: =IF(CG!K10="","",CG!K10) ->  | I56: =IF(CG!L10="","",CG!L10) ->  | J56: =IF(CG!M10="","",CG!M10) ->  | K56: =IF(CG!N10="","",CG!N10) ->  | L56: =IF(CG!O10="","",CG!O10) ->  | M56: =IF(CG!P10="","",CG!P10) ->  | N56: =IF(CG!Q10="","",CG!Q10) ->  | O56: =IF(CG!R10="","",CG!R10) ->  | P56: =IF(CG!S10="","",CG!S10) ->  | Q56: =IF(CG!T10="","",CG!T10) ->  | R56: =IF(CG!U10="","",CG!U10) ->  | S56: =IF(CG!V10="","",CG!V10) ->  | T56: =IF(CG!W10="","",CG!W10) ->  | U56: =IF(CG!X10="","",CG!X10) ->  | V56: =IF(CG!Y10="","",CG!Y10) ->  | W56: =IF(CG!Z10="","",CG!Z10) ->  | X56: =IF(CG!AA10="","",CG!AA10) ->  | Y56: =IF(CG!AB10="","",CG!AB10) ->  | Z56: =IF(CG!AC10="","",CG!AC10) ->  | AA56: =IF(CG!AD10="","",CG!AD10) ->  | AB56: =IF(CG!AE10="","",CG!AE10) ->  | AC56: =IF(CG!AF10="","",CG!AF10) ->  | AD56: =IF(CG!AG10="","",CG!AG10) ->  | AE56: =IF(CG!AH10="","",CG!AH10) ->  | AF56: =IF(CG!AI10="","",CG!AI10) ->  | AG56: =IF(CG!AJ10="","",CG!AJ10) ->  | AH56: =IF(CG!AK10="","",CG!AK10) ->  | AI56: =IF(CG!AL10="","",CG!AL10) ->  | AJ56: =IF(CG!AM10="","",CG!AM10) ->  | AK56: =IF(CG!AN10="","",CG!AN10) ->  | AL56: =IF(CG!AO10="","",CG!AO10) ->  | AM56: =IF(CG!AP10="","",CG!AP10) -> 
C57: Comp. Esp. 3 | D57: Criterio Evaluación 3.1 | E57: =IF(CG!H11="","",CG!H11) ->  | F57: =IF(CG!I11="","",CG!I11) ->  | G57: =IF(CG!J11="","",CG!J11) ->  | H57: =IF(CG!K11="","",CG!K11) ->  | I57: =IF(CG!L11="","",CG!L11) ->  | J57: =IF(CG!M11="","",CG!M11) ->  | K57: =IF(CG!N11="","",CG!N11) ->  | L57: =IF(CG!O11="","",CG!O11) ->  | M57: =IF(CG!P11="","",CG!P11) ->  | N57: =IF(CG!Q11="","",CG!Q11) ->  | O57: =IF(CG!R11="","",CG!R11) ->  | P57: =IF(CG!S11="","",CG!S11) ->  | Q57: =IF(CG!T11="","",CG!T11) ->  | R57: =IF(CG!U11="","",CG!U11) ->  | S57: =IF(CG!V11="","",CG!V11) ->  | T57: =IF(CG!W11="","",CG!W11) ->  | U57: =IF(CG!X11="","",CG!X11) ->  | V57: =IF(CG!Y11="","",CG!Y11) ->  | W57: =IF(CG!Z11="","",CG!Z11) ->  | X57: =IF(CG!AA11="","",CG!AA11) ->  | Y57: =IF(CG!AB11="","",CG!AB11) ->  | Z57: =IF(CG!AC11="","",CG!AC11) ->  | AA57: =IF(CG!AD11="","",CG!AD11) ->  | AB57: =IF(CG!AE11="","",CG!AE11) ->  | AC57: =IF(CG!AF11="","",CG!AF11) ->  | AD57: =IF(CG!AG11="","",CG!AG11) ->  | AE57: =IF(CG!AH11="","",CG!AH11) ->  | AF57: =IF(CG!AI11="","",CG!AI11) ->  | AG57: =IF(CG!AJ11="","",CG!AJ11) ->  | AH57: =IF(CG!AK11="","",CG!AK11) ->  | AI57: =IF(CG!AL11="","",CG!AL11) ->  | AJ57: =IF(CG!AM11="","",CG!AM11) ->  | AK57: =IF(CG!AN11="","",CG!AN11) ->  | AL57: =IF(CG!AO11="","",CG!AO11) ->  | AM57: =IF(CG!AP11="","",CG!AP11) -> 
D58: Criterio Evaluación 3.2 | E58: =IF(CG!H12="","",CG!H12) ->  | F58: =IF(CG!I12="","",CG!I12) ->  | G58: =IF(CG!J12="","",CG!J12) ->  | H58: =IF(CG!K12="","",CG!K12) ->  | I58: =IF(CG!L12="","",CG!L12) ->  | J58: =IF(CG!M12="","",CG!M12) ->  | K58: =IF(CG!N12="","",CG!N12) ->  | L58: =IF(CG!O12="","",CG!O12) ->  | M58: =IF(CG!P12="","",CG!P12) ->  | N58: =IF(CG!Q12="","",CG!Q12) ->  | O58: =IF(CG!R12="","",CG!R12) ->  | P58: =IF(CG!S12="","",CG!S12) ->  | Q58: =IF(CG!T12="","",CG!T12) ->  | R58: =IF(CG!U12="","",CG!U12) ->  | S58: =IF(CG!V12="","",CG!V12) ->  | T58: =IF(CG!W12="","",CG!W12) ->  | U58: =IF(CG!X12="","",CG!X12) ->  | V58: =IF(CG!Y12="","",CG!Y12) ->  | W58: =IF(CG!Z12="","",CG!Z12) ->  | X58: =IF(CG!AA12="","",CG!AA12) ->  | Y58: =IF(CG!AB12="","",CG!AB12) ->  | Z58: =IF(CG!AC12="","",CG!AC12) ->  | AA58: =IF(CG!AD12="","",CG!AD12) ->  | AB58: =IF(CG!AE12="","",CG!AE12) ->  | AC58: =IF(CG!AF12="","",CG!AF12) ->  | AD58: =IF(CG!AG12="","",CG!AG12) ->  | AE58: =IF(CG!AH12="","",CG!AH12) ->  | AF58: =IF(CG!AI12="","",CG!AI12) ->  | AG58: =IF(CG!AJ12="","",CG!AJ12) ->  | AH58: =IF(CG!AK12="","",CG!AK12) ->  | AI58: =IF(CG!AL12="","",CG!AL12) ->  | AJ58: =IF(CG!AM12="","",CG!AM12) ->  | AK58: =IF(CG!AN12="","",CG!AN12) ->  | AL58: =IF(CG!AO12="","",CG!AO12) ->  | AM58: =IF(CG!AP12="","",CG!AP12) -> 
C59: Comp. Esp. 4 | D59: Criterio Evaluación 4.1 | E59: =IF(CG!H13="","",CG!H13) ->  | F59: =IF(CG!I13="","",CG!I13) ->  | G59: =IF(CG!J13="","",CG!J13) ->  | H59: =IF(CG!K13="","",CG!K13) ->  | I59: =IF(CG!L13="","",CG!L13) ->  | J59: =IF(CG!M13="","",CG!M13) ->  | K59: =IF(CG!N13="","",CG!N13) ->  | L59: =IF(CG!O13="","",CG!O13) ->  | M59: =IF(CG!P13="","",CG!P13) ->  | N59: =IF(CG!Q13="","",CG!Q13) ->  | O59: =IF(CG!R13="","",CG!R13) ->  | P59: =IF(CG!S13="","",CG!S13) ->  | Q59: =IF(CG!T13="","",CG!T13) ->  | R59: =IF(CG!U13="","",CG!U13) ->  | S59: =IF(CG!V13="","",CG!V13) ->  | T59: =IF(CG!W13="","",CG!W13) ->  | U59: =IF(CG!X13="","",CG!X13) ->  | V59: =IF(CG!Y13="","",CG!Y13) ->  | W59: =IF(CG!Z13="","",CG!Z13) ->  | X59: =IF(CG!AA13="","",CG!AA13) ->  | Y59: =IF(CG!AB13="","",CG!AB13) ->  | Z59: =IF(CG!AC13="","",CG!AC13) ->  | AA59: =IF(CG!AD13="","",CG!AD13) ->  | AB59: =IF(CG!AE13="","",CG!AE13) ->  | AC59: =IF(CG!AF13="","",CG!AF13) ->  | AD59: =IF(CG!AG13="","",CG!AG13) ->  | AE59: =IF(CG!AH13="","",CG!AH13) ->  | AF59: =IF(CG!AI13="","",CG!AI13) ->  | AG59: =IF(CG!AJ13="","",CG!AJ13) ->  | AH59: =IF(CG!AK13="","",CG!AK13) ->  | AI59: =IF(CG!AL13="","",CG!AL13) ->  | AJ59: =IF(CG!AM13="","",CG!AM13) ->  | AK59: =IF(CG!AN13="","",CG!AN13) ->  | AL59: =IF(CG!AO13="","",CG!AO13) ->  | AM59: =IF(CG!AP13="","",CG!AP13) -> 
D60: Criterio Evaluación 4.2 | E60: =IF(CG!H14="","",CG!H14) ->  | F60: =IF(CG!I14="","",CG!I14) ->  | G60: =IF(CG!J14="","",CG!J14) ->  | H60: =IF(CG!K14="","",CG!K14) ->  | I60: =IF(CG!L14="","",CG!L14) ->  | J60: =IF(CG!M14="","",CG!M14) ->  | K60: =IF(CG!N14="","",CG!N14) ->  | L60: =IF(CG!O14="","",CG!O14) ->  | M60: =IF(CG!P14="","",CG!P14) ->  | N60: =IF(CG!Q14="","",CG!Q14) ->  | O60: =IF(CG!R14="","",CG!R14) ->  | P60: =IF(CG!S14="","",CG!S14) ->  | Q60: =IF(CG!T14="","",CG!T14) ->  | R60: =IF(CG!U14="","",CG!U14) ->  | S60: =IF(CG!V14="","",CG!V14) ->  | T60: =IF(CG!W14="","",CG!W14) ->  | U60: =IF(CG!X14="","",CG!X14) ->  | V60: =IF(CG!Y14="","",CG!Y14) ->  | W60: =IF(CG!Z14="","",CG!Z14) ->  | X60: =IF(CG!AA14="","",CG!AA14) ->  | Y60: =IF(CG!AB14="","",CG!AB14) ->  | Z60: =IF(CG!AC14="","",CG!AC14) ->  | AA60: =IF(CG!AD14="","",CG!AD14) ->  | AB60: =IF(CG!AE14="","",CG!AE14) ->  | AC60: =IF(CG!AF14="","",CG!AF14) ->  | AD60: =IF(CG!AG14="","",CG!AG14) ->  | AE60: =IF(CG!AH14="","",CG!AH14) ->  | AF60: =IF(CG!AI14="","",CG!AI14) ->  | AG60: =IF(CG!AJ14="","",CG!AJ14) ->  | AH60: =IF(CG!AK14="","",CG!AK14) ->  | AI60: =IF(CG!AL14="","",CG!AL14) ->  | AJ60: =IF(CG!AM14="","",CG!AM14) ->  | AK60: =IF(CG!AN14="","",CG!AN14) ->  | AL60: =IF(CG!AO14="","",CG!AO14) ->  | AM60: =IF(CG!AP14="","",CG!AP14) -> 
C61: Comp. Esp. 5 | D61: Criterio Evaluación 5.1 | E61: =IF(CG!H15="","",CG!H15) ->  | F61: =IF(CG!I15="","",CG!I15) ->  | G61: =IF(CG!J15="","",CG!J15) ->  | H61: =IF(CG!K15="","",CG!K15) ->  | I61: =IF(CG!L15="","",CG!L15) ->  | J61: =IF(CG!M15="","",CG!M15) ->  | K61: =IF(CG!N15="","",CG!N15) ->  | L61: =IF(CG!O15="","",CG!O15) ->  | M61: =IF(CG!P15="","",CG!P15) ->  | N61: =IF(CG!Q15="","",CG!Q15) ->  | O61: =IF(CG!R15="","",CG!R15) ->  | P61: =IF(CG!S15="","",CG!S15) ->  | Q61: =IF(CG!T15="","",CG!T15) ->  | R61: =IF(CG!U15="","",CG!U15) ->  | S61: =IF(CG!V15="","",CG!V15) ->  | T61: =IF(CG!W15="","",CG!W15) ->  | U61: =IF(CG!X15="","",CG!X15) ->  | V61: =IF(CG!Y15="","",CG!Y15) ->  | W61: =IF(CG!Z15="","",CG!Z15) ->  | X61: =IF(CG!AA15="","",CG!AA15) ->  | Y61: =IF(CG!AB15="","",CG!AB15) ->  | Z61: =IF(CG!AC15="","",CG!AC15) ->  | AA61: =IF(CG!AD15="","",CG!AD15) ->  | AB61: =IF(CG!AE15="","",CG!AE15) ->  | AC61: =IF(CG!AF15="","",CG!AF15) ->  | AD61: =IF(CG!AG15="","",CG!AG15) ->  | AE61: =IF(CG!AH15="","",CG!AH15) ->  | AF61: =IF(CG!AI15="","",CG!AI15) ->  | AG61: =IF(CG!AJ15="","",CG!AJ15) ->  | AH61: =IF(CG!AK15="","",CG!AK15) ->  | AI61: =IF(CG!AL15="","",CG!AL15) ->  | AJ61: =IF(CG!AM15="","",CG!AM15) ->  | AK61: =IF(CG!AN15="","",CG!AN15) ->  | AL61: =IF(CG!AO15="","",CG!AO15) ->  | AM61: =IF(CG!AP15="","",CG!AP15) -> 
D62: Criterio Evaluación 5.2 | E62: =IF(CG!H16="","",CG!H16) ->  | F62: =IF(CG!I16="","",CG!I16) ->  | G62: =IF(CG!J16="","",CG!J16) ->  | H62: =IF(CG!K16="","",CG!K16) ->  | I62: =IF(CG!L16="","",CG!L16) ->  | J62: =IF(CG!M16="","",CG!M16) ->  | K62: =IF(CG!N16="","",CG!N16) ->  | L62: =IF(CG!O16="","",CG!O16) ->  | M62: =IF(CG!P16="","",CG!P16) ->  | N62: =IF(CG!Q16="","",CG!Q16) ->  | O62: =IF(CG!R16="","",CG!R16) ->  | P62: =IF(CG!S16="","",CG!S16) ->  | Q62: =IF(CG!T16="","",CG!T16) ->  | R62: =IF(CG!U16="","",CG!U16) ->  | S62: =IF(CG!V16="","",CG!V16) ->  | T62: =IF(CG!W16="","",CG!W16) ->  | U62: =IF(CG!X16="","",CG!X16) ->  | V62: =IF(CG!Y16="","",CG!Y16) ->  | W62: =IF(CG!Z16="","",CG!Z16) ->  | X62: =IF(CG!AA16="","",CG!AA16) ->  | Y62: =IF(CG!AB16="","",CG!AB16) ->  | Z62: =IF(CG!AC16="","",CG!AC16) ->  | AA62: =IF(CG!AD16="","",CG!AD16) ->  | AB62: =IF(CG!AE16="","",CG!AE16) ->  | AC62: =IF(CG!AF16="","",CG!AF16) ->  | AD62: =IF(CG!AG16="","",CG!AG16) ->  | AE62: =IF(CG!AH16="","",CG!AH16) ->  | AF62: =IF(CG!AI16="","",CG!AI16) ->  | AG62: =IF(CG!AJ16="","",CG!AJ16) ->  | AH62: =IF(CG!AK16="","",CG!AK16) ->  | AI62: =IF(CG!AL16="","",CG!AL16) ->  | AJ62: =IF(CG!AM16="","",CG!AM16) ->  | AK62: =IF(CG!AN16="","",CG!AN16) ->  | AL62: =IF(CG!AO16="","",CG!AO16) ->  | AM62: =IF(CG!AP16="","",CG!AP16) -> 
C63: Comp. Esp. 6 | D63: Criterio Evaluación 6.1 | E63: =IF(CG!H17="","",CG!H17) ->  | F63: =IF(CG!I17="","",CG!I17) ->  | G63: =IF(CG!J17="","",CG!J17) ->  | H63: =IF(CG!K17="","",CG!K17) ->  | I63: =IF(CG!L17="","",CG!L17) ->  | J63: =IF(CG!M17="","",CG!M17) ->  | K63: =IF(CG!N17="","",CG!N17) ->  | L63: =IF(CG!O17="","",CG!O17) ->  | M63: =IF(CG!P17="","",CG!P17) ->  | N63: =IF(CG!Q17="","",CG!Q17) ->  | O63: =IF(CG!R17="","",CG!R17) ->  | P63: =IF(CG!S17="","",CG!S17) ->  | Q63: =IF(CG!T17="","",CG!T17) ->  | R63: =IF(CG!U17="","",CG!U17) ->  | S63: =IF(CG!V17="","",CG!V17) ->  | T63: =IF(CG!W17="","",CG!W17) ->  | U63: =IF(CG!X17="","",CG!X17) ->  | V63: =IF(CG!Y17="","",CG!Y17) ->  | W63: =IF(CG!Z17="","",CG!Z17) ->  | X63: =IF(CG!AA17="","",CG!AA17) ->  | Y63: =IF(CG!AB17="","",CG!AB17) ->  | Z63: =IF(CG!AC17="","",CG!AC17) ->  | AA63: =IF(CG!AD17="","",CG!AD17) ->  | AB63: =IF(CG!AE17="","",CG!AE17) ->  | AC63: =IF(CG!AF17="","",CG!AF17) ->  | AD63: =IF(CG!AG17="","",CG!AG17) ->  | AE63: =IF(CG!AH17="","",CG!AH17) ->  | AF63: =IF(CG!AI17="","",CG!AI17) ->  | AG63: =IF(CG!AJ17="","",CG!AJ17) ->  | AH63: =IF(CG!AK17="","",CG!AK17) ->  | AI63: =IF(CG!AL17="","",CG!AL17) ->  | AJ63: =IF(CG!AM17="","",CG!AM17) ->  | AK63: =IF(CG!AN17="","",CG!AN17) ->  | AL63: =IF(CG!AO17="","",CG!AO17) ->  | AM63: =IF(CG!AP17="","",CG!AP17) -> 
D64: Criterio Evaluación 6.2 | E64: =IF(CG!H18="","",CG!H18) ->  | F64: =IF(CG!I18="","",CG!I18) ->  | G64: =IF(CG!J18="","",CG!J18) ->  | H64: =IF(CG!K18="","",CG!K18) ->  | I64: =IF(CG!L18="","",CG!L18) ->  | J64: =IF(CG!M18="","",CG!M18) ->  | K64: =IF(CG!N18="","",CG!N18) ->  | L64: =IF(CG!O18="","",CG!O18) ->  | M64: =IF(CG!P18="","",CG!P18) ->  | N64: =IF(CG!Q18="","",CG!Q18) ->  | O64: =IF(CG!R18="","",CG!R18) ->  | P64: =IF(CG!S18="","",CG!S18) ->  | Q64: =IF(CG!T18="","",CG!T18) ->  | R64: =IF(CG!U18="","",CG!U18) ->  | S64: =IF(CG!V18="","",CG!V18) ->  | T64: =IF(CG!W18="","",CG!W18) ->  | U64: =IF(CG!X18="","",CG!X18) ->  | V64: =IF(CG!Y18="","",CG!Y18) ->  | W64: =IF(CG!Z18="","",CG!Z18) ->  | X64: =IF(CG!AA18="","",CG!AA18) ->  | Y64: =IF(CG!AB18="","",CG!AB18) ->  | Z64: =IF(CG!AC18="","",CG!AC18) ->  | AA64: =IF(CG!AD18="","",CG!AD18) ->  | AB64: =IF(CG!AE18="","",CG!AE18) ->  | AC64: =IF(CG!AF18="","",CG!AF18) ->  | AD64: =IF(CG!AG18="","",CG!AG18) ->  | AE64: =IF(CG!AH18="","",CG!AH18) ->  | AF64: =IF(CG!AI18="","",CG!AI18) ->  | AG64: =IF(CG!AJ18="","",CG!AJ18) ->  | AH64: =IF(CG!AK18="","",CG!AK18) ->  | AI64: =IF(CG!AL18="","",CG!AL18) ->  | AJ64: =IF(CG!AM18="","",CG!AM18) ->  | AK64: =IF(CG!AN18="","",CG!AN18) ->  | AL64: =IF(CG!AO18="","",CG!AO18) ->  | AM64: =IF(CG!AP18="","",CG!AP18) -> 
B65: Coro y Técnica Vocal II | C65: Comp. Esp. 1 | D65: Criterio Evaluación 1.1 | E65: =IF(CYTV!H4="","",CYTV!H4) ->  | F65: =IF(CYTV!I4="","",CYTV!I4) ->  | G65: =IF(CYTV!J4="","",CYTV!J4) ->  | H65: =IF(CYTV!K4="","",CYTV!K4) ->  | I65: =IF(CYTV!L4="","",CYTV!L4) ->  | J65: =IF(CYTV!M4="","",CYTV!M4) ->  | K65: =IF(CYTV!N4="","",CYTV!N4) ->  | L65: =IF(CYTV!O4="","",CYTV!O4) ->  | M65: =IF(CYTV!P4="","",CYTV!P4) ->  | N65: =IF(CYTV!Q4="","",CYTV!Q4) ->  | O65: =IF(CYTV!R4="","",CYTV!R4) ->  | P65: =IF(CYTV!S4="","",CYTV!S4) ->  | Q65: =IF(CYTV!T4="","",CYTV!T4) ->  | R65: =IF(CYTV!U4="","",CYTV!U4) ->  | S65: =IF(CYTV!V4="","",CYTV!V4) ->  | T65: =IF(CYTV!W4="","",CYTV!W4) ->  | U65: =IF(CYTV!X4="","",CYTV!X4) ->  | V65: =IF(CYTV!Y4="","",CYTV!Y4) ->  | W65: =IF(CYTV!Z4="","",CYTV!Z4) ->  | X65: =IF(CYTV!AA4="","",CYTV!AA4) ->  | Y65: =IF(CYTV!AB4="","",CYTV!AB4) ->  | Z65: =IF(CYTV!AC4="","",CYTV!AC4) ->  | AA65: =IF(CYTV!AD4="","",CYTV!AD4) ->  | AB65: =IF(CYTV!AE4="","",CYTV!AE4) ->  | AC65: =IF(CYTV!AF4="","",CYTV!AF4) ->  | AD65: =IF(CYTV!AG4="","",CYTV!AG4) ->  | AE65: =IF(CYTV!AH4="","",CYTV!AH4) ->  | AF65: =IF(CYTV!AI4="","",CYTV!AI4) ->  | AG65: =IF(CYTV!AJ4="","",CYTV!AJ4) ->  | AH65: =IF(CYTV!AK4="","",CYTV!AK4) ->  | AI65: =IF(CYTV!AL4="","",CYTV!AL4) ->  | AJ65: =IF(CYTV!AM4="","",CYTV!AM4) ->  | AK65: =IF(CYTV!AN4="","",CYTV!AN4) ->  | AL65: =IF(CYTV!AO4="","",CYTV!AO4) ->  | AM65: =IF(CYTV!AP4="","",CYTV!AP4) -> 
D66: Criterio Evaluación 1.2 | E66: =IF(CYTV!H5="","",CYTV!H5) ->  | F66: =IF(CYTV!I5="","",CYTV!I5) ->  | G66: =IF(CYTV!J5="","",CYTV!J5) ->  | H66: =IF(CYTV!K5="","",CYTV!K5) ->  | I66: =IF(CYTV!L5="","",CYTV!L5) ->  | J66: =IF(CYTV!M5="","",CYTV!M5) ->  | K66: =IF(CYTV!N5="","",CYTV!N5) ->  | L66: =IF(CYTV!O5="","",CYTV!O5) ->  | M66: =IF(CYTV!P5="","",CYTV!P5) ->  | N66: =IF(CYTV!Q5="","",CYTV!Q5) ->  | O66: =IF(CYTV!R5="","",CYTV!R5) ->  | P66: =IF(CYTV!S5="","",CYTV!S5) ->  | Q66: =IF(CYTV!T5="","",CYTV!T5) ->  | R66: =IF(CYTV!U5="","",CYTV!U5) ->  | S66: =IF(CYTV!V5="","",CYTV!V5) ->  | T66: =IF(CYTV!W5="","",CYTV!W5) ->  | U66: =IF(CYTV!X5="","",CYTV!X5) ->  | V66: =IF(CYTV!Y5="","",CYTV!Y5) ->  | W66: =IF(CYTV!Z5="","",CYTV!Z5) ->  | X66: =IF(CYTV!AA5="","",CYTV!AA5) ->  | Y66: =IF(CYTV!AB5="","",CYTV!AB5) ->  | Z66: =IF(CYTV!AC5="","",CYTV!AC5) ->  | AA66: =IF(CYTV!AD5="","",CYTV!AD5) ->  | AB66: =IF(CYTV!AE5="","",CYTV!AE5) ->  | AC66: =IF(CYTV!AF5="","",CYTV!AF5) ->  | AD66: =IF(CYTV!AG5="","",CYTV!AG5) ->  | AE66: =IF(CYTV!AH5="","",CYTV!AH5) ->  | AF66: =IF(CYTV!AI5="","",CYTV!AI5) ->  | AG66: =IF(CYTV!AJ5="","",CYTV!AJ5) ->  | AH66: =IF(CYTV!AK5="","",CYTV!AK5) ->  | AI66: =IF(CYTV!AL5="","",CYTV!AL5) ->  | AJ66: =IF(CYTV!AM5="","",CYTV!AM5) ->  | AK66: =IF(CYTV!AN5="","",CYTV!AN5) ->  | AL66: =IF(CYTV!AO5="","",CYTV!AO5) ->  | AM66: =IF(CYTV!AP5="","",CYTV!AP5) -> 
D67: Criterio Evaluación 1.3 | E67: =IF(CYTV!H6="","",CYTV!H6) ->  | F67: =IF(CYTV!I6="","",CYTV!I6) ->  | G67: =IF(CYTV!J6="","",CYTV!J6) ->  | H67: =IF(CYTV!K6="","",CYTV!K6) ->  | I67: =IF(CYTV!L6="","",CYTV!L6) ->  | J67: =IF(CYTV!M6="","",CYTV!M6) ->  | K67: =IF(CYTV!N6="","",CYTV!N6) ->  | L67: =IF(CYTV!O6="","",CYTV!O6) ->  | M67: =IF(CYTV!P6="","",CYTV!P6) ->  | N67: =IF(CYTV!Q6="","",CYTV!Q6) ->  | O67: =IF(CYTV!R6="","",CYTV!R6) ->  | P67: =IF(CYTV!S6="","",CYTV!S6) ->  | Q67: =IF(CYTV!T6="","",CYTV!T6) ->  | R67: =IF(CYTV!U6="","",CYTV!U6) ->  | S67: =IF(CYTV!V6="","",CYTV!V6) ->  | T67: =IF(CYTV!W6="","",CYTV!W6) ->  | U67: =IF(CYTV!X6="","",CYTV!X6) ->  | V67: =IF(CYTV!Y6="","",CYTV!Y6) ->  | W67: =IF(CYTV!Z6="","",CYTV!Z6) ->  | X67: =IF(CYTV!AA6="","",CYTV!AA6) ->  | Y67: =IF(CYTV!AB6="","",CYTV!AB6) ->  | Z67: =IF(CYTV!AC6="","",CYTV!AC6) ->  | AA67: =IF(CYTV!AD6="","",CYTV!AD6) ->  | AB67: =IF(CYTV!AE6="","",CYTV!AE6) ->  | AC67: =IF(CYTV!AF6="","",CYTV!AF6) ->  | AD67: =IF(CYTV!AG6="","",CYTV!AG6) ->  | AE67: =IF(CYTV!AH6="","",CYTV!AH6) ->  | AF67: =IF(CYTV!AI6="","",CYTV!AI6) ->  | AG67: =IF(CYTV!AJ6="","",CYTV!AJ6) ->  | AH67: =IF(CYTV!AK6="","",CYTV!AK6) ->  | AI67: =IF(CYTV!AL6="","",CYTV!AL6) ->  | AJ67: =IF(CYTV!AM6="","",CYTV!AM6) ->  | AK67: =IF(CYTV!AN6="","",CYTV!AN6) ->  | AL67: =IF(CYTV!AO6="","",CYTV!AO6) ->  | AM67: =IF(CYTV!AP6="","",CYTV!AP6) -> 
D68: Criterio Evaluación 1.4 | E68: =IF(CYTV!H7="","",CYTV!H7) ->  | F68: =IF(CYTV!I7="","",CYTV!I7) ->  | G68: =IF(CYTV!J7="","",CYTV!J7) ->  | H68: =IF(CYTV!K7="","",CYTV!K7) ->  | I68: =IF(CYTV!L7="","",CYTV!L7) ->  | J68: =IF(CYTV!M7="","",CYTV!M7) ->  | K68: =IF(CYTV!N7="","",CYTV!N7) ->  | L68: =IF(CYTV!O7="","",CYTV!O7) ->  | M68: =IF(CYTV!P7="","",CYTV!P7) ->  | N68: =IF(CYTV!Q7="","",CYTV!Q7) ->  | O68: =IF(CYTV!R7="","",CYTV!R7) ->  | P68: =IF(CYTV!S7="","",CYTV!S7) ->  | Q68: =IF(CYTV!T7="","",CYTV!T7) ->  | R68: =IF(CYTV!U7="","",CYTV!U7) ->  | S68: =IF(CYTV!V7="","",CYTV!V7) ->  | T68: =IF(CYTV!W7="","",CYTV!W7) ->  | U68: =IF(CYTV!X7="","",CYTV!X7) ->  | V68: =IF(CYTV!Y7="","",CYTV!Y7) ->  | W68: =IF(CYTV!Z7="","",CYTV!Z7) ->  | X68: =IF(CYTV!AA7="","",CYTV!AA7) ->  | Y68: =IF(CYTV!AB7="","",CYTV!AB7) ->  | Z68: =IF(CYTV!AC7="","",CYTV!AC7) ->  | AA68: =IF(CYTV!AD7="","",CYTV!AD7) ->  | AB68: =IF(CYTV!AE7="","",CYTV!AE7) ->  | AC68: =IF(CYTV!AF7="","",CYTV!AF7) ->  | AD68: =IF(CYTV!AG7="","",CYTV!AG7) ->  | AE68: =IF(CYTV!AH7="","",CYTV!AH7) ->  | AF68: =IF(CYTV!AI7="","",CYTV!AI7) ->  | AG68: =IF(CYTV!AJ7="","",CYTV!AJ7) ->  | AH68: =IF(CYTV!AK7="","",CYTV!AK7) ->  | AI68: =IF(CYTV!AL7="","",CYTV!AL7) ->  | AJ68: =IF(CYTV!AM7="","",CYTV!AM7) ->  | AK68: =IF(CYTV!AN7="","",CYTV!AN7) ->  | AL68: =IF(CYTV!AO7="","",CYTV!AO7) ->  | AM68: =IF(CYTV!AP7="","",CYTV!AP7) -> 
C69: Comp. Esp. 2 | D69: Criterio Evaluación 2.1 | E69: =IF(CYTV!H8="","",CYTV!H8) ->  | F69: =IF(CYTV!I8="","",CYTV!I8) ->  | G69: =IF(CYTV!J8="","",CYTV!J8) ->  | H69: =IF(CYTV!K8="","",CYTV!K8) ->  | I69: =IF(CYTV!L8="","",CYTV!L8) ->  | J69: =IF(CYTV!M8="","",CYTV!M8) ->  | K69: =IF(CYTV!N8="","",CYTV!N8) ->  | L69: =IF(CYTV!O8="","",CYTV!O8) ->  | M69: =IF(CYTV!P8="","",CYTV!P8) ->  | N69: =IF(CYTV!Q8="","",CYTV!Q8) ->  | O69: =IF(CYTV!R8="","",CYTV!R8) ->  | P69: =IF(CYTV!S8="","",CYTV!S8) ->  | Q69: =IF(CYTV!T8="","",CYTV!T8) ->  | R69: =IF(CYTV!U8="","",CYTV!U8) ->  | S69: =IF(CYTV!V8="","",CYTV!V8) ->  | T69: =IF(CYTV!W8="","",CYTV!W8) ->  | U69: =IF(CYTV!X8="","",CYTV!X8) ->  | V69: =IF(CYTV!Y8="","",CYTV!Y8) ->  | W69: =IF(CYTV!Z8="","",CYTV!Z8) ->  | X69: =IF(CYTV!AA8="","",CYTV!AA8) ->  | Y69: =IF(CYTV!AB8="","",CYTV!AB8) ->  | Z69: =IF(CYTV!AC8="","",CYTV!AC8) ->  | AA69: =IF(CYTV!AD8="","",CYTV!AD8) ->  | AB69: =IF(CYTV!AE8="","",CYTV!AE8) ->  | AC69: =IF(CYTV!AF8="","",CYTV!AF8) ->  | AD69: =IF(CYTV!AG8="","",CYTV!AG8) ->  | AE69: =IF(CYTV!AH8="","",CYTV!AH8) ->  | AF69: =IF(CYTV!AI8="","",CYTV!AI8) ->  | AG69: =IF(CYTV!AJ8="","",CYTV!AJ8) ->  | AH69: =IF(CYTV!AK8="","",CYTV!AK8) ->  | AI69: =IF(CYTV!AL8="","",CYTV!AL8) ->  | AJ69: =IF(CYTV!AM8="","",CYTV!AM8) ->  | AK69: =IF(CYTV!AN8="","",CYTV!AN8) ->  | AL69: =IF(CYTV!AO8="","",CYTV!AO8) ->  | AM69: =IF(CYTV!AP8="","",CYTV!AP8) -> 
D70: Criterio Evaluación 2.2 | E70: =IF(CYTV!H9="","",CYTV!H9) ->  | F70: =IF(CYTV!I9="","",CYTV!I9) ->  | G70: =IF(CYTV!J9="","",CYTV!J9) ->  | H70: =IF(CYTV!K9="","",CYTV!K9) ->  | I70: =IF(CYTV!L9="","",CYTV!L9) ->  | J70: =IF(CYTV!M9="","",CYTV!M9) ->  | K70: =IF(CYTV!N9="","",CYTV!N9) ->  | L70: =IF(CYTV!O9="","",CYTV!O9) ->  | M70: =IF(CYTV!P9="","",CYTV!P9) ->  | N70: =IF(CYTV!Q9="","",CYTV!Q9) ->  | O70: =IF(CYTV!R9="","",CYTV!R9) ->  | P70: =IF(CYTV!S9="","",CYTV!S9) ->  | Q70: =IF(CYTV!T9="","",CYTV!T9) ->  | R70: =IF(CYTV!U9="","",CYTV!U9) ->  | S70: =IF(CYTV!V9="","",CYTV!V9) ->  | T70: =IF(CYTV!W9="","",CYTV!W9) ->  | U70: =IF(CYTV!X9="","",CYTV!X9) ->  | V70: =IF(CYTV!Y9="","",CYTV!Y9) ->  | W70: =IF(CYTV!Z9="","",CYTV!Z9) ->  | X70: =IF(CYTV!AA9="","",CYTV!AA9) ->  | Y70: =IF(CYTV!AB9="","",CYTV!AB9) ->  | Z70: =IF(CYTV!AC9="","",CYTV!AC9) ->  | AA70: =IF(CYTV!AD9="","",CYTV!AD9) ->  | AB70: =IF(CYTV!AE9="","",CYTV!AE9) ->  | AC70: =IF(CYTV!AF9="","",CYTV!AF9) ->  | AD70: =IF(CYTV!AG9="","",CYTV!AG9) ->  | AE70: =IF(CYTV!AH9="","",CYTV!AH9) ->  | AF70: =IF(CYTV!AI9="","",CYTV!AI9) ->  | AG70: =IF(CYTV!AJ9="","",CYTV!AJ9) ->  | AH70: =IF(CYTV!AK9="","",CYTV!AK9) ->  | AI70: =IF(CYTV!AL9="","",CYTV!AL9) ->  | AJ70: =IF(CYTV!AM9="","",CYTV!AM9) ->  | AK70: =IF(CYTV!AN9="","",CYTV!AN9) ->  | AL70: =IF(CYTV!AO9="","",CYTV!AO9) ->  | AM70: =IF(CYTV!AP9="","",CYTV!AP9) -> 
C71: Comp. Esp. 3 | D71: Criterio Evaluación 3.1 | E71: =IF(CYTV!H10="","",CYTV!H10) ->  | F71: =IF(CYTV!I10="","",CYTV!I10) ->  | G71: =IF(CYTV!J10="","",CYTV!J10) ->  | H71: =IF(CYTV!K10="","",CYTV!K10) ->  | I71: =IF(CYTV!L10="","",CYTV!L10) ->  | J71: =IF(CYTV!M10="","",CYTV!M10) ->  | K71: =IF(CYTV!N10="","",CYTV!N10) ->  | L71: =IF(CYTV!O10="","",CYTV!O10) ->  | M71: =IF(CYTV!P10="","",CYTV!P10) ->  | N71: =IF(CYTV!Q10="","",CYTV!Q10) ->  | O71: =IF(CYTV!R10="","",CYTV!R10) ->  | P71: =IF(CYTV!S10="","",CYTV!S10) ->  | Q71: =IF(CYTV!T10="","",CYTV!T10) ->  | R71: =IF(CYTV!U10="","",CYTV!U10) ->  | S71: =IF(CYTV!V10="","",CYTV!V10) ->  | T71: =IF(CYTV!W10="","",CYTV!W10) ->  | U71: =IF(CYTV!X10="","",CYTV!X10) ->  | V71: =IF(CYTV!Y10="","",CYTV!Y10) ->  | W71: =IF(CYTV!Z10="","",CYTV!Z10) ->  | X71: =IF(CYTV!AA10="","",CYTV!AA10) ->  | Y71: =IF(CYTV!AB10="","",CYTV!AB10) ->  | Z71: =IF(CYTV!AC10="","",CYTV!AC10) ->  | AA71: =IF(CYTV!AD10="","",CYTV!AD10) ->  | AB71: =IF(CYTV!AE10="","",CYTV!AE10) ->  | AC71: =IF(CYTV!AF10="","",CYTV!AF10) ->  | AD71: =IF(CYTV!AG10="","",CYTV!AG10) ->  | AE71: =IF(CYTV!AH10="","",CYTV!AH10) ->  | AF71: =IF(CYTV!AI10="","",CYTV!AI10) ->  | AG71: =IF(CYTV!AJ10="","",CYTV!AJ10) ->  | AH71: =IF(CYTV!AK10="","",CYTV!AK10) ->  | AI71: =IF(CYTV!AL10="","",CYTV!AL10) ->  | AJ71: =IF(CYTV!AM10="","",CYTV!AM10) ->  | AK71: =IF(CYTV!AN10="","",CYTV!AN10) ->  | AL71: =IF(CYTV!AO10="","",CYTV!AO10) ->  | AM71: =IF(CYTV!AP10="","",CYTV!AP10) -> 
D72: Criterio Evaluación 3.2 | E72: =IF(CYTV!H11="","",CYTV!H11) ->  | F72: =IF(CYTV!I11="","",CYTV!I11) ->  | G72: =IF(CYTV!J11="","",CYTV!J11) ->  | H72: =IF(CYTV!K11="","",CYTV!K11) ->  | I72: =IF(CYTV!L11="","",CYTV!L11) ->  | J72: =IF(CYTV!M11="","",CYTV!M11) ->  | K72: =IF(CYTV!N11="","",CYTV!N11) ->  | L72: =IF(CYTV!O11="","",CYTV!O11) ->  | M72: =IF(CYTV!P11="","",CYTV!P11) ->  | N72: =IF(CYTV!Q11="","",CYTV!Q11) ->  | O72: =IF(CYTV!R11="","",CYTV!R11) ->  | P72: =IF(CYTV!S11="","",CYTV!S11) ->  | Q72: =IF(CYTV!T11="","",CYTV!T11) ->  | R72: =IF(CYTV!U11="","",CYTV!U11) ->  | S72: =IF(CYTV!V11="","",CYTV!V11) ->  | T72: =IF(CYTV!W11="","",CYTV!W11) ->  | U72: =IF(CYTV!X11="","",CYTV!X11) ->  | V72: =IF(CYTV!Y11="","",CYTV!Y11) ->  | W72: =IF(CYTV!Z11="","",CYTV!Z11) ->  | X72: =IF(CYTV!AA11="","",CYTV!AA11) ->  | Y72: =IF(CYTV!AB11="","",CYTV!AB11) ->  | Z72: =IF(CYTV!AC11="","",CYTV!AC11) ->  | AA72: =IF(CYTV!AD11="","",CYTV!AD11) ->  | AB72: =IF(CYTV!AE11="","",CYTV!AE11) ->  | AC72: =IF(CYTV!AF11="","",CYTV!AF11) ->  | AD72: =IF(CYTV!AG11="","",CYTV!AG11) ->  | AE72: =IF(CYTV!AH11="","",CYTV!AH11) ->  | AF72: =IF(CYTV!AI11="","",CYTV!AI11) ->  | AG72: =IF(CYTV!AJ11="","",CYTV!AJ11) ->  | AH72: =IF(CYTV!AK11="","",CYTV!AK11) ->  | AI72: =IF(CYTV!AL11="","",CYTV!AL11) ->  | AJ72: =IF(CYTV!AM11="","",CYTV!AM11) ->  | AK72: =IF(CYTV!AN11="","",CYTV!AN11) ->  | AL72: =IF(CYTV!AO11="","",CYTV!AO11) ->  | AM72: =IF(CYTV!AP11="","",CYTV!AP11) -> 
D73: Criterio Evaluación 3.3 | E73: =IF(CYTV!H12="","",CYTV!H12) ->  | F73: =IF(CYTV!I12="","",CYTV!I12) ->  | G73: =IF(CYTV!J12="","",CYTV!J12) ->  | H73: =IF(CYTV!K12="","",CYTV!K12) ->  | I73: =IF(CYTV!L12="","",CYTV!L12) ->  | J73: =IF(CYTV!M12="","",CYTV!M12) ->  | K73: =IF(CYTV!N12="","",CYTV!N12) ->  | L73: =IF(CYTV!O12="","",CYTV!O12) ->  | M73: =IF(CYTV!P12="","",CYTV!P12) ->  | N73: =IF(CYTV!Q12="","",CYTV!Q12) ->  | O73: =IF(CYTV!R12="","",CYTV!R12) ->  | P73: =IF(CYTV!S12="","",CYTV!S12) ->  | Q73: =IF(CYTV!T12="","",CYTV!T12) ->  | R73: =IF(CYTV!U12="","",CYTV!U12) ->  | S73: =IF(CYTV!V12="","",CYTV!V12) ->  | T73: =IF(CYTV!W12="","",CYTV!W12) ->  | U73: =IF(CYTV!X12="","",CYTV!X12) ->  | V73: =IF(CYTV!Y12="","",CYTV!Y12) ->  | W73: =IF(CYTV!Z12="","",CYTV!Z12) ->  | X73: =IF(CYTV!AA12="","",CYTV!AA12) ->  | Y73: =IF(CYTV!AB12="","",CYTV!AB12) ->  | Z73: =IF(CYTV!AC12="","",CYTV!AC12) ->  | AA73: =IF(CYTV!AD12="","",CYTV!AD12) ->  | AB73: =IF(CYTV!AE12="","",CYTV!AE12) ->  | AC73: =IF(CYTV!AF12="","",CYTV!AF12) ->  | AD73: =IF(CYTV!AG12="","",CYTV!AG12) ->  | AE73: =IF(CYTV!AH12="","",CYTV!AH12) ->  | AF73: =IF(CYTV!AI12="","",CYTV!AI12) ->  | AG73: =IF(CYTV!AJ12="","",CYTV!AJ12) ->  | AH73: =IF(CYTV!AK12="","",CYTV!AK12) ->  | AI73: =IF(CYTV!AL12="","",CYTV!AL12) ->  | AJ73: =IF(CYTV!AM12="","",CYTV!AM12) ->  | AK73: =IF(CYTV!AN12="","",CYTV!AN12) ->  | AL73: =IF(CYTV!AO12="","",CYTV!AO12) ->  | AM73: =IF(CYTV!AP12="","",CYTV!AP12) -> 
C74: Comp. Esp. 4 | D74: Criterio Evaluación 4.1 | E74: =IF(CYTV!H13="","",CYTV!H13) ->  | F74: =IF(CYTV!I13="","",CYTV!I13) ->  | G74: =IF(CYTV!J13="","",CYTV!J13) ->  | H74: =IF(CYTV!K13="","",CYTV!K13) ->  | I74: =IF(CYTV!L13="","",CYTV!L13) ->  | J74: =IF(CYTV!M13="","",CYTV!M13) ->  | K74: =IF(CYTV!N13="","",CYTV!N13) ->  | L74: =IF(CYTV!O13="","",CYTV!O13) ->  | M74: =IF(CYTV!P13="","",CYTV!P13) ->  | N74: =IF(CYTV!Q13="","",CYTV!Q13) ->  | O74: =IF(CYTV!R13="","",CYTV!R13) ->  | P74: =IF(CYTV!S13="","",CYTV!S13) ->  | Q74: =IF(CYTV!T13="","",CYTV!T13) ->  | R74: =IF(CYTV!U13="","",CYTV!U13) ->  | S74: =IF(CYTV!V13="","",CYTV!V13) ->  | T74: =IF(CYTV!W13="","",CYTV!W13) ->  | U74: =IF(CYTV!X13="","",CYTV!X13) ->  | V74: =IF(CYTV!Y13="","",CYTV!Y13) ->  | W74: =IF(CYTV!Z13="","",CYTV!Z13) ->  | X74: =IF(CYTV!AA13="","",CYTV!AA13) ->  | Y74: =IF(CYTV!AB13="","",CYTV!AB13) ->  | Z74: =IF(CYTV!AC13="","",CYTV!AC13) ->  | AA74: =IF(CYTV!AD13="","",CYTV!AD13) ->  | AB74: =IF(CYTV!AE13="","",CYTV!AE13) ->  | AC74: =IF(CYTV!AF13="","",CYTV!AF13) ->  | AD74: =IF(CYTV!AG13="","",CYTV!AG13) ->  | AE74: =IF(CYTV!AH13="","",CYTV!AH13) ->  | AF74: =IF(CYTV!AI13="","",CYTV!AI13) ->  | AG74: =IF(CYTV!AJ13="","",CYTV!AJ13) ->  | AH74: =IF(CYTV!AK13="","",CYTV!AK13) ->  | AI74: =IF(CYTV!AL13="","",CYTV!AL13) ->  | AJ74: =IF(CYTV!AM13="","",CYTV!AM13) ->  | AK74: =IF(CYTV!AN13="","",CYTV!AN13) ->  | AL74: =IF(CYTV!AO13="","",CYTV!AO13) ->  | AM74: =IF(CYTV!AP13="","",CYTV!AP13) -> 
D75: Criterio Evaluación 4.2 | E75: =IF(CYTV!H14="","",CYTV!H14) ->  | F75: =IF(CYTV!I14="","",CYTV!I14) ->  | G75: =IF(CYTV!J14="","",CYTV!J14) ->  | H75: =IF(CYTV!K14="","",CYTV!K14) ->  | I75: =IF(CYTV!L14="","",CYTV!L14) ->  | J75: =IF(CYTV!M14="","",CYTV!M14) ->  | K75: =IF(CYTV!N14="","",CYTV!N14) ->  | L75: =IF(CYTV!O14="","",CYTV!O14) ->  | M75: =IF(CYTV!P14="","",CYTV!P14) ->  | N75: =IF(CYTV!Q14="","",CYTV!Q14) ->  | O75: =IF(CYTV!R14="","",CYTV!R14) ->  | P75: =IF(CYTV!S14="","",CYTV!S14) ->  | Q75: =IF(CYTV!T14="","",CYTV!T14) ->  | R75: =IF(CYTV!U14="","",CYTV!U14) ->  | S75: =IF(CYTV!V14="","",CYTV!V14) ->  | T75: =IF(CYTV!W14="","",CYTV!W14) ->  | U75: =IF(CYTV!X14="","",CYTV!X14) ->  | V75: =IF(CYTV!Y14="","",CYTV!Y14) ->  | W75: =IF(CYTV!Z14="","",CYTV!Z14) ->  | X75: =IF(CYTV!AA14="","",CYTV!AA14) ->  | Y75: =IF(CYTV!AB14="","",CYTV!AB14) ->  | Z75: =IF(CYTV!AC14="","",CYTV!AC14) ->  | AA75: =IF(CYTV!AD14="","",CYTV!AD14) ->  | AB75: =IF(CYTV!AE14="","",CYTV!AE14) ->  | AC75: =IF(CYTV!AF14="","",CYTV!AF14) ->  | AD75: =IF(CYTV!AG14="","",CYTV!AG14) ->  | AE75: =IF(CYTV!AH14="","",CYTV!AH14) ->  | AF75: =IF(CYTV!AI14="","",CYTV!AI14) ->  | AG75: =IF(CYTV!AJ14="","",CYTV!AJ14) ->  | AH75: =IF(CYTV!AK14="","",CYTV!AK14) ->  | AI75: =IF(CYTV!AL14="","",CYTV!AL14) ->  | AJ75: =IF(CYTV!AM14="","",CYTV!AM14) ->  | AK75: =IF(CYTV!AN14="","",CYTV!AN14) ->  | AL75: =IF(CYTV!AO14="","",CYTV!AO14) ->  | AM75: =IF(CYTV!AP14="","",CYTV!AP14) -> 
D76: Criterio Evaluación 4.3 | E76: =IF(CYTV!H15="","",CYTV!H15) ->  | F76: =IF(CYTV!I15="","",CYTV!I15) ->  | G76: =IF(CYTV!J15="","",CYTV!J15) ->  | H76: =IF(CYTV!K15="","",CYTV!K15) ->  | I76: =IF(CYTV!L15="","",CYTV!L15) ->  | J76: =IF(CYTV!M15="","",CYTV!M15) ->  | K76: =IF(CYTV!N15="","",CYTV!N15) ->  | L76: =IF(CYTV!O15="","",CYTV!O15) ->  | M76: =IF(CYTV!P15="","",CYTV!P15) ->  | N76: =IF(CYTV!Q15="","",CYTV!Q15) ->  | O76: =IF(CYTV!R15="","",CYTV!R15) ->  | P76: =IF(CYTV!S15="","",CYTV!S15) ->  | Q76: =IF(CYTV!T15="","",CYTV!T15) ->  | R76: =IF(CYTV!U15="","",CYTV!U15) ->  | S76: =IF(CYTV!V15="","",CYTV!V15) ->  | T76: =IF(CYTV!W15="","",CYTV!W15) ->  | U76: =IF(CYTV!X15="","",CYTV!X15) ->  | V76: =IF(CYTV!Y15="","",CYTV!Y15) ->  | W76: =IF(CYTV!Z15="","",CYTV!Z15) ->  | X76: =IF(CYTV!AA15="","",CYTV!AA15) ->  | Y76: =IF(CYTV!AB15="","",CYTV!AB15) ->  | Z76: =IF(CYTV!AC15="","",CYTV!AC15) ->  | AA76: =IF(CYTV!AD15="","",CYTV!AD15) ->  | AB76: =IF(CYTV!AE15="","",CYTV!AE15) ->  | AC76: =IF(CYTV!AF15="","",CYTV!AF15) ->  | AD76: =IF(CYTV!AG15="","",CYTV!AG15) ->  | AE76: =IF(CYTV!AH15="","",CYTV!AH15) ->  | AF76: =IF(CYTV!AI15="","",CYTV!AI15) ->  | AG76: =IF(CYTV!AJ15="","",CYTV!AJ15) ->  | AH76: =IF(CYTV!AK15="","",CYTV!AK15) ->  | AI76: =IF(CYTV!AL15="","",CYTV!AL15) ->  | AJ76: =IF(CYTV!AM15="","",CYTV!AM15) ->  | AK76: =IF(CYTV!AN15="","",CYTV!AN15) ->  | AL76: =IF(CYTV!AO15="","",CYTV!AO15) ->  | AM76: =IF(CYTV!AP15="","",CYTV!AP15) -> 
B77: Dibujo Técnico II | C77: Comp. Esp. 1 | D77: Criterio Evaluación 1.1 | E77: =IF(DT!H4="","",DT!H4) ->  | F77: =IF(DT!I4="","",DT!I4) ->  | G77: =IF(DT!J4="","",DT!J4) ->  | H77: =IF(DT!K4="","",DT!K4) ->  | I77: =IF(DT!L4="","",DT!L4) ->  | J77: =IF(DT!M4="","",DT!M4) ->  | K77: =IF(DT!N4="","",DT!N4) ->  | L77: =IF(DT!O4="","",DT!O4) ->  | M77: =IF(DT!P4="","",DT!P4) ->  | N77: =IF(DT!Q4="","",DT!Q4) ->  | O77: =IF(DT!R4="","",DT!R4) ->  | P77: =IF(DT!S4="","",DT!S4) ->  | Q77: =IF(DT!T4="","",DT!T4) ->  | R77: =IF(DT!U4="","",DT!U4) ->  | S77: =IF(DT!V4="","",DT!V4) ->  | T77: =IF(DT!W4="","",DT!W4) ->  | U77: =IF(DT!X4="","",DT!X4) ->  | V77: =IF(DT!Y4="","",DT!Y4) ->  | W77: =IF(DT!Z4="","",DT!Z4) ->  | X77: =IF(DT!AA4="","",DT!AA4) ->  | Y77: =IF(DT!AB4="","",DT!AB4) ->  | Z77: =IF(DT!AC4="","",DT!AC4) ->  | AA77: =IF(DT!AD4="","",DT!AD4) ->  | AB77: =IF(DT!AE4="","",DT!AE4) ->  | AC77: =IF(DT!AF4="","",DT!AF4) ->  | AD77: =IF(DT!AG4="","",DT!AG4) ->  | AE77: =IF(DT!AH4="","",DT!AH4) ->  | AF77: =IF(DT!AI4="","",DT!AI4) ->  | AG77: =IF(DT!AJ4="","",DT!AJ4) ->  | AH77: =IF(DT!AK4="","",DT!AK4) ->  | AI77: =IF(DT!AL4="","",DT!AL4) ->  | AJ77: =IF(DT!AM4="","",DT!AM4) ->  | AK77: =IF(DT!AN4="","",DT!AN4) ->  | AL77: =IF(DT!AO4="","",DT!AO4) ->  | AM77: =IF(DT!AP4="","",DT!AP4) -> 
C78: Comp. Esp. 2 | D78: Criterio Evaluación 2.1 | E78: =IF(DT!H5="","",DT!H5) ->  | F78: =IF(DT!I5="","",DT!I5) ->  | G78: =IF(DT!J5="","",DT!J5) ->  | H78: =IF(DT!K5="","",DT!K5) ->  | I78: =IF(DT!L5="","",DT!L5) ->  | J78: =IF(DT!M5="","",DT!M5) ->  | K78: =IF(DT!N5="","",DT!N5) ->  | L78: =IF(DT!O5="","",DT!O5) ->  | M78: =IF(DT!P5="","",DT!P5) ->  | N78: =IF(DT!Q5="","",DT!Q5) ->  | O78: =IF(DT!R5="","",DT!R5) ->  | P78: =IF(DT!S5="","",DT!S5) ->  | Q78: =IF(DT!T5="","",DT!T5) ->  | R78: =IF(DT!U5="","",DT!U5) ->  | S78: =IF(DT!V5="","",DT!V5) ->  | T78: =IF(DT!W5="","",DT!W5) ->  | U78: =IF(DT!X5="","",DT!X5) ->  | V78: =IF(DT!Y5="","",DT!Y5) ->  | W78: =IF(DT!Z5="","",DT!Z5) ->  | X78: =IF(DT!AA5="","",DT!AA5) ->  | Y78: =IF(DT!AB5="","",DT!AB5) ->  | Z78: =IF(DT!AC5="","",DT!AC5) ->  | AA78: =IF(DT!AD5="","",DT!AD5) ->  | AB78: =IF(DT!AE5="","",DT!AE5) ->  | AC78: =IF(DT!AF5="","",DT!AF5) ->  | AD78: =IF(DT!AG5="","",DT!AG5) ->  | AE78: =IF(DT!AH5="","",DT!AH5) ->  | AF78: =IF(DT!AI5="","",DT!AI5) ->  | AG78: =IF(DT!AJ5="","",DT!AJ5) ->  | AH78: =IF(DT!AK5="","",DT!AK5) ->  | AI78: =IF(DT!AL5="","",DT!AL5) ->  | AJ78: =IF(DT!AM5="","",DT!AM5) ->  | AK78: =IF(DT!AN5="","",DT!AN5) ->  | AL78: =IF(DT!AO5="","",DT!AO5) ->  | AM78: =IF(DT!AP5="","",DT!AP5) -> 
D79: Criterio Evaluación 2.2 | E79: =IF(DT!H6="","",DT!H6) ->  | F79: =IF(DT!I6="","",DT!I6) ->  | G79: =IF(DT!J6="","",DT!J6) ->  | H79: =IF(DT!K6="","",DT!K6) ->  | I79: =IF(DT!L6="","",DT!L6) ->  | J79: =IF(DT!M6="","",DT!M6) ->  | K79: =IF(DT!N6="","",DT!N6) ->  | L79: =IF(DT!O6="","",DT!O6) ->  | M79: =IF(DT!P6="","",DT!P6) ->  | N79: =IF(DT!Q6="","",DT!Q6) ->  | O79: =IF(DT!R6="","",DT!R6) ->  | P79: =IF(DT!S6="","",DT!S6) ->  | Q79: =IF(DT!T6="","",DT!T6) ->  | R79: =IF(DT!U6="","",DT!U6) ->  | S79: =IF(DT!V6="","",DT!V6) ->  | T79: =IF(DT!W6="","",DT!W6) ->  | U79: =IF(DT!X6="","",DT!X6) ->  | V79: =IF(DT!Y6="","",DT!Y6) ->  | W79: =IF(DT!Z6="","",DT!Z6) ->  | X79: =IF(DT!AA6="","",DT!AA6) ->  | Y79: =IF(DT!AB6="","",DT!AB6) ->  | Z79: =IF(DT!AC6="","",DT!AC6) ->  | AA79: =IF(DT!AD6="","",DT!AD6) ->  | AB79: =IF(DT!AE6="","",DT!AE6) ->  | AC79: =IF(DT!AF6="","",DT!AF6) ->  | AD79: =IF(DT!AG6="","",DT!AG6) ->  | AE79: =IF(DT!AH6="","",DT!AH6) ->  | AF79: =IF(DT!AI6="","",DT!AI6) ->  | AG79: =IF(DT!AJ6="","",DT!AJ6) ->  | AH79: =IF(DT!AK6="","",DT!AK6) ->  | AI79: =IF(DT!AL6="","",DT!AL6) ->  | AJ79: =IF(DT!AM6="","",DT!AM6) ->  | AK79: =IF(DT!AN6="","",DT!AN6) ->  | AL79: =IF(DT!AO6="","",DT!AO6) ->  | AM79: =IF(DT!AP6="","",DT!AP6) -> 
D80: Criterio Evaluación 2.3 | E80: =IF(DT!H7="","",DT!H7) ->  | F80: =IF(DT!I7="","",DT!I7) ->  | G80: =IF(DT!J7="","",DT!J7) ->  | H80: =IF(DT!K7="","",DT!K7) ->  | I80: =IF(DT!L7="","",DT!L7) ->  | J80: =IF(DT!M7="","",DT!M7) ->  | K80: =IF(DT!N7="","",DT!N7) ->  | L80: =IF(DT!O7="","",DT!O7) ->  | M80: =IF(DT!P7="","",DT!P7) ->  | N80: =IF(DT!Q7="","",DT!Q7) ->  | O80: =IF(DT!R7="","",DT!R7) ->  | P80: =IF(DT!S7="","",DT!S7) ->  | Q80: =IF(DT!T7="","",DT!T7) ->  | R80: =IF(DT!U7="","",DT!U7) ->  | S80: =IF(DT!V7="","",DT!V7) ->  | T80: =IF(DT!W7="","",DT!W7) ->  | U80: =IF(DT!X7="","",DT!X7) ->  | V80: =IF(DT!Y7="","",DT!Y7) ->  | W80: =IF(DT!Z7="","",DT!Z7) ->  | X80: =IF(DT!AA7="","",DT!AA7) ->  | Y80: =IF(DT!AB7="","",DT!AB7) ->  | Z80: =IF(DT!AC7="","",DT!AC7) ->  | AA80: =IF(DT!AD7="","",DT!AD7) ->  | AB80: =IF(DT!AE7="","",DT!AE7) ->  | AC80: =IF(DT!AF7="","",DT!AF7) ->  | AD80: =IF(DT!AG7="","",DT!AG7) ->  | AE80: =IF(DT!AH7="","",DT!AH7) ->  | AF80: =IF(DT!AI7="","",DT!AI7) ->  | AG80: =IF(DT!AJ7="","",DT!AJ7) ->  | AH80: =IF(DT!AK7="","",DT!AK7) ->  | AI80: =IF(DT!AL7="","",DT!AL7) ->  | AJ80: =IF(DT!AM7="","",DT!AM7) ->  | AK80: =IF(DT!AN7="","",DT!AN7) ->  | AL80: =IF(DT!AO7="","",DT!AO7) ->  | AM80: =IF(DT!AP7="","",DT!AP7) -> 
D81: Criterio Evaluación 2.4 | E81: =IF(DT!H8="","",DT!H8) ->  | F81: =IF(DT!I8="","",DT!I8) ->  | G81: =IF(DT!J8="","",DT!J8) ->  | H81: =IF(DT!K8="","",DT!K8) ->  | I81: =IF(DT!L8="","",DT!L8) ->  | J81: =IF(DT!M8="","",DT!M8) ->  | K81: =IF(DT!N8="","",DT!N8) ->  | L81: =IF(DT!O8="","",DT!O8) ->  | M81: =IF(DT!P8="","",DT!P8) ->  | N81: =IF(DT!Q8="","",DT!Q8) ->  | O81: =IF(DT!R8="","",DT!R8) ->  | P81: =IF(DT!S8="","",DT!S8) ->  | Q81: =IF(DT!T8="","",DT!T8) ->  | R81: =IF(DT!U8="","",DT!U8) ->  | S81: =IF(DT!V8="","",DT!V8) ->  | T81: =IF(DT!W8="","",DT!W8) ->  | U81: =IF(DT!X8="","",DT!X8) ->  | V81: =IF(DT!Y8="","",DT!Y8) ->  | W81: =IF(DT!Z8="","",DT!Z8) ->  | X81: =IF(DT!AA8="","",DT!AA8) ->  | Y81: =IF(DT!AB8="","",DT!AB8) ->  | Z81: =IF(DT!AC8="","",DT!AC8) ->  | AA81: =IF(DT!AD8="","",DT!AD8) ->  | AB81: =IF(DT!AE8="","",DT!AE8) ->  | AC81: =IF(DT!AF8="","",DT!AF8) ->  | AD81: =IF(DT!AG8="","",DT!AG8) ->  | AE81: =IF(DT!AH8="","",DT!AH8) ->  | AF81: =IF(DT!AI8="","",DT!AI8) ->  | AG81: =IF(DT!AJ8="","",DT!AJ8) ->  | AH81: =IF(DT!AK8="","",DT!AK8) ->  | AI81: =IF(DT!AL8="","",DT!AL8) ->  | AJ81: =IF(DT!AM8="","",DT!AM8) ->  | AK81: =IF(DT!AN8="","",DT!AN8) ->  | AL81: =IF(DT!AO8="","",DT!AO8) ->  | AM81: =IF(DT!AP8="","",DT!AP8) -> 
C82: Comp. Esp. 3 | D82: Criterio Evaluación 3.1 | E82: =IF(DT!H9="","",DT!H9) ->  | F82: =IF(DT!I9="","",DT!I9) ->  | G82: =IF(DT!J9="","",DT!J9) ->  | H82: =IF(DT!K9="","",DT!K9) ->  | I82: =IF(DT!L9="","",DT!L9) ->  | J82: =IF(DT!M9="","",DT!M9) ->  | K82: =IF(DT!N9="","",DT!N9) ->  | L82: =IF(DT!O9="","",DT!O9) ->  | M82: =IF(DT!P9="","",DT!P9) ->  | N82: =IF(DT!Q9="","",DT!Q9) ->  | O82: =IF(DT!R9="","",DT!R9) ->  | P82: =IF(DT!S9="","",DT!S9) ->  | Q82: =IF(DT!T9="","",DT!T9) ->  | R82: =IF(DT!U9="","",DT!U9) ->  | S82: =IF(DT!V9="","",DT!V9) ->  | T82: =IF(DT!W9="","",DT!W9) ->  | U82: =IF(DT!X9="","",DT!X9) ->  | V82: =IF(DT!Y9="","",DT!Y9) ->  | W82: =IF(DT!Z9="","",DT!Z9) ->  | X82: =IF(DT!AA9="","",DT!AA9) ->  | Y82: =IF(DT!AB9="","",DT!AB9) ->  | Z82: =IF(DT!AC9="","",DT!AC9) ->  | AA82: =IF(DT!AD9="","",DT!AD9) ->  | AB82: =IF(DT!AE9="","",DT!AE9) ->  | AC82: =IF(DT!AF9="","",DT!AF9) ->  | AD82: =IF(DT!AG9="","",DT!AG9) ->  | AE82: =IF(DT!AH9="","",DT!AH9) ->  | AF82: =IF(DT!AI9="","",DT!AI9) ->  | AG82: =IF(DT!AJ9="","",DT!AJ9) ->  | AH82: =IF(DT!AK9="","",DT!AK9) ->  | AI82: =IF(DT!AL9="","",DT!AL9) ->  | AJ82: =IF(DT!AM9="","",DT!AM9) ->  | AK82: =IF(DT!AN9="","",DT!AN9) ->  | AL82: =IF(DT!AO9="","",DT!AO9) ->  | AM82: =IF(DT!AP9="","",DT!AP9) -> 
D83: Criterio Evaluación 3.2 | E83: =IF(DT!H10="","",DT!H10) ->  | F83: =IF(DT!I10="","",DT!I10) ->  | G83: =IF(DT!J10="","",DT!J10) ->  | H83: =IF(DT!K10="","",DT!K10) ->  | I83: =IF(DT!L10="","",DT!L10) ->  | J83: =IF(DT!M10="","",DT!M10) ->  | K83: =IF(DT!N10="","",DT!N10) ->  | L83: =IF(DT!O10="","",DT!O10) ->  | M83: =IF(DT!P10="","",DT!P10) ->  | N83: =IF(DT!Q10="","",DT!Q10) ->  | O83: =IF(DT!R10="","",DT!R10) ->  | P83: =IF(DT!S10="","",DT!S10) ->  | Q83: =IF(DT!T10="","",DT!T10) ->  | R83: =IF(DT!U10="","",DT!U10) ->  | S83: =IF(DT!V10="","",DT!V10) ->  | T83: =IF(DT!W10="","",DT!W10) ->  | U83: =IF(DT!X10="","",DT!X10) ->  | V83: =IF(DT!Y10="","",DT!Y10) ->  | W83: =IF(DT!Z10="","",DT!Z10) ->  | X83: =IF(DT!AA10="","",DT!AA10) ->  | Y83: =IF(DT!AB10="","",DT!AB10) ->  | Z83: =IF(DT!AC10="","",DT!AC10) ->  | AA83: =IF(DT!AD10="","",DT!AD10) ->  | AB83: =IF(DT!AE10="","",DT!AE10) ->  | AC83: =IF(DT!AF10="","",DT!AF10) ->  | AD83: =IF(DT!AG10="","",DT!AG10) ->  | AE83: =IF(DT!AH10="","",DT!AH10) ->  | AF83: =IF(DT!AI10="","",DT!AI10) ->  | AG83: =IF(DT!AJ10="","",DT!AJ10) ->  | AH83: =IF(DT!AK10="","",DT!AK10) ->  | AI83: =IF(DT!AL10="","",DT!AL10) ->  | AJ83: =IF(DT!AM10="","",DT!AM10) ->  | AK83: =IF(DT!AN10="","",DT!AN10) ->  | AL83: =IF(DT!AO10="","",DT!AO10) ->  | AM83: =IF(DT!AP10="","",DT!AP10) -> 
D84: Criterio Evaluación 3.3 | E84: =IF(DT!H11="","",DT!H11) ->  | F84: =IF(DT!I11="","",DT!I11) ->  | G84: =IF(DT!J11="","",DT!J11) ->  | H84: =IF(DT!K11="","",DT!K11) ->  | I84: =IF(DT!L11="","",DT!L11) ->  | J84: =IF(DT!M11="","",DT!M11) ->  | K84: =IF(DT!N11="","",DT!N11) ->  | L84: =IF(DT!O11="","",DT!O11) ->  | M84: =IF(DT!P11="","",DT!P11) ->  | N84: =IF(DT!Q11="","",DT!Q11) ->  | O84: =IF(DT!R11="","",DT!R11) ->  | P84: =IF(DT!S11="","",DT!S11) ->  | Q84: =IF(DT!T11="","",DT!T11) ->  | R84: =IF(DT!U11="","",DT!U11) ->  | S84: =IF(DT!V11="","",DT!V11) ->  | T84: =IF(DT!W11="","",DT!W11) ->  | U84: =IF(DT!X11="","",DT!X11) ->  | V84: =IF(DT!Y11="","",DT!Y11) ->  | W84: =IF(DT!Z11="","",DT!Z11) ->  | X84: =IF(DT!AA11="","",DT!AA11) ->  | Y84: =IF(DT!AB11="","",DT!AB11) ->  | Z84: =IF(DT!AC11="","",DT!AC11) ->  | AA84: =IF(DT!AD11="","",DT!AD11) ->  | AB84: =IF(DT!AE11="","",DT!AE11) ->  | AC84: =IF(DT!AF11="","",DT!AF11) ->  | AD84: =IF(DT!AG11="","",DT!AG11) ->  | AE84: =IF(DT!AH11="","",DT!AH11) ->  | AF84: =IF(DT!AI11="","",DT!AI11) ->  | AG84: =IF(DT!AJ11="","",DT!AJ11) ->  | AH84: =IF(DT!AK11="","",DT!AK11) ->  | AI84: =IF(DT!AL11="","",DT!AL11) ->  | AJ84: =IF(DT!AM11="","",DT!AM11) ->  | AK84: =IF(DT!AN11="","",DT!AN11) ->  | AL84: =IF(DT!AO11="","",DT!AO11) ->  | AM84: =IF(DT!AP11="","",DT!AP11) -> 
D85: Criterio Evaluación 3.4 | E85: =IF(DT!H12="","",DT!H12) ->  | F85: =IF(DT!I12="","",DT!I12) ->  | G85: =IF(DT!J12="","",DT!J12) ->  | H85: =IF(DT!K12="","",DT!K12) ->  | I85: =IF(DT!L12="","",DT!L12) ->  | J85: =IF(DT!M12="","",DT!M12) ->  | K85: =IF(DT!N12="","",DT!N12) ->  | L85: =IF(DT!O12="","",DT!O12) ->  | M85: =IF(DT!P12="","",DT!P12) ->  | N85: =IF(DT!Q12="","",DT!Q12) ->  | O85: =IF(DT!R12="","",DT!R12) ->  | P85: =IF(DT!S12="","",DT!S12) ->  | Q85: =IF(DT!T12="","",DT!T12) ->  | R85: =IF(DT!U12="","",DT!U12) ->  | S85: =IF(DT!V12="","",DT!V12) ->  | T85: =IF(DT!W12="","",DT!W12) ->  | U85: =IF(DT!X12="","",DT!X12) ->  | V85: =IF(DT!Y12="","",DT!Y12) ->  | W85: =IF(DT!Z12="","",DT!Z12) ->  | X85: =IF(DT!AA12="","",DT!AA12) ->  | Y85: =IF(DT!AB12="","",DT!AB12) ->  | Z85: =IF(DT!AC12="","",DT!AC12) ->  | AA85: =IF(DT!AD12="","",DT!AD12) ->  | AB85: =IF(DT!AE12="","",DT!AE12) ->  | AC85: =IF(DT!AF12="","",DT!AF12) ->  | AD85: =IF(DT!AG12="","",DT!AG12) ->  | AE85: =IF(DT!AH12="","",DT!AH12) ->  | AF85: =IF(DT!AI12="","",DT!AI12) ->  | AG85: =IF(DT!AJ12="","",DT!AJ12) ->  | AH85: =IF(DT!AK12="","",DT!AK12) ->  | AI85: =IF(DT!AL12="","",DT!AL12) ->  | AJ85: =IF(DT!AM12="","",DT!AM12) ->  | AK85: =IF(DT!AN12="","",DT!AN12) ->  | AL85: =IF(DT!AO12="","",DT!AO12) ->  | AM85: =IF(DT!AP12="","",DT!AP12) -> 
D86: Criterio Evaluación 3.5 | E86: =IF(DT!H13="","",DT!H13) ->  | F86: =IF(DT!I13="","",DT!I13) ->  | G86: =IF(DT!J13="","",DT!J13) ->  | H86: =IF(DT!K13="","",DT!K13) ->  | I86: =IF(DT!L13="","",DT!L13) ->  | J86: =IF(DT!M13="","",DT!M13) ->  | K86: =IF(DT!N13="","",DT!N13) ->  | L86: =IF(DT!O13="","",DT!O13) ->  | M86: =IF(DT!P13="","",DT!P13) ->  | N86: =IF(DT!Q13="","",DT!Q13) ->  | O86: =IF(DT!R13="","",DT!R13) ->  | P86: =IF(DT!S13="","",DT!S13) ->  | Q86: =IF(DT!T13="","",DT!T13) ->  | R86: =IF(DT!U13="","",DT!U13) ->  | S86: =IF(DT!V13="","",DT!V13) ->  | T86: =IF(DT!W13="","",DT!W13) ->  | U86: =IF(DT!X13="","",DT!X13) ->  | V86: =IF(DT!Y13="","",DT!Y13) ->  | W86: =IF(DT!Z13="","",DT!Z13) ->  | X86: =IF(DT!AA13="","",DT!AA13) ->  | Y86: =IF(DT!AB13="","",DT!AB13) ->  | Z86: =IF(DT!AC13="","",DT!AC13) ->  | AA86: =IF(DT!AD13="","",DT!AD13) ->  | AB86: =IF(DT!AE13="","",DT!AE13) ->  | AC86: =IF(DT!AF13="","",DT!AF13) ->  | AD86: =IF(DT!AG13="","",DT!AG13) ->  | AE86: =IF(DT!AH13="","",DT!AH13) ->  | AF86: =IF(DT!AI13="","",DT!AI13) ->  | AG86: =IF(DT!AJ13="","",DT!AJ13) ->  | AH86: =IF(DT!AK13="","",DT!AK13) ->  | AI86: =IF(DT!AL13="","",DT!AL13) ->  | AJ86: =IF(DT!AM13="","",DT!AM13) ->  | AK86: =IF(DT!AN13="","",DT!AN13) ->  | AL86: =IF(DT!AO13="","",DT!AO13) ->  | AM86: =IF(DT!AP13="","",DT!AP13) -> 
D87: Criterio Evaluación 3.6 | E87: =IF(DT!H14="","",DT!H14) ->  | F87: =IF(DT!I14="","",DT!I14) ->  | G87: =IF(DT!J14="","",DT!J14) ->  | H87: =IF(DT!K14="","",DT!K14) ->  | I87: =IF(DT!L14="","",DT!L14) ->  | J87: =IF(DT!M14="","",DT!M14) ->  | K87: =IF(DT!N14="","",DT!N14) ->  | L87: =IF(DT!O14="","",DT!O14) ->  | M87: =IF(DT!P14="","",DT!P14) ->  | N87: =IF(DT!Q14="","",DT!Q14) ->  | O87: =IF(DT!R14="","",DT!R14) ->  | P87: =IF(DT!S14="","",DT!S14) ->  | Q87: =IF(DT!T14="","",DT!T14) ->  | R87: =IF(DT!U14="","",DT!U14) ->  | S87: =IF(DT!V14="","",DT!V14) ->  | T87: =IF(DT!W14="","",DT!W14) ->  | U87: =IF(DT!X14="","",DT!X14) ->  | V87: =IF(DT!Y14="","",DT!Y14) ->  | W87: =IF(DT!Z14="","",DT!Z14) ->  | X87: =IF(DT!AA14="","",DT!AA14) ->  | Y87: =IF(DT!AB14="","",DT!AB14) ->  | Z87: =IF(DT!AC14="","",DT!AC14) ->  | AA87: =IF(DT!AD14="","",DT!AD14) ->  | AB87: =IF(DT!AE14="","",DT!AE14) ->  | AC87: =IF(DT!AF14="","",DT!AF14) ->  | AD87: =IF(DT!AG14="","",DT!AG14) ->  | AE87: =IF(DT!AH14="","",DT!AH14) ->  | AF87: =IF(DT!AI14="","",DT!AI14) ->  | AG87: =IF(DT!AJ14="","",DT!AJ14) ->  | AH87: =IF(DT!AK14="","",DT!AK14) ->  | AI87: =IF(DT!AL14="","",DT!AL14) ->  | AJ87: =IF(DT!AM14="","",DT!AM14) ->  | AK87: =IF(DT!AN14="","",DT!AN14) ->  | AL87: =IF(DT!AO14="","",DT!AO14) ->  | AM87: =IF(DT!AP14="","",DT!AP14) -> 
C88: Comp. Esp. 4 | D88: Criterio Evaluación 4.1 | E88: =IF(DT!H15="","",DT!H15) ->  | F88: =IF(DT!I15="","",DT!I15) ->  | G88: =IF(DT!J15="","",DT!J15) ->  | H88: =IF(DT!K15="","",DT!K15) ->  | I88: =IF(DT!L15="","",DT!L15) ->  | J88: =IF(DT!M15="","",DT!M15) ->  | K88: =IF(DT!N15="","",DT!N15) ->  | L88: =IF(DT!O15="","",DT!O15) ->  | M88: =IF(DT!P15="","",DT!P15) ->  | N88: =IF(DT!Q15="","",DT!Q15) ->  | O88: =IF(DT!R15="","",DT!R15) ->  | P88: =IF(DT!S15="","",DT!S15) ->  | Q88: =IF(DT!T15="","",DT!T15) ->  | R88: =IF(DT!U15="","",DT!U15) ->  | S88: =IF(DT!V15="","",DT!V15) ->  | T88: =IF(DT!W15="","",DT!W15) ->  | U88: =IF(DT!X15="","",DT!X15) ->  | V88: =IF(DT!Y15="","",DT!Y15) ->  | W88: =IF(DT!Z15="","",DT!Z15) ->  | X88: =IF(DT!AA15="","",DT!AA15) ->  | Y88: =IF(DT!AB15="","",DT!AB15) ->  | Z88: =IF(DT!AC15="","",DT!AC15) ->  | AA88: =IF(DT!AD15="","",DT!AD15) ->  | AB88: =IF(DT!AE15="","",DT!AE15) ->  | AC88: =IF(DT!AF15="","",DT!AF15) ->  | AD88: =IF(DT!AG15="","",DT!AG15) ->  | AE88: =IF(DT!AH15="","",DT!AH15) ->  | AF88: =IF(DT!AI15="","",DT!AI15) ->  | AG88: =IF(DT!AJ15="","",DT!AJ15) ->  | AH88: =IF(DT!AK15="","",DT!AK15) ->  | AI88: =IF(DT!AL15="","",DT!AL15) ->  | AJ88: =IF(DT!AM15="","",DT!AM15) ->  | AK88: =IF(DT!AN15="","",DT!AN15) ->  | AL88: =IF(DT!AO15="","",DT!AO15) ->  | AM88: =IF(DT!AP15="","",DT!AP15) -> 
D89: Criterio Evaluación 4.2 | E89: =IF(DT!H16="","",DT!H16) ->  | F89: =IF(DT!I16="","",DT!I16) ->  | G89: =IF(DT!J16="","",DT!J16) ->  | H89: =IF(DT!K16="","",DT!K16) ->  | I89: =IF(DT!L16="","",DT!L16) ->  | J89: =IF(DT!M16="","",DT!M16) ->  | K89: =IF(DT!N16="","",DT!N16) ->  | L89: =IF(DT!O16="","",DT!O16) ->  | M89: =IF(DT!P16="","",DT!P16) ->  | N89: =IF(DT!Q16="","",DT!Q16) ->  | O89: =IF(DT!R16="","",DT!R16) ->  | P89: =IF(DT!S16="","",DT!S16) ->  | Q89: =IF(DT!T16="","",DT!T16) ->  | R89: =IF(DT!U16="","",DT!U16) ->  | S89: =IF(DT!V16="","",DT!V16) ->  | T89: =IF(DT!W16="","",DT!W16) ->  | U89: =IF(DT!X16="","",DT!X16) ->  | V89: =IF(DT!Y16="","",DT!Y16) ->  | W89: =IF(DT!Z16="","",DT!Z16) ->  | X89: =IF(DT!AA16="","",DT!AA16) ->  | Y89: =IF(DT!AB16="","",DT!AB16) ->  | Z89: =IF(DT!AC16="","",DT!AC16) ->  | AA89: =IF(DT!AD16="","",DT!AD16) ->  | AB89: =IF(DT!AE16="","",DT!AE16) ->  | AC89: =IF(DT!AF16="","",DT!AF16) ->  | AD89: =IF(DT!AG16="","",DT!AG16) ->  | AE89: =IF(DT!AH16="","",DT!AH16) ->  | AF89: =IF(DT!AI16="","",DT!AI16) ->  | AG89: =IF(DT!AJ16="","",DT!AJ16) ->  | AH89: =IF(DT!AK16="","",DT!AK16) ->  | AI89: =IF(DT!AL16="","",DT!AL16) ->  | AJ89: =IF(DT!AM16="","",DT!AM16) ->  | AK89: =IF(DT!AN16="","",DT!AN16) ->  | AL89: =IF(DT!AO16="","",DT!AO16) ->  | AM89: =IF(DT!AP16="","",DT!AP16) -> 
C90: Comp. Esp. 5 | D90: Criterio Evaluación 5.1 | E90: =IF(DT!H17="","",DT!H17) ->  | F90: =IF(DT!I17="","",DT!I17) ->  | G90: =IF(DT!J17="","",DT!J17) ->  | H90: =IF(DT!K17="","",DT!K17) ->  | I90: =IF(DT!L17="","",DT!L17) ->  | J90: =IF(DT!M17="","",DT!M17) ->  | K90: =IF(DT!N17="","",DT!N17) ->  | L90: =IF(DT!O17="","",DT!O17) ->  | M90: =IF(DT!P17="","",DT!P17) ->  | N90: =IF(DT!Q17="","",DT!Q17) ->  | O90: =IF(DT!R17="","",DT!R17) ->  | P90: =IF(DT!S17="","",DT!S17) ->  | Q90: =IF(DT!T17="","",DT!T17) ->  | R90: =IF(DT!U17="","",DT!U17) ->  | S90: =IF(DT!V17="","",DT!V17) ->  | T90: =IF(DT!W17="","",DT!W17) ->  | U90: =IF(DT!X17="","",DT!X17) ->  | V90: =IF(DT!Y17="","",DT!Y17) ->  | W90: =IF(DT!Z17="","",DT!Z17) ->  | X90: =IF(DT!AA17="","",DT!AA17) ->  | Y90: =IF(DT!AB17="","",DT!AB17) ->  | Z90: =IF(DT!AC17="","",DT!AC17) ->  | AA90: =IF(DT!AD17="","",DT!AD17) ->  | AB90: =IF(DT!AE17="","",DT!AE17) ->  | AC90: =IF(DT!AF17="","",DT!AF17) ->  | AD90: =IF(DT!AG17="","",DT!AG17) ->  | AE90: =IF(DT!AH17="","",DT!AH17) ->  | AF90: =IF(DT!AI17="","",DT!AI17) ->  | AG90: =IF(DT!AJ17="","",DT!AJ17) ->  | AH90: =IF(DT!AK17="","",DT!AK17) ->  | AI90: =IF(DT!AL17="","",DT!AL17) ->  | AJ90: =IF(DT!AM17="","",DT!AM17) ->  | AK90: =IF(DT!AN17="","",DT!AN17) ->  | AL90: =IF(DT!AO17="","",DT!AO17) ->  | AM90: =IF(DT!AP17="","",DT!AP17) -> 
D91: Criterio Evaluación 5.2 | E91: =IF(DT!H18="","",DT!H18) ->  | F91: =IF(DT!I18="","",DT!I18) ->  | G91: =IF(DT!J18="","",DT!J18) ->  | H91: =IF(DT!K18="","",DT!K18) ->  | I91: =IF(DT!L18="","",DT!L18) ->  | J91: =IF(DT!M18="","",DT!M18) ->  | K91: =IF(DT!N18="","",DT!N18) ->  | L91: =IF(DT!O18="","",DT!O18) ->  | M91: =IF(DT!P18="","",DT!P18) ->  | N91: =IF(DT!Q18="","",DT!Q18) ->  | O91: =IF(DT!R18="","",DT!R18) ->  | P91: =IF(DT!S18="","",DT!S18) ->  | Q91: =IF(DT!T18="","",DT!T18) ->  | R91: =IF(DT!U18="","",DT!U18) ->  | S91: =IF(DT!V18="","",DT!V18) ->  | T91: =IF(DT!W18="","",DT!W18) ->  | U91: =IF(DT!X18="","",DT!X18) ->  | V91: =IF(DT!Y18="","",DT!Y18) ->  | W91: =IF(DT!Z18="","",DT!Z18) ->  | X91: =IF(DT!AA18="","",DT!AA18) ->  | Y91: =IF(DT!AB18="","",DT!AB18) ->  | Z91: =IF(DT!AC18="","",DT!AC18) ->  | AA91: =IF(DT!AD18="","",DT!AD18) ->  | AB91: =IF(DT!AE18="","",DT!AE18) ->  | AC91: =IF(DT!AF18="","",DT!AF18) ->  | AD91: =IF(DT!AG18="","",DT!AG18) ->  | AE91: =IF(DT!AH18="","",DT!AH18) ->  | AF91: =IF(DT!AI18="","",DT!AI18) ->  | AG91: =IF(DT!AJ18="","",DT!AJ18) ->  | AH91: =IF(DT!AK18="","",DT!AK18) ->  | AI91: =IF(DT!AL18="","",DT!AL18) ->  | AJ91: =IF(DT!AM18="","",DT!AM18) ->  | AK91: =IF(DT!AN18="","",DT!AN18) ->  | AL91: =IF(DT!AO18="","",DT!AO18) ->  | AM91: =IF(DT!AP18="","",DT!AP18) -> 
D92: Criterio Evaluación 5.3 | E92: =IF(DT!H19="","",DT!H19) ->  | F92: =IF(DT!I19="","",DT!I19) ->  | G92: =IF(DT!J19="","",DT!J19) ->  | H92: =IF(DT!K19="","",DT!K19) ->  | I92: =IF(DT!L19="","",DT!L19) ->  | J92: =IF(DT!M19="","",DT!M19) ->  | K92: =IF(DT!N19="","",DT!N19) ->  | L92: =IF(DT!O19="","",DT!O19) ->  | M92: =IF(DT!P19="","",DT!P19) ->  | N92: =IF(DT!Q19="","",DT!Q19) ->  | O92: =IF(DT!R19="","",DT!R19) ->  | P92: =IF(DT!S19="","",DT!S19) ->  | Q92: =IF(DT!T19="","",DT!T19) ->  | R92: =IF(DT!U19="","",DT!U19) ->  | S92: =IF(DT!V19="","",DT!V19) ->  | T92: =IF(DT!W19="","",DT!W19) ->  | U92: =IF(DT!X19="","",DT!X19) ->  | V92: =IF(DT!Y19="","",DT!Y19) ->  | W92: =IF(DT!Z19="","",DT!Z19) ->  | X92: =IF(DT!AA19="","",DT!AA19) ->  | Y92: =IF(DT!AB19="","",DT!AB19) ->  | Z92: =IF(DT!AC19="","",DT!AC19) ->  | AA92: =IF(DT!AD19="","",DT!AD19) ->  | AB92: =IF(DT!AE19="","",DT!AE19) ->  | AC92: =IF(DT!AF19="","",DT!AF19) ->  | AD92: =IF(DT!AG19="","",DT!AG19) ->  | AE92: =IF(DT!AH19="","",DT!AH19) ->  | AF92: =IF(DT!AI19="","",DT!AI19) ->  | AG92: =IF(DT!AJ19="","",DT!AJ19) ->  | AH92: =IF(DT!AK19="","",DT!AK19) ->  | AI92: =IF(DT!AL19="","",DT!AL19) ->  | AJ92: =IF(DT!AM19="","",DT!AM19) ->  | AK92: =IF(DT!AN19="","",DT!AN19) ->  | AL92: =IF(DT!AO19="","",DT!AO19) ->  | AM92: =IF(DT!AP19="","",DT!AP19) -> 
D93: Criterio Evaluación 5.4 | E93: =IF(DT!H20="","",DT!H20) ->  | F93: =IF(DT!I20="","",DT!I20) ->  | G93: =IF(DT!J20="","",DT!J20) ->  | H93: =IF(DT!K20="","",DT!K20) ->  | I93: =IF(DT!L20="","",DT!L20) ->  | J93: =IF(DT!M20="","",DT!M20) ->  | K93: =IF(DT!N20="","",DT!N20) ->  | L93: =IF(DT!O20="","",DT!O20) ->  | M93: =IF(DT!P20="","",DT!P20) ->  | N93: =IF(DT!Q20="","",DT!Q20) ->  | O93: =IF(DT!R20="","",DT!R20) ->  | P93: =IF(DT!S20="","",DT!S20) ->  | Q93: =IF(DT!T20="","",DT!T20) ->  | R93: =IF(DT!U20="","",DT!U20) ->  | S93: =IF(DT!V20="","",DT!V20) ->  | T93: =IF(DT!W20="","",DT!W20) ->  | U93: =IF(DT!X20="","",DT!X20) ->  | V93: =IF(DT!Y20="","",DT!Y20) ->  | W93: =IF(DT!Z20="","",DT!Z20) ->  | X93: =IF(DT!AA20="","",DT!AA20) ->  | Y93: =IF(DT!AB20="","",DT!AB20) ->  | Z93: =IF(DT!AC20="","",DT!AC20) ->  | AA93: =IF(DT!AD20="","",DT!AD20) ->  | AB93: =IF(DT!AE20="","",DT!AE20) ->  | AC93: =IF(DT!AF20="","",DT!AF20) ->  | AD93: =IF(DT!AG20="","",DT!AG20) ->  | AE93: =IF(DT!AH20="","",DT!AH20) ->  | AF93: =IF(DT!AI20="","",DT!AI20) ->  | AG93: =IF(DT!AJ20="","",DT!AJ20) ->  | AH93: =IF(DT!AK20="","",DT!AK20) ->  | AI93: =IF(DT!AL20="","",DT!AL20) ->  | AJ93: =IF(DT!AM20="","",DT!AM20) ->  | AK93: =IF(DT!AN20="","",DT!AN20) ->  | AL93: =IF(DT!AO20="","",DT!AO20) ->  | AM93: =IF(DT!AP20="","",DT!AP20) -> 
B94: Dibujo Técnico Aplicado a las Artes Plásticas y al Diseño II | C94: Comp. Esp. 1 | D94: Criterio Evaluación 1.1 | E94: =IF(DTA!H4="","",DTA!H4) ->  | F94: =IF(DTA!I4="","",DTA!I4) ->  | G94: =IF(DTA!J4="","",DTA!J4) ->  | H94: =IF(DTA!K4="","",DTA!K4) ->  | I94: =IF(DTA!L4="","",DTA!L4) ->  | J94: =IF(DTA!M4="","",DTA!M4) ->  | K94: =IF(DTA!N4="","",DTA!N4) ->  | L94: =IF(DTA!O4="","",DTA!O4) ->  | M94: =IF(DTA!P4="","",DTA!P4) ->  | N94: =IF(DTA!Q4="","",DTA!Q4) ->  | O94: =IF(DTA!R4="","",DTA!R4) ->  | P94: =IF(DTA!S4="","",DTA!S4) ->  | Q94: =IF(DTA!T4="","",DTA!T4) ->  | R94: =IF(DTA!U4="","",DTA!U4) ->  | S94: =IF(DTA!V4="","",DTA!V4) ->  | T94: =IF(DTA!W4="","",DTA!W4) ->  | U94: =IF(DTA!X4="","",DTA!X4) ->  | V94: =IF(DTA!Y4="","",DTA!Y4) ->  | W94: =IF(DTA!Z4="","",DTA!Z4) ->  | X94: =IF(DTA!AA4="","",DTA!AA4) ->  | Y94: =IF(DTA!AB4="","",DTA!AB4) ->  | Z94: =IF(DTA!AC4="","",DTA!AC4) ->  | AA94: =IF(DTA!AD4="","",DTA!AD4) ->  | AB94: =IF(DTA!AE4="","",DTA!AE4) ->  | AC94: =IF(DTA!AF4="","",DTA!AF4) ->  | AD94: =IF(DTA!AG4="","",DTA!AG4) ->  | AE94: =IF(DTA!AH4="","",DTA!AH4) ->  | AF94: =IF(DTA!AI4="","",DTA!AI4) ->  | AG94: =IF(DTA!AJ4="","",DTA!AJ4) ->  | AH94: =IF(DTA!AK4="","",DTA!AK4) ->  | AI94: =IF(DTA!AL4="","",DTA!AL4) ->  | AJ94: =IF(DTA!AM4="","",DTA!AM4) ->  | AK94: =IF(DTA!AN4="","",DTA!AN4) ->  | AL94: =IF(DTA!AO4="","",DTA!AO4) ->  | AM94: =IF(DTA!AP4="","",DTA!AP4) -> 
D95: Criterio Evaluación 1.2 | E95: =IF(DTA!H5="","",DTA!H5) ->  | F95: =IF(DTA!I5="","",DTA!I5) ->  | G95: =IF(DTA!J5="","",DTA!J5) ->  | H95: =IF(DTA!K5="","",DTA!K5) ->  | I95: =IF(DTA!L5="","",DTA!L5) ->  | J95: =IF(DTA!M5="","",DTA!M5) ->  | K95: =IF(DTA!N5="","",DTA!N5) ->  | L95: =IF(DTA!O5="","",DTA!O5) ->  | M95: =IF(DTA!P5="","",DTA!P5) ->  | N95: =IF(DTA!Q5="","",DTA!Q5) ->  | O95: =IF(DTA!R5="","",DTA!R5) ->  | P95: =IF(DTA!S5="","",DTA!S5) ->  | Q95: =IF(DTA!T5="","",DTA!T5) ->  | R95: =IF(DTA!U5="","",DTA!U5) ->  | S95: =IF(DTA!V5="","",DTA!V5) ->  | T95: =IF(DTA!W5="","",DTA!W5) ->  | U95: =IF(DTA!X5="","",DTA!X5) ->  | V95: =IF(DTA!Y5="","",DTA!Y5) ->  | W95: =IF(DTA!Z5="","",DTA!Z5) ->  | X95: =IF(DTA!AA5="","",DTA!AA5) ->  | Y95: =IF(DTA!AB5="","",DTA!AB5) ->  | Z95: =IF(DTA!AC5="","",DTA!AC5) ->  | AA95: =IF(DTA!AD5="","",DTA!AD5) ->  | AB95: =IF(DTA!AE5="","",DTA!AE5) ->  | AC95: =IF(DTA!AF5="","",DTA!AF5) ->  | AD95: =IF(DTA!AG5="","",DTA!AG5) ->  | AE95: =IF(DTA!AH5="","",DTA!AH5) ->  | AF95: =IF(DTA!AI5="","",DTA!AI5) ->  | AG95: =IF(DTA!AJ5="","",DTA!AJ5) ->  | AH95: =IF(DTA!AK5="","",DTA!AK5) ->  | AI95: =IF(DTA!AL5="","",DTA!AL5) ->  | AJ95: =IF(DTA!AM5="","",DTA!AM5) ->  | AK95: =IF(DTA!AN5="","",DTA!AN5) ->  | AL95: =IF(DTA!AO5="","",DTA!AO5) ->  | AM95: =IF(DTA!AP5="","",DTA!AP5) -> 
C96: Comp. Esp. 2 | D96: Criterio Evaluación 2.1 | E96: =IF(DTA!H6="","",DTA!H6) ->  | F96: =IF(DTA!I6="","",DTA!I6) ->  | G96: =IF(DTA!J6="","",DTA!J6) ->  | H96: =IF(DTA!K6="","",DTA!K6) ->  | I96: =IF(DTA!L6="","",DTA!L6) ->  | J96: =IF(DTA!M6="","",DTA!M6) ->  | K96: =IF(DTA!N6="","",DTA!N6) ->  | L96: =IF(DTA!O6="","",DTA!O6) ->  | M96: =IF(DTA!P6="","",DTA!P6) ->  | N96: =IF(DTA!Q6="","",DTA!Q6) ->  | O96: =IF(DTA!R6="","",DTA!R6) ->  | P96: =IF(DTA!S6="","",DTA!S6) ->  | Q96: =IF(DTA!T6="","",DTA!T6) ->  | R96: =IF(DTA!U6="","",DTA!U6) ->  | S96: =IF(DTA!V6="","",DTA!V6) ->  | T96: =IF(DTA!W6="","",DTA!W6) ->  | U96: =IF(DTA!X6="","",DTA!X6) ->  | V96: =IF(DTA!Y6="","",DTA!Y6) ->  | W96: =IF(DTA!Z6="","",DTA!Z6) ->  | X96: =IF(DTA!AA6="","",DTA!AA6) ->  | Y96: =IF(DTA!AB6="","",DTA!AB6) ->  | Z96: =IF(DTA!AC6="","",DTA!AC6) ->  | AA96: =IF(DTA!AD6="","",DTA!AD6) ->  | AB96: =IF(DTA!AE6="","",DTA!AE6) ->  | AC96: =IF(DTA!AF6="","",DTA!AF6) ->  | AD96: =IF(DTA!AG6="","",DTA!AG6) ->  | AE96: =IF(DTA!AH6="","",DTA!AH6) ->  | AF96: =IF(DTA!AI6="","",DTA!AI6) ->  | AG96: =IF(DTA!AJ6="","",DTA!AJ6) ->  | AH96: =IF(DTA!AK6="","",DTA!AK6) ->  | AI96: =IF(DTA!AL6="","",DTA!AL6) ->  | AJ96: =IF(DTA!AM6="","",DTA!AM6) ->  | AK96: =IF(DTA!AN6="","",DTA!AN6) ->  | AL96: =IF(DTA!AO6="","",DTA!AO6) ->  | AM96: =IF(DTA!AP6="","",DTA!AP6) -> 
D97: Criterio Evaluación 2.2 | E97: =IF(DTA!H7="","",DTA!H7) ->  | F97: =IF(DTA!I7="","",DTA!I7) ->  | G97: =IF(DTA!J7="","",DTA!J7) ->  | H97: =IF(DTA!K7="","",DTA!K7) ->  | I97: =IF(DTA!L7="","",DTA!L7) ->  | J97: =IF(DTA!M7="","",DTA!M7) ->  | K97: =IF(DTA!N7="","",DTA!N7) ->  | L97: =IF(DTA!O7="","",DTA!O7) ->  | M97: =IF(DTA!P7="","",DTA!P7) ->  | N97: =IF(DTA!Q7="","",DTA!Q7) ->  | O97: =IF(DTA!R7="","",DTA!R7) ->  | P97: =IF(DTA!S7="","",DTA!S7) ->  | Q97: =IF(DTA!T7="","",DTA!T7) ->  | R97: =IF(DTA!U7="","",DTA!U7) ->  | S97: =IF(DTA!V7="","",DTA!V7) ->  | T97: =IF(DTA!W7="","",DTA!W7) ->  | U97: =IF(DTA!X7="","",DTA!X7) ->  | V97: =IF(DTA!Y7="","",DTA!Y7) ->  | W97: =IF(DTA!Z7="","",DTA!Z7) ->  | X97: =IF(DTA!AA7="","",DTA!AA7) ->  | Y97: =IF(DTA!AB7="","",DTA!AB7) ->  | Z97: =IF(DTA!AC7="","",DTA!AC7) ->  | AA97: =IF(DTA!AD7="","",DTA!AD7) ->  | AB97: =IF(DTA!AE7="","",DTA!AE7) ->  | AC97: =IF(DTA!AF7="","",DTA!AF7) ->  | AD97: =IF(DTA!AG7="","",DTA!AG7) ->  | AE97: =IF(DTA!AH7="","",DTA!AH7) ->  | AF97: =IF(DTA!AI7="","",DTA!AI7) ->  | AG97: =IF(DTA!AJ7="","",DTA!AJ7) ->  | AH97: =IF(DTA!AK7="","",DTA!AK7) ->  | AI97: =IF(DTA!AL7="","",DTA!AL7) ->  | AJ97: =IF(DTA!AM7="","",DTA!AM7) ->  | AK97: =IF(DTA!AN7="","",DTA!AN7) ->  | AL97: =IF(DTA!AO7="","",DTA!AO7) ->  | AM97: =IF(DTA!AP7="","",DTA!AP7) -> 
D98: Criterio Evaluación 2.3 | E98: =IF(DTA!H8="","",DTA!H8) ->  | F98: =IF(DTA!I8="","",DTA!I8) ->  | G98: =IF(DTA!J8="","",DTA!J8) ->  | H98: =IF(DTA!K8="","",DTA!K8) ->  | I98: =IF(DTA!L8="","",DTA!L8) ->  | J98: =IF(DTA!M8="","",DTA!M8) ->  | K98: =IF(DTA!N8="","",DTA!N8) ->  | L98: =IF(DTA!O8="","",DTA!O8) ->  | M98: =IF(DTA!P8="","",DTA!P8) ->  | N98: =IF(DTA!Q8="","",DTA!Q8) ->  | O98: =IF(DTA!R8="","",DTA!R8) ->  | P98: =IF(DTA!S8="","",DTA!S8) ->  | Q98: =IF(DTA!T8="","",DTA!T8) ->  | R98: =IF(DTA!U8="","",DTA!U8) ->  | S98: =IF(DTA!V8="","",DTA!V8) ->  | T98: =IF(DTA!W8="","",DTA!W8) ->  | U98: =IF(DTA!X8="","",DTA!X8) ->  | V98: =IF(DTA!Y8="","",DTA!Y8) ->  | W98: =IF(DTA!Z8="","",DTA!Z8) ->  | X98: =IF(DTA!AA8="","",DTA!AA8) ->  | Y98: =IF(DTA!AB8="","",DTA!AB8) ->  | Z98: =IF(DTA!AC8="","",DTA!AC8) ->  | AA98: =IF(DTA!AD8="","",DTA!AD8) ->  | AB98: =IF(DTA!AE8="","",DTA!AE8) ->  | AC98: =IF(DTA!AF8="","",DTA!AF8) ->  | AD98: =IF(DTA!AG8="","",DTA!AG8) ->  | AE98: =IF(DTA!AH8="","",DTA!AH8) ->  | AF98: =IF(DTA!AI8="","",DTA!AI8) ->  | AG98: =IF(DTA!AJ8="","",DTA!AJ8) ->  | AH98: =IF(DTA!AK8="","",DTA!AK8) ->  | AI98: =IF(DTA!AL8="","",DTA!AL8) ->  | AJ98: =IF(DTA!AM8="","",DTA!AM8) ->  | AK98: =IF(DTA!AN8="","",DTA!AN8) ->  | AL98: =IF(DTA!AO8="","",DTA!AO8) ->  | AM98: =IF(DTA!AP8="","",DTA!AP8) -> 
C99: Comp. Esp. 3 | D99: Criterio Evaluación 3.1 | E99: =IF(DTA!H9="","",DTA!H9) ->  | F99: =IF(DTA!I9="","",DTA!I9) ->  | G99: =IF(DTA!J9="","",DTA!J9) ->  | H99: =IF(DTA!K9="","",DTA!K9) ->  | I99: =IF(DTA!L9="","",DTA!L9) ->  | J99: =IF(DTA!M9="","",DTA!M9) ->  | K99: =IF(DTA!N9="","",DTA!N9) ->  | L99: =IF(DTA!O9="","",DTA!O9) ->  | M99: =IF(DTA!P9="","",DTA!P9) ->  | N99: =IF(DTA!Q9="","",DTA!Q9) ->  | O99: =IF(DTA!R9="","",DTA!R9) ->  | P99: =IF(DTA!S9="","",DTA!S9) ->  | Q99: =IF(DTA!T9="","",DTA!T9) ->  | R99: =IF(DTA!U9="","",DTA!U9) ->  | S99: =IF(DTA!V9="","",DTA!V9) ->  | T99: =IF(DTA!W9="","",DTA!W9) ->  | U99: =IF(DTA!X9="","",DTA!X9) ->  | V99: =IF(DTA!Y9="","",DTA!Y9) ->  | W99: =IF(DTA!Z9="","",DTA!Z9) ->  | X99: =IF(DTA!AA9="","",DTA!AA9) ->  | Y99: =IF(DTA!AB9="","",DTA!AB9) ->  | Z99: =IF(DTA!AC9="","",DTA!AC9) ->  | AA99: =IF(DTA!AD9="","",DTA!AD9) ->  | AB99: =IF(DTA!AE9="","",DTA!AE9) ->  | AC99: =IF(DTA!AF9="","",DTA!AF9) ->  | AD99: =IF(DTA!AG9="","",DTA!AG9) ->  | AE99: =IF(DTA!AH9="","",DTA!AH9) ->  | AF99: =IF(DTA!AI9="","",DTA!AI9) ->  | AG99: =IF(DTA!AJ9="","",DTA!AJ9) ->  | AH99: =IF(DTA!AK9="","",DTA!AK9) ->  | AI99: =IF(DTA!AL9="","",DTA!AL9) ->  | AJ99: =IF(DTA!AM9="","",DTA!AM9) ->  | AK99: =IF(DTA!AN9="","",DTA!AN9) ->  | AL99: =IF(DTA!AO9="","",DTA!AO9) ->  | AM99: =IF(DTA!AP9="","",DTA!AP9) -> 
D100: Criterio Evaluación 3.2 | E100: =IF(DTA!H10="","",DTA!H10) ->  | F100: =IF(DTA!I10="","",DTA!I10) ->  | G100: =IF(DTA!J10="","",DTA!J10) ->  | H100: =IF(DTA!K10="","",DTA!K10) ->  | I100: =IF(DTA!L10="","",DTA!L10) ->  | J100: =IF(DTA!M10="","",DTA!M10) ->  | K100: =IF(DTA!N10="","",DTA!N10) ->  | L100: =IF(DTA!O10="","",DTA!O10) ->  | M100: =IF(DTA!P10="","",DTA!P10) ->  | N100: =IF(DTA!Q10="","",DTA!Q10) ->  | O100: =IF(DTA!R10="","",DTA!R10) ->  | P100: =IF(DTA!S10="","",DTA!S10) ->  | Q100: =IF(DTA!T10="","",DTA!T10) ->  | R100: =IF(DTA!U10="","",DTA!U10) ->  | S100: =IF(DTA!V10="","",DTA!V10) ->  | T100: =IF(DTA!W10="","",DTA!W10) ->  | U100: =IF(DTA!X10="","",DTA!X10) ->  | V100: =IF(DTA!Y10="","",DTA!Y10) ->  | W100: =IF(DTA!Z10="","",DTA!Z10) ->  | X100: =IF(DTA!AA10="","",DTA!AA10) ->  | Y100: =IF(DTA!AB10="","",DTA!AB10) ->  | Z100: =IF(DTA!AC10="","",DTA!AC10) ->  | AA100: =IF(DTA!AD10="","",DTA!AD10) ->  | AB100: =IF(DTA!AE10="","",DTA!AE10) ->  | AC100: =IF(DTA!AF10="","",DTA!AF10) ->  | AD100: =IF(DTA!AG10="","",DTA!AG10) ->  | AE100: =IF(DTA!AH10="","",DTA!AH10) ->  | AF100: =IF(DTA!AI10="","",DTA!AI10) ->  | AG100: =IF(DTA!AJ10="","",DTA!AJ10) ->  | AH100: =IF(DTA!AK10="","",DTA!AK10) ->  | AI100: =IF(DTA!AL10="","",DTA!AL10) ->  | AJ100: =IF(DTA!AM10="","",DTA!AM10) ->  | AK100: =IF(DTA!AN10="","",DTA!AN10) ->  | AL100: =IF(DTA!AO10="","",DTA!AO10) ->  | AM100: =IF(DTA!AP10="","",DTA!AP10) -> 
D101: Criterio Evaluación 3.3 | E101: =IF(DTA!H11="","",DTA!H11) ->  | F101: =IF(DTA!I11="","",DTA!I11) ->  | G101: =IF(DTA!J11="","",DTA!J11) ->  | H101: =IF(DTA!K11="","",DTA!K11) ->  | I101: =IF(DTA!L11="","",DTA!L11) ->  | J101: =IF(DTA!M11="","",DTA!M11) ->  | K101: =IF(DTA!N11="","",DTA!N11) ->  | L101: =IF(DTA!O11="","",DTA!O11) ->  | M101: =IF(DTA!P11="","",DTA!P11) ->  | N101: =IF(DTA!Q11="","",DTA!Q11) ->  | O101: =IF(DTA!R11="","",DTA!R11) ->  | P101: =IF(DTA!S11="","",DTA!S11) ->  | Q101: =IF(DTA!T11="","",DTA!T11) ->  | R101: =IF(DTA!U11="","",DTA!U11) ->  | S101: =IF(DTA!V11="","",DTA!V11) ->  | T101: =IF(DTA!W11="","",DTA!W11) ->  | U101: =IF(DTA!X11="","",DTA!X11) ->  | V101: =IF(DTA!Y11="","",DTA!Y11) ->  | W101: =IF(DTA!Z11="","",DTA!Z11) ->  | X101: =IF(DTA!AA11="","",DTA!AA11) ->  | Y101: =IF(DTA!AB11="","",DTA!AB11) ->  | Z101: =IF(DTA!AC11="","",DTA!AC11) ->  | AA101: =IF(DTA!AD11="","",DTA!AD11) ->  | AB101: =IF(DTA!AE11="","",DTA!AE11) ->  | AC101: =IF(DTA!AF11="","",DTA!AF11) ->  | AD101: =IF(DTA!AG11="","",DTA!AG11) ->  | AE101: =IF(DTA!AH11="","",DTA!AH11) ->  | AF101: =IF(DTA!AI11="","",DTA!AI11) ->  | AG101: =IF(DTA!AJ11="","",DTA!AJ11) ->  | AH101: =IF(DTA!AK11="","",DTA!AK11) ->  | AI101: =IF(DTA!AL11="","",DTA!AL11) ->  | AJ101: =IF(DTA!AM11="","",DTA!AM11) ->  | AK101: =IF(DTA!AN11="","",DTA!AN11) ->  | AL101: =IF(DTA!AO11="","",DTA!AO11) ->  | AM101: =IF(DTA!AP11="","",DTA!AP11) -> 
C102: Comp. Esp. 4 | D102: Criterio Evaluación 4.1 | E102: =IF(DTA!H12="","",DTA!H12) ->  | F102: =IF(DTA!I12="","",DTA!I12) ->  | G102: =IF(DTA!J12="","",DTA!J12) ->  | H102: =IF(DTA!K12="","",DTA!K12) ->  | I102: =IF(DTA!L12="","",DTA!L12) ->  | J102: =IF(DTA!M12="","",DTA!M12) ->  | K102: =IF(DTA!N12="","",DTA!N12) ->  | L102: =IF(DTA!O12="","",DTA!O12) ->  | M102: =IF(DTA!P12="","",DTA!P12) ->  | N102: =IF(DTA!Q12="","",DTA!Q12) ->  | O102: =IF(DTA!R12="","",DTA!R12) ->  | P102: =IF(DTA!S12="","",DTA!S12) ->  | Q102: =IF(DTA!T12="","",DTA!T12) ->  | R102: =IF(DTA!U12="","",DTA!U12) ->  | S102: =IF(DTA!V12="","",DTA!V12) ->  | T102: =IF(DTA!W12="","",DTA!W12) ->  | U102: =IF(DTA!X12="","",DTA!X12) ->  | V102: =IF(DTA!Y12="","",DTA!Y12) ->  | W102: =IF(DTA!Z12="","",DTA!Z12) ->  | X102: =IF(DTA!AA12="","",DTA!AA12) ->  | Y102: =IF(DTA!AB12="","",DTA!AB12) ->  | Z102: =IF(DTA!AC12="","",DTA!AC12) ->  | AA102: =IF(DTA!AD12="","",DTA!AD12) ->  | AB102: =IF(DTA!AE12="","",DTA!AE12) ->  | AC102: =IF(DTA!AF12="","",DTA!AF12) ->  | AD102: =IF(DTA!AG12="","",DTA!AG12) ->  | AE102: =IF(DTA!AH12="","",DTA!AH12) ->  | AF102: =IF(DTA!AI12="","",DTA!AI12) ->  | AG102: =IF(DTA!AJ12="","",DTA!AJ12) ->  | AH102: =IF(DTA!AK12="","",DTA!AK12) ->  | AI102: =IF(DTA!AL12="","",DTA!AL12) ->  | AJ102: =IF(DTA!AM12="","",DTA!AM12) ->  | AK102: =IF(DTA!AN12="","",DTA!AN12) ->  | AL102: =IF(DTA!AO12="","",DTA!AO12) ->  | AM102: =IF(DTA!AP12="","",DTA!AP12) -> 
D103: Criterio Evaluación 4.2 | E103: =IF(DTA!H13="","",DTA!H13) ->  | F103: =IF(DTA!I13="","",DTA!I13) ->  | G103: =IF(DTA!J13="","",DTA!J13) ->  | H103: =IF(DTA!K13="","",DTA!K13) ->  | I103: =IF(DTA!L13="","",DTA!L13) ->  | J103: =IF(DTA!M13="","",DTA!M13) ->  | K103: =IF(DTA!N13="","",DTA!N13) ->  | L103: =IF(DTA!O13="","",DTA!O13) ->  | M103: =IF(DTA!P13="","",DTA!P13) ->  | N103: =IF(DTA!Q13="","",DTA!Q13) ->  | O103: =IF(DTA!R13="","",DTA!R13) ->  | P103: =IF(DTA!S13="","",DTA!S13) ->  | Q103: =IF(DTA!T13="","",DTA!T13) ->  | R103: =IF(DTA!U13="","",DTA!U13) ->  | S103: =IF(DTA!V13="","",DTA!V13) ->  | T103: =IF(DTA!W13="","",DTA!W13) ->  | U103: =IF(DTA!X13="","",DTA!X13) ->  | V103: =IF(DTA!Y13="","",DTA!Y13) ->  | W103: =IF(DTA!Z13="","",DTA!Z13) ->  | X103: =IF(DTA!AA13="","",DTA!AA13) ->  | Y103: =IF(DTA!AB13="","",DTA!AB13) ->  | Z103: =IF(DTA!AC13="","",DTA!AC13) ->  | AA103: =IF(DTA!AD13="","",DTA!AD13) ->  | AB103: =IF(DTA!AE13="","",DTA!AE13) ->  | AC103: =IF(DTA!AF13="","",DTA!AF13) ->  | AD103: =IF(DTA!AG13="","",DTA!AG13) ->  | AE103: =IF(DTA!AH13="","",DTA!AH13) ->  | AF103: =IF(DTA!AI13="","",DTA!AI13) ->  | AG103: =IF(DTA!AJ13="","",DTA!AJ13) ->  | AH103: =IF(DTA!AK13="","",DTA!AK13) ->  | AI103: =IF(DTA!AL13="","",DTA!AL13) ->  | AJ103: =IF(DTA!AM13="","",DTA!AM13) ->  | AK103: =IF(DTA!AN13="","",DTA!AN13) ->  | AL103: =IF(DTA!AO13="","",DTA!AO13) ->  | AM103: =IF(DTA!AP13="","",DTA!AP13) -> 
D104: Criterio Evaluación 4.3 | E104: =IF(DTA!H14="","",DTA!H14) ->  | F104: =IF(DTA!I14="","",DTA!I14) ->  | G104: =IF(DTA!J14="","",DTA!J14) ->  | H104: =IF(DTA!K14="","",DTA!K14) ->  | I104: =IF(DTA!L14="","",DTA!L14) ->  | J104: =IF(DTA!M14="","",DTA!M14) ->  | K104: =IF(DTA!N14="","",DTA!N14) ->  | L104: =IF(DTA!O14="","",DTA!O14) ->  | M104: =IF(DTA!P14="","",DTA!P14) ->  | N104: =IF(DTA!Q14="","",DTA!Q14) ->  | O104: =IF(DTA!R14="","",DTA!R14) ->  | P104: =IF(DTA!S14="","",DTA!S14) ->  | Q104: =IF(DTA!T14="","",DTA!T14) ->  | R104: =IF(DTA!U14="","",DTA!U14) ->  | S104: =IF(DTA!V14="","",DTA!V14) ->  | T104: =IF(DTA!W14="","",DTA!W14) ->  | U104: =IF(DTA!X14="","",DTA!X14) ->  | V104: =IF(DTA!Y14="","",DTA!Y14) ->  | W104: =IF(DTA!Z14="","",DTA!Z14) ->  | X104: =IF(DTA!AA14="","",DTA!AA14) ->  | Y104: =IF(DTA!AB14="","",DTA!AB14) ->  | Z104: =IF(DTA!AC14="","",DTA!AC14) ->  | AA104: =IF(DTA!AD14="","",DTA!AD14) ->  | AB104: =IF(DTA!AE14="","",DTA!AE14) ->  | AC104: =IF(DTA!AF14="","",DTA!AF14) ->  | AD104: =IF(DTA!AG14="","",DTA!AG14) ->  | AE104: =IF(DTA!AH14="","",DTA!AH14) ->  | AF104: =IF(DTA!AI14="","",DTA!AI14) ->  | AG104: =IF(DTA!AJ14="","",DTA!AJ14) ->  | AH104: =IF(DTA!AK14="","",DTA!AK14) ->  | AI104: =IF(DTA!AL14="","",DTA!AL14) ->  | AJ104: =IF(DTA!AM14="","",DTA!AM14) ->  | AK104: =IF(DTA!AN14="","",DTA!AN14) ->  | AL104: =IF(DTA!AO14="","",DTA!AO14) ->  | AM104: =IF(DTA!AP14="","",DTA!AP14) -> 
C105: Comp. Esp. 5 | D105: Criterio Evaluación 5.1 | E105: =IF(DTA!H15="","",DTA!H15) ->  | F105: =IF(DTA!I15="","",DTA!I15) ->  | G105: =IF(DTA!J15="","",DTA!J15) ->  | H105: =IF(DTA!K15="","",DTA!K15) ->  | I105: =IF(DTA!L15="","",DTA!L15) ->  | J105: =IF(DTA!M15="","",DTA!M15) ->  | K105: =IF(DTA!N15="","",DTA!N15) ->  | L105: =IF(DTA!O15="","",DTA!O15) ->  | M105: =IF(DTA!P15="","",DTA!P15) ->  | N105: =IF(DTA!Q15="","",DTA!Q15) ->  | O105: =IF(DTA!R15="","",DTA!R15) ->  | P105: =IF(DTA!S15="","",DTA!S15) ->  | Q105: =IF(DTA!T15="","",DTA!T15) ->  | R105: =IF(DTA!U15="","",DTA!U15) ->  | S105: =IF(DTA!V15="","",DTA!V15) ->  | T105: =IF(DTA!W15="","",DTA!W15) ->  | U105: =IF(DTA!X15="","",DTA!X15) ->  | V105: =IF(DTA!Y15="","",DTA!Y15) ->  | W105: =IF(DTA!Z15="","",DTA!Z15) ->  | X105: =IF(DTA!AA15="","",DTA!AA15) ->  | Y105: =IF(DTA!AB15="","",DTA!AB15) ->  | Z105: =IF(DTA!AC15="","",DTA!AC15) ->  | AA105: =IF(DTA!AD15="","",DTA!AD15) ->  | AB105: =IF(DTA!AE15="","",DTA!AE15) ->  | AC105: =IF(DTA!AF15="","",DTA!AF15) ->  | AD105: =IF(DTA!AG15="","",DTA!AG15) ->  | AE105: =IF(DTA!AH15="","",DTA!AH15) ->  | AF105: =IF(DTA!AI15="","",DTA!AI15) ->  | AG105: =IF(DTA!AJ15="","",DTA!AJ15) ->  | AH105: =IF(DTA!AK15="","",DTA!AK15) ->  | AI105: =IF(DTA!AL15="","",DTA!AL15) ->  | AJ105: =IF(DTA!AM15="","",DTA!AM15) ->  | AK105: =IF(DTA!AN15="","",DTA!AN15) ->  | AL105: =IF(DTA!AO15="","",DTA!AO15) ->  | AM105: =IF(DTA!AP15="","",DTA!AP15) -> 
B106: Diseño | C106: Comp. Esp. 1 | D106: Criterio Evaluación 1.1 | E106: =IF(DIS!H4="","",DIS!H4) ->  | F106: =IF(DIS!I4="","",DIS!I4) ->  | G106: =IF(DIS!J4="","",DIS!J4) ->  | H106: =IF(DIS!K4="","",DIS!K4) ->  | I106: =IF(DIS!L4="","",DIS!L4) ->  | J106: =IF(DIS!M4="","",DIS!M4) ->  | K106: =IF(DIS!N4="","",DIS!N4) ->  | L106: =IF(DIS!O4="","",DIS!O4) ->  | M106: =IF(DIS!P4="","",DIS!P4) ->  | N106: =IF(DIS!Q4="","",DIS!Q4) ->  | O106: =IF(DIS!R4="","",DIS!R4) ->  | P106: =IF(DIS!S4="","",DIS!S4) ->  | Q106: =IF(DIS!T4="","",DIS!T4) ->  | R106: =IF(DIS!U4="","",DIS!U4) ->  | S106: =IF(DIS!V4="","",DIS!V4) ->  | T106: =IF(DIS!W4="","",DIS!W4) ->  | U106: =IF(DIS!X4="","",DIS!X4) ->  | V106: =IF(DIS!Y4="","",DIS!Y4) ->  | W106: =IF(DIS!Z4="","",DIS!Z4) ->  | X106: =IF(DIS!AA4="","",DIS!AA4) ->  | Y106: =IF(DIS!AB4="","",DIS!AB4) ->  | Z106: =IF(DIS!AC4="","",DIS!AC4) ->  | AA106: =IF(DIS!AD4="","",DIS!AD4) ->  | AB106: =IF(DIS!AE4="","",DIS!AE4) ->  | AC106: =IF(DIS!AF4="","",DIS!AF4) ->  | AD106: =IF(DIS!AG4="","",DIS!AG4) ->  | AE106: =IF(DIS!AH4="","",DIS!AH4) ->  | AF106: =IF(DIS!AI4="","",DIS!AI4) ->  | AG106: =IF(DIS!AJ4="","",DIS!AJ4) ->  | AH106: =IF(DIS!AK4="","",DIS!AK4) ->  | AI106: =IF(DIS!AL4="","",DIS!AL4) ->  | AJ106: =IF(DIS!AM4="","",DIS!AM4) ->  | AK106: =IF(DIS!AN4="","",DIS!AN4) ->  | AL106: =IF(DIS!AO4="","",DIS!AO4) ->  | AM106: =IF(DIS!AP4="","",DIS!AP4) -> 
D107: Criterio Evaluación 1.2 | E107: =IF(DIS!H5="","",DIS!H5) ->  | F107: =IF(DIS!I5="","",DIS!I5) ->  | G107: =IF(DIS!J5="","",DIS!J5) ->  | H107: =IF(DIS!K5="","",DIS!K5) ->  | I107: =IF(DIS!L5="","",DIS!L5) ->  | J107: =IF(DIS!M5="","",DIS!M5) ->  | K107: =IF(DIS!N5="","",DIS!N5) ->  | L107: =IF(DIS!O5="","",DIS!O5) ->  | M107: =IF(DIS!P5="","",DIS!P5) ->  | N107: =IF(DIS!Q5="","",DIS!Q5) ->  | O107: =IF(DIS!R5="","",DIS!R5) ->  | P107: =IF(DIS!S5="","",DIS!S5) ->  | Q107: =IF(DIS!T5="","",DIS!T5) ->  | R107: =IF(DIS!U5="","",DIS!U5) ->  | S107: =IF(DIS!V5="","",DIS!V5) ->  | T107: =IF(DIS!W5="","",DIS!W5) ->  | U107: =IF(DIS!X5="","",DIS!X5) ->  | V107: =IF(DIS!Y5="","",DIS!Y5) ->  | W107: =IF(DIS!Z5="","",DIS!Z5) ->  | X107: =IF(DIS!AA5="","",DIS!AA5) ->  | Y107: =IF(DIS!AB5="","",DIS!AB5) ->  | Z107: =IF(DIS!AC5="","",DIS!AC5) ->  | AA107: =IF(DIS!AD5="","",DIS!AD5) ->  | AB107: =IF(DIS!AE5="","",DIS!AE5) ->  | AC107: =IF(DIS!AF5="","",DIS!AF5) ->  | AD107: =IF(DIS!AG5="","",DIS!AG5) ->  | AE107: =IF(DIS!AH5="","",DIS!AH5) ->  | AF107: =IF(DIS!AI5="","",DIS!AI5) ->  | AG107: =IF(DIS!AJ5="","",DIS!AJ5) ->  | AH107: =IF(DIS!AK5="","",DIS!AK5) ->  | AI107: =IF(DIS!AL5="","",DIS!AL5) ->  | AJ107: =IF(DIS!AM5="","",DIS!AM5) ->  | AK107: =IF(DIS!AN5="","",DIS!AN5) ->  | AL107: =IF(DIS!AO5="","",DIS!AO5) ->  | AM107: =IF(DIS!AP5="","",DIS!AP5) -> 
C108: Comp. Esp. 2 | D108: Criterio Evaluación 2.1 | E108: =IF(DIS!H6="","",DIS!H6) ->  | F108: =IF(DIS!I6="","",DIS!I6) ->  | G108: =IF(DIS!J6="","",DIS!J6) ->  | H108: =IF(DIS!K6="","",DIS!K6) ->  | I108: =IF(DIS!L6="","",DIS!L6) ->  | J108: =IF(DIS!M6="","",DIS!M6) ->  | K108: =IF(DIS!N6="","",DIS!N6) ->  | L108: =IF(DIS!O6="","",DIS!O6) ->  | M108: =IF(DIS!P6="","",DIS!P6) ->  | N108: =IF(DIS!Q6="","",DIS!Q6) ->  | O108: =IF(DIS!R6="","",DIS!R6) ->  | P108: =IF(DIS!S6="","",DIS!S6) ->  | Q108: =IF(DIS!T6="","",DIS!T6) ->  | R108: =IF(DIS!U6="","",DIS!U6) ->  | S108: =IF(DIS!V6="","",DIS!V6) ->  | T108: =IF(DIS!W6="","",DIS!W6) ->  | U108: =IF(DIS!X6="","",DIS!X6) ->  | V108: =IF(DIS!Y6="","",DIS!Y6) ->  | W108: =IF(DIS!Z6="","",DIS!Z6) ->  | X108: =IF(DIS!AA6="","",DIS!AA6) ->  | Y108: =IF(DIS!AB6="","",DIS!AB6) ->  | Z108: =IF(DIS!AC6="","",DIS!AC6) ->  | AA108: =IF(DIS!AD6="","",DIS!AD6) ->  | AB108: =IF(DIS!AE6="","",DIS!AE6) ->  | AC108: =IF(DIS!AF6="","",DIS!AF6) ->  | AD108: =IF(DIS!AG6="","",DIS!AG6) ->  | AE108: =IF(DIS!AH6="","",DIS!AH6) ->  | AF108: =IF(DIS!AI6="","",DIS!AI6) ->  | AG108: =IF(DIS!AJ6="","",DIS!AJ6) ->  | AH108: =IF(DIS!AK6="","",DIS!AK6) ->  | AI108: =IF(DIS!AL6="","",DIS!AL6) ->  | AJ108: =IF(DIS!AM6="","",DIS!AM6) ->  | AK108: =IF(DIS!AN6="","",DIS!AN6) ->  | AL108: =IF(DIS!AO6="","",DIS!AO6) ->  | AM108: =IF(DIS!AP6="","",DIS!AP6) -> 
D109: Criterio Evaluación 2.2 | E109: =IF(DIS!H7="","",DIS!H7) ->  | F109: =IF(DIS!I7="","",DIS!I7) ->  | G109: =IF(DIS!J7="","",DIS!J7) ->  | H109: =IF(DIS!K7="","",DIS!K7) ->  | I109: =IF(DIS!L7="","",DIS!L7) ->  | J109: =IF(DIS!M7="","",DIS!M7) ->  | K109: =IF(DIS!N7="","",DIS!N7) ->  | L109: =IF(DIS!O7="","",DIS!O7) ->  | M109: =IF(DIS!P7="","",DIS!P7) ->  | N109: =IF(DIS!Q7="","",DIS!Q7) ->  | O109: =IF(DIS!R7="","",DIS!R7) ->  | P109: =IF(DIS!S7="","",DIS!S7) ->  | Q109: =IF(DIS!T7="","",DIS!T7) ->  | R109: =IF(DIS!U7="","",DIS!U7) ->  | S109: =IF(DIS!V7="","",DIS!V7) ->  | T109: =IF(DIS!W7="","",DIS!W7) ->  | U109: =IF(DIS!X7="","",DIS!X7) ->  | V109: =IF(DIS!Y7="","",DIS!Y7) ->  | W109: =IF(DIS!Z7="","",DIS!Z7) ->  | X109: =IF(DIS!AA7="","",DIS!AA7) ->  | Y109: =IF(DIS!AB7="","",DIS!AB7) ->  | Z109: =IF(DIS!AC7="","",DIS!AC7) ->  | AA109: =IF(DIS!AD7="","",DIS!AD7) ->  | AB109: =IF(DIS!AE7="","",DIS!AE7) ->  | AC109: =IF(DIS!AF7="","",DIS!AF7) ->  | AD109: =IF(DIS!AG7="","",DIS!AG7) ->  | AE109: =IF(DIS!AH7="","",DIS!AH7) ->  | AF109: =IF(DIS!AI7="","",DIS!AI7) ->  | AG109: =IF(DIS!AJ7="","",DIS!AJ7) ->  | AH109: =IF(DIS!AK7="","",DIS!AK7) ->  | AI109: =IF(DIS!AL7="","",DIS!AL7) ->  | AJ109: =IF(DIS!AM7="","",DIS!AM7) ->  | AK109: =IF(DIS!AN7="","",DIS!AN7) ->  | AL109: =IF(DIS!AO7="","",DIS!AO7) ->  | AM109: =IF(DIS!AP7="","",DIS!AP7) -> 
C110: Comp. Esp. 3 | D110: Criterio Evaluación 3.1 | E110: =IF(DIS!H8="","",DIS!H8) ->  | F110: =IF(DIS!I8="","",DIS!I8) ->  | G110: =IF(DIS!J8="","",DIS!J8) ->  | H110: =IF(DIS!K8="","",DIS!K8) ->  | I110: =IF(DIS!L8="","",DIS!L8) ->  | J110: =IF(DIS!M8="","",DIS!M8) ->  | K110: =IF(DIS!N8="","",DIS!N8) ->  | L110: =IF(DIS!O8="","",DIS!O8) ->  | M110: =IF(DIS!P8="","",DIS!P8) ->  | N110: =IF(DIS!Q8="","",DIS!Q8) ->  | O110: =IF(DIS!R8="","",DIS!R8) ->  | P110: =IF(DIS!S8="","",DIS!S8) ->  | Q110: =IF(DIS!T8="","",DIS!T8) ->  | R110: =IF(DIS!U8="","",DIS!U8) ->  | S110: =IF(DIS!V8="","",DIS!V8) ->  | T110: =IF(DIS!W8="","",DIS!W8) ->  | U110: =IF(DIS!X8="","",DIS!X8) ->  | V110: =IF(DIS!Y8="","",DIS!Y8) ->  | W110: =IF(DIS!Z8="","",DIS!Z8) ->  | X110: =IF(DIS!AA8="","",DIS!AA8) ->  | Y110: =IF(DIS!AB8="","",DIS!AB8) ->  | Z110: =IF(DIS!AC8="","",DIS!AC8) ->  | AA110: =IF(DIS!AD8="","",DIS!AD8) ->  | AB110: =IF(DIS!AE8="","",DIS!AE8) ->  | AC110: =IF(DIS!AF8="","",DIS!AF8) ->  | AD110: =IF(DIS!AG8="","",DIS!AG8) ->  | AE110: =IF(DIS!AH8="","",DIS!AH8) ->  | AF110: =IF(DIS!AI8="","",DIS!AI8) ->  | AG110: =IF(DIS!AJ8="","",DIS!AJ8) ->  | AH110: =IF(DIS!AK8="","",DIS!AK8) ->  | AI110: =IF(DIS!AL8="","",DIS!AL8) ->  | AJ110: =IF(DIS!AM8="","",DIS!AM8) ->  | AK110: =IF(DIS!AN8="","",DIS!AN8) ->  | AL110: =IF(DIS!AO8="","",DIS!AO8) ->  | AM110: =IF(DIS!AP8="","",DIS!AP8) -> 
D111: Criterio Evaluación 3.2 | E111: =IF(DIS!H9="","",DIS!H9) ->  | F111: =IF(DIS!I9="","",DIS!I9) ->  | G111: =IF(DIS!J9="","",DIS!J9) ->  | H111: =IF(DIS!K9="","",DIS!K9) ->  | I111: =IF(DIS!L9="","",DIS!L9) ->  | J111: =IF(DIS!M9="","",DIS!M9) ->  | K111: =IF(DIS!N9="","",DIS!N9) ->  | L111: =IF(DIS!O9="","",DIS!O9) ->  | M111: =IF(DIS!P9="","",DIS!P9) ->  | N111: =IF(DIS!Q9="","",DIS!Q9) ->  | O111: =IF(DIS!R9="","",DIS!R9) ->  | P111: =IF(DIS!S9="","",DIS!S9) ->  | Q111: =IF(DIS!T9="","",DIS!T9) ->  | R111: =IF(DIS!U9="","",DIS!U9) ->  | S111: =IF(DIS!V9="","",DIS!V9) ->  | T111: =IF(DIS!W9="","",DIS!W9) ->  | U111: =IF(DIS!X9="","",DIS!X9) ->  | V111: =IF(DIS!Y9="","",DIS!Y9) ->  | W111: =IF(DIS!Z9="","",DIS!Z9) ->  | X111: =IF(DIS!AA9="","",DIS!AA9) ->  | Y111: =IF(DIS!AB9="","",DIS!AB9) ->  | Z111: =IF(DIS!AC9="","",DIS!AC9) ->  | AA111: =IF(DIS!AD9="","",DIS!AD9) ->  | AB111: =IF(DIS!AE9="","",DIS!AE9) ->  | AC111: =IF(DIS!AF9="","",DIS!AF9) ->  | AD111: =IF(DIS!AG9="","",DIS!AG9) ->  | AE111: =IF(DIS!AH9="","",DIS!AH9) ->  | AF111: =IF(DIS!AI9="","",DIS!AI9) ->  | AG111: =IF(DIS!AJ9="","",DIS!AJ9) ->  | AH111: =IF(DIS!AK9="","",DIS!AK9) ->  | AI111: =IF(DIS!AL9="","",DIS!AL9) ->  | AJ111: =IF(DIS!AM9="","",DIS!AM9) ->  | AK111: =IF(DIS!AN9="","",DIS!AN9) ->  | AL111: =IF(DIS!AO9="","",DIS!AO9) ->  | AM111: =IF(DIS!AP9="","",DIS!AP9) -> 
C112: Comp. Esp. 4 | D112: Criterio Evaluación 4.1 | E112: =IF(DIS!H10="","",DIS!H10) ->  | F112: =IF(DIS!I10="","",DIS!I10) ->  | G112: =IF(DIS!J10="","",DIS!J10) ->  | H112: =IF(DIS!K10="","",DIS!K10) ->  | I112: =IF(DIS!L10="","",DIS!L10) ->  | J112: =IF(DIS!M10="","",DIS!M10) ->  | K112: =IF(DIS!N10="","",DIS!N10) ->  | L112: =IF(DIS!O10="","",DIS!O10) ->  | M112: =IF(DIS!P10="","",DIS!P10) ->  | N112: =IF(DIS!Q10="","",DIS!Q10) ->  | O112: =IF(DIS!R10="","",DIS!R10) ->  | P112: =IF(DIS!S10="","",DIS!S10) ->  | Q112: =IF(DIS!T10="","",DIS!T10) ->  | R112: =IF(DIS!U10="","",DIS!U10) ->  | S112: =IF(DIS!V10="","",DIS!V10) ->  | T112: =IF(DIS!W10="","",DIS!W10) ->  | U112: =IF(DIS!X10="","",DIS!X10) ->  | V112: =IF(DIS!Y10="","",DIS!Y10) ->  | W112: =IF(DIS!Z10="","",DIS!Z10) ->  | X112: =IF(DIS!AA10="","",DIS!AA10) ->  | Y112: =IF(DIS!AB10="","",DIS!AB10) ->  | Z112: =IF(DIS!AC10="","",DIS!AC10) ->  | AA112: =IF(DIS!AD10="","",DIS!AD10) ->  | AB112: =IF(DIS!AE10="","",DIS!AE10) ->  | AC112: =IF(DIS!AF10="","",DIS!AF10) ->  | AD112: =IF(DIS!AG10="","",DIS!AG10) ->  | AE112: =IF(DIS!AH10="","",DIS!AH10) ->  | AF112: =IF(DIS!AI10="","",DIS!AI10) ->  | AG112: =IF(DIS!AJ10="","",DIS!AJ10) ->  | AH112: =IF(DIS!AK10="","",DIS!AK10) ->  | AI112: =IF(DIS!AL10="","",DIS!AL10) ->  | AJ112: =IF(DIS!AM10="","",DIS!AM10) ->  | AK112: =IF(DIS!AN10="","",DIS!AN10) ->  | AL112: =IF(DIS!AO10="","",DIS!AO10) ->  | AM112: =IF(DIS!AP10="","",DIS!AP10) -> 
D113: Criterio Evaluación 4.2 | E113: =IF(DIS!H11="","",DIS!H11) ->  | F113: =IF(DIS!I11="","",DIS!I11) ->  | G113: =IF(DIS!J11="","",DIS!J11) ->  | H113: =IF(DIS!K11="","",DIS!K11) ->  | I113: =IF(DIS!L11="","",DIS!L11) ->  | J113: =IF(DIS!M11="","",DIS!M11) ->  | K113: =IF(DIS!N11="","",DIS!N11) ->  | L113: =IF(DIS!O11="","",DIS!O11) ->  | M113: =IF(DIS!P11="","",DIS!P11) ->  | N113: =IF(DIS!Q11="","",DIS!Q11) ->  | O113: =IF(DIS!R11="","",DIS!R11) ->  | P113: =IF(DIS!S11="","",DIS!S11) ->  | Q113: =IF(DIS!T11="","",DIS!T11) ->  | R113: =IF(DIS!U11="","",DIS!U11) ->  | S113: =IF(DIS!V11="","",DIS!V11) ->  | T113: =IF(DIS!W11="","",DIS!W11) ->  | U113: =IF(DIS!X11="","",DIS!X11) ->  | V113: =IF(DIS!Y11="","",DIS!Y11) ->  | W113: =IF(DIS!Z11="","",DIS!Z11) ->  | X113: =IF(DIS!AA11="","",DIS!AA11) ->  | Y113: =IF(DIS!AB11="","",DIS!AB11) ->  | Z113: =IF(DIS!AC11="","",DIS!AC11) ->  | AA113: =IF(DIS!AD11="","",DIS!AD11) ->  | AB113: =IF(DIS!AE11="","",DIS!AE11) ->  | AC113: =IF(DIS!AF11="","",DIS!AF11) ->  | AD113: =IF(DIS!AG11="","",DIS!AG11) ->  | AE113: =IF(DIS!AH11="","",DIS!AH11) ->  | AF113: =IF(DIS!AI11="","",DIS!AI11) ->  | AG113: =IF(DIS!AJ11="","",DIS!AJ11) ->  | AH113: =IF(DIS!AK11="","",DIS!AK11) ->  | AI113: =IF(DIS!AL11="","",DIS!AL11) ->  | AJ113: =IF(DIS!AM11="","",DIS!AM11) ->  | AK113: =IF(DIS!AN11="","",DIS!AN11) ->  | AL113: =IF(DIS!AO11="","",DIS!AO11) ->  | AM113: =IF(DIS!AP11="","",DIS!AP11) -> 
D114: Criterio Evaluación 4.3 | E114: =IF(DIS!H12="","",DIS!H12) ->  | F114: =IF(DIS!I12="","",DIS!I12) ->  | G114: =IF(DIS!J12="","",DIS!J12) ->  | H114: =IF(DIS!K12="","",DIS!K12) ->  | I114: =IF(DIS!L12="","",DIS!L12) ->  | J114: =IF(DIS!M12="","",DIS!M12) ->  | K114: =IF(DIS!N12="","",DIS!N12) ->  | L114: =IF(DIS!O12="","",DIS!O12) ->  | M114: =IF(DIS!P12="","",DIS!P12) ->  | N114: =IF(DIS!Q12="","",DIS!Q12) ->  | O114: =IF(DIS!R12="","",DIS!R12) ->  | P114: =IF(DIS!S12="","",DIS!S12) ->  | Q114: =IF(DIS!T12="","",DIS!T12) ->  | R114: =IF(DIS!U12="","",DIS!U12) ->  | S114: =IF(DIS!V12="","",DIS!V12) ->  | T114: =IF(DIS!W12="","",DIS!W12) ->  | U114: =IF(DIS!X12="","",DIS!X12) ->  | V114: =IF(DIS!Y12="","",DIS!Y12) ->  | W114: =IF(DIS!Z12="","",DIS!Z12) ->  | X114: =IF(DIS!AA12="","",DIS!AA12) ->  | Y114: =IF(DIS!AB12="","",DIS!AB12) ->  | Z114: =IF(DIS!AC12="","",DIS!AC12) ->  | AA114: =IF(DIS!AD12="","",DIS!AD12) ->  | AB114: =IF(DIS!AE12="","",DIS!AE12) ->  | AC114: =IF(DIS!AF12="","",DIS!AF12) ->  | AD114: =IF(DIS!AG12="","",DIS!AG12) ->  | AE114: =IF(DIS!AH12="","",DIS!AH12) ->  | AF114: =IF(DIS!AI12="","",DIS!AI12) ->  | AG114: =IF(DIS!AJ12="","",DIS!AJ12) ->  | AH114: =IF(DIS!AK12="","",DIS!AK12) ->  | AI114: =IF(DIS!AL12="","",DIS!AL12) ->  | AJ114: =IF(DIS!AM12="","",DIS!AM12) ->  | AK114: =IF(DIS!AN12="","",DIS!AN12) ->  | AL114: =IF(DIS!AO12="","",DIS!AO12) ->  | AM114: =IF(DIS!AP12="","",DIS!AP12) -> 
C115: Comp. Esp. 5 | D115: Criterio Evaluación 5.1 | E115: =IF(DIS!H13="","",DIS!H13) ->  | F115: =IF(DIS!I13="","",DIS!I13) ->  | G115: =IF(DIS!J13="","",DIS!J13) ->  | H115: =IF(DIS!K13="","",DIS!K13) ->  | I115: =IF(DIS!L13="","",DIS!L13) ->  | J115: =IF(DIS!M13="","",DIS!M13) ->  | K115: =IF(DIS!N13="","",DIS!N13) ->  | L115: =IF(DIS!O13="","",DIS!O13) ->  | M115: =IF(DIS!P13="","",DIS!P13) ->  | N115: =IF(DIS!Q13="","",DIS!Q13) ->  | O115: =IF(DIS!R13="","",DIS!R13) ->  | P115: =IF(DIS!S13="","",DIS!S13) ->  | Q115: =IF(DIS!T13="","",DIS!T13) ->  | R115: =IF(DIS!U13="","",DIS!U13) ->  | S115: =IF(DIS!V13="","",DIS!V13) ->  | T115: =IF(DIS!W13="","",DIS!W13) ->  | U115: =IF(DIS!X13="","",DIS!X13) ->  | V115: =IF(DIS!Y13="","",DIS!Y13) ->  | W115: =IF(DIS!Z13="","",DIS!Z13) ->  | X115: =IF(DIS!AA13="","",DIS!AA13) ->  | Y115: =IF(DIS!AB13="","",DIS!AB13) ->  | Z115: =IF(DIS!AC13="","",DIS!AC13) ->  | AA115: =IF(DIS!AD13="","",DIS!AD13) ->  | AB115: =IF(DIS!AE13="","",DIS!AE13) ->  | AC115: =IF(DIS!AF13="","",DIS!AF13) ->  | AD115: =IF(DIS!AG13="","",DIS!AG13) ->  | AE115: =IF(DIS!AH13="","",DIS!AH13) ->  | AF115: =IF(DIS!AI13="","",DIS!AI13) ->  | AG115: =IF(DIS!AJ13="","",DIS!AJ13) ->  | AH115: =IF(DIS!AK13="","",DIS!AK13) ->  | AI115: =IF(DIS!AL13="","",DIS!AL13) ->  | AJ115: =IF(DIS!AM13="","",DIS!AM13) ->  | AK115: =IF(DIS!AN13="","",DIS!AN13) ->  | AL115: =IF(DIS!AO13="","",DIS!AO13) ->  | AM115: =IF(DIS!AP13="","",DIS!AP13) -> 
D116: Criterio Evaluación 5.2 | E116: =IF(DIS!H14="","",DIS!H14) ->  | F116: =IF(DIS!I14="","",DIS!I14) ->  | G116: =IF(DIS!J14="","",DIS!J14) ->  | H116: =IF(DIS!K14="","",DIS!K14) ->  | I116: =IF(DIS!L14="","",DIS!L14) ->  | J116: =IF(DIS!M14="","",DIS!M14) ->  | K116: =IF(DIS!N14="","",DIS!N14) ->  | L116: =IF(DIS!O14="","",DIS!O14) ->  | M116: =IF(DIS!P14="","",DIS!P14) ->  | N116: =IF(DIS!Q14="","",DIS!Q14) ->  | O116: =IF(DIS!R14="","",DIS!R14) ->  | P116: =IF(DIS!S14="","",DIS!S14) ->  | Q116: =IF(DIS!T14="","",DIS!T14) ->  | R116: =IF(DIS!U14="","",DIS!U14) ->  | S116: =IF(DIS!V14="","",DIS!V14) ->  | T116: =IF(DIS!W14="","",DIS!W14) ->  | U116: =IF(DIS!X14="","",DIS!X14) ->  | V116: =IF(DIS!Y14="","",DIS!Y14) ->  | W116: =IF(DIS!Z14="","",DIS!Z14) ->  | X116: =IF(DIS!AA14="","",DIS!AA14) ->  | Y116: =IF(DIS!AB14="","",DIS!AB14) ->  | Z116: =IF(DIS!AC14="","",DIS!AC14) ->  | AA116: =IF(DIS!AD14="","",DIS!AD14) ->  | AB116: =IF(DIS!AE14="","",DIS!AE14) ->  | AC116: =IF(DIS!AF14="","",DIS!AF14) ->  | AD116: =IF(DIS!AG14="","",DIS!AG14) ->  | AE116: =IF(DIS!AH14="","",DIS!AH14) ->  | AF116: =IF(DIS!AI14="","",DIS!AI14) ->  | AG116: =IF(DIS!AJ14="","",DIS!AJ14) ->  | AH116: =IF(DIS!AK14="","",DIS!AK14) ->  | AI116: =IF(DIS!AL14="","",DIS!AL14) ->  | AJ116: =IF(DIS!AM14="","",DIS!AM14) ->  | AK116: =IF(DIS!AN14="","",DIS!AN14) ->  | AL116: =IF(DIS!AO14="","",DIS!AO14) ->  | AM116: =IF(DIS!AP14="","",DIS!AP14) -> 
C117: Comp. Esp. 6 | D117: Criterio Evaluación 6.1 | E117: =IF(DIS!H15="","",DIS!H15) ->  | F117: =IF(DIS!I15="","",DIS!I15) ->  | G117: =IF(DIS!J15="","",DIS!J15) ->  | H117: =IF(DIS!K15="","",DIS!K15) ->  | I117: =IF(DIS!L15="","",DIS!L15) ->  | J117: =IF(DIS!M15="","",DIS!M15) ->  | K117: =IF(DIS!N15="","",DIS!N15) ->  | L117: =IF(DIS!O15="","",DIS!O15) ->  | M117: =IF(DIS!P15="","",DIS!P15) ->  | N117: =IF(DIS!Q15="","",DIS!Q15) ->  | O117: =IF(DIS!R15="","",DIS!R15) ->  | P117: =IF(DIS!S15="","",DIS!S15) ->  | Q117: =IF(DIS!T15="","",DIS!T15) ->  | R117: =IF(DIS!U15="","",DIS!U15) ->  | S117: =IF(DIS!V15="","",DIS!V15) ->  | T117: =IF(DIS!W15="","",DIS!W15) ->  | U117: =IF(DIS!X15="","",DIS!X15) ->  | V117: =IF(DIS!Y15="","",DIS!Y15) ->  | W117: =IF(DIS!Z15="","",DIS!Z15) ->  | X117: =IF(DIS!AA15="","",DIS!AA15) ->  | Y117: =IF(DIS!AB15="","",DIS!AB15) ->  | Z117: =IF(DIS!AC15="","",DIS!AC15) ->  | AA117: =IF(DIS!AD15="","",DIS!AD15) ->  | AB117: =IF(DIS!AE15="","",DIS!AE15) ->  | AC117: =IF(DIS!AF15="","",DIS!AF15) ->  | AD117: =IF(DIS!AG15="","",DIS!AG15) ->  | AE117: =IF(DIS!AH15="","",DIS!AH15) ->  | AF117: =IF(DIS!AI15="","",DIS!AI15) ->  | AG117: =IF(DIS!AJ15="","",DIS!AJ15) ->  | AH117: =IF(DIS!AK15="","",DIS!AK15) ->  | AI117: =IF(DIS!AL15="","",DIS!AL15) ->  | AJ117: =IF(DIS!AM15="","",DIS!AM15) ->  | AK117: =IF(DIS!AN15="","",DIS!AN15) ->  | AL117: =IF(DIS!AO15="","",DIS!AO15) ->  | AM117: =IF(DIS!AP15="","",DIS!AP15) -> 
D118: Criterio Evaluación 6.2 | E118: =IF(DIS!H16="","",DIS!H16) ->  | F118: =IF(DIS!I16="","",DIS!I16) ->  | G118: =IF(DIS!J16="","",DIS!J16) ->  | H118: =IF(DIS!K16="","",DIS!K16) ->  | I118: =IF(DIS!L16="","",DIS!L16) ->  | J118: =IF(DIS!M16="","",DIS!M16) ->  | K118: =IF(DIS!N16="","",DIS!N16) ->  | L118: =IF(DIS!O16="","",DIS!O16) ->  | M118: =IF(DIS!P16="","",DIS!P16) ->  | N118: =IF(DIS!Q16="","",DIS!Q16) ->  | O118: =IF(DIS!R16="","",DIS!R16) ->  | P118: =IF(DIS!S16="","",DIS!S16) ->  | Q118: =IF(DIS!T16="","",DIS!T16) ->  | R118: =IF(DIS!U16="","",DIS!U16) ->  | S118: =IF(DIS!V16="","",DIS!V16) ->  | T118: =IF(DIS!W16="","",DIS!W16) ->  | U118: =IF(DIS!X16="","",DIS!X16) ->  | V118: =IF(DIS!Y16="","",DIS!Y16) ->  | W118: =IF(DIS!Z16="","",DIS!Z16) ->  | X118: =IF(DIS!AA16="","",DIS!AA16) ->  | Y118: =IF(DIS!AB16="","",DIS!AB16) ->  | Z118: =IF(DIS!AC16="","",DIS!AC16) ->  | AA118: =IF(DIS!AD16="","",DIS!AD16) ->  | AB118: =IF(DIS!AE16="","",DIS!AE16) ->  | AC118: =IF(DIS!AF16="","",DIS!AF16) ->  | AD118: =IF(DIS!AG16="","",DIS!AG16) ->  | AE118: =IF(DIS!AH16="","",DIS!AH16) ->  | AF118: =IF(DIS!AI16="","",DIS!AI16) ->  | AG118: =IF(DIS!AJ16="","",DIS!AJ16) ->  | AH118: =IF(DIS!AK16="","",DIS!AK16) ->  | AI118: =IF(DIS!AL16="","",DIS!AL16) ->  | AJ118: =IF(DIS!AM16="","",DIS!AM16) ->  | AK118: =IF(DIS!AN16="","",DIS!AN16) ->  | AL118: =IF(DIS!AO16="","",DIS!AO16) ->  | AM118: =IF(DIS!AP16="","",DIS!AP16) -> 
D119: Criterio Evaluación 6.3 | E119: =IF(DIS!H17="","",DIS!H17) ->  | F119: =IF(DIS!I17="","",DIS!I17) ->  | G119: =IF(DIS!J17="","",DIS!J17) ->  | H119: =IF(DIS!K17="","",DIS!K17) ->  | I119: =IF(DIS!L17="","",DIS!L17) ->  | J119: =IF(DIS!M17="","",DIS!M17) ->  | K119: =IF(DIS!N17="","",DIS!N17) ->  | L119: =IF(DIS!O17="","",DIS!O17) ->  | M119: =IF(DIS!P17="","",DIS!P17) ->  | N119: =IF(DIS!Q17="","",DIS!Q17) ->  | O119: =IF(DIS!R17="","",DIS!R17) ->  | P119: =IF(DIS!S17="","",DIS!S17) ->  | Q119: =IF(DIS!T17="","",DIS!T17) ->  | R119: =IF(DIS!U17="","",DIS!U17) ->  | S119: =IF(DIS!V17="","",DIS!V17) ->  | T119: =IF(DIS!W17="","",DIS!W17) ->  | U119: =IF(DIS!X17="","",DIS!X17) ->  | V119: =IF(DIS!Y17="","",DIS!Y17) ->  | W119: =IF(DIS!Z17="","",DIS!Z17) ->  | X119: =IF(DIS!AA17="","",DIS!AA17) ->  | Y119: =IF(DIS!AB17="","",DIS!AB17) ->  | Z119: =IF(DIS!AC17="","",DIS!AC17) ->  | AA119: =IF(DIS!AD17="","",DIS!AD17) ->  | AB119: =IF(DIS!AE17="","",DIS!AE17) ->  | AC119: =IF(DIS!AF17="","",DIS!AF17) ->  | AD119: =IF(DIS!AG17="","",DIS!AG17) ->  | AE119: =IF(DIS!AH17="","",DIS!AH17) ->  | AF119: =IF(DIS!AI17="","",DIS!AI17) ->  | AG119: =IF(DIS!AJ17="","",DIS!AJ17) ->  | AH119: =IF(DIS!AK17="","",DIS!AK17) ->  | AI119: =IF(DIS!AL17="","",DIS!AL17) ->  | AJ119: =IF(DIS!AM17="","",DIS!AM17) ->  | AK119: =IF(DIS!AN17="","",DIS!AN17) ->  | AL119: =IF(DIS!AO17="","",DIS!AO17) ->  | AM119: =IF(DIS!AP17="","",DIS!AP17) -> 
D120: Criterio Evaluación 6.4 | E120: =IF(DIS!H18="","",DIS!H18) ->  | F120: =IF(DIS!I18="","",DIS!I18) ->  | G120: =IF(DIS!J18="","",DIS!J18) ->  | H120: =IF(DIS!K18="","",DIS!K18) ->  | I120: =IF(DIS!L18="","",DIS!L18) ->  | J120: =IF(DIS!M18="","",DIS!M18) ->  | K120: =IF(DIS!N18="","",DIS!N18) ->  | L120: =IF(DIS!O18="","",DIS!O18) ->  | M120: =IF(DIS!P18="","",DIS!P18) ->  | N120: =IF(DIS!Q18="","",DIS!Q18) ->  | O120: =IF(DIS!R18="","",DIS!R18) ->  | P120: =IF(DIS!S18="","",DIS!S18) ->  | Q120: =IF(DIS!T18="","",DIS!T18) ->  | R120: =IF(DIS!U18="","",DIS!U18) ->  | S120: =IF(DIS!V18="","",DIS!V18) ->  | T120: =IF(DIS!W18="","",DIS!W18) ->  | U120: =IF(DIS!X18="","",DIS!X18) ->  | V120: =IF(DIS!Y18="","",DIS!Y18) ->  | W120: =IF(DIS!Z18="","",DIS!Z18) ->  | X120: =IF(DIS!AA18="","",DIS!AA18) ->  | Y120: =IF(DIS!AB18="","",DIS!AB18) ->  | Z120: =IF(DIS!AC18="","",DIS!AC18) ->  | AA120: =IF(DIS!AD18="","",DIS!AD18) ->  | AB120: =IF(DIS!AE18="","",DIS!AE18) ->  | AC120: =IF(DIS!AF18="","",DIS!AF18) ->  | AD120: =IF(DIS!AG18="","",DIS!AG18) ->  | AE120: =IF(DIS!AH18="","",DIS!AH18) ->  | AF120: =IF(DIS!AI18="","",DIS!AI18) ->  | AG120: =IF(DIS!AJ18="","",DIS!AJ18) ->  | AH120: =IF(DIS!AK18="","",DIS!AK18) ->  | AI120: =IF(DIS!AL18="","",DIS!AL18) ->  | AJ120: =IF(DIS!AM18="","",DIS!AM18) ->  | AK120: =IF(DIS!AN18="","",DIS!AN18) ->  | AL120: =IF(DIS!AO18="","",DIS!AO18) ->  | AM120: =IF(DIS!AP18="","",DIS!AP18) -> 
B121: Empresa y Diseño de Modelos de Negocio | C121: Comp. Esp. 1 | D121: Criterio Evaluación 1.1 | E121: =IF(EYDMN!H4="","",EYDMN!H4) ->  | F121: =IF(EYDMN!I4="","",EYDMN!I4) ->  | G121: =IF(EYDMN!J4="","",EYDMN!J4) ->  | H121: =IF(EYDMN!K4="","",EYDMN!K4) ->  | I121: =IF(EYDMN!L4="","",EYDMN!L4) ->  | J121: =IF(EYDMN!M4="","",EYDMN!M4) ->  | K121: =IF(EYDMN!N4="","",EYDMN!N4) ->  | L121: =IF(EYDMN!O4="","",EYDMN!O4) ->  | M121: =IF(EYDMN!P4="","",EYDMN!P4) ->  | N121: =IF(EYDMN!Q4="","",EYDMN!Q4) ->  | O121: =IF(EYDMN!R4="","",EYDMN!R4) ->  | P121: =IF(EYDMN!S4="","",EYDMN!S4) ->  | Q121: =IF(EYDMN!T4="","",EYDMN!T4) ->  | R121: =IF(EYDMN!U4="","",EYDMN!U4) ->  | S121: =IF(EYDMN!V4="","",EYDMN!V4) ->  | T121: =IF(EYDMN!W4="","",EYDMN!W4) ->  | U121: =IF(EYDMN!X4="","",EYDMN!X4) ->  | V121: =IF(EYDMN!Y4="","",EYDMN!Y4) ->  | W121: =IF(EYDMN!Z4="","",EYDMN!Z4) ->  | X121: =IF(EYDMN!AA4="","",EYDMN!AA4) ->  | Y121: =IF(EYDMN!AB4="","",EYDMN!AB4) ->  | Z121: =IF(EYDMN!AC4="","",EYDMN!AC4) ->  | AA121: =IF(EYDMN!AD4="","",EYDMN!AD4) ->  | AB121: =IF(EYDMN!AE4="","",EYDMN!AE4) ->  | AC121: =IF(EYDMN!AF4="","",EYDMN!AF4) ->  | AD121: =IF(EYDMN!AG4="","",EYDMN!AG4) ->  | AE121: =IF(EYDMN!AH4="","",EYDMN!AH4) ->  | AF121: =IF(EYDMN!AI4="","",EYDMN!AI4) ->  | AG121: =IF(EYDMN!AJ4="","",EYDMN!AJ4) ->  | AH121: =IF(EYDMN!AK4="","",EYDMN!AK4) ->  | AI121: =IF(EYDMN!AL4="","",EYDMN!AL4) ->  | AJ121: =IF(EYDMN!AM4="","",EYDMN!AM4) ->  | AK121: =IF(EYDMN!AN4="","",EYDMN!AN4) ->  | AL121: =IF(EYDMN!AO4="","",EYDMN!AO4) ->  | AM121: =IF(EYDMN!AP4="","",EYDMN!AP4) -> 
D122: Criterio Evaluación 1.2 | E122: =IF(EYDMN!H5="","",EYDMN!H5) ->  | F122: =IF(EYDMN!I5="","",EYDMN!I5) ->  | G122: =IF(EYDMN!J5="","",EYDMN!J5) ->  | H122: =IF(EYDMN!K5="","",EYDMN!K5) ->  | I122: =IF(EYDMN!L5="","",EYDMN!L5) ->  | J122: =IF(EYDMN!M5="","",EYDMN!M5) ->  | K122: =IF(EYDMN!N5="","",EYDMN!N5) ->  | L122: =IF(EYDMN!O5="","",EYDMN!O5) ->  | M122: =IF(EYDMN!P5="","",EYDMN!P5) ->  | N122: =IF(EYDMN!Q5="","",EYDMN!Q5) ->  | O122: =IF(EYDMN!R5="","",EYDMN!R5) ->  | P122: =IF(EYDMN!S5="","",EYDMN!S5) ->  | Q122: =IF(EYDMN!T5="","",EYDMN!T5) ->  | R122: =IF(EYDMN!U5="","",EYDMN!U5) ->  | S122: =IF(EYDMN!V5="","",EYDMN!V5) ->  | T122: =IF(EYDMN!W5="","",EYDMN!W5) ->  | U122: =IF(EYDMN!X5="","",EYDMN!X5) ->  | V122: =IF(EYDMN!Y5="","",EYDMN!Y5) ->  | W122: =IF(EYDMN!Z5="","",EYDMN!Z5) ->  | X122: =IF(EYDMN!AA5="","",EYDMN!AA5) ->  | Y122: =IF(EYDMN!AB5="","",EYDMN!AB5) ->  | Z122: =IF(EYDMN!AC5="","",EYDMN!AC5) ->  | AA122: =IF(EYDMN!AD5="","",EYDMN!AD5) ->  | AB122: =IF(EYDMN!AE5="","",EYDMN!AE5) ->  | AC122: =IF(EYDMN!AF5="","",EYDMN!AF5) ->  | AD122: =IF(EYDMN!AG5="","",EYDMN!AG5) ->  | AE122: =IF(EYDMN!AH5="","",EYDMN!AH5) ->  | AF122: =IF(EYDMN!AI5="","",EYDMN!AI5) ->  | AG122: =IF(EYDMN!AJ5="","",EYDMN!AJ5) ->  | AH122: =IF(EYDMN!AK5="","",EYDMN!AK5) ->  | AI122: =IF(EYDMN!AL5="","",EYDMN!AL5) ->  | AJ122: =IF(EYDMN!AM5="","",EYDMN!AM5) ->  | AK122: =IF(EYDMN!AN5="","",EYDMN!AN5) ->  | AL122: =IF(EYDMN!AO5="","",EYDMN!AO5) ->  | AM122: =IF(EYDMN!AP5="","",EYDMN!AP5) -> 
C123: Comp. Esp. 2 | D123: Criterio Evaluación 2.1 | E123: =IF(EYDMN!H6="","",EYDMN!H6) ->  | F123: =IF(EYDMN!I6="","",EYDMN!I6) ->  | G123: =IF(EYDMN!J6="","",EYDMN!J6) ->  | H123: =IF(EYDMN!K6="","",EYDMN!K6) ->  | I123: =IF(EYDMN!L6="","",EYDMN!L6) ->  | J123: =IF(EYDMN!M6="","",EYDMN!M6) ->  | K123: =IF(EYDMN!N6="","",EYDMN!N6) ->  | L123: =IF(EYDMN!O6="","",EYDMN!O6) ->  | M123: =IF(EYDMN!P6="","",EYDMN!P6) ->  | N123: =IF(EYDMN!Q6="","",EYDMN!Q6) ->  | O123: =IF(EYDMN!R6="","",EYDMN!R6) ->  | P123: =IF(EYDMN!S6="","",EYDMN!S6) ->  | Q123: =IF(EYDMN!T6="","",EYDMN!T6) ->  | R123: =IF(EYDMN!U6="","",EYDMN!U6) ->  | S123: =IF(EYDMN!V6="","",EYDMN!V6) ->  | T123: =IF(EYDMN!W6="","",EYDMN!W6) ->  | U123: =IF(EYDMN!X6="","",EYDMN!X6) ->  | V123: =IF(EYDMN!Y6="","",EYDMN!Y6) ->  | W123: =IF(EYDMN!Z6="","",EYDMN!Z6) ->  | X123: =IF(EYDMN!AA6="","",EYDMN!AA6) ->  | Y123: =IF(EYDMN!AB6="","",EYDMN!AB6) ->  | Z123: =IF(EYDMN!AC6="","",EYDMN!AC6) ->  | AA123: =IF(EYDMN!AD6="","",EYDMN!AD6) ->  | AB123: =IF(EYDMN!AE6="","",EYDMN!AE6) ->  | AC123: =IF(EYDMN!AF6="","",EYDMN!AF6) ->  | AD123: =IF(EYDMN!AG6="","",EYDMN!AG6) ->  | AE123: =IF(EYDMN!AH6="","",EYDMN!AH6) ->  | AF123: =IF(EYDMN!AI6="","",EYDMN!AI6) ->  | AG123: =IF(EYDMN!AJ6="","",EYDMN!AJ6) ->  | AH123: =IF(EYDMN!AK6="","",EYDMN!AK6) ->  | AI123: =IF(EYDMN!AL6="","",EYDMN!AL6) ->  | AJ123: =IF(EYDMN!AM6="","",EYDMN!AM6) ->  | AK123: =IF(EYDMN!AN6="","",EYDMN!AN6) ->  | AL123: =IF(EYDMN!AO6="","",EYDMN!AO6) ->  | AM123: =IF(EYDMN!AP6="","",EYDMN!AP6) -> 
D124: Criterio Evaluación 2.2 | E124: =IF(EYDMN!H7="","",EYDMN!H7) ->  | F124: =IF(EYDMN!I7="","",EYDMN!I7) ->  | G124: =IF(EYDMN!J7="","",EYDMN!J7) ->  | H124: =IF(EYDMN!K7="","",EYDMN!K7) ->  | I124: =IF(EYDMN!L7="","",EYDMN!L7) ->  | J124: =IF(EYDMN!M7="","",EYDMN!M7) ->  | K124: =IF(EYDMN!N7="","",EYDMN!N7) ->  | L124: =IF(EYDMN!O7="","",EYDMN!O7) ->  | M124: =IF(EYDMN!P7="","",EYDMN!P7) ->  | N124: =IF(EYDMN!Q7="","",EYDMN!Q7) ->  | O124: =IF(EYDMN!R7="","",EYDMN!R7) ->  | P124: =IF(EYDMN!S7="","",EYDMN!S7) ->  | Q124: =IF(EYDMN!T7="","",EYDMN!T7) ->  | R124: =IF(EYDMN!U7="","",EYDMN!U7) ->  | S124: =IF(EYDMN!V7="","",EYDMN!V7) ->  | T124: =IF(EYDMN!W7="","",EYDMN!W7) ->  | U124: =IF(EYDMN!X7="","",EYDMN!X7) ->  | V124: =IF(EYDMN!Y7="","",EYDMN!Y7) ->  | W124: =IF(EYDMN!Z7="","",EYDMN!Z7) ->  | X124: =IF(EYDMN!AA7="","",EYDMN!AA7) ->  | Y124: =IF(EYDMN!AB7="","",EYDMN!AB7) ->  | Z124: =IF(EYDMN!AC7="","",EYDMN!AC7) ->  | AA124: =IF(EYDMN!AD7="","",EYDMN!AD7) ->  | AB124: =IF(EYDMN!AE7="","",EYDMN!AE7) ->  | AC124: =IF(EYDMN!AF7="","",EYDMN!AF7) ->  | AD124: =IF(EYDMN!AG7="","",EYDMN!AG7) ->  | AE124: =IF(EYDMN!AH7="","",EYDMN!AH7) ->  | AF124: =IF(EYDMN!AI7="","",EYDMN!AI7) ->  | AG124: =IF(EYDMN!AJ7="","",EYDMN!AJ7) ->  | AH124: =IF(EYDMN!AK7="","",EYDMN!AK7) ->  | AI124: =IF(EYDMN!AL7="","",EYDMN!AL7) ->  | AJ124: =IF(EYDMN!AM7="","",EYDMN!AM7) ->  | AK124: =IF(EYDMN!AN7="","",EYDMN!AN7) ->  | AL124: =IF(EYDMN!AO7="","",EYDMN!AO7) ->  | AM124: =IF(EYDMN!AP7="","",EYDMN!AP7) -> 
D125: Criterio Evaluación 2.3 | E125: =IF(EYDMN!H8="","",EYDMN!H8) ->  | F125: =IF(EYDMN!I8="","",EYDMN!I8) ->  | G125: =IF(EYDMN!J8="","",EYDMN!J8) ->  | H125: =IF(EYDMN!K8="","",EYDMN!K8) ->  | I125: =IF(EYDMN!L8="","",EYDMN!L8) ->  | J125: =IF(EYDMN!M8="","",EYDMN!M8) ->  | K125: =IF(EYDMN!N8="","",EYDMN!N8) ->  | L125: =IF(EYDMN!O8="","",EYDMN!O8) ->  | M125: =IF(EYDMN!P8="","",EYDMN!P8) ->  | N125: =IF(EYDMN!Q8="","",EYDMN!Q8) ->  | O125: =IF(EYDMN!R8="","",EYDMN!R8) ->  | P125: =IF(EYDMN!S8="","",EYDMN!S8) ->  | Q125: =IF(EYDMN!T8="","",EYDMN!T8) ->  | R125: =IF(EYDMN!U8="","",EYDMN!U8) ->  | S125: =IF(EYDMN!V8="","",EYDMN!V8) ->  | T125: =IF(EYDMN!W8="","",EYDMN!W8) ->  | U125: =IF(EYDMN!X8="","",EYDMN!X8) ->  | V125: =IF(EYDMN!Y8="","",EYDMN!Y8) ->  | W125: =IF(EYDMN!Z8="","",EYDMN!Z8) ->  | X125: =IF(EYDMN!AA8="","",EYDMN!AA8) ->  | Y125: =IF(EYDMN!AB8="","",EYDMN!AB8) ->  | Z125: =IF(EYDMN!AC8="","",EYDMN!AC8) ->  | AA125: =IF(EYDMN!AD8="","",EYDMN!AD8) ->  | AB125: =IF(EYDMN!AE8="","",EYDMN!AE8) ->  | AC125: =IF(EYDMN!AF8="","",EYDMN!AF8) ->  | AD125: =IF(EYDMN!AG8="","",EYDMN!AG8) ->  | AE125: =IF(EYDMN!AH8="","",EYDMN!AH8) ->  | AF125: =IF(EYDMN!AI8="","",EYDMN!AI8) ->  | AG125: =IF(EYDMN!AJ8="","",EYDMN!AJ8) ->  | AH125: =IF(EYDMN!AK8="","",EYDMN!AK8) ->  | AI125: =IF(EYDMN!AL8="","",EYDMN!AL8) ->  | AJ125: =IF(EYDMN!AM8="","",EYDMN!AM8) ->  | AK125: =IF(EYDMN!AN8="","",EYDMN!AN8) ->  | AL125: =IF(EYDMN!AO8="","",EYDMN!AO8) ->  | AM125: =IF(EYDMN!AP8="","",EYDMN!AP8) -> 
C126: Comp. Esp. 3 | D126: Criterio Evaluación 3.1 | E126: =IF(EYDMN!H9="","",EYDMN!H9) ->  | F126: =IF(EYDMN!I9="","",EYDMN!I9) ->  | G126: =IF(EYDMN!J9="","",EYDMN!J9) ->  | H126: =IF(EYDMN!K9="","",EYDMN!K9) ->  | I126: =IF(EYDMN!L9="","",EYDMN!L9) ->  | J126: =IF(EYDMN!M9="","",EYDMN!M9) ->  | K126: =IF(EYDMN!N9="","",EYDMN!N9) ->  | L126: =IF(EYDMN!O9="","",EYDMN!O9) ->  | M126: =IF(EYDMN!P9="","",EYDMN!P9) ->  | N126: =IF(EYDMN!Q9="","",EYDMN!Q9) ->  | O126: =IF(EYDMN!R9="","",EYDMN!R9) ->  | P126: =IF(EYDMN!S9="","",EYDMN!S9) ->  | Q126: =IF(EYDMN!T9="","",EYDMN!T9) ->  | R126: =IF(EYDMN!U9="","",EYDMN!U9) ->  | S126: =IF(EYDMN!V9="","",EYDMN!V9) ->  | T126: =IF(EYDMN!W9="","",EYDMN!W9) ->  | U126: =IF(EYDMN!X9="","",EYDMN!X9) ->  | V126: =IF(EYDMN!Y9="","",EYDMN!Y9) ->  | W126: =IF(EYDMN!Z9="","",EYDMN!Z9) ->  | X126: =IF(EYDMN!AA9="","",EYDMN!AA9) ->  | Y126: =IF(EYDMN!AB9="","",EYDMN!AB9) ->  | Z126: =IF(EYDMN!AC9="","",EYDMN!AC9) ->  | AA126: =IF(EYDMN!AD9="","",EYDMN!AD9) ->  | AB126: =IF(EYDMN!AE9="","",EYDMN!AE9) ->  | AC126: =IF(EYDMN!AF9="","",EYDMN!AF9) ->  | AD126: =IF(EYDMN!AG9="","",EYDMN!AG9) ->  | AE126: =IF(EYDMN!AH9="","",EYDMN!AH9) ->  | AF126: =IF(EYDMN!AI9="","",EYDMN!AI9) ->  | AG126: =IF(EYDMN!AJ9="","",EYDMN!AJ9) ->  | AH126: =IF(EYDMN!AK9="","",EYDMN!AK9) ->  | AI126: =IF(EYDMN!AL9="","",EYDMN!AL9) ->  | AJ126: =IF(EYDMN!AM9="","",EYDMN!AM9) ->  | AK126: =IF(EYDMN!AN9="","",EYDMN!AN9) ->  | AL126: =IF(EYDMN!AO9="","",EYDMN!AO9) ->  | AM126: =IF(EYDMN!AP9="","",EYDMN!AP9) -> 
D127: Criterio Evaluación 3.2 | E127: =IF(EYDMN!H10="","",EYDMN!H10) ->  | F127: =IF(EYDMN!I10="","",EYDMN!I10) ->  | G127: =IF(EYDMN!J10="","",EYDMN!J10) ->  | H127: =IF(EYDMN!K10="","",EYDMN!K10) ->  | I127: =IF(EYDMN!L10="","",EYDMN!L10) ->  | J127: =IF(EYDMN!M10="","",EYDMN!M10) ->  | K127: =IF(EYDMN!N10="","",EYDMN!N10) ->  | L127: =IF(EYDMN!O10="","",EYDMN!O10) ->  | M127: =IF(EYDMN!P10="","",EYDMN!P10) ->  | N127: =IF(EYDMN!Q10="","",EYDMN!Q10) ->  | O127: =IF(EYDMN!R10="","",EYDMN!R10) ->  | P127: =IF(EYDMN!S10="","",EYDMN!S10) ->  | Q127: =IF(EYDMN!T10="","",EYDMN!T10) ->  | R127: =IF(EYDMN!U10="","",EYDMN!U10) ->  | S127: =IF(EYDMN!V10="","",EYDMN!V10) ->  | T127: =IF(EYDMN!W10="","",EYDMN!W10) ->  | U127: =IF(EYDMN!X10="","",EYDMN!X10) ->  | V127: =IF(EYDMN!Y10="","",EYDMN!Y10) ->  | W127: =IF(EYDMN!Z10="","",EYDMN!Z10) ->  | X127: =IF(EYDMN!AA10="","",EYDMN!AA10) ->  | Y127: =IF(EYDMN!AB10="","",EYDMN!AB10) ->  | Z127: =IF(EYDMN!AC10="","",EYDMN!AC10) ->  | AA127: =IF(EYDMN!AD10="","",EYDMN!AD10) ->  | AB127: =IF(EYDMN!AE10="","",EYDMN!AE10) ->  | AC127: =IF(EYDMN!AF10="","",EYDMN!AF10) ->  | AD127: =IF(EYDMN!AG10="","",EYDMN!AG10) ->  | AE127: =IF(EYDMN!AH10="","",EYDMN!AH10) ->  | AF127: =IF(EYDMN!AI10="","",EYDMN!AI10) ->  | AG127: =IF(EYDMN!AJ10="","",EYDMN!AJ10) ->  | AH127: =IF(EYDMN!AK10="","",EYDMN!AK10) ->  | AI127: =IF(EYDMN!AL10="","",EYDMN!AL10) ->  | AJ127: =IF(EYDMN!AM10="","",EYDMN!AM10) ->  | AK127: =IF(EYDMN!AN10="","",EYDMN!AN10) ->  | AL127: =IF(EYDMN!AO10="","",EYDMN!AO10) ->  | AM127: =IF(EYDMN!AP10="","",EYDMN!AP10) -> 
D128: Criterio Evaluación 3.3 | E128: =IF(EYDMN!H11="","",EYDMN!H11) ->  | F128: =IF(EYDMN!I11="","",EYDMN!I11) ->  | G128: =IF(EYDMN!J11="","",EYDMN!J11) ->  | H128: =IF(EYDMN!K11="","",EYDMN!K11) ->  | I128: =IF(EYDMN!L11="","",EYDMN!L11) ->  | J128: =IF(EYDMN!M11="","",EYDMN!M11) ->  | K128: =IF(EYDMN!N11="","",EYDMN!N11) ->  | L128: =IF(EYDMN!O11="","",EYDMN!O11) ->  | M128: =IF(EYDMN!P11="","",EYDMN!P11) ->  | N128: =IF(EYDMN!Q11="","",EYDMN!Q11) ->  | O128: =IF(EYDMN!R11="","",EYDMN!R11) ->  | P128: =IF(EYDMN!S11="","",EYDMN!S11) ->  | Q128: =IF(EYDMN!T11="","",EYDMN!T11) ->  | R128: =IF(EYDMN!U11="","",EYDMN!U11) ->  | S128: =IF(EYDMN!V11="","",EYDMN!V11) ->  | T128: =IF(EYDMN!W11="","",EYDMN!W11) ->  | U128: =IF(EYDMN!X11="","",EYDMN!X11) ->  | V128: =IF(EYDMN!Y11="","",EYDMN!Y11) ->  | W128: =IF(EYDMN!Z11="","",EYDMN!Z11) ->  | X128: =IF(EYDMN!AA11="","",EYDMN!AA11) ->  | Y128: =IF(EYDMN!AB11="","",EYDMN!AB11) ->  | Z128: =IF(EYDMN!AC11="","",EYDMN!AC11) ->  | AA128: =IF(EYDMN!AD11="","",EYDMN!AD11) ->  | AB128: =IF(EYDMN!AE11="","",EYDMN!AE11) ->  | AC128: =IF(EYDMN!AF11="","",EYDMN!AF11) ->  | AD128: =IF(EYDMN!AG11="","",EYDMN!AG11) ->  | AE128: =IF(EYDMN!AH11="","",EYDMN!AH11) ->  | AF128: =IF(EYDMN!AI11="","",EYDMN!AI11) ->  | AG128: =IF(EYDMN!AJ11="","",EYDMN!AJ11) ->  | AH128: =IF(EYDMN!AK11="","",EYDMN!AK11) ->  | AI128: =IF(EYDMN!AL11="","",EYDMN!AL11) ->  | AJ128: =IF(EYDMN!AM11="","",EYDMN!AM11) ->  | AK128: =IF(EYDMN!AN11="","",EYDMN!AN11) ->  | AL128: =IF(EYDMN!AO11="","",EYDMN!AO11) ->  | AM128: =IF(EYDMN!AP11="","",EYDMN!AP11) -> 
D129: Criterio Evaluación 3.4 | E129: =IF(EYDMN!H12="","",EYDMN!H12) ->  | F129: =IF(EYDMN!I12="","",EYDMN!I12) ->  | G129: =IF(EYDMN!J12="","",EYDMN!J12) ->  | H129: =IF(EYDMN!K12="","",EYDMN!K12) ->  | I129: =IF(EYDMN!L12="","",EYDMN!L12) ->  | J129: =IF(EYDMN!M12="","",EYDMN!M12) ->  | K129: =IF(EYDMN!N12="","",EYDMN!N12) ->  | L129: =IF(EYDMN!O12="","",EYDMN!O12) ->  | M129: =IF(EYDMN!P12="","",EYDMN!P12) ->  | N129: =IF(EYDMN!Q12="","",EYDMN!Q12) ->  | O129: =IF(EYDMN!R12="","",EYDMN!R12) ->  | P129: =IF(EYDMN!S12="","",EYDMN!S12) ->  | Q129: =IF(EYDMN!T12="","",EYDMN!T12) ->  | R129: =IF(EYDMN!U12="","",EYDMN!U12) ->  | S129: =IF(EYDMN!V12="","",EYDMN!V12) ->  | T129: =IF(EYDMN!W12="","",EYDMN!W12) ->  | U129: =IF(EYDMN!X12="","",EYDMN!X12) ->  | V129: =IF(EYDMN!Y12="","",EYDMN!Y12) ->  | W129: =IF(EYDMN!Z12="","",EYDMN!Z12) ->  | X129: =IF(EYDMN!AA12="","",EYDMN!AA12) ->  | Y129: =IF(EYDMN!AB12="","",EYDMN!AB12) ->  | Z129: =IF(EYDMN!AC12="","",EYDMN!AC12) ->  | AA129: =IF(EYDMN!AD12="","",EYDMN!AD12) ->  | AB129: =IF(EYDMN!AE12="","",EYDMN!AE12) ->  | AC129: =IF(EYDMN!AF12="","",EYDMN!AF12) ->  | AD129: =IF(EYDMN!AG12="","",EYDMN!AG12) ->  | AE129: =IF(EYDMN!AH12="","",EYDMN!AH12) ->  | AF129: =IF(EYDMN!AI12="","",EYDMN!AI12) ->  | AG129: =IF(EYDMN!AJ12="","",EYDMN!AJ12) ->  | AH129: =IF(EYDMN!AK12="","",EYDMN!AK12) ->  | AI129: =IF(EYDMN!AL12="","",EYDMN!AL12) ->  | AJ129: =IF(EYDMN!AM12="","",EYDMN!AM12) ->  | AK129: =IF(EYDMN!AN12="","",EYDMN!AN12) ->  | AL129: =IF(EYDMN!AO12="","",EYDMN!AO12) ->  | AM129: =IF(EYDMN!AP12="","",EYDMN!AP12) -> 
C130: Comp. Esp. 4 | D130: Criterio Evaluación 4.1 | E130: =IF(EYDMN!H13="","",EYDMN!H13) ->  | F130: =IF(EYDMN!I13="","",EYDMN!I13) ->  | G130: =IF(EYDMN!J13="","",EYDMN!J13) ->  | H130: =IF(EYDMN!K13="","",EYDMN!K13) ->  | I130: =IF(EYDMN!L13="","",EYDMN!L13) ->  | J130: =IF(EYDMN!M13="","",EYDMN!M13) ->  | K130: =IF(EYDMN!N13="","",EYDMN!N13) ->  | L130: =IF(EYDMN!O13="","",EYDMN!O13) ->  | M130: =IF(EYDMN!P13="","",EYDMN!P13) ->  | N130: =IF(EYDMN!Q13="","",EYDMN!Q13) ->  | O130: =IF(EYDMN!R13="","",EYDMN!R13) ->  | P130: =IF(EYDMN!S13="","",EYDMN!S13) ->  | Q130: =IF(EYDMN!T13="","",EYDMN!T13) ->  | R130: =IF(EYDMN!U13="","",EYDMN!U13) ->  | S130: =IF(EYDMN!V13="","",EYDMN!V13) ->  | T130: =IF(EYDMN!W13="","",EYDMN!W13) ->  | U130: =IF(EYDMN!X13="","",EYDMN!X13) ->  | V130: =IF(EYDMN!Y13="","",EYDMN!Y13) ->  | W130: =IF(EYDMN!Z13="","",EYDMN!Z13) ->  | X130: =IF(EYDMN!AA13="","",EYDMN!AA13) ->  | Y130: =IF(EYDMN!AB13="","",EYDMN!AB13) ->  | Z130: =IF(EYDMN!AC13="","",EYDMN!AC13) ->  | AA130: =IF(EYDMN!AD13="","",EYDMN!AD13) ->  | AB130: =IF(EYDMN!AE13="","",EYDMN!AE13) ->  | AC130: =IF(EYDMN!AF13="","",EYDMN!AF13) ->  | AD130: =IF(EYDMN!AG13="","",EYDMN!AG13) ->  | AE130: =IF(EYDMN!AH13="","",EYDMN!AH13) ->  | AF130: =IF(EYDMN!AI13="","",EYDMN!AI13) ->  | AG130: =IF(EYDMN!AJ13="","",EYDMN!AJ13) ->  | AH130: =IF(EYDMN!AK13="","",EYDMN!AK13) ->  | AI130: =IF(EYDMN!AL13="","",EYDMN!AL13) ->  | AJ130: =IF(EYDMN!AM13="","",EYDMN!AM13) ->  | AK130: =IF(EYDMN!AN13="","",EYDMN!AN13) ->  | AL130: =IF(EYDMN!AO13="","",EYDMN!AO13) ->  | AM130: =IF(EYDMN!AP13="","",EYDMN!AP13) -> 
D131: Criterio Evaluación 4.2 | E131: =IF(EYDMN!H14="","",EYDMN!H14) ->  | F131: =IF(EYDMN!I14="","",EYDMN!I14) ->  | G131: =IF(EYDMN!J14="","",EYDMN!J14) ->  | H131: =IF(EYDMN!K14="","",EYDMN!K14) ->  | I131: =IF(EYDMN!L14="","",EYDMN!L14) ->  | J131: =IF(EYDMN!M14="","",EYDMN!M14) ->  | K131: =IF(EYDMN!N14="","",EYDMN!N14) ->  | L131: =IF(EYDMN!O14="","",EYDMN!O14) ->  | M131: =IF(EYDMN!P14="","",EYDMN!P14) ->  | N131: =IF(EYDMN!Q14="","",EYDMN!Q14) ->  | O131: =IF(EYDMN!R14="","",EYDMN!R14) ->  | P131: =IF(EYDMN!S14="","",EYDMN!S14) ->  | Q131: =IF(EYDMN!T14="","",EYDMN!T14) ->  | R131: =IF(EYDMN!U14="","",EYDMN!U14) ->  | S131: =IF(EYDMN!V14="","",EYDMN!V14) ->  | T131: =IF(EYDMN!W14="","",EYDMN!W14) ->  | U131: =IF(EYDMN!X14="","",EYDMN!X14) ->  | V131: =IF(EYDMN!Y14="","",EYDMN!Y14) ->  | W131: =IF(EYDMN!Z14="","",EYDMN!Z14) ->  | X131: =IF(EYDMN!AA14="","",EYDMN!AA14) ->  | Y131: =IF(EYDMN!AB14="","",EYDMN!AB14) ->  | Z131: =IF(EYDMN!AC14="","",EYDMN!AC14) ->  | AA131: =IF(EYDMN!AD14="","",EYDMN!AD14) ->  | AB131: =IF(EYDMN!AE14="","",EYDMN!AE14) ->  | AC131: =IF(EYDMN!AF14="","",EYDMN!AF14) ->  | AD131: =IF(EYDMN!AG14="","",EYDMN!AG14) ->  | AE131: =IF(EYDMN!AH14="","",EYDMN!AH14) ->  | AF131: =IF(EYDMN!AI14="","",EYDMN!AI14) ->  | AG131: =IF(EYDMN!AJ14="","",EYDMN!AJ14) ->  | AH131: =IF(EYDMN!AK14="","",EYDMN!AK14) ->  | AI131: =IF(EYDMN!AL14="","",EYDMN!AL14) ->  | AJ131: =IF(EYDMN!AM14="","",EYDMN!AM14) ->  | AK131: =IF(EYDMN!AN14="","",EYDMN!AN14) ->  | AL131: =IF(EYDMN!AO14="","",EYDMN!AO14) ->  | AM131: =IF(EYDMN!AP14="","",EYDMN!AP14) -> 
D132: Criterio Evaluación 4.3 | E132: =IF(EYDMN!H15="","",EYDMN!H15) ->  | F132: =IF(EYDMN!I15="","",EYDMN!I15) ->  | G132: =IF(EYDMN!J15="","",EYDMN!J15) ->  | H132: =IF(EYDMN!K15="","",EYDMN!K15) ->  | I132: =IF(EYDMN!L15="","",EYDMN!L15) ->  | J132: =IF(EYDMN!M15="","",EYDMN!M15) ->  | K132: =IF(EYDMN!N15="","",EYDMN!N15) ->  | L132: =IF(EYDMN!O15="","",EYDMN!O15) ->  | M132: =IF(EYDMN!P15="","",EYDMN!P15) ->  | N132: =IF(EYDMN!Q15="","",EYDMN!Q15) ->  | O132: =IF(EYDMN!R15="","",EYDMN!R15) ->  | P132: =IF(EYDMN!S15="","",EYDMN!S15) ->  | Q132: =IF(EYDMN!T15="","",EYDMN!T15) ->  | R132: =IF(EYDMN!U15="","",EYDMN!U15) ->  | S132: =IF(EYDMN!V15="","",EYDMN!V15) ->  | T132: =IF(EYDMN!W15="","",EYDMN!W15) ->  | U132: =IF(EYDMN!X15="","",EYDMN!X15) ->  | V132: =IF(EYDMN!Y15="","",EYDMN!Y15) ->  | W132: =IF(EYDMN!Z15="","",EYDMN!Z15) ->  | X132: =IF(EYDMN!AA15="","",EYDMN!AA15) ->  | Y132: =IF(EYDMN!AB15="","",EYDMN!AB15) ->  | Z132: =IF(EYDMN!AC15="","",EYDMN!AC15) ->  | AA132: =IF(EYDMN!AD15="","",EYDMN!AD15) ->  | AB132: =IF(EYDMN!AE15="","",EYDMN!AE15) ->  | AC132: =IF(EYDMN!AF15="","",EYDMN!AF15) ->  | AD132: =IF(EYDMN!AG15="","",EYDMN!AG15) ->  | AE132: =IF(EYDMN!AH15="","",EYDMN!AH15) ->  | AF132: =IF(EYDMN!AI15="","",EYDMN!AI15) ->  | AG132: =IF(EYDMN!AJ15="","",EYDMN!AJ15) ->  | AH132: =IF(EYDMN!AK15="","",EYDMN!AK15) ->  | AI132: =IF(EYDMN!AL15="","",EYDMN!AL15) ->  | AJ132: =IF(EYDMN!AM15="","",EYDMN!AM15) ->  | AK132: =IF(EYDMN!AN15="","",EYDMN!AN15) ->  | AL132: =IF(EYDMN!AO15="","",EYDMN!AO15) ->  | AM132: =IF(EYDMN!AP15="","",EYDMN!AP15) -> 
C133: Comp. Esp. 5 | D133: Criterio Evaluación 5.1 | E133: =IF(EYDMN!H16="","",EYDMN!H16) ->  | F133: =IF(EYDMN!I16="","",EYDMN!I16) ->  | G133: =IF(EYDMN!J16="","",EYDMN!J16) ->  | H133: =IF(EYDMN!K16="","",EYDMN!K16) ->  | I133: =IF(EYDMN!L16="","",EYDMN!L16) ->  | J133: =IF(EYDMN!M16="","",EYDMN!M16) ->  | K133: =IF(EYDMN!N16="","",EYDMN!N16) ->  | L133: =IF(EYDMN!O16="","",EYDMN!O16) ->  | M133: =IF(EYDMN!P16="","",EYDMN!P16) ->  | N133: =IF(EYDMN!Q16="","",EYDMN!Q16) ->  | O133: =IF(EYDMN!R16="","",EYDMN!R16) ->  | P133: =IF(EYDMN!S16="","",EYDMN!S16) ->  | Q133: =IF(EYDMN!T16="","",EYDMN!T16) ->  | R133: =IF(EYDMN!U16="","",EYDMN!U16) ->  | S133: =IF(EYDMN!V16="","",EYDMN!V16) ->  | T133: =IF(EYDMN!W16="","",EYDMN!W16) ->  | U133: =IF(EYDMN!X16="","",EYDMN!X16) ->  | V133: =IF(EYDMN!Y16="","",EYDMN!Y16) ->  | W133: =IF(EYDMN!Z16="","",EYDMN!Z16) ->  | X133: =IF(EYDMN!AA16="","",EYDMN!AA16) ->  | Y133: =IF(EYDMN!AB16="","",EYDMN!AB16) ->  | Z133: =IF(EYDMN!AC16="","",EYDMN!AC16) ->  | AA133: =IF(EYDMN!AD16="","",EYDMN!AD16) ->  | AB133: =IF(EYDMN!AE16="","",EYDMN!AE16) ->  | AC133: =IF(EYDMN!AF16="","",EYDMN!AF16) ->  | AD133: =IF(EYDMN!AG16="","",EYDMN!AG16) ->  | AE133: =IF(EYDMN!AH16="","",EYDMN!AH16) ->  | AF133: =IF(EYDMN!AI16="","",EYDMN!AI16) ->  | AG133: =IF(EYDMN!AJ16="","",EYDMN!AJ16) ->  | AH133: =IF(EYDMN!AK16="","",EYDMN!AK16) ->  | AI133: =IF(EYDMN!AL16="","",EYDMN!AL16) ->  | AJ133: =IF(EYDMN!AM16="","",EYDMN!AM16) ->  | AK133: =IF(EYDMN!AN16="","",EYDMN!AN16) ->  | AL133: =IF(EYDMN!AO16="","",EYDMN!AO16) ->  | AM133: =IF(EYDMN!AP16="","",EYDMN!AP16) -> 
D134: Criterio Evaluación 5.2 | E134: =IF(EYDMN!H17="","",EYDMN!H17) ->  | F134: =IF(EYDMN!I17="","",EYDMN!I17) ->  | G134: =IF(EYDMN!J17="","",EYDMN!J17) ->  | H134: =IF(EYDMN!K17="","",EYDMN!K17) ->  | I134: =IF(EYDMN!L17="","",EYDMN!L17) ->  | J134: =IF(EYDMN!M17="","",EYDMN!M17) ->  | K134: =IF(EYDMN!N17="","",EYDMN!N17) ->  | L134: =IF(EYDMN!O17="","",EYDMN!O17) ->  | M134: =IF(EYDMN!P17="","",EYDMN!P17) ->  | N134: =IF(EYDMN!Q17="","",EYDMN!Q17) ->  | O134: =IF(EYDMN!R17="","",EYDMN!R17) ->  | P134: =IF(EYDMN!S17="","",EYDMN!S17) ->  | Q134: =IF(EYDMN!T17="","",EYDMN!T17) ->  | R134: =IF(EYDMN!U17="","",EYDMN!U17) ->  | S134: =IF(EYDMN!V17="","",EYDMN!V17) ->  | T134: =IF(EYDMN!W17="","",EYDMN!W17) ->  | U134: =IF(EYDMN!X17="","",EYDMN!X17) ->  | V134: =IF(EYDMN!Y17="","",EYDMN!Y17) ->  | W134: =IF(EYDMN!Z17="","",EYDMN!Z17) ->  | X134: =IF(EYDMN!AA17="","",EYDMN!AA17) ->  | Y134: =IF(EYDMN!AB17="","",EYDMN!AB17) ->  | Z134: =IF(EYDMN!AC17="","",EYDMN!AC17) ->  | AA134: =IF(EYDMN!AD17="","",EYDMN!AD17) ->  | AB134: =IF(EYDMN!AE17="","",EYDMN!AE17) ->  | AC134: =IF(EYDMN!AF17="","",EYDMN!AF17) ->  | AD134: =IF(EYDMN!AG17="","",EYDMN!AG17) ->  | AE134: =IF(EYDMN!AH17="","",EYDMN!AH17) ->  | AF134: =IF(EYDMN!AI17="","",EYDMN!AI17) ->  | AG134: =IF(EYDMN!AJ17="","",EYDMN!AJ17) ->  | AH134: =IF(EYDMN!AK17="","",EYDMN!AK17) ->  | AI134: =IF(EYDMN!AL17="","",EYDMN!AL17) ->  | AJ134: =IF(EYDMN!AM17="","",EYDMN!AM17) ->  | AK134: =IF(EYDMN!AN17="","",EYDMN!AN17) ->  | AL134: =IF(EYDMN!AO17="","",EYDMN!AO17) ->  | AM134: =IF(EYDMN!AP17="","",EYDMN!AP17) -> 
D135: Criterio Evaluación 5.3 | E135: =IF(EYDMN!H18="","",EYDMN!H18) ->  | F135: =IF(EYDMN!I18="","",EYDMN!I18) ->  | G135: =IF(EYDMN!J18="","",EYDMN!J18) ->  | H135: =IF(EYDMN!K18="","",EYDMN!K18) ->  | I135: =IF(EYDMN!L18="","",EYDMN!L18) ->  | J135: =IF(EYDMN!M18="","",EYDMN!M18) ->  | K135: =IF(EYDMN!N18="","",EYDMN!N18) ->  | L135: =IF(EYDMN!O18="","",EYDMN!O18) ->  | M135: =IF(EYDMN!P18="","",EYDMN!P18) ->  | N135: =IF(EYDMN!Q18="","",EYDMN!Q18) ->  | O135: =IF(EYDMN!R18="","",EYDMN!R18) ->  | P135: =IF(EYDMN!S18="","",EYDMN!S18) ->  | Q135: =IF(EYDMN!T18="","",EYDMN!T18) ->  | R135: =IF(EYDMN!U18="","",EYDMN!U18) ->  | S135: =IF(EYDMN!V18="","",EYDMN!V18) ->  | T135: =IF(EYDMN!W18="","",EYDMN!W18) ->  | U135: =IF(EYDMN!X18="","",EYDMN!X18) ->  | V135: =IF(EYDMN!Y18="","",EYDMN!Y18) ->  | W135: =IF(EYDMN!Z18="","",EYDMN!Z18) ->  | X135: =IF(EYDMN!AA18="","",EYDMN!AA18) ->  | Y135: =IF(EYDMN!AB18="","",EYDMN!AB18) ->  | Z135: =IF(EYDMN!AC18="","",EYDMN!AC18) ->  | AA135: =IF(EYDMN!AD18="","",EYDMN!AD18) ->  | AB135: =IF(EYDMN!AE18="","",EYDMN!AE18) ->  | AC135: =IF(EYDMN!AF18="","",EYDMN!AF18) ->  | AD135: =IF(EYDMN!AG18="","",EYDMN!AG18) ->  | AE135: =IF(EYDMN!AH18="","",EYDMN!AH18) ->  | AF135: =IF(EYDMN!AI18="","",EYDMN!AI18) ->  | AG135: =IF(EYDMN!AJ18="","",EYDMN!AJ18) ->  | AH135: =IF(EYDMN!AK18="","",EYDMN!AK18) ->  | AI135: =IF(EYDMN!AL18="","",EYDMN!AL18) ->  | AJ135: =IF(EYDMN!AM18="","",EYDMN!AM18) ->  | AK135: =IF(EYDMN!AN18="","",EYDMN!AN18) ->  | AL135: =IF(EYDMN!AO18="","",EYDMN!AO18) ->  | AM135: =IF(EYDMN!AP18="","",EYDMN!AP18) -> 
D136: Criterio Evaluación 5.4 | E136: =IF(EYDMN!H19="","",EYDMN!H19) ->  | F136: =IF(EYDMN!I19="","",EYDMN!I19) ->  | G136: =IF(EYDMN!J19="","",EYDMN!J19) ->  | H136: =IF(EYDMN!K19="","",EYDMN!K19) ->  | I136: =IF(EYDMN!L19="","",EYDMN!L19) ->  | J136: =IF(EYDMN!M19="","",EYDMN!M19) ->  | K136: =IF(EYDMN!N19="","",EYDMN!N19) ->  | L136: =IF(EYDMN!O19="","",EYDMN!O19) ->  | M136: =IF(EYDMN!P19="","",EYDMN!P19) ->  | N136: =IF(EYDMN!Q19="","",EYDMN!Q19) ->  | O136: =IF(EYDMN!R19="","",EYDMN!R19) ->  | P136: =IF(EYDMN!S19="","",EYDMN!S19) ->  | Q136: =IF(EYDMN!T19="","",EYDMN!T19) ->  | R136: =IF(EYDMN!U19="","",EYDMN!U19) ->  | S136: =IF(EYDMN!V19="","",EYDMN!V19) ->  | T136: =IF(EYDMN!W19="","",EYDMN!W19) ->  | U136: =IF(EYDMN!X19="","",EYDMN!X19) ->  | V136: =IF(EYDMN!Y19="","",EYDMN!Y19) ->  | W136: =IF(EYDMN!Z19="","",EYDMN!Z19) ->  | X136: =IF(EYDMN!AA19="","",EYDMN!AA19) ->  | Y136: =IF(EYDMN!AB19="","",EYDMN!AB19) ->  | Z136: =IF(EYDMN!AC19="","",EYDMN!AC19) ->  | AA136: =IF(EYDMN!AD19="","",EYDMN!AD19) ->  | AB136: =IF(EYDMN!AE19="","",EYDMN!AE19) ->  | AC136: =IF(EYDMN!AF19="","",EYDMN!AF19) ->  | AD136: =IF(EYDMN!AG19="","",EYDMN!AG19) ->  | AE136: =IF(EYDMN!AH19="","",EYDMN!AH19) ->  | AF136: =IF(EYDMN!AI19="","",EYDMN!AI19) ->  | AG136: =IF(EYDMN!AJ19="","",EYDMN!AJ19) ->  | AH136: =IF(EYDMN!AK19="","",EYDMN!AK19) ->  | AI136: =IF(EYDMN!AL19="","",EYDMN!AL19) ->  | AJ136: =IF(EYDMN!AM19="","",EYDMN!AM19) ->  | AK136: =IF(EYDMN!AN19="","",EYDMN!AN19) ->  | AL136: =IF(EYDMN!AO19="","",EYDMN!AO19) ->  | AM136: =IF(EYDMN!AP19="","",EYDMN!AP19) -> 
B137: Física | C137: Comp. Esp. 1 | D137: Criterio Evaluación 1.1 | E137: =IF(FIS!H4="","",FIS!H4) ->  | F137: =IF(FIS!I4="","",FIS!I4) ->  | G137: =IF(FIS!J4="","",FIS!J4) ->  | H137: =IF(FIS!K4="","",FIS!K4) ->  | I137: =IF(FIS!L4="","",FIS!L4) ->  | J137: =IF(FIS!M4="","",FIS!M4) ->  | K137: =IF(FIS!N4="","",FIS!N4) ->  | L137: =IF(FIS!O4="","",FIS!O4) ->  | M137: =IF(FIS!P4="","",FIS!P4) ->  | N137: =IF(FIS!Q4="","",FIS!Q4) ->  | O137: =IF(FIS!R4="","",FIS!R4) ->  | P137: =IF(FIS!S4="","",FIS!S4) ->  | Q137: =IF(FIS!T4="","",FIS!T4) ->  | R137: =IF(FIS!U4="","",FIS!U4) ->  | S137: =IF(FIS!V4="","",FIS!V4) ->  | T137: =IF(FIS!W4="","",FIS!W4) ->  | U137: =IF(FIS!X4="","",FIS!X4) ->  | V137: =IF(FIS!Y4="","",FIS!Y4) ->  | W137: =IF(FIS!Z4="","",FIS!Z4) ->  | X137: =IF(FIS!AA4="","",FIS!AA4) ->  | Y137: =IF(FIS!AB4="","",FIS!AB4) ->  | Z137: =IF(FIS!AC4="","",FIS!AC4) ->  | AA137: =IF(FIS!AD4="","",FIS!AD4) ->  | AB137: =IF(FIS!AE4="","",FIS!AE4) ->  | AC137: =IF(FIS!AF4="","",FIS!AF4) ->  | AD137: =IF(FIS!AG4="","",FIS!AG4) ->  | AE137: =IF(FIS!AH4="","",FIS!AH4) ->  | AF137: =IF(FIS!AI4="","",FIS!AI4) ->  | AG137: =IF(FIS!AJ4="","",FIS!AJ4) ->  | AH137: =IF(FIS!AK4="","",FIS!AK4) ->  | AI137: =IF(FIS!AL4="","",FIS!AL4) ->  | AJ137: =IF(FIS!AM4="","",FIS!AM4) ->  | AK137: =IF(FIS!AN4="","",FIS!AN4) ->  | AL137: =IF(FIS!AO4="","",FIS!AO4) ->  | AM137: =IF(FIS!AP4="","",FIS!AP4) -> 
D138: Criterio Evaluación 1.2 | E138: =IF(FIS!H5="","",FIS!H5) ->  | F138: =IF(FIS!I5="","",FIS!I5) ->  | G138: =IF(FIS!J5="","",FIS!J5) ->  | H138: =IF(FIS!K5="","",FIS!K5) ->  | I138: =IF(FIS!L5="","",FIS!L5) ->  | J138: =IF(FIS!M5="","",FIS!M5) ->  | K138: =IF(FIS!N5="","",FIS!N5) ->  | L138: =IF(FIS!O5="","",FIS!O5) ->  | M138: =IF(FIS!P5="","",FIS!P5) ->  | N138: =IF(FIS!Q5="","",FIS!Q5) ->  | O138: =IF(FIS!R5="","",FIS!R5) ->  | P138: =IF(FIS!S5="","",FIS!S5) ->  | Q138: =IF(FIS!T5="","",FIS!T5) ->  | R138: =IF(FIS!U5="","",FIS!U5) ->  | S138: =IF(FIS!V5="","",FIS!V5) ->  | T138: =IF(FIS!W5="","",FIS!W5) ->  | U138: =IF(FIS!X5="","",FIS!X5) ->  | V138: =IF(FIS!Y5="","",FIS!Y5) ->  | W138: =IF(FIS!Z5="","",FIS!Z5) ->  | X138: =IF(FIS!AA5="","",FIS!AA5) ->  | Y138: =IF(FIS!AB5="","",FIS!AB5) ->  | Z138: =IF(FIS!AC5="","",FIS!AC5) ->  | AA138: =IF(FIS!AD5="","",FIS!AD5) ->  | AB138: =IF(FIS!AE5="","",FIS!AE5) ->  | AC138: =IF(FIS!AF5="","",FIS!AF5) ->  | AD138: =IF(FIS!AG5="","",FIS!AG5) ->  | AE138: =IF(FIS!AH5="","",FIS!AH5) ->  | AF138: =IF(FIS!AI5="","",FIS!AI5) ->  | AG138: =IF(FIS!AJ5="","",FIS!AJ5) ->  | AH138: =IF(FIS!AK5="","",FIS!AK5) ->  | AI138: =IF(FIS!AL5="","",FIS!AL5) ->  | AJ138: =IF(FIS!AM5="","",FIS!AM5) ->  | AK138: =IF(FIS!AN5="","",FIS!AN5) ->  | AL138: =IF(FIS!AO5="","",FIS!AO5) ->  | AM138: =IF(FIS!AP5="","",FIS!AP5) -> 
C139: Comp. Esp. 2 | D139: Criterio Evaluación 2.1 | E139: =IF(FIS!H6="","",FIS!H6) ->  | F139: =IF(FIS!I6="","",FIS!I6) ->  | G139: =IF(FIS!J6="","",FIS!J6) ->  | H139: =IF(FIS!K6="","",FIS!K6) ->  | I139: =IF(FIS!L6="","",FIS!L6) ->  | J139: =IF(FIS!M6="","",FIS!M6) ->  | K139: =IF(FIS!N6="","",FIS!N6) ->  | L139: =IF(FIS!O6="","",FIS!O6) ->  | M139: =IF(FIS!P6="","",FIS!P6) ->  | N139: =IF(FIS!Q6="","",FIS!Q6) ->  | O139: =IF(FIS!R6="","",FIS!R6) ->  | P139: =IF(FIS!S6="","",FIS!S6) ->  | Q139: =IF(FIS!T6="","",FIS!T6) ->  | R139: =IF(FIS!U6="","",FIS!U6) ->  | S139: =IF(FIS!V6="","",FIS!V6) ->  | T139: =IF(FIS!W6="","",FIS!W6) ->  | U139: =IF(FIS!X6="","",FIS!X6) ->  | V139: =IF(FIS!Y6="","",FIS!Y6) ->  | W139: =IF(FIS!Z6="","",FIS!Z6) ->  | X139: =IF(FIS!AA6="","",FIS!AA6) ->  | Y139: =IF(FIS!AB6="","",FIS!AB6) ->  | Z139: =IF(FIS!AC6="","",FIS!AC6) ->  | AA139: =IF(FIS!AD6="","",FIS!AD6) ->  | AB139: =IF(FIS!AE6="","",FIS!AE6) ->  | AC139: =IF(FIS!AF6="","",FIS!AF6) ->  | AD139: =IF(FIS!AG6="","",FIS!AG6) ->  | AE139: =IF(FIS!AH6="","",FIS!AH6) ->  | AF139: =IF(FIS!AI6="","",FIS!AI6) ->  | AG139: =IF(FIS!AJ6="","",FIS!AJ6) ->  | AH139: =IF(FIS!AK6="","",FIS!AK6) ->  | AI139: =IF(FIS!AL6="","",FIS!AL6) ->  | AJ139: =IF(FIS!AM6="","",FIS!AM6) ->  | AK139: =IF(FIS!AN6="","",FIS!AN6) ->  | AL139: =IF(FIS!AO6="","",FIS!AO6) ->  | AM139: =IF(FIS!AP6="","",FIS!AP6) -> 
D140: Criterio Evaluación 2.2 | E140: =IF(FIS!H7="","",FIS!H7) ->  | F140: =IF(FIS!I7="","",FIS!I7) ->  | G140: =IF(FIS!J7="","",FIS!J7) ->  | H140: =IF(FIS!K7="","",FIS!K7) ->  | I140: =IF(FIS!L7="","",FIS!L7) ->  | J140: =IF(FIS!M7="","",FIS!M7) ->  | K140: =IF(FIS!N7="","",FIS!N7) ->  | L140: =IF(FIS!O7="","",FIS!O7) ->  | M140: =IF(FIS!P7="","",FIS!P7) ->  | N140: =IF(FIS!Q7="","",FIS!Q7) ->  | O140: =IF(FIS!R7="","",FIS!R7) ->  | P140: =IF(FIS!S7="","",FIS!S7) ->  | Q140: =IF(FIS!T7="","",FIS!T7) ->  | R140: =IF(FIS!U7="","",FIS!U7) ->  | S140: =IF(FIS!V7="","",FIS!V7) ->  | T140: =IF(FIS!W7="","",FIS!W7) ->  | U140: =IF(FIS!X7="","",FIS!X7) ->  | V140: =IF(FIS!Y7="","",FIS!Y7) ->  | W140: =IF(FIS!Z7="","",FIS!Z7) ->  | X140: =IF(FIS!AA7="","",FIS!AA7) ->  | Y140: =IF(FIS!AB7="","",FIS!AB7) ->  | Z140: =IF(FIS!AC7="","",FIS!AC7) ->  | AA140: =IF(FIS!AD7="","",FIS!AD7) ->  | AB140: =IF(FIS!AE7="","",FIS!AE7) ->  | AC140: =IF(FIS!AF7="","",FIS!AF7) ->  | AD140: =IF(FIS!AG7="","",FIS!AG7) ->  | AE140: =IF(FIS!AH7="","",FIS!AH7) ->  | AF140: =IF(FIS!AI7="","",FIS!AI7) ->  | AG140: =IF(FIS!AJ7="","",FIS!AJ7) ->  | AH140: =IF(FIS!AK7="","",FIS!AK7) ->  | AI140: =IF(FIS!AL7="","",FIS!AL7) ->  | AJ140: =IF(FIS!AM7="","",FIS!AM7) ->  | AK140: =IF(FIS!AN7="","",FIS!AN7) ->  | AL140: =IF(FIS!AO7="","",FIS!AO7) ->  | AM140: =IF(FIS!AP7="","",FIS!AP7) -> 
D141: Criterio Evaluación 2.3 | E141: =IF(FIS!H8="","",FIS!H8) ->  | F141: =IF(FIS!I8="","",FIS!I8) ->  | G141: =IF(FIS!J8="","",FIS!J8) ->  | H141: =IF(FIS!K8="","",FIS!K8) ->  | I141: =IF(FIS!L8="","",FIS!L8) ->  | J141: =IF(FIS!M8="","",FIS!M8) ->  | K141: =IF(FIS!N8="","",FIS!N8) ->  | L141: =IF(FIS!O8="","",FIS!O8) ->  | M141: =IF(FIS!P8="","",FIS!P8) ->  | N141: =IF(FIS!Q8="","",FIS!Q8) ->  | O141: =IF(FIS!R8="","",FIS!R8) ->  | P141: =IF(FIS!S8="","",FIS!S8) ->  | Q141: =IF(FIS!T8="","",FIS!T8) ->  | R141: =IF(FIS!U8="","",FIS!U8) ->  | S141: =IF(FIS!V8="","",FIS!V8) ->  | T141: =IF(FIS!W8="","",FIS!W8) ->  | U141: =IF(FIS!X8="","",FIS!X8) ->  | V141: =IF(FIS!Y8="","",FIS!Y8) ->  | W141: =IF(FIS!Z8="","",FIS!Z8) ->  | X141: =IF(FIS!AA8="","",FIS!AA8) ->  | Y141: =IF(FIS!AB8="","",FIS!AB8) ->  | Z141: =IF(FIS!AC8="","",FIS!AC8) ->  | AA141: =IF(FIS!AD8="","",FIS!AD8) ->  | AB141: =IF(FIS!AE8="","",FIS!AE8) ->  | AC141: =IF(FIS!AF8="","",FIS!AF8) ->  | AD141: =IF(FIS!AG8="","",FIS!AG8) ->  | AE141: =IF(FIS!AH8="","",FIS!AH8) ->  | AF141: =IF(FIS!AI8="","",FIS!AI8) ->  | AG141: =IF(FIS!AJ8="","",FIS!AJ8) ->  | AH141: =IF(FIS!AK8="","",FIS!AK8) ->  | AI141: =IF(FIS!AL8="","",FIS!AL8) ->  | AJ141: =IF(FIS!AM8="","",FIS!AM8) ->  | AK141: =IF(FIS!AN8="","",FIS!AN8) ->  | AL141: =IF(FIS!AO8="","",FIS!AO8) ->  | AM141: =IF(FIS!AP8="","",FIS!AP8) -> 
C142: Comp. Esp. 3 | D142: Criterio Evaluación 3.1 | E142: =IF(FIS!H9="","",FIS!H9) ->  | F142: =IF(FIS!I9="","",FIS!I9) ->  | G142: =IF(FIS!J9="","",FIS!J9) ->  | H142: =IF(FIS!K9="","",FIS!K9) ->  | I142: =IF(FIS!L9="","",FIS!L9) ->  | J142: =IF(FIS!M9="","",FIS!M9) ->  | K142: =IF(FIS!N9="","",FIS!N9) ->  | L142: =IF(FIS!O9="","",FIS!O9) ->  | M142: =IF(FIS!P9="","",FIS!P9) ->  | N142: =IF(FIS!Q9="","",FIS!Q9) ->  | O142: =IF(FIS!R9="","",FIS!R9) ->  | P142: =IF(FIS!S9="","",FIS!S9) ->  | Q142: =IF(FIS!T9="","",FIS!T9) ->  | R142: =IF(FIS!U9="","",FIS!U9) ->  | S142: =IF(FIS!V9="","",FIS!V9) ->  | T142: =IF(FIS!W9="","",FIS!W9) ->  | U142: =IF(FIS!X9="","",FIS!X9) ->  | V142: =IF(FIS!Y9="","",FIS!Y9) ->  | W142: =IF(FIS!Z9="","",FIS!Z9) ->  | X142: =IF(FIS!AA9="","",FIS!AA9) ->  | Y142: =IF(FIS!AB9="","",FIS!AB9) ->  | Z142: =IF(FIS!AC9="","",FIS!AC9) ->  | AA142: =IF(FIS!AD9="","",FIS!AD9) ->  | AB142: =IF(FIS!AE9="","",FIS!AE9) ->  | AC142: =IF(FIS!AF9="","",FIS!AF9) ->  | AD142: =IF(FIS!AG9="","",FIS!AG9) ->  | AE142: =IF(FIS!AH9="","",FIS!AH9) ->  | AF142: =IF(FIS!AI9="","",FIS!AI9) ->  | AG142: =IF(FIS!AJ9="","",FIS!AJ9) ->  | AH142: =IF(FIS!AK9="","",FIS!AK9) ->  | AI142: =IF(FIS!AL9="","",FIS!AL9) ->  | AJ142: =IF(FIS!AM9="","",FIS!AM9) ->  | AK142: =IF(FIS!AN9="","",FIS!AN9) ->  | AL142: =IF(FIS!AO9="","",FIS!AO9) ->  | AM142: =IF(FIS!AP9="","",FIS!AP9) -> 
D143: Criterio Evaluación 3.2 | E143: =IF(FIS!H10="","",FIS!H10) ->  | F143: =IF(FIS!I10="","",FIS!I10) ->  | G143: =IF(FIS!J10="","",FIS!J10) ->  | H143: =IF(FIS!K10="","",FIS!K10) ->  | I143: =IF(FIS!L10="","",FIS!L10) ->  | J143: =IF(FIS!M10="","",FIS!M10) ->  | K143: =IF(FIS!N10="","",FIS!N10) ->  | L143: =IF(FIS!O10="","",FIS!O10) ->  | M143: =IF(FIS!P10="","",FIS!P10) ->  | N143: =IF(FIS!Q10="","",FIS!Q10) ->  | O143: =IF(FIS!R10="","",FIS!R10) ->  | P143: =IF(FIS!S10="","",FIS!S10) ->  | Q143: =IF(FIS!T10="","",FIS!T10) ->  | R143: =IF(FIS!U10="","",FIS!U10) ->  | S143: =IF(FIS!V10="","",FIS!V10) ->  | T143: =IF(FIS!W10="","",FIS!W10) ->  | U143: =IF(FIS!X10="","",FIS!X10) ->  | V143: =IF(FIS!Y10="","",FIS!Y10) ->  | W143: =IF(FIS!Z10="","",FIS!Z10) ->  | X143: =IF(FIS!AA10="","",FIS!AA10) ->  | Y143: =IF(FIS!AB10="","",FIS!AB10) ->  | Z143: =IF(FIS!AC10="","",FIS!AC10) ->  | AA143: =IF(FIS!AD10="","",FIS!AD10) ->  | AB143: =IF(FIS!AE10="","",FIS!AE10) ->  | AC143: =IF(FIS!AF10="","",FIS!AF10) ->  | AD143: =IF(FIS!AG10="","",FIS!AG10) ->  | AE143: =IF(FIS!AH10="","",FIS!AH10) ->  | AF143: =IF(FIS!AI10="","",FIS!AI10) ->  | AG143: =IF(FIS!AJ10="","",FIS!AJ10) ->  | AH143: =IF(FIS!AK10="","",FIS!AK10) ->  | AI143: =IF(FIS!AL10="","",FIS!AL10) ->  | AJ143: =IF(FIS!AM10="","",FIS!AM10) ->  | AK143: =IF(FIS!AN10="","",FIS!AN10) ->  | AL143: =IF(FIS!AO10="","",FIS!AO10) ->  | AM143: =IF(FIS!AP10="","",FIS!AP10) -> 
D144: Criterio Evaluación 3.3 | E144: =IF(FIS!H11="","",FIS!H11) ->  | F144: =IF(FIS!I11="","",FIS!I11) ->  | G144: =IF(FIS!J11="","",FIS!J11) ->  | H144: =IF(FIS!K11="","",FIS!K11) ->  | I144: =IF(FIS!L11="","",FIS!L11) ->  | J144: =IF(FIS!M11="","",FIS!M11) ->  | K144: =IF(FIS!N11="","",FIS!N11) ->  | L144: =IF(FIS!O11="","",FIS!O11) ->  | M144: =IF(FIS!P11="","",FIS!P11) ->  | N144: =IF(FIS!Q11="","",FIS!Q11) ->  | O144: =IF(FIS!R11="","",FIS!R11) ->  | P144: =IF(FIS!S11="","",FIS!S11) ->  | Q144: =IF(FIS!T11="","",FIS!T11) ->  | R144: =IF(FIS!U11="","",FIS!U11) ->  | S144: =IF(FIS!V11="","",FIS!V11) ->  | T144: =IF(FIS!W11="","",FIS!W11) ->  | U144: =IF(FIS!X11="","",FIS!X11) ->  | V144: =IF(FIS!Y11="","",FIS!Y11) ->  | W144: =IF(FIS!Z11="","",FIS!Z11) ->  | X144: =IF(FIS!AA11="","",FIS!AA11) ->  | Y144: =IF(FIS!AB11="","",FIS!AB11) ->  | Z144: =IF(FIS!AC11="","",FIS!AC11) ->  | AA144: =IF(FIS!AD11="","",FIS!AD11) ->  | AB144: =IF(FIS!AE11="","",FIS!AE11) ->  | AC144: =IF(FIS!AF11="","",FIS!AF11) ->  | AD144: =IF(FIS!AG11="","",FIS!AG11) ->  | AE144: =IF(FIS!AH11="","",FIS!AH11) ->  | AF144: =IF(FIS!AI11="","",FIS!AI11) ->  | AG144: =IF(FIS!AJ11="","",FIS!AJ11) ->  | AH144: =IF(FIS!AK11="","",FIS!AK11) ->  | AI144: =IF(FIS!AL11="","",FIS!AL11) ->  | AJ144: =IF(FIS!AM11="","",FIS!AM11) ->  | AK144: =IF(FIS!AN11="","",FIS!AN11) ->  | AL144: =IF(FIS!AO11="","",FIS!AO11) ->  | AM144: =IF(FIS!AP11="","",FIS!AP11) -> 
C145: Comp. Esp. 4 | D145: Criterio Evaluación 4.1 | E145: =IF(FIS!H12="","",FIS!H12) ->  | F145: =IF(FIS!I12="","",FIS!I12) ->  | G145: =IF(FIS!J12="","",FIS!J12) ->  | H145: =IF(FIS!K12="","",FIS!K12) ->  | I145: =IF(FIS!L12="","",FIS!L12) ->  | J145: =IF(FIS!M12="","",FIS!M12) ->  | K145: =IF(FIS!N12="","",FIS!N12) ->  | L145: =IF(FIS!O12="","",FIS!O12) ->  | M145: =IF(FIS!P12="","",FIS!P12) ->  | N145: =IF(FIS!Q12="","",FIS!Q12) ->  | O145: =IF(FIS!R12="","",FIS!R12) ->  | P145: =IF(FIS!S12="","",FIS!S12) ->  | Q145: =IF(FIS!T12="","",FIS!T12) ->  | R145: =IF(FIS!U12="","",FIS!U12) ->  | S145: =IF(FIS!V12="","",FIS!V12) ->  | T145: =IF(FIS!W12="","",FIS!W12) ->  | U145: =IF(FIS!X12="","",FIS!X12) ->  | V145: =IF(FIS!Y12="","",FIS!Y12) ->  | W145: =IF(FIS!Z12="","",FIS!Z12) ->  | X145: =IF(FIS!AA12="","",FIS!AA12) ->  | Y145: =IF(FIS!AB12="","",FIS!AB12) ->  | Z145: =IF(FIS!AC12="","",FIS!AC12) ->  | AA145: =IF(FIS!AD12="","",FIS!AD12) ->  | AB145: =IF(FIS!AE12="","",FIS!AE12) ->  | AC145: =IF(FIS!AF12="","",FIS!AF12) ->  | AD145: =IF(FIS!AG12="","",FIS!AG12) ->  | AE145: =IF(FIS!AH12="","",FIS!AH12) ->  | AF145: =IF(FIS!AI12="","",FIS!AI12) ->  | AG145: =IF(FIS!AJ12="","",FIS!AJ12) ->  | AH145: =IF(FIS!AK12="","",FIS!AK12) ->  | AI145: =IF(FIS!AL12="","",FIS!AL12) ->  | AJ145: =IF(FIS!AM12="","",FIS!AM12) ->  | AK145: =IF(FIS!AN12="","",FIS!AN12) ->  | AL145: =IF(FIS!AO12="","",FIS!AO12) ->  | AM145: =IF(FIS!AP12="","",FIS!AP12) -> 
D146: Criterio Evaluación 4.2 | E146: =IF(FIS!H13="","",FIS!H13) ->  | F146: =IF(FIS!I13="","",FIS!I13) ->  | G146: =IF(FIS!J13="","",FIS!J13) ->  | H146: =IF(FIS!K13="","",FIS!K13) ->  | I146: =IF(FIS!L13="","",FIS!L13) ->  | J146: =IF(FIS!M13="","",FIS!M13) ->  | K146: =IF(FIS!N13="","",FIS!N13) ->  | L146: =IF(FIS!O13="","",FIS!O13) ->  | M146: =IF(FIS!P13="","",FIS!P13) ->  | N146: =IF(FIS!Q13="","",FIS!Q13) ->  | O146: =IF(FIS!R13="","",FIS!R13) ->  | P146: =IF(FIS!S13="","",FIS!S13) ->  | Q146: =IF(FIS!T13="","",FIS!T13) ->  | R146: =IF(FIS!U13="","",FIS!U13) ->  | S146: =IF(FIS!V13="","",FIS!V13) ->  | T146: =IF(FIS!W13="","",FIS!W13) ->  | U146: =IF(FIS!X13="","",FIS!X13) ->  | V146: =IF(FIS!Y13="","",FIS!Y13) ->  | W146: =IF(FIS!Z13="","",FIS!Z13) ->  | X146: =IF(FIS!AA13="","",FIS!AA13) ->  | Y146: =IF(FIS!AB13="","",FIS!AB13) ->  | Z146: =IF(FIS!AC13="","",FIS!AC13) ->  | AA146: =IF(FIS!AD13="","",FIS!AD13) ->  | AB146: =IF(FIS!AE13="","",FIS!AE13) ->  | AC146: =IF(FIS!AF13="","",FIS!AF13) ->  | AD146: =IF(FIS!AG13="","",FIS!AG13) ->  | AE146: =IF(FIS!AH13="","",FIS!AH13) ->  | AF146: =IF(FIS!AI13="","",FIS!AI13) ->  | AG146: =IF(FIS!AJ13="","",FIS!AJ13) ->  | AH146: =IF(FIS!AK13="","",FIS!AK13) ->  | AI146: =IF(FIS!AL13="","",FIS!AL13) ->  | AJ146: =IF(FIS!AM13="","",FIS!AM13) ->  | AK146: =IF(FIS!AN13="","",FIS!AN13) ->  | AL146: =IF(FIS!AO13="","",FIS!AO13) ->  | AM146: =IF(FIS!AP13="","",FIS!AP13) -> 
C147: Comp. Esp. 5 | D147: Criterio Evaluación 5.1 | E147: =IF(FIS!H14="","",FIS!H14) ->  | F147: =IF(FIS!I14="","",FIS!I14) ->  | G147: =IF(FIS!J14="","",FIS!J14) ->  | H147: =IF(FIS!K14="","",FIS!K14) ->  | I147: =IF(FIS!L14="","",FIS!L14) ->  | J147: =IF(FIS!M14="","",FIS!M14) ->  | K147: =IF(FIS!N14="","",FIS!N14) ->  | L147: =IF(FIS!O14="","",FIS!O14) ->  | M147: =IF(FIS!P14="","",FIS!P14) ->  | N147: =IF(FIS!Q14="","",FIS!Q14) ->  | O147: =IF(FIS!R14="","",FIS!R14) ->  | P147: =IF(FIS!S14="","",FIS!S14) ->  | Q147: =IF(FIS!T14="","",FIS!T14) ->  | R147: =IF(FIS!U14="","",FIS!U14) ->  | S147: =IF(FIS!V14="","",FIS!V14) ->  | T147: =IF(FIS!W14="","",FIS!W14) ->  | U147: =IF(FIS!X14="","",FIS!X14) ->  | V147: =IF(FIS!Y14="","",FIS!Y14) ->  | W147: =IF(FIS!Z14="","",FIS!Z14) ->  | X147: =IF(FIS!AA14="","",FIS!AA14) ->  | Y147: =IF(FIS!AB14="","",FIS!AB14) ->  | Z147: =IF(FIS!AC14="","",FIS!AC14) ->  | AA147: =IF(FIS!AD14="","",FIS!AD14) ->  | AB147: =IF(FIS!AE14="","",FIS!AE14) ->  | AC147: =IF(FIS!AF14="","",FIS!AF14) ->  | AD147: =IF(FIS!AG14="","",FIS!AG14) ->  | AE147: =IF(FIS!AH14="","",FIS!AH14) ->  | AF147: =IF(FIS!AI14="","",FIS!AI14) ->  | AG147: =IF(FIS!AJ14="","",FIS!AJ14) ->  | AH147: =IF(FIS!AK14="","",FIS!AK14) ->  | AI147: =IF(FIS!AL14="","",FIS!AL14) ->  | AJ147: =IF(FIS!AM14="","",FIS!AM14) ->  | AK147: =IF(FIS!AN14="","",FIS!AN14) ->  | AL147: =IF(FIS!AO14="","",FIS!AO14) ->  | AM147: =IF(FIS!AP14="","",FIS!AP14) -> 
D148: Criterio Evaluación 5.2 | E148: =IF(FIS!H15="","",FIS!H15) ->  | F148: =IF(FIS!I15="","",FIS!I15) ->  | G148: =IF(FIS!J15="","",FIS!J15) ->  | H148: =IF(FIS!K15="","",FIS!K15) ->  | I148: =IF(FIS!L15="","",FIS!L15) ->  | J148: =IF(FIS!M15="","",FIS!M15) ->  | K148: =IF(FIS!N15="","",FIS!N15) ->  | L148: =IF(FIS!O15="","",FIS!O15) ->  | M148: =IF(FIS!P15="","",FIS!P15) ->  | N148: =IF(FIS!Q15="","",FIS!Q15) ->  | O148: =IF(FIS!R15="","",FIS!R15) ->  | P148: =IF(FIS!S15="","",FIS!S15) ->  | Q148: =IF(FIS!T15="","",FIS!T15) ->  | R148: =IF(FIS!U15="","",FIS!U15) ->  | S148: =IF(FIS!V15="","",FIS!V15) ->  | T148: =IF(FIS!W15="","",FIS!W15) ->  | U148: =IF(FIS!X15="","",FIS!X15) ->  | V148: =IF(FIS!Y15="","",FIS!Y15) ->  | W148: =IF(FIS!Z15="","",FIS!Z15) ->  | X148: =IF(FIS!AA15="","",FIS!AA15) ->  | Y148: =IF(FIS!AB15="","",FIS!AB15) ->  | Z148: =IF(FIS!AC15="","",FIS!AC15) ->  | AA148: =IF(FIS!AD15="","",FIS!AD15) ->  | AB148: =IF(FIS!AE15="","",FIS!AE15) ->  | AC148: =IF(FIS!AF15="","",FIS!AF15) ->  | AD148: =IF(FIS!AG15="","",FIS!AG15) ->  | AE148: =IF(FIS!AH15="","",FIS!AH15) ->  | AF148: =IF(FIS!AI15="","",FIS!AI15) ->  | AG148: =IF(FIS!AJ15="","",FIS!AJ15) ->  | AH148: =IF(FIS!AK15="","",FIS!AK15) ->  | AI148: =IF(FIS!AL15="","",FIS!AL15) ->  | AJ148: =IF(FIS!AM15="","",FIS!AM15) ->  | AK148: =IF(FIS!AN15="","",FIS!AN15) ->  | AL148: =IF(FIS!AO15="","",FIS!AO15) ->  | AM148: =IF(FIS!AP15="","",FIS!AP15) -> 
D149: Criterio Evaluación 5.3 | E149: =IF(FIS!H16="","",FIS!H16) ->  | F149: =IF(FIS!I16="","",FIS!I16) ->  | G149: =IF(FIS!J16="","",FIS!J16) ->  | H149: =IF(FIS!K16="","",FIS!K16) ->  | I149: =IF(FIS!L16="","",FIS!L16) ->  | J149: =IF(FIS!M16="","",FIS!M16) ->  | K149: =IF(FIS!N16="","",FIS!N16) ->  | L149: =IF(FIS!O16="","",FIS!O16) ->  | M149: =IF(FIS!P16="","",FIS!P16) ->  | N149: =IF(FIS!Q16="","",FIS!Q16) ->  | O149: =IF(FIS!R16="","",FIS!R16) ->  | P149: =IF(FIS!S16="","",FIS!S16) ->  | Q149: =IF(FIS!T16="","",FIS!T16) ->  | R149: =IF(FIS!U16="","",FIS!U16) ->  | S149: =IF(FIS!V16="","",FIS!V16) ->  | T149: =IF(FIS!W16="","",FIS!W16) ->  | U149: =IF(FIS!X16="","",FIS!X16) ->  | V149: =IF(FIS!Y16="","",FIS!Y16) ->  | W149: =IF(FIS!Z16="","",FIS!Z16) ->  | X149: =IF(FIS!AA16="","",FIS!AA16) ->  | Y149: =IF(FIS!AB16="","",FIS!AB16) ->  | Z149: =IF(FIS!AC16="","",FIS!AC16) ->  | AA149: =IF(FIS!AD16="","",FIS!AD16) ->  | AB149: =IF(FIS!AE16="","",FIS!AE16) ->  | AC149: =IF(FIS!AF16="","",FIS!AF16) ->  | AD149: =IF(FIS!AG16="","",FIS!AG16) ->  | AE149: =IF(FIS!AH16="","",FIS!AH16) ->  | AF149: =IF(FIS!AI16="","",FIS!AI16) ->  | AG149: =IF(FIS!AJ16="","",FIS!AJ16) ->  | AH149: =IF(FIS!AK16="","",FIS!AK16) ->  | AI149: =IF(FIS!AL16="","",FIS!AL16) ->  | AJ149: =IF(FIS!AM16="","",FIS!AM16) ->  | AK149: =IF(FIS!AN16="","",FIS!AN16) ->  | AL149: =IF(FIS!AO16="","",FIS!AO16) ->  | AM149: =IF(FIS!AP16="","",FIS!AP16) -> 
C150: Comp. Esp. 6 | D150: Criterio Evaluación 6.1 | E150: =IF(FIS!H17="","",FIS!H17) ->  | F150: =IF(FIS!I17="","",FIS!I17) ->  | G150: =IF(FIS!J17="","",FIS!J17) ->  | H150: =IF(FIS!K17="","",FIS!K17) ->  | I150: =IF(FIS!L17="","",FIS!L17) ->  | J150: =IF(FIS!M17="","",FIS!M17) ->  | K150: =IF(FIS!N17="","",FIS!N17) ->  | L150: =IF(FIS!O17="","",FIS!O17) ->  | M150: =IF(FIS!P17="","",FIS!P17) ->  | N150: =IF(FIS!Q17="","",FIS!Q17) ->  | O150: =IF(FIS!R17="","",FIS!R17) ->  | P150: =IF(FIS!S17="","",FIS!S17) ->  | Q150: =IF(FIS!T17="","",FIS!T17) ->  | R150: =IF(FIS!U17="","",FIS!U17) ->  | S150: =IF(FIS!V17="","",FIS!V17) ->  | T150: =IF(FIS!W17="","",FIS!W17) ->  | U150: =IF(FIS!X17="","",FIS!X17) ->  | V150: =IF(FIS!Y17="","",FIS!Y17) ->  | W150: =IF(FIS!Z17="","",FIS!Z17) ->  | X150: =IF(FIS!AA17="","",FIS!AA17) ->  | Y150: =IF(FIS!AB17="","",FIS!AB17) ->  | Z150: =IF(FIS!AC17="","",FIS!AC17) ->  | AA150: =IF(FIS!AD17="","",FIS!AD17) ->  | AB150: =IF(FIS!AE17="","",FIS!AE17) ->  | AC150: =IF(FIS!AF17="","",FIS!AF17) ->  | AD150: =IF(FIS!AG17="","",FIS!AG17) ->  | AE150: =IF(FIS!AH17="","",FIS!AH17) ->  | AF150: =IF(FIS!AI17="","",FIS!AI17) ->  | AG150: =IF(FIS!AJ17="","",FIS!AJ17) ->  | AH150: =IF(FIS!AK17="","",FIS!AK17) ->  | AI150: =IF(FIS!AL17="","",FIS!AL17) ->  | AJ150: =IF(FIS!AM17="","",FIS!AM17) ->  | AK150: =IF(FIS!AN17="","",FIS!AN17) ->  | AL150: =IF(FIS!AO17="","",FIS!AO17) ->  | AM150: =IF(FIS!AP17="","",FIS!AP17) -> 
D151: Criterio Evaluación 6.2 | E151: =IF(FIS!H18="","",FIS!H18) ->  | F151: =IF(FIS!I18="","",FIS!I18) ->  | G151: =IF(FIS!J18="","",FIS!J18) ->  | H151: =IF(FIS!K18="","",FIS!K18) ->  | I151: =IF(FIS!L18="","",FIS!L18) ->  | J151: =IF(FIS!M18="","",FIS!M18) ->  | K151: =IF(FIS!N18="","",FIS!N18) ->  | L151: =IF(FIS!O18="","",FIS!O18) ->  | M151: =IF(FIS!P18="","",FIS!P18) ->  | N151: =IF(FIS!Q18="","",FIS!Q18) ->  | O151: =IF(FIS!R18="","",FIS!R18) ->  | P151: =IF(FIS!S18="","",FIS!S18) ->  | Q151: =IF(FIS!T18="","",FIS!T18) ->  | R151: =IF(FIS!U18="","",FIS!U18) ->  | S151: =IF(FIS!V18="","",FIS!V18) ->  | T151: =IF(FIS!W18="","",FIS!W18) ->  | U151: =IF(FIS!X18="","",FIS!X18) ->  | V151: =IF(FIS!Y18="","",FIS!Y18) ->  | W151: =IF(FIS!Z18="","",FIS!Z18) ->  | X151: =IF(FIS!AA18="","",FIS!AA18) ->  | Y151: =IF(FIS!AB18="","",FIS!AB18) ->  | Z151: =IF(FIS!AC18="","",FIS!AC18) ->  | AA151: =IF(FIS!AD18="","",FIS!AD18) ->  | AB151: =IF(FIS!AE18="","",FIS!AE18) ->  | AC151: =IF(FIS!AF18="","",FIS!AF18) ->  | AD151: =IF(FIS!AG18="","",FIS!AG18) ->  | AE151: =IF(FIS!AH18="","",FIS!AH18) ->  | AF151: =IF(FIS!AI18="","",FIS!AI18) ->  | AG151: =IF(FIS!AJ18="","",FIS!AJ18) ->  | AH151: =IF(FIS!AK18="","",FIS!AK18) ->  | AI151: =IF(FIS!AL18="","",FIS!AL18) ->  | AJ151: =IF(FIS!AM18="","",FIS!AM18) ->  | AK151: =IF(FIS!AN18="","",FIS!AN18) ->  | AL151: =IF(FIS!AO18="","",FIS!AO18) ->  | AM151: =IF(FIS!AP18="","",FIS!AP18) -> 
B152: Fundamentos Artísticos | C152: Comp. Esp. 1 | D152: Criterio Evaluación 1.1 | E152: =IF(FA!H4="","",FA!H4) ->  | F152: =IF(FA!I4="","",FA!I4) ->  | G152: =IF(FA!J4="","",FA!J4) ->  | H152: =IF(FA!K4="","",FA!K4) ->  | I152: =IF(FA!L4="","",FA!L4) ->  | J152: =IF(FA!M4="","",FA!M4) ->  | K152: =IF(FA!N4="","",FA!N4) ->  | L152: =IF(FA!O4="","",FA!O4) ->  | M152: =IF(FA!P4="","",FA!P4) ->  | N152: =IF(FA!Q4="","",FA!Q4) ->  | O152: =IF(FA!R4="","",FA!R4) ->  | P152: =IF(FA!S4="","",FA!S4) ->  | Q152: =IF(FA!T4="","",FA!T4) ->  | R152: =IF(FA!U4="","",FA!U4) ->  | S152: =IF(FA!V4="","",FA!V4) ->  | T152: =IF(FA!W4="","",FA!W4) ->  | U152: =IF(FA!X4="","",FA!X4) ->  | V152: =IF(FA!Y4="","",FA!Y4) ->  | W152: =IF(FA!Z4="","",FA!Z4) ->  | X152: =IF(FA!AA4="","",FA!AA4) ->  | Y152: =IF(FA!AB4="","",FA!AB4) ->  | Z152: =IF(FA!AC4="","",FA!AC4) ->  | AA152: =IF(FA!AD4="","",FA!AD4) ->  | AB152: =IF(FA!AE4="","",FA!AE4) ->  | AC152: =IF(FA!AF4="","",FA!AF4) ->  | AD152: =IF(FA!AG4="","",FA!AG4) ->  | AE152: =IF(FA!AH4="","",FA!AH4) ->  | AF152: =IF(FA!AI4="","",FA!AI4) ->  | AG152: =IF(FA!AJ4="","",FA!AJ4) ->  | AH152: =IF(FA!AK4="","",FA!AK4) ->  | AI152: =IF(FA!AL4="","",FA!AL4) ->  | AJ152: =IF(FA!AM4="","",FA!AM4) ->  | AK152: =IF(FA!AN4="","",FA!AN4) ->  | AL152: =IF(FA!AO4="","",FA!AO4) ->  | AM152: =IF(FA!AP4="","",FA!AP4) -> 
D153: Criterio Evaluación 1.2 | E153: =IF(FA!H5="","",FA!H5) ->  | F153: =IF(FA!I5="","",FA!I5) ->  | G153: =IF(FA!J5="","",FA!J5) ->  | H153: =IF(FA!K5="","",FA!K5) ->  | I153: =IF(FA!L5="","",FA!L5) ->  | J153: =IF(FA!M5="","",FA!M5) ->  | K153: =IF(FA!N5="","",FA!N5) ->  | L153: =IF(FA!O5="","",FA!O5) ->  | M153: =IF(FA!P5="","",FA!P5) ->  | N153: =IF(FA!Q5="","",FA!Q5) ->  | O153: =IF(FA!R5="","",FA!R5) ->  | P153: =IF(FA!S5="","",FA!S5) ->  | Q153: =IF(FA!T5="","",FA!T5) ->  | R153: =IF(FA!U5="","",FA!U5) ->  | S153: =IF(FA!V5="","",FA!V5) ->  | T153: =IF(FA!W5="","",FA!W5) ->  | U153: =IF(FA!X5="","",FA!X5) ->  | V153: =IF(FA!Y5="","",FA!Y5) ->  | W153: =IF(FA!Z5="","",FA!Z5) ->  | X153: =IF(FA!AA5="","",FA!AA5) ->  | Y153: =IF(FA!AB5="","",FA!AB5) ->  | Z153: =IF(FA!AC5="","",FA!AC5) ->  | AA153: =IF(FA!AD5="","",FA!AD5) ->  | AB153: =IF(FA!AE5="","",FA!AE5) ->  | AC153: =IF(FA!AF5="","",FA!AF5) ->  | AD153: =IF(FA!AG5="","",FA!AG5) ->  | AE153: =IF(FA!AH5="","",FA!AH5) ->  | AF153: =IF(FA!AI5="","",FA!AI5) ->  | AG153: =IF(FA!AJ5="","",FA!AJ5) ->  | AH153: =IF(FA!AK5="","",FA!AK5) ->  | AI153: =IF(FA!AL5="","",FA!AL5) ->  | AJ153: =IF(FA!AM5="","",FA!AM5) ->  | AK153: =IF(FA!AN5="","",FA!AN5) ->  | AL153: =IF(FA!AO5="","",FA!AO5) ->  | AM153: =IF(FA!AP5="","",FA!AP5) -> 
D154: Criterio Evaluación 1.3 | E154: =IF(FA!H6="","",FA!H6) ->  | F154: =IF(FA!I6="","",FA!I6) ->  | G154: =IF(FA!J6="","",FA!J6) ->  | H154: =IF(FA!K6="","",FA!K6) ->  | I154: =IF(FA!L6="","",FA!L6) ->  | J154: =IF(FA!M6="","",FA!M6) ->  | K154: =IF(FA!N6="","",FA!N6) ->  | L154: =IF(FA!O6="","",FA!O6) ->  | M154: =IF(FA!P6="","",FA!P6) ->  | N154: =IF(FA!Q6="","",FA!Q6) ->  | O154: =IF(FA!R6="","",FA!R6) ->  | P154: =IF(FA!S6="","",FA!S6) ->  | Q154: =IF(FA!T6="","",FA!T6) ->  | R154: =IF(FA!U6="","",FA!U6) ->  | S154: =IF(FA!V6="","",FA!V6) ->  | T154: =IF(FA!W6="","",FA!W6) ->  | U154: =IF(FA!X6="","",FA!X6) ->  | V154: =IF(FA!Y6="","",FA!Y6) ->  | W154: =IF(FA!Z6="","",FA!Z6) ->  | X154: =IF(FA!AA6="","",FA!AA6) ->  | Y154: =IF(FA!AB6="","",FA!AB6) ->  | Z154: =IF(FA!AC6="","",FA!AC6) ->  | AA154: =IF(FA!AD6="","",FA!AD6) ->  | AB154: =IF(FA!AE6="","",FA!AE6) ->  | AC154: =IF(FA!AF6="","",FA!AF6) ->  | AD154: =IF(FA!AG6="","",FA!AG6) ->  | AE154: =IF(FA!AH6="","",FA!AH6) ->  | AF154: =IF(FA!AI6="","",FA!AI6) ->  | AG154: =IF(FA!AJ6="","",FA!AJ6) ->  | AH154: =IF(FA!AK6="","",FA!AK6) ->  | AI154: =IF(FA!AL6="","",FA!AL6) ->  | AJ154: =IF(FA!AM6="","",FA!AM6) ->  | AK154: =IF(FA!AN6="","",FA!AN6) ->  | AL154: =IF(FA!AO6="","",FA!AO6) ->  | AM154: =IF(FA!AP6="","",FA!AP6) -> 
C155: Comp. Esp. 2 | D155: Criterio Evaluación 2.1 | E155: =IF(FA!H7="","",FA!H7) ->  | F155: =IF(FA!I7="","",FA!I7) ->  | G155: =IF(FA!J7="","",FA!J7) ->  | H155: =IF(FA!K7="","",FA!K7) ->  | I155: =IF(FA!L7="","",FA!L7) ->  | J155: =IF(FA!M7="","",FA!M7) ->  | K155: =IF(FA!N7="","",FA!N7) ->  | L155: =IF(FA!O7="","",FA!O7) ->  | M155: =IF(FA!P7="","",FA!P7) ->  | N155: =IF(FA!Q7="","",FA!Q7) ->  | O155: =IF(FA!R7="","",FA!R7) ->  | P155: =IF(FA!S7="","",FA!S7) ->  | Q155: =IF(FA!T7="","",FA!T7) ->  | R155: =IF(FA!U7="","",FA!U7) ->  | S155: =IF(FA!V7="","",FA!V7) ->  | T155: =IF(FA!W7="","",FA!W7) ->  | U155: =IF(FA!X7="","",FA!X7) ->  | V155: =IF(FA!Y7="","",FA!Y7) ->  | W155: =IF(FA!Z7="","",FA!Z7) ->  | X155: =IF(FA!AA7="","",FA!AA7) ->  | Y155: =IF(FA!AB7="","",FA!AB7) ->  | Z155: =IF(FA!AC7="","",FA!AC7) ->  | AA155: =IF(FA!AD7="","",FA!AD7) ->  | AB155: =IF(FA!AE7="","",FA!AE7) ->  | AC155: =IF(FA!AF7="","",FA!AF7) ->  | AD155: =IF(FA!AG7="","",FA!AG7) ->  | AE155: =IF(FA!AH7="","",FA!AH7) ->  | AF155: =IF(FA!AI7="","",FA!AI7) ->  | AG155: =IF(FA!AJ7="","",FA!AJ7) ->  | AH155: =IF(FA!AK7="","",FA!AK7) ->  | AI155: =IF(FA!AL7="","",FA!AL7) ->  | AJ155: =IF(FA!AM7="","",FA!AM7) ->  | AK155: =IF(FA!AN7="","",FA!AN7) ->  | AL155: =IF(FA!AO7="","",FA!AO7) ->  | AM155: =IF(FA!AP7="","",FA!AP7) -> 
D156: Criterio Evaluación 2.2 | E156: =IF(FA!H8="","",FA!H8) ->  | F156: =IF(FA!I8="","",FA!I8) ->  | G156: =IF(FA!J8="","",FA!J8) ->  | H156: =IF(FA!K8="","",FA!K8) ->  | I156: =IF(FA!L8="","",FA!L8) ->  | J156: =IF(FA!M8="","",FA!M8) ->  | K156: =IF(FA!N8="","",FA!N8) ->  | L156: =IF(FA!O8="","",FA!O8) ->  | M156: =IF(FA!P8="","",FA!P8) ->  | N156: =IF(FA!Q8="","",FA!Q8) ->  | O156: =IF(FA!R8="","",FA!R8) ->  | P156: =IF(FA!S8="","",FA!S8) ->  | Q156: =IF(FA!T8="","",FA!T8) ->  | R156: =IF(FA!U8="","",FA!U8) ->  | S156: =IF(FA!V8="","",FA!V8) ->  | T156: =IF(FA!W8="","",FA!W8) ->  | U156: =IF(FA!X8="","",FA!X8) ->  | V156: =IF(FA!Y8="","",FA!Y8) ->  | W156: =IF(FA!Z8="","",FA!Z8) ->  | X156: =IF(FA!AA8="","",FA!AA8) ->  | Y156: =IF(FA!AB8="","",FA!AB8) ->  | Z156: =IF(FA!AC8="","",FA!AC8) ->  | AA156: =IF(FA!AD8="","",FA!AD8) ->  | AB156: =IF(FA!AE8="","",FA!AE8) ->  | AC156: =IF(FA!AF8="","",FA!AF8) ->  | AD156: =IF(FA!AG8="","",FA!AG8) ->  | AE156: =IF(FA!AH8="","",FA!AH8) ->  | AF156: =IF(FA!AI8="","",FA!AI8) ->  | AG156: =IF(FA!AJ8="","",FA!AJ8) ->  | AH156: =IF(FA!AK8="","",FA!AK8) ->  | AI156: =IF(FA!AL8="","",FA!AL8) ->  | AJ156: =IF(FA!AM8="","",FA!AM8) ->  | AK156: =IF(FA!AN8="","",FA!AN8) ->  | AL156: =IF(FA!AO8="","",FA!AO8) ->  | AM156: =IF(FA!AP8="","",FA!AP8) -> 
C157: Comp. Esp. 3 | D157: Criterio Evaluación 3.1 | E157: =IF(FA!H9="","",FA!H9) ->  | F157: =IF(FA!I9="","",FA!I9) ->  | G157: =IF(FA!J9="","",FA!J9) ->  | H157: =IF(FA!K9="","",FA!K9) ->  | I157: =IF(FA!L9="","",FA!L9) ->  | J157: =IF(FA!M9="","",FA!M9) ->  | K157: =IF(FA!N9="","",FA!N9) ->  | L157: =IF(FA!O9="","",FA!O9) ->  | M157: =IF(FA!P9="","",FA!P9) ->  | N157: =IF(FA!Q9="","",FA!Q9) ->  | O157: =IF(FA!R9="","",FA!R9) ->  | P157: =IF(FA!S9="","",FA!S9) ->  | Q157: =IF(FA!T9="","",FA!T9) ->  | R157: =IF(FA!U9="","",FA!U9) ->  | S157: =IF(FA!V9="","",FA!V9) ->  | T157: =IF(FA!W9="","",FA!W9) ->  | U157: =IF(FA!X9="","",FA!X9) ->  | V157: =IF(FA!Y9="","",FA!Y9) ->  | W157: =IF(FA!Z9="","",FA!Z9) ->  | X157: =IF(FA!AA9="","",FA!AA9) ->  | Y157: =IF(FA!AB9="","",FA!AB9) ->  | Z157: =IF(FA!AC9="","",FA!AC9) ->  | AA157: =IF(FA!AD9="","",FA!AD9) ->  | AB157: =IF(FA!AE9="","",FA!AE9) ->  | AC157: =IF(FA!AF9="","",FA!AF9) ->  | AD157: =IF(FA!AG9="","",FA!AG9) ->  | AE157: =IF(FA!AH9="","",FA!AH9) ->  | AF157: =IF(FA!AI9="","",FA!AI9) ->  | AG157: =IF(FA!AJ9="","",FA!AJ9) ->  | AH157: =IF(FA!AK9="","",FA!AK9) ->  | AI157: =IF(FA!AL9="","",FA!AL9) ->  | AJ157: =IF(FA!AM9="","",FA!AM9) ->  | AK157: =IF(FA!AN9="","",FA!AN9) ->  | AL157: =IF(FA!AO9="","",FA!AO9) ->  | AM157: =IF(FA!AP9="","",FA!AP9) -> 
D158: Criterio Evaluación 3.2 | E158: =IF(FA!H10="","",FA!H10) ->  | F158: =IF(FA!I10="","",FA!I10) ->  | G158: =IF(FA!J10="","",FA!J10) ->  | H158: =IF(FA!K10="","",FA!K10) ->  | I158: =IF(FA!L10="","",FA!L10) ->  | J158: =IF(FA!M10="","",FA!M10) ->  | K158: =IF(FA!N10="","",FA!N10) ->  | L158: =IF(FA!O10="","",FA!O10) ->  | M158: =IF(FA!P10="","",FA!P10) ->  | N158: =IF(FA!Q10="","",FA!Q10) ->  | O158: =IF(FA!R10="","",FA!R10) ->  | P158: =IF(FA!S10="","",FA!S10) ->  | Q158: =IF(FA!T10="","",FA!T10) ->  | R158: =IF(FA!U10="","",FA!U10) ->  | S158: =IF(FA!V10="","",FA!V10) ->  | T158: =IF(FA!W10="","",FA!W10) ->  | U158: =IF(FA!X10="","",FA!X10) ->  | V158: =IF(FA!Y10="","",FA!Y10) ->  | W158: =IF(FA!Z10="","",FA!Z10) ->  | X158: =IF(FA!AA10="","",FA!AA10) ->  | Y158: =IF(FA!AB10="","",FA!AB10) ->  | Z158: =IF(FA!AC10="","",FA!AC10) ->  | AA158: =IF(FA!AD10="","",FA!AD10) ->  | AB158: =IF(FA!AE10="","",FA!AE10) ->  | AC158: =IF(FA!AF10="","",FA!AF10) ->  | AD158: =IF(FA!AG10="","",FA!AG10) ->  | AE158: =IF(FA!AH10="","",FA!AH10) ->  | AF158: =IF(FA!AI10="","",FA!AI10) ->  | AG158: =IF(FA!AJ10="","",FA!AJ10) ->  | AH158: =IF(FA!AK10="","",FA!AK10) ->  | AI158: =IF(FA!AL10="","",FA!AL10) ->  | AJ158: =IF(FA!AM10="","",FA!AM10) ->  | AK158: =IF(FA!AN10="","",FA!AN10) ->  | AL158: =IF(FA!AO10="","",FA!AO10) ->  | AM158: =IF(FA!AP10="","",FA!AP10) -> 
D159: Criterio Evaluación 3.3 | E159: =IF(FA!H11="","",FA!H11) ->  | F159: =IF(FA!I11="","",FA!I11) ->  | G159: =IF(FA!J11="","",FA!J11) ->  | H159: =IF(FA!K11="","",FA!K11) ->  | I159: =IF(FA!L11="","",FA!L11) ->  | J159: =IF(FA!M11="","",FA!M11) ->  | K159: =IF(FA!N11="","",FA!N11) ->  | L159: =IF(FA!O11="","",FA!O11) ->  | M159: =IF(FA!P11="","",FA!P11) ->  | N159: =IF(FA!Q11="","",FA!Q11) ->  | O159: =IF(FA!R11="","",FA!R11) ->  | P159: =IF(FA!S11="","",FA!S11) ->  | Q159: =IF(FA!T11="","",FA!T11) ->  | R159: =IF(FA!U11="","",FA!U11) ->  | S159: =IF(FA!V11="","",FA!V11) ->  | T159: =IF(FA!W11="","",FA!W11) ->  | U159: =IF(FA!X11="","",FA!X11) ->  | V159: =IF(FA!Y11="","",FA!Y11) ->  | W159: =IF(FA!Z11="","",FA!Z11) ->  | X159: =IF(FA!AA11="","",FA!AA11) ->  | Y159: =IF(FA!AB11="","",FA!AB11) ->  | Z159: =IF(FA!AC11="","",FA!AC11) ->  | AA159: =IF(FA!AD11="","",FA!AD11) ->  | AB159: =IF(FA!AE11="","",FA!AE11) ->  | AC159: =IF(FA!AF11="","",FA!AF11) ->  | AD159: =IF(FA!AG11="","",FA!AG11) ->  | AE159: =IF(FA!AH11="","",FA!AH11) ->  | AF159: =IF(FA!AI11="","",FA!AI11) ->  | AG159: =IF(FA!AJ11="","",FA!AJ11) ->  | AH159: =IF(FA!AK11="","",FA!AK11) ->  | AI159: =IF(FA!AL11="","",FA!AL11) ->  | AJ159: =IF(FA!AM11="","",FA!AM11) ->  | AK159: =IF(FA!AN11="","",FA!AN11) ->  | AL159: =IF(FA!AO11="","",FA!AO11) ->  | AM159: =IF(FA!AP11="","",FA!AP11) -> 
D160: Criterio Evaluación 3.4 | E160: =IF(FA!H12="","",FA!H12) ->  | F160: =IF(FA!I12="","",FA!I12) ->  | G160: =IF(FA!J12="","",FA!J12) ->  | H160: =IF(FA!K12="","",FA!K12) ->  | I160: =IF(FA!L12="","",FA!L12) ->  | J160: =IF(FA!M12="","",FA!M12) ->  | K160: =IF(FA!N12="","",FA!N12) ->  | L160: =IF(FA!O12="","",FA!O12) ->  | M160: =IF(FA!P12="","",FA!P12) ->  | N160: =IF(FA!Q12="","",FA!Q12) ->  | O160: =IF(FA!R12="","",FA!R12) ->  | P160: =IF(FA!S12="","",FA!S12) ->  | Q160: =IF(FA!T12="","",FA!T12) ->  | R160: =IF(FA!U12="","",FA!U12) ->  | S160: =IF(FA!V12="","",FA!V12) ->  | T160: =IF(FA!W12="","",FA!W12) ->  | U160: =IF(FA!X12="","",FA!X12) ->  | V160: =IF(FA!Y12="","",FA!Y12) ->  | W160: =IF(FA!Z12="","",FA!Z12) ->  | X160: =IF(FA!AA12="","",FA!AA12) ->  | Y160: =IF(FA!AB12="","",FA!AB12) ->  | Z160: =IF(FA!AC12="","",FA!AC12) ->  | AA160: =IF(FA!AD12="","",FA!AD12) ->  | AB160: =IF(FA!AE12="","",FA!AE12) ->  | AC160: =IF(FA!AF12="","",FA!AF12) ->  | AD160: =IF(FA!AG12="","",FA!AG12) ->  | AE160: =IF(FA!AH12="","",FA!AH12) ->  | AF160: =IF(FA!AI12="","",FA!AI12) ->  | AG160: =IF(FA!AJ12="","",FA!AJ12) ->  | AH160: =IF(FA!AK12="","",FA!AK12) ->  | AI160: =IF(FA!AL12="","",FA!AL12) ->  | AJ160: =IF(FA!AM12="","",FA!AM12) ->  | AK160: =IF(FA!AN12="","",FA!AN12) ->  | AL160: =IF(FA!AO12="","",FA!AO12) ->  | AM160: =IF(FA!AP12="","",FA!AP12) -> 
D161: Criterio Evaluación 3.5 | E161: =IF(FA!H13="","",FA!H13) ->  | F161: =IF(FA!I13="","",FA!I13) ->  | G161: =IF(FA!J13="","",FA!J13) ->  | H161: =IF(FA!K13="","",FA!K13) ->  | I161: =IF(FA!L13="","",FA!L13) ->  | J161: =IF(FA!M13="","",FA!M13) ->  | K161: =IF(FA!N13="","",FA!N13) ->  | L161: =IF(FA!O13="","",FA!O13) ->  | M161: =IF(FA!P13="","",FA!P13) ->  | N161: =IF(FA!Q13="","",FA!Q13) ->  | O161: =IF(FA!R13="","",FA!R13) ->  | P161: =IF(FA!S13="","",FA!S13) ->  | Q161: =IF(FA!T13="","",FA!T13) ->  | R161: =IF(FA!U13="","",FA!U13) ->  | S161: =IF(FA!V13="","",FA!V13) ->  | T161: =IF(FA!W13="","",FA!W13) ->  | U161: =IF(FA!X13="","",FA!X13) ->  | V161: =IF(FA!Y13="","",FA!Y13) ->  | W161: =IF(FA!Z13="","",FA!Z13) ->  | X161: =IF(FA!AA13="","",FA!AA13) ->  | Y161: =IF(FA!AB13="","",FA!AB13) ->  | Z161: =IF(FA!AC13="","",FA!AC13) ->  | AA161: =IF(FA!AD13="","",FA!AD13) ->  | AB161: =IF(FA!AE13="","",FA!AE13) ->  | AC161: =IF(FA!AF13="","",FA!AF13) ->  | AD161: =IF(FA!AG13="","",FA!AG13) ->  | AE161: =IF(FA!AH13="","",FA!AH13) ->  | AF161: =IF(FA!AI13="","",FA!AI13) ->  | AG161: =IF(FA!AJ13="","",FA!AJ13) ->  | AH161: =IF(FA!AK13="","",FA!AK13) ->  | AI161: =IF(FA!AL13="","",FA!AL13) ->  | AJ161: =IF(FA!AM13="","",FA!AM13) ->  | AK161: =IF(FA!AN13="","",FA!AN13) ->  | AL161: =IF(FA!AO13="","",FA!AO13) ->  | AM161: =IF(FA!AP13="","",FA!AP13) -> 
D162: Criterio Evaluación 3.6 | E162: =IF(FA!H14="","",FA!H14) ->  | F162: =IF(FA!I14="","",FA!I14) ->  | G162: =IF(FA!J14="","",FA!J14) ->  | H162: =IF(FA!K14="","",FA!K14) ->  | I162: =IF(FA!L14="","",FA!L14) ->  | J162: =IF(FA!M14="","",FA!M14) ->  | K162: =IF(FA!N14="","",FA!N14) ->  | L162: =IF(FA!O14="","",FA!O14) ->  | M162: =IF(FA!P14="","",FA!P14) ->  | N162: =IF(FA!Q14="","",FA!Q14) ->  | O162: =IF(FA!R14="","",FA!R14) ->  | P162: =IF(FA!S14="","",FA!S14) ->  | Q162: =IF(FA!T14="","",FA!T14) ->  | R162: =IF(FA!U14="","",FA!U14) ->  | S162: =IF(FA!V14="","",FA!V14) ->  | T162: =IF(FA!W14="","",FA!W14) ->  | U162: =IF(FA!X14="","",FA!X14) ->  | V162: =IF(FA!Y14="","",FA!Y14) ->  | W162: =IF(FA!Z14="","",FA!Z14) ->  | X162: =IF(FA!AA14="","",FA!AA14) ->  | Y162: =IF(FA!AB14="","",FA!AB14) ->  | Z162: =IF(FA!AC14="","",FA!AC14) ->  | AA162: =IF(FA!AD14="","",FA!AD14) ->  | AB162: =IF(FA!AE14="","",FA!AE14) ->  | AC162: =IF(FA!AF14="","",FA!AF14) ->  | AD162: =IF(FA!AG14="","",FA!AG14) ->  | AE162: =IF(FA!AH14="","",FA!AH14) ->  | AF162: =IF(FA!AI14="","",FA!AI14) ->  | AG162: =IF(FA!AJ14="","",FA!AJ14) ->  | AH162: =IF(FA!AK14="","",FA!AK14) ->  | AI162: =IF(FA!AL14="","",FA!AL14) ->  | AJ162: =IF(FA!AM14="","",FA!AM14) ->  | AK162: =IF(FA!AN14="","",FA!AN14) ->  | AL162: =IF(FA!AO14="","",FA!AO14) ->  | AM162: =IF(FA!AP14="","",FA!AP14) -> 
C163: Comp. Esp. 4 | D163: Criterio Evaluación 4.1 | E163: =IF(FA!H15="","",FA!H15) ->  | F163: =IF(FA!I15="","",FA!I15) ->  | G163: =IF(FA!J15="","",FA!J15) ->  | H163: =IF(FA!K15="","",FA!K15) ->  | I163: =IF(FA!L15="","",FA!L15) ->  | J163: =IF(FA!M15="","",FA!M15) ->  | K163: =IF(FA!N15="","",FA!N15) ->  | L163: =IF(FA!O15="","",FA!O15) ->  | M163: =IF(FA!P15="","",FA!P15) ->  | N163: =IF(FA!Q15="","",FA!Q15) ->  | O163: =IF(FA!R15="","",FA!R15) ->  | P163: =IF(FA!S15="","",FA!S15) ->  | Q163: =IF(FA!T15="","",FA!T15) ->  | R163: =IF(FA!U15="","",FA!U15) ->  | S163: =IF(FA!V15="","",FA!V15) ->  | T163: =IF(FA!W15="","",FA!W15) ->  | U163: =IF(FA!X15="","",FA!X15) ->  | V163: =IF(FA!Y15="","",FA!Y15) ->  | W163: =IF(FA!Z15="","",FA!Z15) ->  | X163: =IF(FA!AA15="","",FA!AA15) ->  | Y163: =IF(FA!AB15="","",FA!AB15) ->  | Z163: =IF(FA!AC15="","",FA!AC15) ->  | AA163: =IF(FA!AD15="","",FA!AD15) ->  | AB163: =IF(FA!AE15="","",FA!AE15) ->  | AC163: =IF(FA!AF15="","",FA!AF15) ->  | AD163: =IF(FA!AG15="","",FA!AG15) ->  | AE163: =IF(FA!AH15="","",FA!AH15) ->  | AF163: =IF(FA!AI15="","",FA!AI15) ->  | AG163: =IF(FA!AJ15="","",FA!AJ15) ->  | AH163: =IF(FA!AK15="","",FA!AK15) ->  | AI163: =IF(FA!AL15="","",FA!AL15) ->  | AJ163: =IF(FA!AM15="","",FA!AM15) ->  | AK163: =IF(FA!AN15="","",FA!AN15) ->  | AL163: =IF(FA!AO15="","",FA!AO15) ->  | AM163: =IF(FA!AP15="","",FA!AP15) -> 
D164: Criterio Evaluación 4.2 | E164: =IF(FA!H16="","",FA!H16) ->  | F164: =IF(FA!I16="","",FA!I16) ->  | G164: =IF(FA!J16="","",FA!J16) ->  | H164: =IF(FA!K16="","",FA!K16) ->  | I164: =IF(FA!L16="","",FA!L16) ->  | J164: =IF(FA!M16="","",FA!M16) ->  | K164: =IF(FA!N16="","",FA!N16) ->  | L164: =IF(FA!O16="","",FA!O16) ->  | M164: =IF(FA!P16="","",FA!P16) ->  | N164: =IF(FA!Q16="","",FA!Q16) ->  | O164: =IF(FA!R16="","",FA!R16) ->  | P164: =IF(FA!S16="","",FA!S16) ->  | Q164: =IF(FA!T16="","",FA!T16) ->  | R164: =IF(FA!U16="","",FA!U16) ->  | S164: =IF(FA!V16="","",FA!V16) ->  | T164: =IF(FA!W16="","",FA!W16) ->  | U164: =IF(FA!X16="","",FA!X16) ->  | V164: =IF(FA!Y16="","",FA!Y16) ->  | W164: =IF(FA!Z16="","",FA!Z16) ->  | X164: =IF(FA!AA16="","",FA!AA16) ->  | Y164: =IF(FA!AB16="","",FA!AB16) ->  | Z164: =IF(FA!AC16="","",FA!AC16) ->  | AA164: =IF(FA!AD16="","",FA!AD16) ->  | AB164: =IF(FA!AE16="","",FA!AE16) ->  | AC164: =IF(FA!AF16="","",FA!AF16) ->  | AD164: =IF(FA!AG16="","",FA!AG16) ->  | AE164: =IF(FA!AH16="","",FA!AH16) ->  | AF164: =IF(FA!AI16="","",FA!AI16) ->  | AG164: =IF(FA!AJ16="","",FA!AJ16) ->  | AH164: =IF(FA!AK16="","",FA!AK16) ->  | AI164: =IF(FA!AL16="","",FA!AL16) ->  | AJ164: =IF(FA!AM16="","",FA!AM16) ->  | AK164: =IF(FA!AN16="","",FA!AN16) ->  | AL164: =IF(FA!AO16="","",FA!AO16) ->  | AM164: =IF(FA!AP16="","",FA!AP16) -> 
D165: Criterio Evaluación 4.3 | E165: =IF(FA!H17="","",FA!H17) ->  | F165: =IF(FA!I17="","",FA!I17) ->  | G165: =IF(FA!J17="","",FA!J17) ->  | H165: =IF(FA!K17="","",FA!K17) ->  | I165: =IF(FA!L17="","",FA!L17) ->  | J165: =IF(FA!M17="","",FA!M17) ->  | K165: =IF(FA!N17="","",FA!N17) ->  | L165: =IF(FA!O17="","",FA!O17) ->  | M165: =IF(FA!P17="","",FA!P17) ->  | N165: =IF(FA!Q17="","",FA!Q17) ->  | O165: =IF(FA!R17="","",FA!R17) ->  | P165: =IF(FA!S17="","",FA!S17) ->  | Q165: =IF(FA!T17="","",FA!T17) ->  | R165: =IF(FA!U17="","",FA!U17) ->  | S165: =IF(FA!V17="","",FA!V17) ->  | T165: =IF(FA!W17="","",FA!W17) ->  | U165: =IF(FA!X17="","",FA!X17) ->  | V165: =IF(FA!Y17="","",FA!Y17) ->  | W165: =IF(FA!Z17="","",FA!Z17) ->  | X165: =IF(FA!AA17="","",FA!AA17) ->  | Y165: =IF(FA!AB17="","",FA!AB17) ->  | Z165: =IF(FA!AC17="","",FA!AC17) ->  | AA165: =IF(FA!AD17="","",FA!AD17) ->  | AB165: =IF(FA!AE17="","",FA!AE17) ->  | AC165: =IF(FA!AF17="","",FA!AF17) ->  | AD165: =IF(FA!AG17="","",FA!AG17) ->  | AE165: =IF(FA!AH17="","",FA!AH17) ->  | AF165: =IF(FA!AI17="","",FA!AI17) ->  | AG165: =IF(FA!AJ17="","",FA!AJ17) ->  | AH165: =IF(FA!AK17="","",FA!AK17) ->  | AI165: =IF(FA!AL17="","",FA!AL17) ->  | AJ165: =IF(FA!AM17="","",FA!AM17) ->  | AK165: =IF(FA!AN17="","",FA!AN17) ->  | AL165: =IF(FA!AO17="","",FA!AO17) ->  | AM165: =IF(FA!AP17="","",FA!AP17) -> 
D166: Criterio Evaluación 4.4 | E166: =IF(FA!H18="","",FA!H18) ->  | F166: =IF(FA!I18="","",FA!I18) ->  | G166: =IF(FA!J18="","",FA!J18) ->  | H166: =IF(FA!K18="","",FA!K18) ->  | I166: =IF(FA!L18="","",FA!L18) ->  | J166: =IF(FA!M18="","",FA!M18) ->  | K166: =IF(FA!N18="","",FA!N18) ->  | L166: =IF(FA!O18="","",FA!O18) ->  | M166: =IF(FA!P18="","",FA!P18) ->  | N166: =IF(FA!Q18="","",FA!Q18) ->  | O166: =IF(FA!R18="","",FA!R18) ->  | P166: =IF(FA!S18="","",FA!S18) ->  | Q166: =IF(FA!T18="","",FA!T18) ->  | R166: =IF(FA!U18="","",FA!U18) ->  | S166: =IF(FA!V18="","",FA!V18) ->  | T166: =IF(FA!W18="","",FA!W18) ->  | U166: =IF(FA!X18="","",FA!X18) ->  | V166: =IF(FA!Y18="","",FA!Y18) ->  | W166: =IF(FA!Z18="","",FA!Z18) ->  | X166: =IF(FA!AA18="","",FA!AA18) ->  | Y166: =IF(FA!AB18="","",FA!AB18) ->  | Z166: =IF(FA!AC18="","",FA!AC18) ->  | AA166: =IF(FA!AD18="","",FA!AD18) ->  | AB166: =IF(FA!AE18="","",FA!AE18) ->  | AC166: =IF(FA!AF18="","",FA!AF18) ->  | AD166: =IF(FA!AG18="","",FA!AG18) ->  | AE166: =IF(FA!AH18="","",FA!AH18) ->  | AF166: =IF(FA!AI18="","",FA!AI18) ->  | AG166: =IF(FA!AJ18="","",FA!AJ18) ->  | AH166: =IF(FA!AK18="","",FA!AK18) ->  | AI166: =IF(FA!AL18="","",FA!AL18) ->  | AJ166: =IF(FA!AM18="","",FA!AM18) ->  | AK166: =IF(FA!AN18="","",FA!AN18) ->  | AL166: =IF(FA!AO18="","",FA!AO18) ->  | AM166: =IF(FA!AP18="","",FA!AP18) -> 
C167: Comp. Esp. 5 | D167: Criterio Evaluación 5.1 | E167: =IF(FA!H19="","",FA!H19) ->  | F167: =IF(FA!I19="","",FA!I19) ->  | G167: =IF(FA!J19="","",FA!J19) ->  | H167: =IF(FA!K19="","",FA!K19) ->  | I167: =IF(FA!L19="","",FA!L19) ->  | J167: =IF(FA!M19="","",FA!M19) ->  | K167: =IF(FA!N19="","",FA!N19) ->  | L167: =IF(FA!O19="","",FA!O19) ->  | M167: =IF(FA!P19="","",FA!P19) ->  | N167: =IF(FA!Q19="","",FA!Q19) ->  | O167: =IF(FA!R19="","",FA!R19) ->  | P167: =IF(FA!S19="","",FA!S19) ->  | Q167: =IF(FA!T19="","",FA!T19) ->  | R167: =IF(FA!U19="","",FA!U19) ->  | S167: =IF(FA!V19="","",FA!V19) ->  | T167: =IF(FA!W19="","",FA!W19) ->  | U167: =IF(FA!X19="","",FA!X19) ->  | V167: =IF(FA!Y19="","",FA!Y19) ->  | W167: =IF(FA!Z19="","",FA!Z19) ->  | X167: =IF(FA!AA19="","",FA!AA19) ->  | Y167: =IF(FA!AB19="","",FA!AB19) ->  | Z167: =IF(FA!AC19="","",FA!AC19) ->  | AA167: =IF(FA!AD19="","",FA!AD19) ->  | AB167: =IF(FA!AE19="","",FA!AE19) ->  | AC167: =IF(FA!AF19="","",FA!AF19) ->  | AD167: =IF(FA!AG19="","",FA!AG19) ->  | AE167: =IF(FA!AH19="","",FA!AH19) ->  | AF167: =IF(FA!AI19="","",FA!AI19) ->  | AG167: =IF(FA!AJ19="","",FA!AJ19) ->  | AH167: =IF(FA!AK19="","",FA!AK19) ->  | AI167: =IF(FA!AL19="","",FA!AL19) ->  | AJ167: =IF(FA!AM19="","",FA!AM19) ->  | AK167: =IF(FA!AN19="","",FA!AN19) ->  | AL167: =IF(FA!AO19="","",FA!AO19) ->  | AM167: =IF(FA!AP19="","",FA!AP19) -> 
D168: Criterio Evaluación 5.2 | E168: =IF(FA!H20="","",FA!H20) ->  | F168: =IF(FA!I20="","",FA!I20) ->  | G168: =IF(FA!J20="","",FA!J20) ->  | H168: =IF(FA!K20="","",FA!K20) ->  | I168: =IF(FA!L20="","",FA!L20) ->  | J168: =IF(FA!M20="","",FA!M20) ->  | K168: =IF(FA!N20="","",FA!N20) ->  | L168: =IF(FA!O20="","",FA!O20) ->  | M168: =IF(FA!P20="","",FA!P20) ->  | N168: =IF(FA!Q20="","",FA!Q20) ->  | O168: =IF(FA!R20="","",FA!R20) ->  | P168: =IF(FA!S20="","",FA!S20) ->  | Q168: =IF(FA!T20="","",FA!T20) ->  | R168: =IF(FA!U20="","",FA!U20) ->  | S168: =IF(FA!V20="","",FA!V20) ->  | T168: =IF(FA!W20="","",FA!W20) ->  | U168: =IF(FA!X20="","",FA!X20) ->  | V168: =IF(FA!Y20="","",FA!Y20) ->  | W168: =IF(FA!Z20="","",FA!Z20) ->  | X168: =IF(FA!AA20="","",FA!AA20) ->  | Y168: =IF(FA!AB20="","",FA!AB20) ->  | Z168: =IF(FA!AC20="","",FA!AC20) ->  | AA168: =IF(FA!AD20="","",FA!AD20) ->  | AB168: =IF(FA!AE20="","",FA!AE20) ->  | AC168: =IF(FA!AF20="","",FA!AF20) ->  | AD168: =IF(FA!AG20="","",FA!AG20) ->  | AE168: =IF(FA!AH20="","",FA!AH20) ->  | AF168: =IF(FA!AI20="","",FA!AI20) ->  | AG168: =IF(FA!AJ20="","",FA!AJ20) ->  | AH168: =IF(FA!AK20="","",FA!AK20) ->  | AI168: =IF(FA!AL20="","",FA!AL20) ->  | AJ168: =IF(FA!AM20="","",FA!AM20) ->  | AK168: =IF(FA!AN20="","",FA!AN20) ->  | AL168: =IF(FA!AO20="","",FA!AO20) ->  | AM168: =IF(FA!AP20="","",FA!AP20) -> 
C169: Comp. Esp. 6 | D169: Criterio Evaluación 6.1 | E169: =IF(FA!H21="","",FA!H21) ->  | F169: =IF(FA!I21="","",FA!I21) ->  | G169: =IF(FA!J21="","",FA!J21) ->  | H169: =IF(FA!K21="","",FA!K21) ->  | I169: =IF(FA!L21="","",FA!L21) ->  | J169: =IF(FA!M21="","",FA!M21) ->  | K169: =IF(FA!N21="","",FA!N21) ->  | L169: =IF(FA!O21="","",FA!O21) ->  | M169: =IF(FA!P21="","",FA!P21) ->  | N169: =IF(FA!Q21="","",FA!Q21) ->  | O169: =IF(FA!R21="","",FA!R21) ->  | P169: =IF(FA!S21="","",FA!S21) ->  | Q169: =IF(FA!T21="","",FA!T21) ->  | R169: =IF(FA!U21="","",FA!U21) ->  | S169: =IF(FA!V21="","",FA!V21) ->  | T169: =IF(FA!W21="","",FA!W21) ->  | U169: =IF(FA!X21="","",FA!X21) ->  | V169: =IF(FA!Y21="","",FA!Y21) ->  | W169: =IF(FA!Z21="","",FA!Z21) ->  | X169: =IF(FA!AA21="","",FA!AA21) ->  | Y169: =IF(FA!AB21="","",FA!AB21) ->  | Z169: =IF(FA!AC21="","",FA!AC21) ->  | AA169: =IF(FA!AD21="","",FA!AD21) ->  | AB169: =IF(FA!AE21="","",FA!AE21) ->  | AC169: =IF(FA!AF21="","",FA!AF21) ->  | AD169: =IF(FA!AG21="","",FA!AG21) ->  | AE169: =IF(FA!AH21="","",FA!AH21) ->  | AF169: =IF(FA!AI21="","",FA!AI21) ->  | AG169: =IF(FA!AJ21="","",FA!AJ21) ->  | AH169: =IF(FA!AK21="","",FA!AK21) ->  | AI169: =IF(FA!AL21="","",FA!AL21) ->  | AJ169: =IF(FA!AM21="","",FA!AM21) ->  | AK169: =IF(FA!AN21="","",FA!AN21) ->  | AL169: =IF(FA!AO21="","",FA!AO21) ->  | AM169: =IF(FA!AP21="","",FA!AP21) -> 
D170: Criterio Evaluación 6.2 | E170: =IF(FA!H22="","",FA!H22) ->  | F170: =IF(FA!I22="","",FA!I22) ->  | G170: =IF(FA!J22="","",FA!J22) ->  | H170: =IF(FA!K22="","",FA!K22) ->  | I170: =IF(FA!L22="","",FA!L22) ->  | J170: =IF(FA!M22="","",FA!M22) ->  | K170: =IF(FA!N22="","",FA!N22) ->  | L170: =IF(FA!O22="","",FA!O22) ->  | M170: =IF(FA!P22="","",FA!P22) ->  | N170: =IF(FA!Q22="","",FA!Q22) ->  | O170: =IF(FA!R22="","",FA!R22) ->  | P170: =IF(FA!S22="","",FA!S22) ->  | Q170: =IF(FA!T22="","",FA!T22) ->  | R170: =IF(FA!U22="","",FA!U22) ->  | S170: =IF(FA!V22="","",FA!V22) ->  | T170: =IF(FA!W22="","",FA!W22) ->  | U170: =IF(FA!X22="","",FA!X22) ->  | V170: =IF(FA!Y22="","",FA!Y22) ->  | W170: =IF(FA!Z22="","",FA!Z22) ->  | X170: =IF(FA!AA22="","",FA!AA22) ->  | Y170: =IF(FA!AB22="","",FA!AB22) ->  | Z170: =IF(FA!AC22="","",FA!AC22) ->  | AA170: =IF(FA!AD22="","",FA!AD22) ->  | AB170: =IF(FA!AE22="","",FA!AE22) ->  | AC170: =IF(FA!AF22="","",FA!AF22) ->  | AD170: =IF(FA!AG22="","",FA!AG22) ->  | AE170: =IF(FA!AH22="","",FA!AH22) ->  | AF170: =IF(FA!AI22="","",FA!AI22) ->  | AG170: =IF(FA!AJ22="","",FA!AJ22) ->  | AH170: =IF(FA!AK22="","",FA!AK22) ->  | AI170: =IF(FA!AL22="","",FA!AL22) ->  | AJ170: =IF(FA!AM22="","",FA!AM22) ->  | AK170: =IF(FA!AN22="","",FA!AN22) ->  | AL170: =IF(FA!AO22="","",FA!AO22) ->  | AM170: =IF(FA!AP22="","",FA!AP22) -> 
C171: Comp. Esp. 7 | D171: Criterio Evaluación 7.1 | E171: =IF(FA!H23="","",FA!H23) ->  | F171: =IF(FA!I23="","",FA!I23) ->  | G171: =IF(FA!J23="","",FA!J23) ->  | H171: =IF(FA!K23="","",FA!K23) ->  | I171: =IF(FA!L23="","",FA!L23) ->  | J171: =IF(FA!M23="","",FA!M23) ->  | K171: =IF(FA!N23="","",FA!N23) ->  | L171: =IF(FA!O23="","",FA!O23) ->  | M171: =IF(FA!P23="","",FA!P23) ->  | N171: =IF(FA!Q23="","",FA!Q23) ->  | O171: =IF(FA!R23="","",FA!R23) ->  | P171: =IF(FA!S23="","",FA!S23) ->  | Q171: =IF(FA!T23="","",FA!T23) ->  | R171: =IF(FA!U23="","",FA!U23) ->  | S171: =IF(FA!V23="","",FA!V23) ->  | T171: =IF(FA!W23="","",FA!W23) ->  | U171: =IF(FA!X23="","",FA!X23) ->  | V171: =IF(FA!Y23="","",FA!Y23) ->  | W171: =IF(FA!Z23="","",FA!Z23) ->  | X171: =IF(FA!AA23="","",FA!AA23) ->  | Y171: =IF(FA!AB23="","",FA!AB23) ->  | Z171: =IF(FA!AC23="","",FA!AC23) ->  | AA171: =IF(FA!AD23="","",FA!AD23) ->  | AB171: =IF(FA!AE23="","",FA!AE23) ->  | AC171: =IF(FA!AF23="","",FA!AF23) ->  | AD171: =IF(FA!AG23="","",FA!AG23) ->  | AE171: =IF(FA!AH23="","",FA!AH23) ->  | AF171: =IF(FA!AI23="","",FA!AI23) ->  | AG171: =IF(FA!AJ23="","",FA!AJ23) ->  | AH171: =IF(FA!AK23="","",FA!AK23) ->  | AI171: =IF(FA!AL23="","",FA!AL23) ->  | AJ171: =IF(FA!AM23="","",FA!AM23) ->  | AK171: =IF(FA!AN23="","",FA!AN23) ->  | AL171: =IF(FA!AO23="","",FA!AO23) ->  | AM171: =IF(FA!AP23="","",FA!AP23) -> 
D172: Criterio Evaluación 7.2 | E172: =IF(FA!H24="","",FA!H24) ->  | F172: =IF(FA!I24="","",FA!I24) ->  | G172: =IF(FA!J24="","",FA!J24) ->  | H172: =IF(FA!K24="","",FA!K24) ->  | I172: =IF(FA!L24="","",FA!L24) ->  | J172: =IF(FA!M24="","",FA!M24) ->  | K172: =IF(FA!N24="","",FA!N24) ->  | L172: =IF(FA!O24="","",FA!O24) ->  | M172: =IF(FA!P24="","",FA!P24) ->  | N172: =IF(FA!Q24="","",FA!Q24) ->  | O172: =IF(FA!R24="","",FA!R24) ->  | P172: =IF(FA!S24="","",FA!S24) ->  | Q172: =IF(FA!T24="","",FA!T24) ->  | R172: =IF(FA!U24="","",FA!U24) ->  | S172: =IF(FA!V24="","",FA!V24) ->  | T172: =IF(FA!W24="","",FA!W24) ->  | U172: =IF(FA!X24="","",FA!X24) ->  | V172: =IF(FA!Y24="","",FA!Y24) ->  | W172: =IF(FA!Z24="","",FA!Z24) ->  | X172: =IF(FA!AA24="","",FA!AA24) ->  | Y172: =IF(FA!AB24="","",FA!AB24) ->  | Z172: =IF(FA!AC24="","",FA!AC24) ->  | AA172: =IF(FA!AD24="","",FA!AD24) ->  | AB172: =IF(FA!AE24="","",FA!AE24) ->  | AC172: =IF(FA!AF24="","",FA!AF24) ->  | AD172: =IF(FA!AG24="","",FA!AG24) ->  | AE172: =IF(FA!AH24="","",FA!AH24) ->  | AF172: =IF(FA!AI24="","",FA!AI24) ->  | AG172: =IF(FA!AJ24="","",FA!AJ24) ->  | AH172: =IF(FA!AK24="","",FA!AK24) ->  | AI172: =IF(FA!AL24="","",FA!AL24) ->  | AJ172: =IF(FA!AM24="","",FA!AM24) ->  | AK172: =IF(FA!AN24="","",FA!AN24) ->  | AL172: =IF(FA!AO24="","",FA!AO24) ->  | AM172: =IF(FA!AP24="","",FA!AP24) -> 
B173: Fundamentos de Administración y Gestión | C173: Comp. Esp. 1 | D173: Criterio Evaluación 1.1 | E173: =IF(FAG!H4="","",FAG!H4) ->  | F173: =IF(FAG!I4="","",FAG!I4) ->  | G173: =IF(FAG!J4="","",FAG!J4) ->  | H173: =IF(FAG!K4="","",FAG!K4) ->  | I173: =IF(FAG!L4="","",FAG!L4) ->  | J173: =IF(FAG!M4="","",FAG!M4) ->  | K173: =IF(FAG!N4="","",FAG!N4) ->  | L173: =IF(FAG!O4="","",FAG!O4) ->  | M173: =IF(FAG!P4="","",FAG!P4) ->  | N173: =IF(FAG!Q4="","",FAG!Q4) ->  | O173: =IF(FAG!R4="","",FAG!R4) ->  | P173: =IF(FAG!S4="","",FAG!S4) ->  | Q173: =IF(FAG!T4="","",FAG!T4) ->  | R173: =IF(FAG!U4="","",FAG!U4) ->  | S173: =IF(FAG!V4="","",FAG!V4) ->  | T173: =IF(FAG!W4="","",FAG!W4) ->  | U173: =IF(FAG!X4="","",FAG!X4) ->  | V173: =IF(FAG!Y4="","",FAG!Y4) ->  | W173: =IF(FAG!Z4="","",FAG!Z4) ->  | X173: =IF(FAG!AA4="","",FAG!AA4) ->  | Y173: =IF(FAG!AB4="","",FAG!AB4) ->  | Z173: =IF(FAG!AC4="","",FAG!AC4) ->  | AA173: =IF(FAG!AD4="","",FAG!AD4) ->  | AB173: =IF(FAG!AE4="","",FAG!AE4) ->  | AC173: =IF(FAG!AF4="","",FAG!AF4) ->  | AD173: =IF(FAG!AG4="","",FAG!AG4) ->  | AE173: =IF(FAG!AH4="","",FAG!AH4) ->  | AF173: =IF(FAG!AI4="","",FAG!AI4) ->  | AG173: =IF(FAG!AJ4="","",FAG!AJ4) ->  | AH173: =IF(FAG!AK4="","",FAG!AK4) ->  | AI173: =IF(FAG!AL4="","",FAG!AL4) ->  | AJ173: =IF(FAG!AM4="","",FAG!AM4) ->  | AK173: =IF(FAG!AN4="","",FAG!AN4) ->  | AL173: =IF(FAG!AO4="","",FAG!AO4) ->  | AM173: =IF(FAG!AP4="","",FAG!AP4) -> 
D174: Criterio Evaluación 1.2 | E174: =IF(FAG!H5="","",FAG!H5) ->  | F174: =IF(FAG!I5="","",FAG!I5) ->  | G174: =IF(FAG!J5="","",FAG!J5) ->  | H174: =IF(FAG!K5="","",FAG!K5) ->  | I174: =IF(FAG!L5="","",FAG!L5) ->  | J174: =IF(FAG!M5="","",FAG!M5) ->  | K174: =IF(FAG!N5="","",FAG!N5) ->  | L174: =IF(FAG!O5="","",FAG!O5) ->  | M174: =IF(FAG!P5="","",FAG!P5) ->  | N174: =IF(FAG!Q5="","",FAG!Q5) ->  | O174: =IF(FAG!R5="","",FAG!R5) ->  | P174: =IF(FAG!S5="","",FAG!S5) ->  | Q174: =IF(FAG!T5="","",FAG!T5) ->  | R174: =IF(FAG!U5="","",FAG!U5) ->  | S174: =IF(FAG!V5="","",FAG!V5) ->  | T174: =IF(FAG!W5="","",FAG!W5) ->  | U174: =IF(FAG!X5="","",FAG!X5) ->  | V174: =IF(FAG!Y5="","",FAG!Y5) ->  | W174: =IF(FAG!Z5="","",FAG!Z5) ->  | X174: =IF(FAG!AA5="","",FAG!AA5) ->  | Y174: =IF(FAG!AB5="","",FAG!AB5) ->  | Z174: =IF(FAG!AC5="","",FAG!AC5) ->  | AA174: =IF(FAG!AD5="","",FAG!AD5) ->  | AB174: =IF(FAG!AE5="","",FAG!AE5) ->  | AC174: =IF(FAG!AF5="","",FAG!AF5) ->  | AD174: =IF(FAG!AG5="","",FAG!AG5) ->  | AE174: =IF(FAG!AH5="","",FAG!AH5) ->  | AF174: =IF(FAG!AI5="","",FAG!AI5) ->  | AG174: =IF(FAG!AJ5="","",FAG!AJ5) ->  | AH174: =IF(FAG!AK5="","",FAG!AK5) ->  | AI174: =IF(FAG!AL5="","",FAG!AL5) ->  | AJ174: =IF(FAG!AM5="","",FAG!AM5) ->  | AK174: =IF(FAG!AN5="","",FAG!AN5) ->  | AL174: =IF(FAG!AO5="","",FAG!AO5) ->  | AM174: =IF(FAG!AP5="","",FAG!AP5) -> 
D175: Criterio Evaluación 1.3 | E175: =IF(FAG!H6="","",FAG!H6) ->  | F175: =IF(FAG!I6="","",FAG!I6) ->  | G175: =IF(FAG!J6="","",FAG!J6) ->  | H175: =IF(FAG!K6="","",FAG!K6) ->  | I175: =IF(FAG!L6="","",FAG!L6) ->  | J175: =IF(FAG!M6="","",FAG!M6) ->  | K175: =IF(FAG!N6="","",FAG!N6) ->  | L175: =IF(FAG!O6="","",FAG!O6) ->  | M175: =IF(FAG!P6="","",FAG!P6) ->  | N175: =IF(FAG!Q6="","",FAG!Q6) ->  | O175: =IF(FAG!R6="","",FAG!R6) ->  | P175: =IF(FAG!S6="","",FAG!S6) ->  | Q175: =IF(FAG!T6="","",FAG!T6) ->  | R175: =IF(FAG!U6="","",FAG!U6) ->  | S175: =IF(FAG!V6="","",FAG!V6) ->  | T175: =IF(FAG!W6="","",FAG!W6) ->  | U175: =IF(FAG!X6="","",FAG!X6) ->  | V175: =IF(FAG!Y6="","",FAG!Y6) ->  | W175: =IF(FAG!Z6="","",FAG!Z6) ->  | X175: =IF(FAG!AA6="","",FAG!AA6) ->  | Y175: =IF(FAG!AB6="","",FAG!AB6) ->  | Z175: =IF(FAG!AC6="","",FAG!AC6) ->  | AA175: =IF(FAG!AD6="","",FAG!AD6) ->  | AB175: =IF(FAG!AE6="","",FAG!AE6) ->  | AC175: =IF(FAG!AF6="","",FAG!AF6) ->  | AD175: =IF(FAG!AG6="","",FAG!AG6) ->  | AE175: =IF(FAG!AH6="","",FAG!AH6) ->  | AF175: =IF(FAG!AI6="","",FAG!AI6) ->  | AG175: =IF(FAG!AJ6="","",FAG!AJ6) ->  | AH175: =IF(FAG!AK6="","",FAG!AK6) ->  | AI175: =IF(FAG!AL6="","",FAG!AL6) ->  | AJ175: =IF(FAG!AM6="","",FAG!AM6) ->  | AK175: =IF(FAG!AN6="","",FAG!AN6) ->  | AL175: =IF(FAG!AO6="","",FAG!AO6) ->  | AM175: =IF(FAG!AP6="","",FAG!AP6) -> 
D176: Criterio Evaluación 1.4 | E176: =IF(FAG!H7="","",FAG!H7) ->  | F176: =IF(FAG!I7="","",FAG!I7) ->  | G176: =IF(FAG!J7="","",FAG!J7) ->  | H176: =IF(FAG!K7="","",FAG!K7) ->  | I176: =IF(FAG!L7="","",FAG!L7) ->  | J176: =IF(FAG!M7="","",FAG!M7) ->  | K176: =IF(FAG!N7="","",FAG!N7) ->  | L176: =IF(FAG!O7="","",FAG!O7) ->  | M176: =IF(FAG!P7="","",FAG!P7) ->  | N176: =IF(FAG!Q7="","",FAG!Q7) ->  | O176: =IF(FAG!R7="","",FAG!R7) ->  | P176: =IF(FAG!S7="","",FAG!S7) ->  | Q176: =IF(FAG!T7="","",FAG!T7) ->  | R176: =IF(FAG!U7="","",FAG!U7) ->  | S176: =IF(FAG!V7="","",FAG!V7) ->  | T176: =IF(FAG!W7="","",FAG!W7) ->  | U176: =IF(FAG!X7="","",FAG!X7) ->  | V176: =IF(FAG!Y7="","",FAG!Y7) ->  | W176: =IF(FAG!Z7="","",FAG!Z7) ->  | X176: =IF(FAG!AA7="","",FAG!AA7) ->  | Y176: =IF(FAG!AB7="","",FAG!AB7) ->  | Z176: =IF(FAG!AC7="","",FAG!AC7) ->  | AA176: =IF(FAG!AD7="","",FAG!AD7) ->  | AB176: =IF(FAG!AE7="","",FAG!AE7) ->  | AC176: =IF(FAG!AF7="","",FAG!AF7) ->  | AD176: =IF(FAG!AG7="","",FAG!AG7) ->  | AE176: =IF(FAG!AH7="","",FAG!AH7) ->  | AF176: =IF(FAG!AI7="","",FAG!AI7) ->  | AG176: =IF(FAG!AJ7="","",FAG!AJ7) ->  | AH176: =IF(FAG!AK7="","",FAG!AK7) ->  | AI176: =IF(FAG!AL7="","",FAG!AL7) ->  | AJ176: =IF(FAG!AM7="","",FAG!AM7) ->  | AK176: =IF(FAG!AN7="","",FAG!AN7) ->  | AL176: =IF(FAG!AO7="","",FAG!AO7) ->  | AM176: =IF(FAG!AP7="","",FAG!AP7) -> 
C177: Comp. Esp. 2 | D177: Criterio Evaluación 2.1 | E177: =IF(FAG!H8="","",FAG!H8) ->  | F177: =IF(FAG!I8="","",FAG!I8) ->  | G177: =IF(FAG!J8="","",FAG!J8) ->  | H177: =IF(FAG!K8="","",FAG!K8) ->  | I177: =IF(FAG!L8="","",FAG!L8) ->  | J177: =IF(FAG!M8="","",FAG!M8) ->  | K177: =IF(FAG!N8="","",FAG!N8) ->  | L177: =IF(FAG!O8="","",FAG!O8) ->  | M177: =IF(FAG!P8="","",FAG!P8) ->  | N177: =IF(FAG!Q8="","",FAG!Q8) ->  | O177: =IF(FAG!R8="","",FAG!R8) ->  | P177: =IF(FAG!S8="","",FAG!S8) ->  | Q177: =IF(FAG!T8="","",FAG!T8) ->  | R177: =IF(FAG!U8="","",FAG!U8) ->  | S177: =IF(FAG!V8="","",FAG!V8) ->  | T177: =IF(FAG!W8="","",FAG!W8) ->  | U177: =IF(FAG!X8="","",FAG!X8) ->  | V177: =IF(FAG!Y8="","",FAG!Y8) ->  | W177: =IF(FAG!Z8="","",FAG!Z8) ->  | X177: =IF(FAG!AA8="","",FAG!AA8) ->  | Y177: =IF(FAG!AB8="","",FAG!AB8) ->  | Z177: =IF(FAG!AC8="","",FAG!AC8) ->  | AA177: =IF(FAG!AD8="","",FAG!AD8) ->  | AB177: =IF(FAG!AE8="","",FAG!AE8) ->  | AC177: =IF(FAG!AF8="","",FAG!AF8) ->  | AD177: =IF(FAG!AG8="","",FAG!AG8) ->  | AE177: =IF(FAG!AH8="","",FAG!AH8) ->  | AF177: =IF(FAG!AI8="","",FAG!AI8) ->  | AG177: =IF(FAG!AJ8="","",FAG!AJ8) ->  | AH177: =IF(FAG!AK8="","",FAG!AK8) ->  | AI177: =IF(FAG!AL8="","",FAG!AL8) ->  | AJ177: =IF(FAG!AM8="","",FAG!AM8) ->  | AK177: =IF(FAG!AN8="","",FAG!AN8) ->  | AL177: =IF(FAG!AO8="","",FAG!AO8) ->  | AM177: =IF(FAG!AP8="","",FAG!AP8) -> 
D178: Criterio Evaluación 2.2 | E178: =IF(FAG!H9="","",FAG!H9) ->  | F178: =IF(FAG!I9="","",FAG!I9) ->  | G178: =IF(FAG!J9="","",FAG!J9) ->  | H178: =IF(FAG!K9="","",FAG!K9) ->  | I178: =IF(FAG!L9="","",FAG!L9) ->  | J178: =IF(FAG!M9="","",FAG!M9) ->  | K178: =IF(FAG!N9="","",FAG!N9) ->  | L178: =IF(FAG!O9="","",FAG!O9) ->  | M178: =IF(FAG!P9="","",FAG!P9) ->  | N178: =IF(FAG!Q9="","",FAG!Q9) ->  | O178: =IF(FAG!R9="","",FAG!R9) ->  | P178: =IF(FAG!S9="","",FAG!S9) ->  | Q178: =IF(FAG!T9="","",FAG!T9) ->  | R178: =IF(FAG!U9="","",FAG!U9) ->  | S178: =IF(FAG!V9="","",FAG!V9) ->  | T178: =IF(FAG!W9="","",FAG!W9) ->  | U178: =IF(FAG!X9="","",FAG!X9) ->  | V178: =IF(FAG!Y9="","",FAG!Y9) ->  | W178: =IF(FAG!Z9="","",FAG!Z9) ->  | X178: =IF(FAG!AA9="","",FAG!AA9) ->  | Y178: =IF(FAG!AB9="","",FAG!AB9) ->  | Z178: =IF(FAG!AC9="","",FAG!AC9) ->  | AA178: =IF(FAG!AD9="","",FAG!AD9) ->  | AB178: =IF(FAG!AE9="","",FAG!AE9) ->  | AC178: =IF(FAG!AF9="","",FAG!AF9) ->  | AD178: =IF(FAG!AG9="","",FAG!AG9) ->  | AE178: =IF(FAG!AH9="","",FAG!AH9) ->  | AF178: =IF(FAG!AI9="","",FAG!AI9) ->  | AG178: =IF(FAG!AJ9="","",FAG!AJ9) ->  | AH178: =IF(FAG!AK9="","",FAG!AK9) ->  | AI178: =IF(FAG!AL9="","",FAG!AL9) ->  | AJ178: =IF(FAG!AM9="","",FAG!AM9) ->  | AK178: =IF(FAG!AN9="","",FAG!AN9) ->  | AL178: =IF(FAG!AO9="","",FAG!AO9) ->  | AM178: =IF(FAG!AP9="","",FAG!AP9) -> 
D179: Criterio Evaluación 2.3 | E179: =IF(FAG!H10="","",FAG!H10) ->  | F179: =IF(FAG!I10="","",FAG!I10) ->  | G179: =IF(FAG!J10="","",FAG!J10) ->  | H179: =IF(FAG!K10="","",FAG!K10) ->  | I179: =IF(FAG!L10="","",FAG!L10) ->  | J179: =IF(FAG!M10="","",FAG!M10) ->  | K179: =IF(FAG!N10="","",FAG!N10) ->  | L179: =IF(FAG!O10="","",FAG!O10) ->  | M179: =IF(FAG!P10="","",FAG!P10) ->  | N179: =IF(FAG!Q10="","",FAG!Q10) ->  | O179: =IF(FAG!R10="","",FAG!R10) ->  | P179: =IF(FAG!S10="","",FAG!S10) ->  | Q179: =IF(FAG!T10="","",FAG!T10) ->  | R179: =IF(FAG!U10="","",FAG!U10) ->  | S179: =IF(FAG!V10="","",FAG!V10) ->  | T179: =IF(FAG!W10="","",FAG!W10) ->  | U179: =IF(FAG!X10="","",FAG!X10) ->  | V179: =IF(FAG!Y10="","",FAG!Y10) ->  | W179: =IF(FAG!Z10="","",FAG!Z10) ->  | X179: =IF(FAG!AA10="","",FAG!AA10) ->  | Y179: =IF(FAG!AB10="","",FAG!AB10) ->  | Z179: =IF(FAG!AC10="","",FAG!AC10) ->  | AA179: =IF(FAG!AD10="","",FAG!AD10) ->  | AB179: =IF(FAG!AE10="","",FAG!AE10) ->  | AC179: =IF(FAG!AF10="","",FAG!AF10) ->  | AD179: =IF(FAG!AG10="","",FAG!AG10) ->  | AE179: =IF(FAG!AH10="","",FAG!AH10) ->  | AF179: =IF(FAG!AI10="","",FAG!AI10) ->  | AG179: =IF(FAG!AJ10="","",FAG!AJ10) ->  | AH179: =IF(FAG!AK10="","",FAG!AK10) ->  | AI179: =IF(FAG!AL10="","",FAG!AL10) ->  | AJ179: =IF(FAG!AM10="","",FAG!AM10) ->  | AK179: =IF(FAG!AN10="","",FAG!AN10) ->  | AL179: =IF(FAG!AO10="","",FAG!AO10) ->  | AM179: =IF(FAG!AP10="","",FAG!AP10) -> 
D180: Criterio Evaluación 2.4 | E180: =IF(FAG!H11="","",FAG!H11) ->  | F180: =IF(FAG!I11="","",FAG!I11) ->  | G180: =IF(FAG!J11="","",FAG!J11) ->  | H180: =IF(FAG!K11="","",FAG!K11) ->  | I180: =IF(FAG!L11="","",FAG!L11) ->  | J180: =IF(FAG!M11="","",FAG!M11) ->  | K180: =IF(FAG!N11="","",FAG!N11) ->  | L180: =IF(FAG!O11="","",FAG!O11) ->  | M180: =IF(FAG!P11="","",FAG!P11) ->  | N180: =IF(FAG!Q11="","",FAG!Q11) ->  | O180: =IF(FAG!R11="","",FAG!R11) ->  | P180: =IF(FAG!S11="","",FAG!S11) ->  | Q180: =IF(FAG!T11="","",FAG!T11) ->  | R180: =IF(FAG!U11="","",FAG!U11) ->  | S180: =IF(FAG!V11="","",FAG!V11) ->  | T180: =IF(FAG!W11="","",FAG!W11) ->  | U180: =IF(FAG!X11="","",FAG!X11) ->  | V180: =IF(FAG!Y11="","",FAG!Y11) ->  | W180: =IF(FAG!Z11="","",FAG!Z11) ->  | X180: =IF(FAG!AA11="","",FAG!AA11) ->  | Y180: =IF(FAG!AB11="","",FAG!AB11) ->  | Z180: =IF(FAG!AC11="","",FAG!AC11) ->  | AA180: =IF(FAG!AD11="","",FAG!AD11) ->  | AB180: =IF(FAG!AE11="","",FAG!AE11) ->  | AC180: =IF(FAG!AF11="","",FAG!AF11) ->  | AD180: =IF(FAG!AG11="","",FAG!AG11) ->  | AE180: =IF(FAG!AH11="","",FAG!AH11) ->  | AF180: =IF(FAG!AI11="","",FAG!AI11) ->  | AG180: =IF(FAG!AJ11="","",FAG!AJ11) ->  | AH180: =IF(FAG!AK11="","",FAG!AK11) ->  | AI180: =IF(FAG!AL11="","",FAG!AL11) ->  | AJ180: =IF(FAG!AM11="","",FAG!AM11) ->  | AK180: =IF(FAG!AN11="","",FAG!AN11) ->  | AL180: =IF(FAG!AO11="","",FAG!AO11) ->  | AM180: =IF(FAG!AP11="","",FAG!AP11) -> 
C181: Comp. Esp. 3 | D181: Criterio Evaluación 3.1 | E181: =IF(FAG!H12="","",FAG!H12) ->  | F181: =IF(FAG!I12="","",FAG!I12) ->  | G181: =IF(FAG!J12="","",FAG!J12) ->  | H181: =IF(FAG!K12="","",FAG!K12) ->  | I181: =IF(FAG!L12="","",FAG!L12) ->  | J181: =IF(FAG!M12="","",FAG!M12) ->  | K181: =IF(FAG!N12="","",FAG!N12) ->  | L181: =IF(FAG!O12="","",FAG!O12) ->  | M181: =IF(FAG!P12="","",FAG!P12) ->  | N181: =IF(FAG!Q12="","",FAG!Q12) ->  | O181: =IF(FAG!R12="","",FAG!R12) ->  | P181: =IF(FAG!S12="","",FAG!S12) ->  | Q181: =IF(FAG!T12="","",FAG!T12) ->  | R181: =IF(FAG!U12="","",FAG!U12) ->  | S181: =IF(FAG!V12="","",FAG!V12) ->  | T181: =IF(FAG!W12="","",FAG!W12) ->  | U181: =IF(FAG!X12="","",FAG!X12) ->  | V181: =IF(FAG!Y12="","",FAG!Y12) ->  | W181: =IF(FAG!Z12="","",FAG!Z12) ->  | X181: =IF(FAG!AA12="","",FAG!AA12) ->  | Y181: =IF(FAG!AB12="","",FAG!AB12) ->  | Z181: =IF(FAG!AC12="","",FAG!AC12) ->  | AA181: =IF(FAG!AD12="","",FAG!AD12) ->  | AB181: =IF(FAG!AE12="","",FAG!AE12) ->  | AC181: =IF(FAG!AF12="","",FAG!AF12) ->  | AD181: =IF(FAG!AG12="","",FAG!AG12) ->  | AE181: =IF(FAG!AH12="","",FAG!AH12) ->  | AF181: =IF(FAG!AI12="","",FAG!AI12) ->  | AG181: =IF(FAG!AJ12="","",FAG!AJ12) ->  | AH181: =IF(FAG!AK12="","",FAG!AK12) ->  | AI181: =IF(FAG!AL12="","",FAG!AL12) ->  | AJ181: =IF(FAG!AM12="","",FAG!AM12) ->  | AK181: =IF(FAG!AN12="","",FAG!AN12) ->  | AL181: =IF(FAG!AO12="","",FAG!AO12) ->  | AM181: =IF(FAG!AP12="","",FAG!AP12) -> 
D182: Criterio Evaluación 3.2 | E182: =IF(FAG!H13="","",FAG!H13) ->  | F182: =IF(FAG!I13="","",FAG!I13) ->  | G182: =IF(FAG!J13="","",FAG!J13) ->  | H182: =IF(FAG!K13="","",FAG!K13) ->  | I182: =IF(FAG!L13="","",FAG!L13) ->  | J182: =IF(FAG!M13="","",FAG!M13) ->  | K182: =IF(FAG!N13="","",FAG!N13) ->  | L182: =IF(FAG!O13="","",FAG!O13) ->  | M182: =IF(FAG!P13="","",FAG!P13) ->  | N182: =IF(FAG!Q13="","",FAG!Q13) ->  | O182: =IF(FAG!R13="","",FAG!R13) ->  | P182: =IF(FAG!S13="","",FAG!S13) ->  | Q182: =IF(FAG!T13="","",FAG!T13) ->  | R182: =IF(FAG!U13="","",FAG!U13) ->  | S182: =IF(FAG!V13="","",FAG!V13) ->  | T182: =IF(FAG!W13="","",FAG!W13) ->  | U182: =IF(FAG!X13="","",FAG!X13) ->  | V182: =IF(FAG!Y13="","",FAG!Y13) ->  | W182: =IF(FAG!Z13="","",FAG!Z13) ->  | X182: =IF(FAG!AA13="","",FAG!AA13) ->  | Y182: =IF(FAG!AB13="","",FAG!AB13) ->  | Z182: =IF(FAG!AC13="","",FAG!AC13) ->  | AA182: =IF(FAG!AD13="","",FAG!AD13) ->  | AB182: =IF(FAG!AE13="","",FAG!AE13) ->  | AC182: =IF(FAG!AF13="","",FAG!AF13) ->  | AD182: =IF(FAG!AG13="","",FAG!AG13) ->  | AE182: =IF(FAG!AH13="","",FAG!AH13) ->  | AF182: =IF(FAG!AI13="","",FAG!AI13) ->  | AG182: =IF(FAG!AJ13="","",FAG!AJ13) ->  | AH182: =IF(FAG!AK13="","",FAG!AK13) ->  | AI182: =IF(FAG!AL13="","",FAG!AL13) ->  | AJ182: =IF(FAG!AM13="","",FAG!AM13) ->  | AK182: =IF(FAG!AN13="","",FAG!AN13) ->  | AL182: =IF(FAG!AO13="","",FAG!AO13) ->  | AM182: =IF(FAG!AP13="","",FAG!AP13) -> 
D183: Criterio Evaluación 3.3 | E183: =IF(FAG!H14="","",FAG!H14) ->  | F183: =IF(FAG!I14="","",FAG!I14) ->  | G183: =IF(FAG!J14="","",FAG!J14) ->  | H183: =IF(FAG!K14="","",FAG!K14) ->  | I183: =IF(FAG!L14="","",FAG!L14) ->  | J183: =IF(FAG!M14="","",FAG!M14) ->  | K183: =IF(FAG!N14="","",FAG!N14) ->  | L183: =IF(FAG!O14="","",FAG!O14) ->  | M183: =IF(FAG!P14="","",FAG!P14) ->  | N183: =IF(FAG!Q14="","",FAG!Q14) ->  | O183: =IF(FAG!R14="","",FAG!R14) ->  | P183: =IF(FAG!S14="","",FAG!S14) ->  | Q183: =IF(FAG!T14="","",FAG!T14) ->  | R183: =IF(FAG!U14="","",FAG!U14) ->  | S183: =IF(FAG!V14="","",FAG!V14) ->  | T183: =IF(FAG!W14="","",FAG!W14) ->  | U183: =IF(FAG!X14="","",FAG!X14) ->  | V183: =IF(FAG!Y14="","",FAG!Y14) ->  | W183: =IF(FAG!Z14="","",FAG!Z14) ->  | X183: =IF(FAG!AA14="","",FAG!AA14) ->  | Y183: =IF(FAG!AB14="","",FAG!AB14) ->  | Z183: =IF(FAG!AC14="","",FAG!AC14) ->  | AA183: =IF(FAG!AD14="","",FAG!AD14) ->  | AB183: =IF(FAG!AE14="","",FAG!AE14) ->  | AC183: =IF(FAG!AF14="","",FAG!AF14) ->  | AD183: =IF(FAG!AG14="","",FAG!AG14) ->  | AE183: =IF(FAG!AH14="","",FAG!AH14) ->  | AF183: =IF(FAG!AI14="","",FAG!AI14) ->  | AG183: =IF(FAG!AJ14="","",FAG!AJ14) ->  | AH183: =IF(FAG!AK14="","",FAG!AK14) ->  | AI183: =IF(FAG!AL14="","",FAG!AL14) ->  | AJ183: =IF(FAG!AM14="","",FAG!AM14) ->  | AK183: =IF(FAG!AN14="","",FAG!AN14) ->  | AL183: =IF(FAG!AO14="","",FAG!AO14) ->  | AM183: =IF(FAG!AP14="","",FAG!AP14) -> 
D184: Criterio Evaluación 3.4 | E184: =IF(FAG!H15="","",FAG!H15) ->  | F184: =IF(FAG!I15="","",FAG!I15) ->  | G184: =IF(FAG!J15="","",FAG!J15) ->  | H184: =IF(FAG!K15="","",FAG!K15) ->  | I184: =IF(FAG!L15="","",FAG!L15) ->  | J184: =IF(FAG!M15="","",FAG!M15) ->  | K184: =IF(FAG!N15="","",FAG!N15) ->  | L184: =IF(FAG!O15="","",FAG!O15) ->  | M184: =IF(FAG!P15="","",FAG!P15) ->  | N184: =IF(FAG!Q15="","",FAG!Q15) ->  | O184: =IF(FAG!R15="","",FAG!R15) ->  | P184: =IF(FAG!S15="","",FAG!S15) ->  | Q184: =IF(FAG!T15="","",FAG!T15) ->  | R184: =IF(FAG!U15="","",FAG!U15) ->  | S184: =IF(FAG!V15="","",FAG!V15) ->  | T184: =IF(FAG!W15="","",FAG!W15) ->  | U184: =IF(FAG!X15="","",FAG!X15) ->  | V184: =IF(FAG!Y15="","",FAG!Y15) ->  | W184: =IF(FAG!Z15="","",FAG!Z15) ->  | X184: =IF(FAG!AA15="","",FAG!AA15) ->  | Y184: =IF(FAG!AB15="","",FAG!AB15) ->  | Z184: =IF(FAG!AC15="","",FAG!AC15) ->  | AA184: =IF(FAG!AD15="","",FAG!AD15) ->  | AB184: =IF(FAG!AE15="","",FAG!AE15) ->  | AC184: =IF(FAG!AF15="","",FAG!AF15) ->  | AD184: =IF(FAG!AG15="","",FAG!AG15) ->  | AE184: =IF(FAG!AH15="","",FAG!AH15) ->  | AF184: =IF(FAG!AI15="","",FAG!AI15) ->  | AG184: =IF(FAG!AJ15="","",FAG!AJ15) ->  | AH184: =IF(FAG!AK15="","",FAG!AK15) ->  | AI184: =IF(FAG!AL15="","",FAG!AL15) ->  | AJ184: =IF(FAG!AM15="","",FAG!AM15) ->  | AK184: =IF(FAG!AN15="","",FAG!AN15) ->  | AL184: =IF(FAG!AO15="","",FAG!AO15) ->  | AM184: =IF(FAG!AP15="","",FAG!AP15) -> 
C185: Comp. Esp. 4 | D185: Criterio Evaluación 4.1 | E185: =IF(FAG!H16="","",FAG!H16) ->  | F185: =IF(FAG!I16="","",FAG!I16) ->  | G185: =IF(FAG!J16="","",FAG!J16) ->  | H185: =IF(FAG!K16="","",FAG!K16) ->  | I185: =IF(FAG!L16="","",FAG!L16) ->  | J185: =IF(FAG!M16="","",FAG!M16) ->  | K185: =IF(FAG!N16="","",FAG!N16) ->  | L185: =IF(FAG!O16="","",FAG!O16) ->  | M185: =IF(FAG!P16="","",FAG!P16) ->  | N185: =IF(FAG!Q16="","",FAG!Q16) ->  | O185: =IF(FAG!R16="","",FAG!R16) ->  | P185: =IF(FAG!S16="","",FAG!S16) ->  | Q185: =IF(FAG!T16="","",FAG!T16) ->  | R185: =IF(FAG!U16="","",FAG!U16) ->  | S185: =IF(FAG!V16="","",FAG!V16) ->  | T185: =IF(FAG!W16="","",FAG!W16) ->  | U185: =IF(FAG!X16="","",FAG!X16) ->  | V185: =IF(FAG!Y16="","",FAG!Y16) ->  | W185: =IF(FAG!Z16="","",FAG!Z16) ->  | X185: =IF(FAG!AA16="","",FAG!AA16) ->  | Y185: =IF(FAG!AB16="","",FAG!AB16) ->  | Z185: =IF(FAG!AC16="","",FAG!AC16) ->  | AA185: =IF(FAG!AD16="","",FAG!AD16) ->  | AB185: =IF(FAG!AE16="","",FAG!AE16) ->  | AC185: =IF(FAG!AF16="","",FAG!AF16) ->  | AD185: =IF(FAG!AG16="","",FAG!AG16) ->  | AE185: =IF(FAG!AH16="","",FAG!AH16) ->  | AF185: =IF(FAG!AI16="","",FAG!AI16) ->  | AG185: =IF(FAG!AJ16="","",FAG!AJ16) ->  | AH185: =IF(FAG!AK16="","",FAG!AK16) ->  | AI185: =IF(FAG!AL16="","",FAG!AL16) ->  | AJ185: =IF(FAG!AM16="","",FAG!AM16) ->  | AK185: =IF(FAG!AN16="","",FAG!AN16) ->  | AL185: =IF(FAG!AO16="","",FAG!AO16) ->  | AM185: =IF(FAG!AP16="","",FAG!AP16) -> 
D186: Criterio Evaluación 4.2 | E186: =IF(FAG!H17="","",FAG!H17) ->  | F186: =IF(FAG!I17="","",FAG!I17) ->  | G186: =IF(FAG!J17="","",FAG!J17) ->  | H186: =IF(FAG!K17="","",FAG!K17) ->  | I186: =IF(FAG!L17="","",FAG!L17) ->  | J186: =IF(FAG!M17="","",FAG!M17) ->  | K186: =IF(FAG!N17="","",FAG!N17) ->  | L186: =IF(FAG!O17="","",FAG!O17) ->  | M186: =IF(FAG!P17="","",FAG!P17) ->  | N186: =IF(FAG!Q17="","",FAG!Q17) ->  | O186: =IF(FAG!R17="","",FAG!R17) ->  | P186: =IF(FAG!S17="","",FAG!S17) ->  | Q186: =IF(FAG!T17="","",FAG!T17) ->  | R186: =IF(FAG!U17="","",FAG!U17) ->  | S186: =IF(FAG!V17="","",FAG!V17) ->  | T186: =IF(FAG!W17="","",FAG!W17) ->  | U186: =IF(FAG!X17="","",FAG!X17) ->  | V186: =IF(FAG!Y17="","",FAG!Y17) ->  | W186: =IF(FAG!Z17="","",FAG!Z17) ->  | X186: =IF(FAG!AA17="","",FAG!AA17) ->  | Y186: =IF(FAG!AB17="","",FAG!AB17) ->  | Z186: =IF(FAG!AC17="","",FAG!AC17) ->  | AA186: =IF(FAG!AD17="","",FAG!AD17) ->  | AB186: =IF(FAG!AE17="","",FAG!AE17) ->  | AC186: =IF(FAG!AF17="","",FAG!AF17) ->  | AD186: =IF(FAG!AG17="","",FAG!AG17) ->  | AE186: =IF(FAG!AH17="","",FAG!AH17) ->  | AF186: =IF(FAG!AI17="","",FAG!AI17) ->  | AG186: =IF(FAG!AJ17="","",FAG!AJ17) ->  | AH186: =IF(FAG!AK17="","",FAG!AK17) ->  | AI186: =IF(FAG!AL17="","",FAG!AL17) ->  | AJ186: =IF(FAG!AM17="","",FAG!AM17) ->  | AK186: =IF(FAG!AN17="","",FAG!AN17) ->  | AL186: =IF(FAG!AO17="","",FAG!AO17) ->  | AM186: =IF(FAG!AP17="","",FAG!AP17) -> 
D187: Criterio Evaluación 4.3 | E187: =IF(FAG!H18="","",FAG!H18) ->  | F187: =IF(FAG!I18="","",FAG!I18) ->  | G187: =IF(FAG!J18="","",FAG!J18) ->  | H187: =IF(FAG!K18="","",FAG!K18) ->  | I187: =IF(FAG!L18="","",FAG!L18) ->  | J187: =IF(FAG!M18="","",FAG!M18) ->  | K187: =IF(FAG!N18="","",FAG!N18) ->  | L187: =IF(FAG!O18="","",FAG!O18) ->  | M187: =IF(FAG!P18="","",FAG!P18) ->  | N187: =IF(FAG!Q18="","",FAG!Q18) ->  | O187: =IF(FAG!R18="","",FAG!R18) ->  | P187: =IF(FAG!S18="","",FAG!S18) ->  | Q187: =IF(FAG!T18="","",FAG!T18) ->  | R187: =IF(FAG!U18="","",FAG!U18) ->  | S187: =IF(FAG!V18="","",FAG!V18) ->  | T187: =IF(FAG!W18="","",FAG!W18) ->  | U187: =IF(FAG!X18="","",FAG!X18) ->  | V187: =IF(FAG!Y18="","",FAG!Y18) ->  | W187: =IF(FAG!Z18="","",FAG!Z18) ->  | X187: =IF(FAG!AA18="","",FAG!AA18) ->  | Y187: =IF(FAG!AB18="","",FAG!AB18) ->  | Z187: =IF(FAG!AC18="","",FAG!AC18) ->  | AA187: =IF(FAG!AD18="","",FAG!AD18) ->  | AB187: =IF(FAG!AE18="","",FAG!AE18) ->  | AC187: =IF(FAG!AF18="","",FAG!AF18) ->  | AD187: =IF(FAG!AG18="","",FAG!AG18) ->  | AE187: =IF(FAG!AH18="","",FAG!AH18) ->  | AF187: =IF(FAG!AI18="","",FAG!AI18) ->  | AG187: =IF(FAG!AJ18="","",FAG!AJ18) ->  | AH187: =IF(FAG!AK18="","",FAG!AK18) ->  | AI187: =IF(FAG!AL18="","",FAG!AL18) ->  | AJ187: =IF(FAG!AM18="","",FAG!AM18) ->  | AK187: =IF(FAG!AN18="","",FAG!AN18) ->  | AL187: =IF(FAG!AO18="","",FAG!AO18) ->  | AM187: =IF(FAG!AP18="","",FAG!AP18) -> 
